Workbook

Sheet Intro
B2: Mechanized Harvesting of cider apples This spreadsheet is designed to help current growers understand the economics behind implementing mechanized harvesting equipment into their pre-existing cider apple farms. The model operates by comparing the cost of hand-harvesting a specific farm's apples over it's lifespan of thirty years to the cost of implementing mechanized equipment. The values returned from the calculations show the increased cost or savings over the lifespan of the equipment and do not factor in returns from the apples. This model uses factory statistics to determine the productivity of mechanized equipment and is assumed to be operating at capacity, under ideal conditions. Growers using the model are able to edit the operating capacities of equipment, and human labor to adjust the model to their specific circumstances.
C15: !Attention! | D15: When downloading this workbook, make sure to "Enable Macros". If you did not, go back and redownload the workbook with Macros enabled. Once in the sheet with macros enabled, press "Enable Editing" in the yellow bar near the top of the window. | I15: This spreadsheet was designed and for use with an article in press at Horttechnology titled, Mechanically Harvesting Hard Cider Apples is more Economically Favorable than Hand Harvesting, Regardless of Farm Scale
I16: Dr. Gregory Peck, Author
I17: Adam Karl, Coauthor
C18: Hand Harvesting | D18: Sections with this blue heading correlate to hand labor. | I18: For questions, contact: Whit Knickerbocker, Coauthor, Spreadsheet developer, (wk245@cornell.edu)
I19: Latest Revision: January 7th, 2022
C20: Mechanized Harvesting | D20: Sections with this orange heading correlate to mechanized harvesting labor and capacities.
C22: 0 | D22: You should only change cells with green highlight to fit a specific orchard.
C23: Hovering your pointer over cells with red triangles in the cornershows explanations.
C25: Use buttons like these on the "Inputs" page to use pre-determined equipment setups and rates.

Sheet Inputs
A1: INPUTS
A2: This is the input section. Cells with white lablels (A10-A12) are values that will be constant between farms, whether they use hand labor or mechanized equipment. Cells labeled with blue, throughout the spreadsheet, correlate to hand harvested farms, and orange to mechanically harvested. Cells in green are the only cells that should be edited to fit a specific farm's scenario. Calculations are based on these throughout the rest of this and the other sheets.
D9: Hand Harvest | G9: Hour per acre total | H9: Hours to pick whole Orchard | I9: Labor Cost per acre | L9: Yearly cost for orchard
A10: Orchard Size in acres | B10: 5 | G10: =B12/B15 -> 53.66666667 | H10: =G10*B10 -> 268.3333333 | I10: =G10*B14 -> 955.2666667 | L10: =(I10*B10)+B16 -> 4776.333333
A11: Trees per acre | B11: 907
A12: Yields in bu/acre | B12: 805 | D12: Mechanical Harvest | E12: Hour per acre shaking | F12: Hours per acre harvesting | G12: Hours per acre total | H12: Hours to pick whole Orchard | I12: Labor Cost per acre | J12: Total Fuel consumption per acre (gal) | K12: Total Fuel Cost per acre | L12: Yearly Cost for orchard
E13: =B11/B21 -> 9.07e-06 | F13: =((B12*42.5)/2000)/B26 -> 12.44090909 | G13: =E13+F13 -> 12.44091816 | H13: =(E13+F13)*B10 -> 62.2045908 | I13: =(E13+F13)*B18 -> 264.3695109 | J13: =SUM((E13*D21)+(F13*E21)) -> 16.79524425 | K13: =J13*B19 -> 47.86644612 | L13: =((I13+K13)*B10)+D32+B30 -> 2221.646452
A14: Hand labor hourly wage | B14: 17.8
A15: Picking Speed bushels per hour | B15: 15
A16: Yearly hand-harvesting equipment maintenance cost | B16: 0
D17: Fuel Consumption per hour
A18: Operator hourly wage | B18: 21.25 | D18: Avail. Shaker PTO | E18: Avail. Harvester PTO
A19: Fuel Cost per gallon | B19: 2.85 | D19: =IF((B22/B23)>1, "CANNOT BE > 1", B22/B23) -> 1 | E19: =IF((B27/B28)>1, "CANNOT BE > 1", B27/B28) -> 1
A20: Shaker Cost | B20: 0 | D20: Shaking - Gal/hour | E20: Harvesting - Gal/Hour
A21: Shaker speed in trees/hour | B21: 100000000 | D21: =((0.0434*D19)+0.019)*B22 -> 1.872 | E21: 1.35
A22: Shaker Required Horse Power | B22: 30
A23: Shaker Tractor Horse Power | B23: 30 | D23: If the tractor you're using is a gasoline Tractor, use the calculator below to determine gasoline usage, insert that into the above Fuel Consumption chart (D21 and/or E21), and adjust the "Fuel Cost per gallon", cell B19, accordingly.
A24: Shaker Salvage Value after 30 years | B24: 0
A25: Harvester Cost | B25: 19814
A26: Harvest Speed in ton/hour | B26: 1.375
A27: Harvester Required Horsepower | B27: 13
A28: Harvester Tractor Horsepower | B28: 13 | D28: Gas HP | E28: Gasoline Consumption per hour
A29: Harvester Salvage Value after 30 years | B29: 0 | D29: 13 | E29: =B185*D29 -> 1.351606066
A30: Any other unaccounted for yearly costs | B30: 0
A31: Any other unaccounted for one-time costs | B31: 0 | D31: Yearly Depreciation
D32: =((B20-B24)/30) +((B25-B29)/30) -> 660.4666667
A173: QGas = (0.54X + 0.62 – 0.04*(sqrt(697X)) * X * PPTO
B182: =0.54+0.62 -> 1.16
B183: 0.04
B184: =SQRT(697) -> 26.40075756
B185: =B182-(B183*B184) -> 0.1039696974

Sheet Maintenance Costs
A3: This chart is used to determine the maintenance cost of a tractor based on cumulative hours. The cost is the percentage of the original purchase price based on total hours. The average of 2wd and 4wd tractor maintenance percentage was used. A cost for tractor maintenance is included with both the shaking and harvesting operations. The shaker tractor maintenance is based off the shaker purchase price, as the budget assumes there is already an available tractor to operate the shakers.
D4: Cumulative Hours | E4: 1000 | F4: 2000 | G4: 3000 | H4: 4000 | I4: 5000 | J4: 6000 | K4: 7000 | L4: 8000 | M4: 9000 | N4: 10000
D5: 2 wd Tractor | E5: 0.01 | F5: 0.03 | G5: 0.06 | H5: 0.11 | I5: 0.18 | J5: 0.25 | K5: 0.35 | L5: 0.45 | M5: 0.57 | N5: 0.7
D6: 4 wd Tractor | E6: 0 | F6: 0.01 | G6: 0.03 | H6: 0.05 | I6: 0.08 | J6: 0.11 | K6: 0.15 | L6: 0.19 | M6: 0.24 | N6: 0.3
D7: Avg. Maintenance on Tractor | E7: =AVERAGE(E5:E6) -> 0.005 | F7: 0.02 | G7: 0.045 | H7: 0.08 | I7: 0.13 | J7: 0.18 | K7: =AVERAGE(K5:K6) -> 0.25 | L7: =AVERAGE(L5:L6) -> 0.32 | M7: =AVERAGE(M5:M6) -> 0.405 | N7: =AVERAGE(N5:N6) -> 0.5
A10: This section is used to determine maintenance cost of the shaker mechanism. We found it to be most similar to a mower conditioner due to the hydraulic system used to manuever the equipment. A mower would likely have more maintenance due to the blades, power take-off shaft, and the u-joints that make up the PTO shaft and those used to drive the blades.
D11: Hours (Shaker/Mower conditioner) | E11: 200 | F11: 400 | G11: 600 | H11: 800 | I11: 1000 | J11: 1200 | K11: 1400 | L11: 1600 | M11: 1800 | N11: 2000 | O11: 2500 | P11: 3000 | Q11: 3500 | R11: 4000 | S11: 4500
D12: Shaker (Mower conditioner) | E12: 0.01 | F12: 0.03 | G12: 0.06 | H12: 0.1 | I12: 0.16 | J12: 0.23 | K12: 0.31 | L12: 0.41 | M12: 0.52 | N12: 0.64 | O12: 0.9 | P12: 1.15 | Q12: 1.4 | R12: 1.65 | S12: 1.9
A15: This section is used to determine maintenance of specifically the harvester. The most similar piece of equipment to the apple harvesters we found were potato harvesters so we used the cumulative hours of the harvester to determine the maintenance cost as a percentage of the original purchase price.
D16: Hours (Apple/Potato Harvester) | E16: 200 | F16: 400 | G16: 600 | H16: 800 | I16: 1000 | J16: 1200 | K16: 1400 | L16: 1600 | M16: 1800 | N16: 2000 | O16: 2500 | P16: 3000 | Q16: 3500 | R16: 4000 | S16: 4500
D17: Apple (Potato) harvester maintenance | E17: 0.02 | F17: 0.05 | G17: 0.09 | H17: 0.14 | I17: 0.19 | J17: 0.25 | K17: 0.3 | L17: 0.37 | M17: 0.43 | N17: 0.5 | O17: 0.75 | P17: 1 | Q17: 1.25 | R17: 1.5 | S17: 1.75
A21: This is the cumulative maintenance cost of all the equipment to-date. Meaning that these are not yearly costs, they are the total maintenance cost (or hours) of the equipment for all the previous years. | D21: Year | E21: 1 | F21: =E21+1 -> 2 | G21: =F21+1 -> 3 | H21: 4 | I21: 5 | J21: 6 | K21: 7 | L21: 8 | M21: 9 | N21: 10 | O21: =N21+1 -> 11 | P21: 12 | Q21: 13 | R21: 14 | S21: 15 | T21: =S21+1 -> 16 | U21: 17 | V21: 18 | W21: 19 | X21: 20 | Y21: 21 | Z21: 22 | AA21: 23 | AB21: 24 | AC21: =AB21+1 -> 25 | AD21: 26 | AE21: 27 | AF21: 28 | AG21: 29 | AH21: 30
D22: Shaker/Tract Hours | E22: =Inputs!$E$13*Inputs!$B$10*E$21 -> 4.535e-05 | F22: =Inputs!$E$13*Inputs!$B$10*F$21 -> 9.07e-05 | G22: =Inputs!$E$13*Inputs!$B$10*G$21 -> 0.00013605 | H22: =Inputs!$E$13*Inputs!$B$10*H$21 -> 0.0001814 | I22: =Inputs!$E$13*Inputs!$B$10*I$21 -> 0.00022675 | J22: =Inputs!$E$13*Inputs!$B$10*J$21 -> 0.0002721 | K22: =Inputs!$E$13*Inputs!$B$10*K$21 -> 0.00031745 | L22: =Inputs!$E$13*Inputs!$B$10*L$21 -> 0.0003628 | M22: =Inputs!$E$13*Inputs!$B$10*M$21 -> 0.00040815 | N22: =Inputs!$E$13*Inputs!$B$10*N$21 -> 0.0004535 | O22: =Inputs!$E$13*Inputs!$B$10*O$21 -> 0.00049885 | P22: =Inputs!$E$13*Inputs!$B$10*P$21 -> 0.0005442 | Q22: =Inputs!$E$13*Inputs!$B$10*Q$21 -> 0.00058955 | R22: =Inputs!$E$13*Inputs!$B$10*R$21 -> 0.0006349 | S22: =Inputs!$E$13*Inputs!$B$10*S$21 -> 0.00068025 | T22: =Inputs!$E$13*Inputs!$B$10*T$21 -> 0.0007256 | U22: =Inputs!$E$13*Inputs!$B$10*U$21 -> 0.00077095 | V22: =Inputs!$E$13*Inputs!$B$10*V$21 -> 0.0008163 | W22: =Inputs!$E$13*Inputs!$B$10*W$21 -> 0.00086165 | X22: =Inputs!$E$13*Inputs!$B$10*X$21 -> 0.000907 | Y22: =Inputs!$E$13*Inputs!$B$10*Y$21 -> 0.00095235 | Z22: =Inputs!$E$13*Inputs!$B$10*Z$21 -> 0.0009977 | AA22: =Inputs!$E$13*Inputs!$B$10*AA$21 -> 0.00104305 | AB22: =Inputs!$E$13*Inputs!$B$10*AB$21 -> 0.0010884 | AC22: =Inputs!$E$13*Inputs!$B$10*AC$21 -> 0.00113375 | AD22: =Inputs!$E$13*Inputs!$B$10*AD$21 -> 0.0011791 | AE22: =Inputs!$E$13*Inputs!$B$10*AE$21 -> 0.00122445 | AF22: =Inputs!$E$13*Inputs!$B$10*AF$21 -> 0.0012698 | AG22: =Inputs!$E$13*Inputs!$B$10*AG$21 -> 0.00131515 | AH22: =Inputs!$E$13*Inputs!$B$10*AH$21 -> 0.0013605
D23: Shaker Tract Maint. | E23: =IF(E22<=$E$4,0,IF(E22<=$F$4,$E$7,IF(E22<=$G$4,$F$7,IF(E22<=$H$4,$G$7,IF(E22<=$I$4,$H$7,IF(E22<=$J$4,$I$7,IF(E22<=$K$4,$J$7,IF(E22<=$L$4,$K$7,IF(E22<=$M$4, $L$7,IF(E22<=$N$4,$M$7,$N$7)))))))))) -> 0 | F23: =IF(F22<=$E$4,0,IF(F22<=$F$4,$E$7,IF(F22<=$G$4,$F$7,IF(F22<=$H$4,$G$7,IF(F22<=$I$4,$H$7,IF(F22<=$J$4,$I$7,IF(F22<=$K$4,$J$7,IF(F22<=$L$4,$K$7,IF(F22<=$M$4, $L$7,IF(F22<=$N$4,$M$7,$N$7)))))))))) -> 0 | G23: 0 | H23: 0 | I23: 0 | J23: 0 | K23: 0 | L23: 0 | M23: 0 | N23: 0 | O23: 0 | P23: 0 | Q23: 0 | R23: 0 | S23: 0 | T23: 0 | U23: 0 | V23: 0 | W23: 0 | X23: 0 | Y23: 0 | Z23: 0 | AA23: 0 | AB23: 0 | AC23: 0 | AD23: 0 | AE23: 0 | AF23: 0 | AG23: 0 | AH23: 0
D24: Shaker Tract Maint Cost | E24: =E23*Inputs!$B$20 -> 0 | F24: =F23*Inputs!$B$20 -> 0 | G24: =G23*Inputs!$B$20 -> 0 | H24: =H23*Inputs!$B$20 -> 0 | I24: =I23*Inputs!$B$20 -> 0 | J24: =J23*Inputs!$B$20 -> 0 | K24: =K23*Inputs!$B$20 -> 0 | L24: =L23*Inputs!$B$20 -> 0 | M24: =M23*Inputs!$B$20 -> 0 | N24: =N23*Inputs!$B$20 -> 0 | O24: =O23*Inputs!$B$20 -> 0 | P24: =P23*Inputs!$B$20 -> 0 | Q24: =Q23*Inputs!$B$20 -> 0 | R24: =R23*Inputs!$B$20 -> 0 | S24: =S23*Inputs!$B$20 -> 0 | T24: =T23*Inputs!$B$20 -> 0 | U24: =U23*Inputs!$B$20 -> 0 | V24: =V23*Inputs!$B$20 -> 0 | W24: =W23*Inputs!$B$20 -> 0 | X24: =X23*Inputs!$B$20 -> 0 | Y24: =Y23*Inputs!$B$20 -> 0 | Z24: =Z23*Inputs!$B$20 -> 0 | AA24: =AA23*Inputs!$B$20 -> 0 | AB24: =AB23*Inputs!$B$20 -> 0 | AC24: =AC23*Inputs!$B$20 -> 0 | AD24: =AD23*Inputs!$B$20 -> 0 | AE24: =AE23*Inputs!$B$20 -> 0 | AF24: =AF23*Inputs!$B$20 -> 0 | AG24: =AG23*Inputs!$B$20 -> 0 | AH24: =AH23*Inputs!$B$20 -> 0
D25: Shaker Maint. | E25: =IF(E22<=$F$11,$E$12,IF(E22<=$G$11,$F$12,IF(E22<=$H$11,$G$12,IF(E22<=$I$11,$H$12,IF(E22<=$J$11,$I$12,IF(E22<=$K$11,$J$12,IF(E22<=$L$11,$K$12,IF(E22<=$M$11,$L$12,IF(E22<=$N$11,$M$12,IF(E22<=$O$11,$N$12,IF(E22<=$P$11,$O$12,IF(E22<=$Q$11,$P$12,IF(E22<=$R$11,$Q$12,IF(E22<=$S$11,$R$12,$S$12)))))))))))))) -> 0.01 | F25: 0.01 | G25: 0.01 | H25: 0.01 | I25: 0.01 | J25: 0.01 | K25: 0.01 | L25: 0.01 | M25: 0.01 | N25: 0.01 | O25: 0.01 | P25: 0.01 | Q25: 0.01 | R25: 0.01 | S25: 0.01 | T25: 0.01 | U25: 0.01 | V25: 0.01 | W25: 0.01 | X25: 0.01 | Y25: 0.01 | Z25: 0.01 | AA25: 0.01 | AB25: 0.01 | AC25: 0.01 | AD25: 0.01 | AE25: 0.01 | AF25: 0.01 | AG25: 0.01 | AH25: 0.01
D26: Shaker Maint Cost | E26: =E25*Inputs!$B$20 -> 0 | F26: =F25*Inputs!$B$20 -> 0 | G26: =G25*Inputs!$B$20 -> 0 | H26: =H25*Inputs!$B$20 -> 0 | I26: =I25*Inputs!$B$20 -> 0 | J26: =J25*Inputs!$B$20 -> 0 | K26: =K25*Inputs!$B$20 -> 0 | L26: =L25*Inputs!$B$20 -> 0 | M26: =M25*Inputs!$B$20 -> 0 | N26: =N25*Inputs!$B$20 -> 0 | O26: =O25*Inputs!$B$20 -> 0 | P26: =P25*Inputs!$B$20 -> 0 | Q26: =Q25*Inputs!$B$20 -> 0 | R26: =R25*Inputs!$B$20 -> 0 | S26: =S25*Inputs!$B$20 -> 0 | T26: =T25*Inputs!$B$20 -> 0 | U26: =U25*Inputs!$B$20 -> 0 | V26: =V25*Inputs!$B$20 -> 0 | W26: =W25*Inputs!$B$20 -> 0 | X26: =X25*Inputs!$B$20 -> 0 | Y26: =Y25*Inputs!$B$20 -> 0 | Z26: =Z25*Inputs!$B$20 -> 0 | AA26: =AA25*Inputs!$B$20 -> 0 | AB26: =AB25*Inputs!$B$20 -> 0 | AC26: =AC25*Inputs!$B$20 -> 0 | AD26: =AD25*Inputs!$B$20 -> 0 | AE26: =AE25*Inputs!$B$20 -> 0 | AF26: =AF25*Inputs!$B$20 -> 0 | AG26: =AG25*Inputs!$B$20 -> 0 | AH26: =AH25*Inputs!$B$20 -> 0
D27: Harvester/Tract Hours | E27: =Inputs!$F$13*Inputs!$B$10*'Maintenance Costs'!E$21 -> 62.20454545 | F27: =Inputs!$F$13*Inputs!$B$10*'Maintenance Costs'!F$21 -> 124.4090909 | G27: =Inputs!$F$13*Inputs!$B$10*'Maintenance Costs'!G$21 -> 186.6136364 | H27: =Inputs!$F$13*Inputs!$B$10*'Maintenance Costs'!H$21 -> 248.8181818 | I27: =Inputs!$F$13*Inputs!$B$10*'Maintenance Costs'!I$21 -> 311.0227273 | J27: =Inputs!$F$13*Inputs!$B$10*'Maintenance Costs'!J$21 -> 373.2272727 | K27: =Inputs!$F$13*Inputs!$B$10*'Maintenance Costs'!K$21 -> 435.4318182 | L27: =Inputs!$F$13*Inputs!$B$10*'Maintenance Costs'!L$21 -> 497.6363636 | M27: =Inputs!$F$13*Inputs!$B$10*'Maintenance Costs'!M$21 -> 559.8409091 | N27: =Inputs!$F$13*Inputs!$B$10*'Maintenance Costs'!N$21 -> 622.0454545 | O27: =Inputs!$F$13*Inputs!$B$10*'Maintenance Costs'!O$21 -> 684.25 | P27: =Inputs!$F$13*Inputs!$B$10*'Maintenance Costs'!P$21 -> 746.4545455 | Q27: =Inputs!$F$13*Inputs!$B$10*'Maintenance Costs'!Q$21 -> 808.6590909 | R27: =Inputs!$F$13*Inputs!$B$10*'Maintenance Costs'!R$21 -> 870.8636364 | S27: =Inputs!$F$13*Inputs!$B$10*'Maintenance Costs'!S$21 -> 933.0681818 | T27: =Inputs!$F$13*Inputs!$B$10*'Maintenance Costs'!T$21 -> 995.2727273 | U27: =Inputs!$F$13*Inputs!$B$10*'Maintenance Costs'!U$21 -> 1057.477273 | V27: =Inputs!$F$13*Inputs!$B$10*'Maintenance Costs'!V$21 -> 1119.681818 | W27: =Inputs!$F$13*Inputs!$B$10*'Maintenance Costs'!W$21 -> 1181.886364 | X27: =Inputs!$F$13*Inputs!$B$10*'Maintenance Costs'!X$21 -> 1244.090909 | Y27: =Inputs!$F$13*Inputs!$B$10*'Maintenance Costs'!Y$21 -> 1306.295455 | Z27: =Inputs!$F$13*Inputs!$B$10*'Maintenance Costs'!Z$21 -> 1368.5 | AA27: =Inputs!$F$13*Inputs!$B$10*'Maintenance Costs'!AA$21 -> 1430.704545 | AB27: =Inputs!$F$13*Inputs!$B$10*'Maintenance Costs'!AB$21 -> 1492.909091 | AC27: =Inputs!$F$13*Inputs!$B$10*'Maintenance Costs'!AC$21 -> 1555.113636 | AD27: =Inputs!$F$13*Inputs!$B$10*'Maintenance Costs'!AD$21 -> 1617.318182 | AE27: =Inputs!$F$13*Inputs!$B$10*'Maintenance Costs'!AE$21 -> 1679.522727 | AF27: =Inputs!$F$13*Inputs!$B$10*'Maintenance Costs'!AF$21 -> 1741.727273 | AG27: =Inputs!$F$13*Inputs!$B$10*'Maintenance Costs'!AG$21 -> 1803.931818 | AH27: =Inputs!$F$13*Inputs!$B$10*'Maintenance Costs'!AH$21 -> 1866.136364
D28: Harvester Tract Maint. | E28: =IF(E27<=$E$4,0,IF(E27<=$F$4,$E$7,IF(E27<=$G$4,$F$7,IF(E27<=$H$4,$G$7,IF(E27<=$I$4,$H$7,IF(E27<=$J$4,$I$7,IF(E27<=$K$4,$J$7,IF(E27<=$L$4,$K$7,IF(E27<=$M$4,$L$7,IF(E27<=$N$4,$M$7,$N$7)))))))))) -> 0 | F28: =IF(F27<=$E$4,0,IF(F27<=$F$4,$E$7,IF(F27<=$G$4,$F$7,IF(F27<=$H$4,$G$7,IF(F27<=$I$4,$H$7,IF(F27<=$J$4,$I$7,IF(F27<=$K$4,$J$7,IF(F27<=$L$4,$K$7,IF(F27<=$M$4,$L$7,IF(F27<=$N$4,$M$7,$N$7)))))))))) -> 0 | G28: 0 | H28: 0 | I28: 0 | J28: 0 | K28: 0 | L28: 0 | M28: 0 | N28: 0 | O28: 0 | P28: 0 | Q28: 0 | R28: 0 | S28: 0 | T28: 0 | U28: 0.005 | V28: 0.005 | W28: 0.005 | X28: 0.005 | Y28: 0.005 | Z28: 0.005 | AA28: 0.005 | AB28: 0.005 | AC28: 0.005 | AD28: 0.005 | AE28: 0.005 | AF28: 0.005 | AG28: 0.005 | AH28: 0.005
D29: HarvesterTract Maint. | E29: =E28*Inputs!$B$25 -> 0 | F29: =F28*Inputs!$B$25 -> 0 | G29: =G28*Inputs!$B$25 -> 0 | H29: =H28*Inputs!$B$25 -> 0 | I29: =I28*Inputs!$B$25 -> 0 | J29: =J28*Inputs!$B$25 -> 0 | K29: =K28*Inputs!$B$25 -> 0 | L29: =L28*Inputs!$B$25 -> 0 | M29: =M28*Inputs!$B$25 -> 0 | N29: =N28*Inputs!$B$25 -> 0 | O29: =O28*Inputs!$B$25 -> 0 | P29: =P28*Inputs!$B$25 -> 0 | Q29: =Q28*Inputs!$B$25 -> 0 | R29: =R28*Inputs!$B$25 -> 0 | S29: =S28*Inputs!$B$25 -> 0 | T29: =T28*Inputs!$B$25 -> 0 | U29: =U28*Inputs!$B$25 -> 99.07 | V29: =V28*Inputs!$B$25 -> 99.07 | W29: =W28*Inputs!$B$25 -> 99.07 | X29: =X28*Inputs!$B$25 -> 99.07 | Y29: =Y28*Inputs!$B$25 -> 99.07 | Z29: =Z28*Inputs!$B$25 -> 99.07 | AA29: =AA28*Inputs!$B$25 -> 99.07 | AB29: =AB28*Inputs!$B$25 -> 99.07 | AC29: =AC28*Inputs!$B$25 -> 99.07 | AD29: =AD28*Inputs!$B$25 -> 99.07 | AE29: =AE28*Inputs!$B$25 -> 99.07 | AF29: =AF28*Inputs!$B$25 -> 99.07 | AG29: =AG28*Inputs!$B$25 -> 99.07 | AH29: =AH28*Inputs!$B$25 -> 99.07
D30: Potato Harvester Maint | E30: =IF(E27<=$E$16,0,IF(E27<=$F$16,$E$17,IF(E27<=$G$16,$F$17,IF(E27<=$H$16,$G$17,IF(E27<=$I$16,$H$17,IF(E27<=$J$16,$I$17,IF(E27<=$K$16,$J$17,IF(E27<=$L$16,$K$17,IF(E27<=$M$16,$L$17,IF(E27<=$N$16,$M$17,IF(E27<=$O$16,$N$17,IF(E27<=$P$16,$O$17,IF(E27<=$Q$16,$P$17,IF(E27<=$R$16,$Q$17,IF(E27<=$S$16,$R$17,$S$17))))))))))))))) -> 0 | F30: 0 | G30: 0 | H30: 0.02 | I30: 0.02 | J30: 0.02 | K30: 0.05 | L30: 0.05 | M30: 0.05 | N30: 0.09 | O30: 0.09 | P30: 0.09 | Q30: 0.14 | R30: 0.14 | S30: 0.14 | T30: 0.14 | U30: 0.19 | V30: 0.19 | W30: 0.19 | X30: 0.25 | Y30: 0.25 | Z30: 0.25 | AA30: 0.3 | AB30: 0.3 | AC30: 0.3 | AD30: 0.37 | AE30: 0.37 | AF30: 0.37 | AG30: 0.43 | AH30: 0.43
D31: Potato Harvester Maint | E31: =E30*Inputs!$B$25 -> 0 | F31: =F30*Inputs!$B$25 -> 0 | G31: =G30*Inputs!$B$25 -> 0 | H31: =H30*Inputs!$B$25 -> 396.28 | I31: =I30*Inputs!$B$25 -> 396.28 | J31: =J30*Inputs!$B$25 -> 396.28 | K31: =K30*Inputs!$B$25 -> 990.7 | L31: =L30*Inputs!$B$25 -> 990.7 | M31: =M30*Inputs!$B$25 -> 990.7 | N31: =N30*Inputs!$B$25 -> 1783.26 | O31: =O30*Inputs!$B$25 -> 1783.26 | P31: =P30*Inputs!$B$25 -> 1783.26 | Q31: =Q30*Inputs!$B$25 -> 2773.96 | R31: =R30*Inputs!$B$25 -> 2773.96 | S31: =S30*Inputs!$B$25 -> 2773.96 | T31: =T30*Inputs!$B$25 -> 2773.96 | U31: =U30*Inputs!$B$25 -> 3764.66 | V31: =V30*Inputs!$B$25 -> 3764.66 | W31: =W30*Inputs!$B$25 -> 3764.66 | X31: =X30*Inputs!$B$25 -> 4953.5 | Y31: =Y30*Inputs!$B$25 -> 4953.5 | Z31: =Z30*Inputs!$B$25 -> 4953.5 | AA31: =AA30*Inputs!$B$25 -> 5944.2 | AB31: =AB30*Inputs!$B$25 -> 5944.2 | AC31: =AC30*Inputs!$B$25 -> 5944.2 | AD31: =AD30*Inputs!$B$25 -> 7331.18 | AE31: =AE30*Inputs!$B$25 -> 7331.18 | AF31: =AF30*Inputs!$B$25 -> 7331.18 | AG31: =AG30*Inputs!$B$25 -> 8520.02 | AH31: =AH30*Inputs!$B$25 -> 8520.02
D34: Total Mechanized Equipment Maintenance Cost | E34: =SUM(E24,E26,E29,E31) -> 0 | F34: =SUM(F24,F26,F29,F31) -> 0 | G34: 0 | H34: 396.28 | I34: 396.28 | J34: 396.28 | K34: 990.7 | L34: 990.7 | M34: 990.7 | N34: 1783.26 | O34: 1783.26 | P34: 1783.26 | Q34: 2773.96 | R34: 2773.96 | S34: 2773.96 | T34: 2773.96 | U34: 3863.73 | V34: 3863.73 | W34: 3863.73 | X34: 5052.57 | Y34: 5052.57 | Z34: 5052.57 | AA34: 6043.27 | AB34: 6043.27 | AC34: 6043.27 | AD34: 7430.25 | AE34: 7430.25 | AF34: 7430.25 | AG34: 8619.09 | AH34: 8619.09

Sheet Breakeven analyses
B2: This sheet pulls together data from the input section and maintenance data to produce a chart (below) that shows a visual representation of the breakeven anlysis. The goal of this spreadsheet is to determine the cumulative expense of operating a cider orchard using hand-labor to harvest apples and the cumulative cost of mechanized equipment to harvest apples over the expected life of an orchard. Cells shaded red show that the cumulative cost of hand-harvesting is lower to-date than mechanized. If the cells are shaded green, it means the cumulative cost of mechanized harvesting is lower than the hand-harvesting cost to-date.
B4: Year | C4: 1 | D4: =C4+1 -> 2 | E4: 3 | F4: 4 | G4: 5 | H4: 6 | I4: 7 | J4: 8 | K4: 9 | L4: 10 | M4: 11 | N4: 12 | O4: 13 | P4: 14 | Q4: 15 | R4: =Q4+1 -> 16 | S4: 17 | T4: 18 | U4: 19 | V4: 20 | W4: 21 | X4: 22 | Y4: 23 | Z4: 24 | AA4: 25 | AB4: =AA4+1 -> 26 | AC4: =AB4+1 -> 27 | AD4: =AC4+1 -> 28 | AE4: =AD4+1 -> 29 | AF4: =AE4+1 -> 30
A5: Hand Harvest | B5: Labor Hours | C5: =Inputs!$H$10 -> 268.3333333 | D5: =Inputs!$H$10+C5 -> 536.6666667 | E5: =Inputs!$H$10+D5 -> 805 | F5: =Inputs!$H$10+E5 -> 1073.333333 | G5: =Inputs!$H$10+F5 -> 1341.666667 | H5: =Inputs!$H$10+G5 -> 1610 | I5: =Inputs!$H$10+H5 -> 1878.333333 | J5: =Inputs!$H$10+I5 -> 2146.666667 | K5: =Inputs!$H$10+J5 -> 2415 | L5: =Inputs!$H$10+K5 -> 2683.333333 | M5: =Inputs!$H$10+L5 -> 2951.666667 | N5: =Inputs!$H$10+M5 -> 3220 | O5: =Inputs!$H$10+N5 -> 3488.333333 | P5: =Inputs!$H$10+O5 -> 3756.666667 | Q5: =Inputs!$H$10+P5 -> 4025 | R5: =Inputs!$H$10+Q5 -> 4293.333333 | S5: =Inputs!$H$10+R5 -> 4561.666667 | T5: =Inputs!$H$10+S5 -> 4830 | U5: =Inputs!$H$10+T5 -> 5098.333333 | V5: =Inputs!$H$10+U5 -> 5366.666667 | W5: =Inputs!$H$10+V5 -> 5635 | X5: =Inputs!$H$10+W5 -> 5903.333333 | Y5: =Inputs!$H$10+X5 -> 6171.666667 | Z5: =Inputs!$H$10+Y5 -> 6440 | AA5: =Inputs!$H$10+Z5 -> 6708.333333 | AB5: =Inputs!$H$10+AA5 -> 6976.666667 | AC5: =Inputs!$H$10+AB5 -> 7245 | AD5: =Inputs!$H$10+AC5 -> 7513.333333 | AE5: =Inputs!$H$10+AD5 -> 7781.666667 | AF5: =Inputs!$H$10+AE5 -> 8050
B6: Yearly Cost | C6: =Inputs!$L$10 -> 4776.333333 | D6: =Inputs!$L$10 -> 4776.333333 | E6: =Inputs!$L$10 -> 4776.333333 | F6: =Inputs!$L$10 -> 4776.333333 | G6: =Inputs!$L$10 -> 4776.333333 | H6: =Inputs!$L$10 -> 4776.333333 | I6: =Inputs!$L$10 -> 4776.333333 | J6: =Inputs!$L$10 -> 4776.333333 | K6: =Inputs!$L$10 -> 4776.333333 | L6: =Inputs!$L$10 -> 4776.333333 | M6: =Inputs!$L$10 -> 4776.333333 | N6: =Inputs!$L$10 -> 4776.333333 | O6: =Inputs!$L$10 -> 4776.333333 | P6: =Inputs!$L$10 -> 4776.333333 | Q6: =Inputs!$L$10 -> 4776.333333 | R6: =Inputs!$L$10 -> 4776.333333 | S6: =Inputs!$L$10 -> 4776.333333 | T6: =Inputs!$L$10 -> 4776.333333 | U6: =Inputs!$L$10 -> 4776.333333 | V6: =Inputs!$L$10 -> 4776.333333 | W6: =Inputs!$L$10 -> 4776.333333 | X6: =Inputs!$L$10 -> 4776.333333 | Y6: =Inputs!$L$10 -> 4776.333333 | Z6: =Inputs!$L$10 -> 4776.333333 | AA6: =Inputs!$L$10 -> 4776.333333 | AB6: =Inputs!$L$10 -> 4776.333333 | AC6: =Inputs!$L$10 -> 4776.333333 | AD6: =Inputs!$L$10 -> 4776.333333 | AE6: =Inputs!$L$10 -> 4776.333333 | AF6: =Inputs!$L$10 -> 4776.333333
B7: Cumulative Cost | C7: =C6 -> 4776.333333 | D7: =C7+D6 -> 9552.666667 | E7: 14329 | F7: 19105.33333 | G7: 23881.66667 | H7: 28658 | I7: 33434.33333 | J7: 38210.66667 | K7: 42987 | L7: 47763.33333 | M7: 52539.66667 | N7: 57316 | O7: 62092.33333 | P7: 66868.66667 | Q7: 71645 | R7: =Q7+R6 -> 76421.33333 | S7: 81197.66667 | T7: 85974 | U7: 90750.33333 | V7: 95526.66667 | W7: 100303 | X7: 105079.3333 | Y7: 109855.6667 | Z7: 114632 | AA7: 119408.3333 | AB7: =AA7+AB6 -> 124184.6667 | AC7: =AB7+AC6 -> 128961 | AD7: =AC7+AD6 -> 133737.3333 | AE7: =AD7+AE6 -> 138513.6667 | AF7: =AE7+AF6 -> 143290
A8: Mechanical Harvest | B8: Labor Hours | C8: =Inputs!$H$13 -> 62.2045908 | D8: =Inputs!$H$13+C8 -> 124.4091816 | E8: =Inputs!$H$13+D8 -> 186.6137724 | F8: =Inputs!$H$13+E8 -> 248.8183632 | G8: =Inputs!$H$13+F8 -> 311.022954 | H8: =Inputs!$H$13+G8 -> 373.2275448 | I8: =Inputs!$H$13+H8 -> 435.4321356 | J8: =Inputs!$H$13+I8 -> 497.6367264 | K8: =Inputs!$H$13+J8 -> 559.8413172 | L8: =Inputs!$H$13+K8 -> 622.045908 | M8: =Inputs!$H$13+L8 -> 684.2504988 | N8: =Inputs!$H$13+M8 -> 746.4550897 | O8: =Inputs!$H$13+N8 -> 808.6596805 | P8: =Inputs!$H$13+O8 -> 870.8642713 | Q8: =Inputs!$H$13+P8 -> 933.0688621 | R8: =Inputs!$H$13+Q8 -> 995.2734529 | S8: =Inputs!$H$13+R8 -> 1057.478044 | T8: =Inputs!$H$13+S8 -> 1119.682634 | U8: =Inputs!$H$13+T8 -> 1181.887225 | V8: =Inputs!$H$13+U8 -> 1244.091816 | W8: =Inputs!$H$13+V8 -> 1306.296407 | X8: =Inputs!$H$13+W8 -> 1368.500998 | Y8: =Inputs!$H$13+X8 -> 1430.705589 | Z8: =Inputs!$H$13+Y8 -> 1492.910179 | AA8: =Inputs!$H$13+Z8 -> 1555.11477 | AB8: =Inputs!$H$13+AA8 -> 1617.319361 | AC8: =Inputs!$H$13+AB8 -> 1679.523952 | AD8: =Inputs!$H$13+AC8 -> 1741.728543 | AE8: =Inputs!$H$13+AD8 -> 1803.933133 | AF8: =Inputs!$H$13+AE8 -> 1866.137724
B9: Yearly Cost | C9: =Inputs!$L$13 -> 2221.646452 | D9: =Inputs!$L$13 -> 2221.646452 | E9: =Inputs!$L$13 -> 2221.646452 | F9: =Inputs!$L$13 -> 2221.646452 | G9: =Inputs!$L$13 -> 2221.646452 | H9: =Inputs!$L$13 -> 2221.646452 | I9: =Inputs!$L$13 -> 2221.646452 | J9: =Inputs!$L$13 -> 2221.646452 | K9: =Inputs!$L$13 -> 2221.646452 | L9: =Inputs!$L$13 -> 2221.646452 | M9: =Inputs!$L$13 -> 2221.646452 | N9: =Inputs!$L$13 -> 2221.646452 | O9: =Inputs!$L$13 -> 2221.646452 | P9: =Inputs!$L$13 -> 2221.646452 | Q9: =Inputs!$L$13 -> 2221.646452 | R9: =Inputs!$L$13 -> 2221.646452 | S9: =Inputs!$L$13 -> 2221.646452 | T9: =Inputs!$L$13 -> 2221.646452 | U9: =Inputs!$L$13 -> 2221.646452 | V9: =Inputs!$L$13 -> 2221.646452 | W9: =Inputs!$L$13 -> 2221.646452 | X9: =Inputs!$L$13 -> 2221.646452 | Y9: =Inputs!$L$13 -> 2221.646452 | Z9: =Inputs!$L$13 -> 2221.646452 | AA9: =Inputs!$L$13 -> 2221.646452 | AB9: =Inputs!$L$13 -> 2221.646452 | AC9: =Inputs!$L$13 -> 2221.646452 | AD9: =Inputs!$L$13 -> 2221.646452 | AE9: =Inputs!$L$13 -> 2221.646452 | AF9: =Inputs!$L$13 -> 2221.646452
B10: Cumulative Cost | C10: =$C$9+Inputs!$B$20+Inputs!$B$25+Inputs!$B$31 -> 22035.64645 | D10: =C10+D9 -> 24257.2929 | E10: =D10+E9 -> 26478.93936 | F10: 28700.58581 | G10: 30922.23226 | H10: 33143.87871 | I10: 35365.52516 | J10: 37587.17161 | K10: 39808.81807 | L10: 42030.46452 | M10: 44252.11097 | N10: 46473.75742 | O10: 48695.40387 | P10: 50917.05033 | Q10: 53138.69678 | R10: 55360.34323 | S10: 57581.98968 | T10: 59803.63613 | U10: 62025.28259 | V10: 64246.92904 | W10: 66468.57549 | X10: 68690.22194 | Y10: 70911.86839 | Z10: 73133.51484 | AA10: 75355.1613 | AB10: =AA10+AB9 -> 77576.80775 | AC10: =AB10+AC9 -> 79798.4542 | AD10: =AC10+AD9 -> 82020.10065 | AE10: =AD10+AE9 -> 84241.7471 | AF10: =AE10+AF9 -> 86463.39356
B11: Cumulative Cost with Maintenance | C11: =C10+'Maintenance Costs'!E34 -> 22035.64645 | D11: =D10+'Maintenance Costs'!F34 -> 24257.2929 | E11: =E10+'Maintenance Costs'!G34 -> 26478.93936 | F11: =F10+'Maintenance Costs'!H34 -> 29096.86581 | G11: =G10+'Maintenance Costs'!I34 -> 31318.51226 | H11: =H10+'Maintenance Costs'!J34 -> 33540.15871 | I11: =I10+'Maintenance Costs'!K34 -> 36356.22516 | J11: =J10+'Maintenance Costs'!L34 -> 38577.87161 | K11: =K10+'Maintenance Costs'!M34 -> 40799.51807 | L11: =L10+'Maintenance Costs'!N34 -> 43813.72452 | M11: =M10+'Maintenance Costs'!O34 -> 46035.37097 | N11: =N10+'Maintenance Costs'!P34 -> 48257.01742 | O11: =O10+'Maintenance Costs'!Q34 -> 51469.36387 | P11: =P10+'Maintenance Costs'!R34 -> 53691.01033 | Q11: =Q10+'Maintenance Costs'!S34 -> 55912.65678 | R11: =R10+'Maintenance Costs'!T34 -> 58134.30323 | S11: =S10+'Maintenance Costs'!U34 -> 61445.71968 | T11: =T10+'Maintenance Costs'!V34 -> 63667.36613 | U11: =U10+'Maintenance Costs'!W34 -> 65889.01259 | V11: =V10+'Maintenance Costs'!X34 -> 69299.49904 | W11: =W10+'Maintenance Costs'!Y34 -> 71521.14549 | X11: =X10+'Maintenance Costs'!Z34 -> 73742.79194 | Y11: =Y10+'Maintenance Costs'!AA34 -> 76955.13839 | Z11: =Z10+'Maintenance Costs'!AB34 -> 79176.78484 | AA11: =AA10+'Maintenance Costs'!AC34 -> 81398.4313 | AB11: =AB10+'Maintenance Costs'!AD34 -> 85007.05775 | AC11: =AC10+'Maintenance Costs'!AE34 -> 87228.7042 | AD11: =AD10+'Maintenance Costs'!AF34 -> 89450.35065 | AE11: =AE10+'Maintenance Costs'!AG34 -> 92860.8371 | AF11: =AF10+'Maintenance Costs'!AH34 -> 95082.48356
B13: Difference in Hand Labor vs. Mech. Cost | C13: =C7-C11 -> -17259.31312 | D13: =D7-D11 -> -14704.62624 | E13: -12149.93936 | F13: -9991.532474 | G13: -7436.845593 | H13: -4882.158711 | I13: -2921.89183 | J13: -367.2049481 | K13: 2187.481933 | L13: 3949.608815 | M13: 6504.295696 | N13: 9058.982578 | O13: 10622.96946 | P13: 13177.65634 | Q13: 15732.34322 | R13: 18287.0301 | S13: 19751.94699 | T13: 22306.63387 | U13: 24861.32075 | V13: 26227.16763 | W13: 28781.85451 | X13: 31336.54139 | Y13: 32900.52827 | Z13: 35455.21516 | AA13: 38009.90204 | AB13: 39177.60892 | AC13: 41732.2958 | AD13: 44286.98268 | AE13: 45652.82956 | AF13: 48207.51644
B14: Difference in Hand Labor vs. Mech. Cost per acre | C14: =C13/Inputs!$B$10 -> -3451.862624 | D14: =D13/Inputs!$B$10 -> -2940.925247 | E14: =E13/Inputs!$B$10 -> -2429.987871 | F14: =F13/Inputs!$B$10 -> -1998.306495 | G14: =G13/Inputs!$B$10 -> -1487.369119 | H14: =H13/Inputs!$B$10 -> -976.4317422 | I14: =I13/Inputs!$B$10 -> -584.3783659 | J14: =J13/Inputs!$B$10 -> -73.44098963 | K14: =K13/Inputs!$B$10 -> 437.4963867 | L14: =L13/Inputs!$B$10 -> 789.921763 | M14: =M13/Inputs!$B$10 -> 1300.859139 | N14: =N13/Inputs!$B$10 -> 1811.796516 | O14: =O13/Inputs!$B$10 -> 2124.593892 | P14: =P13/Inputs!$B$10 -> 2635.531268 | Q14: =Q13/Inputs!$B$10 -> 3146.468644 | R14: =R13/Inputs!$B$10 -> 3657.406021 | S14: =S13/Inputs!$B$10 -> 3950.389397 | T14: =T13/Inputs!$B$10 -> 4461.326773 | U14: =U13/Inputs!$B$10 -> 4972.26415 | V14: =V13/Inputs!$B$10 -> 5245.433526 | W14: =W13/Inputs!$B$10 -> 5756.370902 | X14: =X13/Inputs!$B$10 -> 6267.308279 | Y14: =Y13/Inputs!$B$10 -> 6580.105655 | Z14: =Z13/Inputs!$B$10 -> 7091.043031 | AA14: =AA13/Inputs!$B$10 -> 7601.980407 | AB14: =AB13/Inputs!$B$10 -> 7835.521784 | AC14: =AC13/Inputs!$B$10 -> 8346.45916 | AD14: =AD13/Inputs!$B$10 -> 8857.396536 | AE14: =AE13/Inputs!$B$10 -> 9130.565913 | AF14: =AF13/Inputs!$B$10 -> 9641.503289
P37: s

Sheet Sensitivity Analysis - Acreage
B3: This sensitivity analysis can help growers understand when mechanized equipment makes sense on their farm. Based on the "Inputs" farm acreage, the X axis shows 10% to 1000% of the acreage provided. The bolded/outlined column is the inputted acreage. The Y axis shows years 1-30 to understand when the breakeven may occur at specific acreages. This assumes the farm has switched to mechanized harvesting so if the cells are shaded Red, the value shown is the extra amount paid for mechanization. If the cell is green, the value shows the cumulative savings of switching to mechanized harvesting
D8: Acreage
D9: =(0.1*Inputs!B10) -> 0.5 | E9: =(0.25*Inputs!B10) -> 1.25 | F9: =(0.5*Inputs!B10) -> 2.5 | G9: =(0.75*Inputs!$B$10) -> 3.75 | H9: =(1*Inputs!$B$10) -> 5 | I9: =(1.25*Inputs!$B$10) -> 6.25 | J9: =(1.5*Inputs!$B$10) -> 7.5 | K9: =(1.75*Inputs!$B$10) -> 8.75 | L9: =(2*Inputs!$B$10) -> 10 | M9: =(2.5*Inputs!$B$10) -> 12.5 | N9: =(5*Inputs!$B$10) -> 25 | O9: =(10*Inputs!$B$10) -> 50
B10: Years | C10: 1 | D10: =((Inputs!$I$10*'Sensitivity Analysis - Acreage'!D$9*'Sensitivity Analysis - Acreage'!$C10)+(Inputs!$B$16*'Sensitivity Analysis - Acreage'!$C10))-(((((Inputs!$I$13+Inputs!$K$13)*'Sensitivity Analysis - Acreage'!D$9)+Inputs!$B$30+Inputs!$D$32)*'Sensitivity Analysis - Acreage'!$C10)+Inputs!$B$20+Inputs!$B$25+Inputs!$B$31+('Maintenance Costs'!$E$34*0.1)) -> -20152.95131 | E10: =((Inputs!$I$10*'Sensitivity Analysis - Acreage'!E$9*'Sensitivity Analysis - Acreage'!$C10)+(Inputs!$B$16*'Sensitivity Analysis - Acreage'!$C10))-(((((Inputs!$I$13+Inputs!$K$13)*'Sensitivity Analysis - Acreage'!E$9)+Inputs!$B$30+Inputs!$D$32)*'Sensitivity Analysis - Acreage'!$C10)+Inputs!$B$20+Inputs!$B$25+Inputs!$B$31+'Maintenance Costs'!$E$34*0.25) -> -19670.67828 | F10: =((Inputs!$I$10*'Sensitivity Analysis - Acreage'!F$9*'Sensitivity Analysis - Acreage'!$C10)+(Inputs!$B$16*'Sensitivity Analysis - Acreage'!$C10))-(((((Inputs!$I$13+Inputs!$K$13)*'Sensitivity Analysis - Acreage'!F$9)+Inputs!$B$30+Inputs!$D$32)*'Sensitivity Analysis - Acreage'!$C10)+Inputs!$B$20+Inputs!$B$25+Inputs!$B$31+'Maintenance Costs'!$E$34*0.5) -> -18866.88989 | G10: =((Inputs!$I$10*'Sensitivity Analysis - Acreage'!G$9*'Sensitivity Analysis - Acreage'!$C10)+(Inputs!$B$16*'Sensitivity Analysis - Acreage'!$C10))-(((((Inputs!$I$13+Inputs!$K$13)*'Sensitivity Analysis - Acreage'!G$9)+Inputs!$B$30+Inputs!$D$32)*'Sensitivity Analysis - Acreage'!$C10)+Inputs!$B$20+Inputs!$B$25+Inputs!$B$31+'Maintenance Costs'!$E$34*0.75) -> -18063.10151 | H10: =((Inputs!$I$10*'Sensitivity Analysis - Acreage'!H$9*'Sensitivity Analysis - Acreage'!$C10)+(Inputs!$B$16*'Sensitivity Analysis - Acreage'!$C10))-(((((Inputs!$I$13+Inputs!$K$13)*'Sensitivity Analysis - Acreage'!H$9)+Inputs!$B$30+Inputs!$D$32)*'Sensitivity Analysis - Acreage'!$C10)+Inputs!$B$20+Inputs!$B$25+Inputs!$B$31+'Maintenance Costs'!$E$34) -> -17259.31312 | I10: =((Inputs!$I$10*'Sensitivity Analysis - Acreage'!I$9*'Sensitivity Analysis - Acreage'!$C10)+(Inputs!$B$16*'Sensitivity Analysis - Acreage'!$C10))-(((((Inputs!$I$13+Inputs!$K$13)*'Sensitivity Analysis - Acreage'!I$9)+Inputs!$B$30+Inputs!$D$32)*'Sensitivity Analysis - Acreage'!$C10)+Inputs!$B$20+Inputs!$B$25+Inputs!$B$31+'Maintenance Costs'!$E$34*1.25) -> -16455.52473 | J10: =((Inputs!$I$10*'Sensitivity Analysis - Acreage'!J$9*'Sensitivity Analysis - Acreage'!$C10)+(Inputs!$B$16*'Sensitivity Analysis - Acreage'!$C10))-(((((Inputs!$I$13+Inputs!$K$13)*'Sensitivity Analysis - Acreage'!J$9)+Inputs!$B$30+Inputs!$D$32)*'Sensitivity Analysis - Acreage'!$C10)+Inputs!$B$20+Inputs!$B$25+Inputs!$B$31+'Maintenance Costs'!$E$34*1.5) -> -15651.73634 | K10: =((Inputs!$I$10*'Sensitivity Analysis - Acreage'!K$9*'Sensitivity Analysis - Acreage'!$C10)+(Inputs!$B$16*'Sensitivity Analysis - Acreage'!$C10))-(((((Inputs!$I$13+Inputs!$K$13)*'Sensitivity Analysis - Acreage'!K$9)+Inputs!$B$30+Inputs!$D$32)*'Sensitivity Analysis - Acreage'!$C10)+Inputs!$B$20+Inputs!$B$25+Inputs!$B$31+'Maintenance Costs'!$E$34*1.75) -> -14847.94796 | L10: =((Inputs!$I$10*'Sensitivity Analysis - Acreage'!L$9*'Sensitivity Analysis - Acreage'!$C10)+(Inputs!$B$16*'Sensitivity Analysis - Acreage'!$C10))-(((((Inputs!$I$13+Inputs!$K$13)*'Sensitivity Analysis - Acreage'!L$9)+Inputs!$B$30+Inputs!$D$32)*'Sensitivity Analysis - Acreage'!$C10)+Inputs!$B$20+Inputs!$B$25+Inputs!$B$31+'Maintenance Costs'!$E$34*2) -> -14044.15957 | M10: =((Inputs!$I$10*'Sensitivity Analysis - Acreage'!M$9*'Sensitivity Analysis - Acreage'!$C10)+(Inputs!$B$16*'Sensitivity Analysis - Acreage'!$C10))-(((((Inputs!$I$13+Inputs!$K$13)*'Sensitivity Analysis - Acreage'!M$9)+Inputs!$B$30+Inputs!$D$32)*'Sensitivity Analysis - Acreage'!$C10)+Inputs!$B$20+Inputs!$B$25+Inputs!$B$31+'Maintenance Costs'!$E$34*2.5) -> -12436.5828 | N10: =((Inputs!$I$10*'Sensitivity Analysis - Acreage'!N$9*'Sensitivity Analysis - Acreage'!$C10)+(Inputs!$B$16*'Sensitivity Analysis - Acreage'!$C10))-(((((Inputs!$I$13+Inputs!$K$13)*'Sensitivity Analysis - Acreage'!N$9)+Inputs!$B$30+Inputs!$D$32)*'Sensitivity Analysis - Acreage'!$C10)+Inputs!$B$20+Inputs!$B$25+Inputs!$B$31+'Maintenance Costs'!$E$34*5) -> -4398.698926 | O10: =((Inputs!$I$10*'Sensitivity Analysis - Acreage'!O$9*'Sensitivity Analysis - Acreage'!$C10)+(Inputs!$B$16*'Sensitivity Analysis - Acreage'!$C10))-(((((Inputs!$I$13+Inputs!$K$13)*'Sensitivity Analysis - Acreage'!O$9)+Inputs!$B$30+Inputs!$D$32)*'Sensitivity Analysis - Acreage'!$C10)+Inputs!$B$20+Inputs!$B$25+Inputs!$B$31+'Maintenance Costs'!$E$34*10) -> 11677.06881
C11: =C10+1 -> 2 | D11: =((Inputs!$I$10*'Sensitivity Analysis - Acreage'!D$9*'Sensitivity Analysis - Acreage'!$C11)+(Inputs!$B$16*'Sensitivity Analysis - Acreage'!$C11))-(((((Inputs!$I$13+Inputs!$K$13)*'Sensitivity Analysis - Acreage'!D$9)+Inputs!$B$30+Inputs!$D$32)*'Sensitivity Analysis - Acreage'!$C11)+Inputs!$B$20+Inputs!$B$25+Inputs!$B$31+('Maintenance Costs'!$F$34*0.1)) -> -20491.90262 | E11: =((Inputs!$I$10*'Sensitivity Analysis - Acreage'!E$9*'Sensitivity Analysis - Acreage'!$C11)+(Inputs!$B$16*'Sensitivity Analysis - Acreage'!$C11))-(((((Inputs!$I$13+Inputs!$K$13)*'Sensitivity Analysis - Acreage'!E$9)+Inputs!$B$30+Inputs!$D$32)*'Sensitivity Analysis - Acreage'!$C11)+Inputs!$B$20+Inputs!$B$25+Inputs!$B$31+'Maintenance Costs'!$F$34*0.25) -> -19527.35656 | F11: =((Inputs!$I$10*'Sensitivity Analysis - Acreage'!F$9*'Sensitivity Analysis - Acreage'!$C11)+(Inputs!$B$16*'Sensitivity Analysis - Acreage'!$C11))-(((((Inputs!$I$13+Inputs!$K$13)*'Sensitivity Analysis - Acreage'!F$9)+Inputs!$B$30+Inputs!$D$32)*'Sensitivity Analysis - Acreage'!$C11)+Inputs!$B$20+Inputs!$B$25+Inputs!$B$31+'Maintenance Costs'!$F$34*0.5) -> -17919.77979 | G11: =((Inputs!$I$10*'Sensitivity Analysis - Acreage'!G$9*'Sensitivity Analysis - Acreage'!$C11)+(Inputs!$B$16*'Sensitivity Analysis - Acreage'!$C11))-(((((Inputs!$I$13+Inputs!$K$13)*'Sensitivity Analysis - Acreage'!G$9)+Inputs!$B$30+Inputs!$D$32)*'Sensitivity Analysis - Acreage'!$C11)+Inputs!$B$20+Inputs!$B$25+Inputs!$B$31+'Maintenance Costs'!$F$34*0.75) -> -16312.20301 | H11: =((Inputs!$I$10*'Sensitivity Analysis - Acreage'!H$9*'Sensitivity Analysis - Acreage'!$C11)+(Inputs!$B$16*'Sensitivity Analysis - Acreage'!$C11))-(((((Inputs!$I$13+Inputs!$K$13)*'Sensitivity Analysis - Acreage'!H$9)+Inputs!$B$30+Inputs!$D$32)*'Sensitivity Analysis - Acreage'!$C11)+Inputs!$B$20+Inputs!$B$25+Inputs!$B$31+'Maintenance Costs'!$F$34) -> -14704.62624 | I11: =((Inputs!$I$10*'Sensitivity Analysis - Acreage'!I$9*'Sensitivity Analysis - Acreage'!$C11)+(Inputs!$B$16*'Sensitivity Analysis - Acreage'!$C11))-(((((Inputs!$I$13+Inputs!$K$13)*'Sensitivity Analysis - Acreage'!I$9)+Inputs!$B$30+Inputs!$D$32)*'Sensitivity Analysis - Acreage'!$C11)+Inputs!$B$20+Inputs!$B$25+Inputs!$B$31+'Maintenance Costs'!$F$34*1.25) -> -13097.04946 | J11: =((Inputs!$I$10*'Sensitivity Analysis - Acreage'!J$9*'Sensitivity Analysis - Acreage'!$C11)+(Inputs!$B$16*'Sensitivity Analysis - Acreage'!$C11))-(((((Inputs!$I$13+Inputs!$K$13)*'Sensitivity Analysis - Acreage'!J$9)+Inputs!$B$30+Inputs!$D$32)*'Sensitivity Analysis - Acreage'!$C11)+Inputs!$B$20+Inputs!$B$25+Inputs!$B$31+'Maintenance Costs'!$F$34*1.5) -> -11489.47269 | K11: =((Inputs!$I$10*'Sensitivity Analysis - Acreage'!K$9*'Sensitivity Analysis - Acreage'!$C11)+(Inputs!$B$16*'Sensitivity Analysis - Acreage'!$C11))-(((((Inputs!$I$13+Inputs!$K$13)*'Sensitivity Analysis - Acreage'!K$9)+Inputs!$B$30+Inputs!$D$32)*'Sensitivity Analysis - Acreage'!$C11)+Inputs!$B$20+Inputs!$B$25+Inputs!$B$31+'Maintenance Costs'!$F$34*1.75) -> -9881.895915 | L11: =((Inputs!$I$10*'Sensitivity Analysis - Acreage'!L$9*'Sensitivity Analysis - Acreage'!$C11)+(Inputs!$B$16*'Sensitivity Analysis - Acreage'!$C11))-(((((Inputs!$I$13+Inputs!$K$13)*'Sensitivity Analysis - Acreage'!L$9)+Inputs!$B$30+Inputs!$D$32)*'Sensitivity Analysis - Acreage'!$C11)+Inputs!$B$20+Inputs!$B$25+Inputs!$B$31+'Maintenance Costs'!$F$34*2) -> -8274.319141 | M11: =((Inputs!$I$10*'Sensitivity Analysis - Acreage'!M$9*'Sensitivity Analysis - Acreage'!$C11)+(Inputs!$B$16*'Sensitivity Analysis - Acreage'!$C11))-(((((Inputs!$I$13+Inputs!$K$13)*'Sensitivity Analysis - Acreage'!M$9)+Inputs!$B$30+Inputs!$D$32)*'Sensitivity Analysis - Acreage'!$C11)+Inputs!$B$20+Inputs!$B$25+Inputs!$B$31+'Maintenance Costs'!$F$34*2.5) -> -5059.165593 | N11: =((Inputs!$I$10*'Sensitivity Analysis - Acreage'!N$9*'Sensitivity Analysis - Acreage'!$C11)+(Inputs!$B$16*'Sensitivity Analysis - Acreage'!$C11))-(((((Inputs!$I$13+Inputs!$K$13)*'Sensitivity Analysis - Acreage'!N$9)+Inputs!$B$30+Inputs!$D$32)*'Sensitivity Analysis - Acreage'!$C11)+Inputs!$B$20+Inputs!$B$25+Inputs!$B$31+'Maintenance Costs'!$F$34*5) -> 11016.60215 | O11: =((Inputs!$I$10*'Sensitivity Analysis - Acreage'!O$9*'Sensitivity Analysis - Acreage'!$C11)+(Inputs!$B$16*'Sensitivity Analysis - Acreage'!$C11))-(((((Inputs!$I$13+Inputs!$K$13)*'Sensitivity Analysis - Acreage'!O$9)+Inputs!$B$30+Inputs!$D$32)*'Sensitivity Analysis - Acreage'!$C11)+Inputs!$B$20+Inputs!$B$25+Inputs!$B$31+'Maintenance Costs'!$F$34*10) -> 43168.13763
C12: =C11+1 -> 3 | D12: =((Inputs!$I$10*'Sensitivity Analysis - Acreage'!D$9*'Sensitivity Analysis - Acreage'!$C12)+(Inputs!$B$16*'Sensitivity Analysis - Acreage'!$C12))-(((((Inputs!$I$13+Inputs!$K$13)*'Sensitivity Analysis - Acreage'!D$9)+Inputs!$B$30+Inputs!$D$32)*'Sensitivity Analysis - Acreage'!$C12)+Inputs!$B$20+Inputs!$B$25+Inputs!$B$31+'Maintenance Costs'!$G$34*0.1) -> -20830.85394 | E12: =((Inputs!$I$10*'Sensitivity Analysis - Acreage'!E$9*'Sensitivity Analysis - Acreage'!$C12)+(Inputs!$B$16*'Sensitivity Analysis - Acreage'!$C12))-(((((Inputs!$I$13+Inputs!$K$13)*'Sensitivity Analysis - Acreage'!E$9)+Inputs!$B$30+Inputs!$D$32)*'Sensitivity Analysis - Acreage'!$C12)+Inputs!$B$20+Inputs!$B$25+Inputs!$B$31+'Maintenance Costs'!$G$34*0.25) -> -19384.03484 | F12: =((Inputs!$I$10*'Sensitivity Analysis - Acreage'!F$9*'Sensitivity Analysis - Acreage'!$C12)+(Inputs!$B$16*'Sensitivity Analysis - Acreage'!$C12))-(((((Inputs!$I$13+Inputs!$K$13)*'Sensitivity Analysis - Acreage'!F$9)+Inputs!$B$30+Inputs!$D$32)*'Sensitivity Analysis - Acreage'!$C12)+Inputs!$B$20+Inputs!$B$25+Inputs!$B$31+'Maintenance Costs'!$G$34*0.5) -> -16972.66968 | G12: =((Inputs!$I$10*'Sensitivity Analysis - Acreage'!G$9*'Sensitivity Analysis - Acreage'!$C12)+(Inputs!$B$16*'Sensitivity Analysis - Acreage'!$C12))-(((((Inputs!$I$13+Inputs!$K$13)*'Sensitivity Analysis - Acreage'!G$9)+Inputs!$B$30+Inputs!$D$32)*'Sensitivity Analysis - Acreage'!$C12)+Inputs!$B$20+Inputs!$B$25+Inputs!$B$31+'Maintenance Costs'!$G$34*0.75) -> -14561.30452 | H12: =((Inputs!$I$10*'Sensitivity Analysis - Acreage'!H$9*'Sensitivity Analysis - Acreage'!$C12)+(Inputs!$B$16*'Sensitivity Analysis - Acreage'!$C12))-(((((Inputs!$I$13+Inputs!$K$13)*'Sensitivity Analysis - Acreage'!H$9)+Inputs!$B$30+Inputs!$D$32)*'Sensitivity Analysis - Acreage'!$C12)+Inputs!$B$20+Inputs!$B$25+Inputs!$B$31+'Maintenance Costs'!$G$34) -> -12149.93936 | I12: =((Inputs!$I$10*'Sensitivity Analysis - Acreage'!I$9*'Sensitivity Analysis - Acreage'!$C12)+(Inputs!$B$16*'Sensitivity Analysis - Acreage'!$C12))-(((((Inputs!$I$13+Inputs!$K$13)*'Sensitivity Analysis - Acreage'!I$9)+Inputs!$B$30+Inputs!$D$32)*'Sensitivity Analysis - Acreage'!$C12)+Inputs!$B$20+Inputs!$B$25+Inputs!$B$31+'Maintenance Costs'!$G$34*1.25) -> -9738.574194 | J12: =((Inputs!$I$10*'Sensitivity Analysis - Acreage'!J$9*'Sensitivity Analysis - Acreage'!$C12)+(Inputs!$B$16*'Sensitivity Analysis - Acreage'!$C12))-(((((Inputs!$I$13+Inputs!$K$13)*'Sensitivity Analysis - Acreage'!J$9)+Inputs!$B$30+Inputs!$D$32)*'Sensitivity Analysis - Acreage'!$C12)+Inputs!$B$20+Inputs!$B$25+Inputs!$B$31+'Maintenance Costs'!$G$34*1.5) -> -7327.209033 | K12: =((Inputs!$I$10*'Sensitivity Analysis - Acreage'!K$9*'Sensitivity Analysis - Acreage'!$C12)+(Inputs!$B$16*'Sensitivity Analysis - Acreage'!$C12))-(((((Inputs!$I$13+Inputs!$K$13)*'Sensitivity Analysis - Acreage'!K$9)+Inputs!$B$30+Inputs!$D$32)*'Sensitivity Analysis - Acreage'!$C12)+Inputs!$B$20+Inputs!$B$25+Inputs!$B$31+'Maintenance Costs'!$G$34*1.75) -> -4915.843872 | L12: =((Inputs!$I$10*'Sensitivity Analysis - Acreage'!L$9*'Sensitivity Analysis - Acreage'!$C12)+(Inputs!$B$16*'Sensitivity Analysis - Acreage'!$C12))-(((((Inputs!$I$13+Inputs!$K$13)*'Sensitivity Analysis - Acreage'!L$9)+Inputs!$B$30+Inputs!$D$32)*'Sensitivity Analysis - Acreage'!$C12)+Inputs!$B$20+Inputs!$B$25+Inputs!$B$31+'Maintenance Costs'!$G$34*2) -> -2504.478711 | M12: =((Inputs!$I$10*'Sensitivity Analysis - Acreage'!M$9*'Sensitivity Analysis - Acreage'!$C12)+(Inputs!$B$16*'Sensitivity Analysis - Acreage'!$C12))-(((((Inputs!$I$13+Inputs!$K$13)*'Sensitivity Analysis - Acreage'!M$9)+Inputs!$B$30+Inputs!$D$32)*'Sensitivity Analysis - Acreage'!$C12)+Inputs!$B$20+Inputs!$B$25+Inputs!$B$31+'Maintenance Costs'!$G$34*2.5) -> 2318.251611 | N12: =((Inputs!$I$10*'Sensitivity Analysis - Acreage'!N$9*'Sensitivity Analysis - Acreage'!$C12)+(Inputs!$B$16*'Sensitivity Analysis - Acreage'!$C12))-(((((Inputs!$I$13+Inputs!$K$13)*'Sensitivity Analysis - Acreage'!N$9)+Inputs!$B$30+Inputs!$D$32)*'Sensitivity Analysis - Acreage'!$C12)+Inputs!$B$20+Inputs!$B$25+Inputs!$B$31+'Maintenance Costs'!$G$34*5) -> 26431.90322 | O12: =((Inputs!$I$10*'Sensitivity Analysis - Acreage'!O$9*'Sensitivity Analysis - Acreage'!$C12)+(Inputs!$B$16*'Sensitivity Analysis - Acreage'!$C12))-(((((Inputs!$I$13+Inputs!$K$13)*'Sensitivity Analysis - Acreage'!O$9)+Inputs!$B$30+Inputs!$D$32)*'Sensitivity Analysis - Acreage'!$C12)+Inputs!$B$20+Inputs!$B$25+Inputs!$B$31+'Maintenance Costs'!$G$34*10) -> 74659.20644
C13: 4 | D13: =((Inputs!$I$10*'Sensitivity Analysis - Acreage'!D$9*'Sensitivity Analysis - Acreage'!$C13)+(Inputs!$B$16*'Sensitivity Analysis - Acreage'!$C13))-(((((Inputs!$I$13+Inputs!$K$13)*'Sensitivity Analysis - Acreage'!D$9)+Inputs!$B$30+Inputs!$D$32)*'Sensitivity Analysis - Acreage'!$C13)+Inputs!$B$20+Inputs!$B$25+Inputs!$B$31+'Maintenance Costs'!$H$34*0.1) -> -21209.43325 | E13: =((Inputs!$I$10*'Sensitivity Analysis - Acreage'!E$9*'Sensitivity Analysis - Acreage'!$C13)+(Inputs!$B$16*'Sensitivity Analysis - Acreage'!$C13))-(((((Inputs!$I$13+Inputs!$K$13)*'Sensitivity Analysis - Acreage'!E$9)+Inputs!$B$30+Inputs!$D$32)*'Sensitivity Analysis - Acreage'!$C13)+Inputs!$B$20+Inputs!$B$25+Inputs!$B$31+'Maintenance Costs'!$H$34*0.25) -> -19339.78312 | F13: =((Inputs!$I$10*'Sensitivity Analysis - Acreage'!F$9*'Sensitivity Analysis - Acreage'!$C13)+(Inputs!$B$16*'Sensitivity Analysis - Acreage'!$C13))-(((((Inputs!$I$13+Inputs!$K$13)*'Sensitivity Analysis - Acreage'!F$9)+Inputs!$B$30+Inputs!$D$32)*'Sensitivity Analysis - Acreage'!$C13)+Inputs!$B$20+Inputs!$B$25+Inputs!$B$31+'Maintenance Costs'!$H$34*0.5) -> -16223.69957 | G13: =((Inputs!$I$10*'Sensitivity Analysis - Acreage'!G$9*'Sensitivity Analysis - Acreage'!$C13)+(Inputs!$B$16*'Sensitivity Analysis - Acreage'!$C13))-(((((Inputs!$I$13+Inputs!$K$13)*'Sensitivity Analysis - Acreage'!G$9)+Inputs!$B$30+Inputs!$D$32)*'Sensitivity Analysis - Acreage'!$C13)+Inputs!$B$20+Inputs!$B$25+Inputs!$B$31+'Maintenance Costs'!$H$34*0.75) -> -13107.61602 | H13: =((Inputs!$I$10*'Sensitivity Analysis - Acreage'!H$9*'Sensitivity Analysis - Acreage'!$C13)+(Inputs!$B$16*'Sensitivity Analysis - Acreage'!$C13))-(((((Inputs!$I$13+Inputs!$K$13)*'Sensitivity Analysis - Acreage'!H$9)+Inputs!$B$30+Inputs!$D$32)*'Sensitivity Analysis - Acreage'!$C13)+Inputs!$B$20+Inputs!$B$25+Inputs!$B$31+'Maintenance Costs'!$H$34) -> -9991.532474 | I13: =((Inputs!$I$10*'Sensitivity Analysis - Acreage'!I$9*'Sensitivity Analysis - Acreage'!$C13)+(Inputs!$B$16*'Sensitivity Analysis - Acreage'!$C13))-(((((Inputs!$I$13+Inputs!$K$13)*'Sensitivity Analysis - Acreage'!I$9)+Inputs!$B$30+Inputs!$D$32)*'Sensitivity Analysis - Acreage'!$C13)+Inputs!$B$20+Inputs!$B$25+Inputs!$B$31+'Maintenance Costs'!$H$34*1.25) -> -6875.448926 | J13: =((Inputs!$I$10*'Sensitivity Analysis - Acreage'!J$9*'Sensitivity Analysis - Acreage'!$C13)+(Inputs!$B$16*'Sensitivity Analysis - Acreage'!$C13))-(((((Inputs!$I$13+Inputs!$K$13)*'Sensitivity Analysis - Acreage'!J$9)+Inputs!$B$30+Inputs!$D$32)*'Sensitivity Analysis - Acreage'!$C13)+Inputs!$B$20+Inputs!$B$25+Inputs!$B$31+'Maintenance Costs'!$H$34*1.5) -> -3759.365378 | K13: =((Inputs!$I$10*'Sensitivity Analysis - Acreage'!K$9*'Sensitivity Analysis - Acreage'!$C13)+(Inputs!$B$16*'Sensitivity Analysis - Acreage'!$C13))-(((((Inputs!$I$13+Inputs!$K$13)*'Sensitivity Analysis - Acreage'!K$9)+Inputs!$B$30+Inputs!$D$32)*'Sensitivity Analysis - Acreage'!$C13)+Inputs!$B$20+Inputs!$B$25+Inputs!$B$31+'Maintenance Costs'!$H$34*1.75) -> -643.2818296 | L13: =((Inputs!$I$10*'Sensitivity Analysis - Acreage'!L$9*'Sensitivity Analysis - Acreage'!$C13)+(Inputs!$B$16*'Sensitivity Analysis - Acreage'!$C13))-(((((Inputs!$I$13+Inputs!$K$13)*'Sensitivity Analysis - Acreage'!L$9)+Inputs!$B$30+Inputs!$D$32)*'Sensitivity Analysis - Acreage'!$C13)+Inputs!$B$20+Inputs!$B$25+Inputs!$B$31+'Maintenance Costs'!$H$34*2) -> 2472.801719 | M13: =((Inputs!$I$10*'Sensitivity Analysis - Acreage'!M$9*'Sensitivity Analysis - Acreage'!$C13)+(Inputs!$B$16*'Sensitivity Analysis - Acreage'!$C13))-(((((Inputs!$I$13+Inputs!$K$13)*'Sensitivity Analysis - Acreage'!M$9)+Inputs!$B$30+Inputs!$D$32)*'Sensitivity Analysis - Acreage'!$C13)+Inputs!$B$20+Inputs!$B$25+Inputs!$B$31+'Maintenance Costs'!$H$34*2.5) -> 8704.968815 | N13: =((Inputs!$I$10*'Sensitivity Analysis - Acreage'!N$9*'Sensitivity Analysis - Acreage'!$C13)+(Inputs!$B$16*'Sensitivity Analysis - Acreage'!$C13))-(((((Inputs!$I$13+Inputs!$K$13)*'Sensitivity Analysis - Acreage'!N$9)+Inputs!$B$30+Inputs!$D$32)*'Sensitivity Analysis - Acreage'!$C13)+Inputs!$B$20+Inputs!$B$25+Inputs!$B$31+'Maintenance Costs'!$H$34*5) -> 39865.8043 | O13: =((Inputs!$I$10*'Sensitivity Analysis - Acreage'!O$9*'Sensitivity Analysis - Acreage'!$C13)+(Inputs!$B$16*'Sensitivity Analysis - Acreage'!$C13))-(((((Inputs!$I$13+Inputs!$K$13)*'Sensitivity Analysis - Acreage'!O$9)+Inputs!$B$30+Inputs!$D$32)*'Sensitivity Analysis - Acreage'!$C13)+Inputs!$B$20+Inputs!$B$25+Inputs!$B$31+'Maintenance Costs'!$H$34*10) -> 102187.4753
C14: 5 | D14: =((Inputs!$I$10*'Sensitivity Analysis - Acreage'!D$9*'Sensitivity Analysis - Acreage'!$C14)+(Inputs!$B$16*'Sensitivity Analysis - Acreage'!$C14))-(((((Inputs!$I$13+Inputs!$K$13)*'Sensitivity Analysis - Acreage'!D$9)+Inputs!$B$30+Inputs!$D$32)*'Sensitivity Analysis - Acreage'!$C14)+Inputs!$B$20+Inputs!$B$25+Inputs!$B$31+'Maintenance Costs'!$I$34*0.1) -> -21548.38456 | E14: =((Inputs!$I$10*'Sensitivity Analysis - Acreage'!E$9*'Sensitivity Analysis - Acreage'!$C14)+(Inputs!$B$16*'Sensitivity Analysis - Acreage'!$C14))-(((((Inputs!$I$13+Inputs!$K$13)*'Sensitivity Analysis - Acreage'!E$9)+Inputs!$B$30+Inputs!$D$32)*'Sensitivity Analysis - Acreage'!$C14)+Inputs!$B$20+Inputs!$B$25+Inputs!$B$31+'Maintenance Costs'!$I$34*0.25) -> -19196.4614 | F14: =((Inputs!$I$10*'Sensitivity Analysis - Acreage'!F$9*'Sensitivity Analysis - Acreage'!$C14)+(Inputs!$B$16*'Sensitivity Analysis - Acreage'!$C14))-(((((Inputs!$I$13+Inputs!$K$13)*'Sensitivity Analysis - Acreage'!F$9)+Inputs!$B$30+Inputs!$D$32)*'Sensitivity Analysis - Acreage'!$C14)+Inputs!$B$20+Inputs!$B$25+Inputs!$B$31+'Maintenance Costs'!$I$34*0.5) -> -15276.58946 | G14: =((Inputs!$I$10*'Sensitivity Analysis - Acreage'!G$9*'Sensitivity Analysis - Acreage'!$C14)+(Inputs!$B$16*'Sensitivity Analysis - Acreage'!$C14))-(((((Inputs!$I$13+Inputs!$K$13)*'Sensitivity Analysis - Acreage'!G$9)+Inputs!$B$30+Inputs!$D$32)*'Sensitivity Analysis - Acreage'!$C14)+Inputs!$B$20+Inputs!$B$25+Inputs!$B$31+'Maintenance Costs'!$I$34*0.75) -> -11356.71753 | H14: =((Inputs!$I$10*'Sensitivity Analysis - Acreage'!H$9*'Sensitivity Analysis - Acreage'!$C14)+(Inputs!$B$16*'Sensitivity Analysis - Acreage'!$C14))-(((((Inputs!$I$13+Inputs!$K$13)*'Sensitivity Analysis - Acreage'!H$9)+Inputs!$B$30+Inputs!$D$32)*'Sensitivity Analysis - Acreage'!$C14)+Inputs!$B$20+Inputs!$B$25+Inputs!$B$31+'Maintenance Costs'!$I$34) -> -7436.845593 | I14: =((Inputs!$I$10*'Sensitivity Analysis - Acreage'!I$9*'Sensitivity Analysis - Acreage'!$C14)+(Inputs!$B$16*'Sensitivity Analysis - Acreage'!$C14))-(((((Inputs!$I$13+Inputs!$K$13)*'Sensitivity Analysis - Acreage'!I$9)+Inputs!$B$30+Inputs!$D$32)*'Sensitivity Analysis - Acreage'!$C14)+Inputs!$B$20+Inputs!$B$25+Inputs!$B$31+'Maintenance Costs'!$I$34*1.25) -> -3516.973657 | J14: =((Inputs!$I$10*'Sensitivity Analysis - Acreage'!J$9*'Sensitivity Analysis - Acreage'!$C14)+(Inputs!$B$16*'Sensitivity Analysis - Acreage'!$C14))-(((((Inputs!$I$13+Inputs!$K$13)*'Sensitivity Analysis - Acreage'!J$9)+Inputs!$B$30+Inputs!$D$32)*'Sensitivity Analysis - Acreage'!$C14)+Inputs!$B$20+Inputs!$B$25+Inputs!$B$31+'Maintenance Costs'!$I$34*1.5) -> 402.8982778 | K14: =((Inputs!$I$10*'Sensitivity Analysis - Acreage'!K$9*'Sensitivity Analysis - Acreage'!$C14)+(Inputs!$B$16*'Sensitivity Analysis - Acreage'!$C14))-(((((Inputs!$I$13+Inputs!$K$13)*'Sensitivity Analysis - Acreage'!K$9)+Inputs!$B$30+Inputs!$D$32)*'Sensitivity Analysis - Acreage'!$C14)+Inputs!$B$20+Inputs!$B$25+Inputs!$B$31+'Maintenance Costs'!$I$34*1.75) -> 4322.770213 | L14: =((Inputs!$I$10*'Sensitivity Analysis - Acreage'!L$9*'Sensitivity Analysis - Acreage'!$C14)+(Inputs!$B$16*'Sensitivity Analysis - Acreage'!$C14))-(((((Inputs!$I$13+Inputs!$K$13)*'Sensitivity Analysis - Acreage'!L$9)+Inputs!$B$30+Inputs!$D$32)*'Sensitivity Analysis - Acreage'!$C14)+Inputs!$B$20+Inputs!$B$25+Inputs!$B$31+'Maintenance Costs'!$I$34*2) -> 8242.642148 | M14: =((Inputs!$I$10*'Sensitivity Analysis - Acreage'!M$9*'Sensitivity Analysis - Acreage'!$C14)+(Inputs!$B$16*'Sensitivity Analysis - Acreage'!$C14))-(((((Inputs!$I$13+Inputs!$K$13)*'Sensitivity Analysis - Acreage'!M$9)+Inputs!$B$30+Inputs!$D$32)*'Sensitivity Analysis - Acreage'!$C14)+Inputs!$B$20+Inputs!$B$25+Inputs!$B$31+'Maintenance Costs'!$I$34*2.5) -> 16082.38602 | N14: =((Inputs!$I$10*'Sensitivity Analysis - Acreage'!N$9*'Sensitivity Analysis - Acreage'!$C14)+(Inputs!$B$16*'Sensitivity Analysis - Acreage'!$C14))-(((((Inputs!$I$13+Inputs!$K$13)*'Sensitivity Analysis - Acreage'!N$9)+Inputs!$B$30+Inputs!$D$32)*'Sensitivity Analysis - Acreage'!$C14)+Inputs!$B$20+Inputs!$B$25+Inputs!$B$31+'Maintenance Costs'!$I$34*5) -> 55281.10537 | O14: =((Inputs!$I$10*'Sensitivity Analysis - Acreage'!O$9*'Sensitivity Analysis - Acreage'!$C14)+(Inputs!$B$16*'Sensitivity Analysis - Acreage'!$C14))-(((((Inputs!$I$13+Inputs!$K$13)*'Sensitivity Analysis - Acreage'!O$9)+Inputs!$B$30+Inputs!$D$32)*'Sensitivity Analysis - Acreage'!$C14)+Inputs!$B$20+Inputs!$B$25+Inputs!$B$31+'Maintenance Costs'!$I$34*10) -> 133678.5441
C15: 6 | D15: =((Inputs!$I$10*'Sensitivity Analysis - Acreage'!D$9*'Sensitivity Analysis - Acreage'!$C15)+(Inputs!$B$16*'Sensitivity Analysis - Acreage'!$C15))-(((((Inputs!$I$13+Inputs!$K$13)*'Sensitivity Analysis - Acreage'!D$9)+Inputs!$B$30+Inputs!$D$32)*'Sensitivity Analysis - Acreage'!$C15)+Inputs!$B$20+Inputs!$B$25+Inputs!$B$31+'Maintenance Costs'!$J$34*0.1) -> -21887.33587 | E15: =((Inputs!$I$10*'Sensitivity Analysis - Acreage'!E$9*'Sensitivity Analysis - Acreage'!$C15)+(Inputs!$B$16*'Sensitivity Analysis - Acreage'!$C15))-(((((Inputs!$I$13+Inputs!$K$13)*'Sensitivity Analysis - Acreage'!E$9)+Inputs!$B$30+Inputs!$D$32)*'Sensitivity Analysis - Acreage'!$C15)+Inputs!$B$20+Inputs!$B$25+Inputs!$B$31+'Maintenance Costs'!$J$34*0.25) -> -19053.13968 | F15: =((Inputs!$I$10*'Sensitivity Analysis - Acreage'!F$9*'Sensitivity Analysis - Acreage'!$C15)+(Inputs!$B$16*'Sensitivity Analysis - Acreage'!$C15))-(((((Inputs!$I$13+Inputs!$K$13)*'Sensitivity Analysis - Acreage'!F$9)+Inputs!$B$30+Inputs!$D$32)*'Sensitivity Analysis - Acreage'!$C15)+Inputs!$B$20+Inputs!$B$25+Inputs!$B$31+'Maintenance Costs'!$J$34*0.5) -> -14329.47936 | G15: =((Inputs!$I$10*'Sensitivity Analysis - Acreage'!G$9*'Sensitivity Analysis - Acreage'!$C15)+(Inputs!$B$16*'Sensitivity Analysis - Acreage'!$C15))-(((((Inputs!$I$13+Inputs!$K$13)*'Sensitivity Analysis - Acreage'!G$9)+Inputs!$B$30+Inputs!$D$32)*'Sensitivity Analysis - Acreage'!$C15)+Inputs!$B$20+Inputs!$B$25+Inputs!$B$31+'Maintenance Costs'!$J$34*0.75) -> -9605.819033 | H15: =((Inputs!$I$10*'Sensitivity Analysis - Acreage'!H$9*'Sensitivity Analysis - Acreage'!$C15)+(Inputs!$B$16*'Sensitivity Analysis - Acreage'!$C15))-(((((Inputs!$I$13+Inputs!$K$13)*'Sensitivity Analysis - Acreage'!H$9)+Inputs!$B$30+Inputs!$D$32)*'Sensitivity Analysis - Acreage'!$C15)+Inputs!$B$20+Inputs!$B$25+Inputs!$B$31+'Maintenance Costs'!$J$34) -> -4882.158711 | I15: =((Inputs!$I$10*'Sensitivity Analysis - Acreage'!I$9*'Sensitivity Analysis - Acreage'!$C15)+(Inputs!$B$16*'Sensitivity Analysis - Acreage'!$C15))-(((((Inputs!$I$13+Inputs!$K$13)*'Sensitivity Analysis - Acreage'!I$9)+Inputs!$B$30+Inputs!$D$32)*'Sensitivity Analysis - Acreage'!$C15)+Inputs!$B$20+Inputs!$B$25+Inputs!$B$31+'Maintenance Costs'!$J$34*1.25) -> -158.4983889 | J15: =((Inputs!$I$10*'Sensitivity Analysis - Acreage'!J$9*'Sensitivity Analysis - Acreage'!$C15)+(Inputs!$B$16*'Sensitivity Analysis - Acreage'!$C15))-(((((Inputs!$I$13+Inputs!$K$13)*'Sensitivity Analysis - Acreage'!J$9)+Inputs!$B$30+Inputs!$D$32)*'Sensitivity Analysis - Acreage'!$C15)+Inputs!$B$20+Inputs!$B$25+Inputs!$B$31+'Maintenance Costs'!$J$34*1.5) -> 4565.161933 | K15: =((Inputs!$I$10*'Sensitivity Analysis - Acreage'!K$9*'Sensitivity Analysis - Acreage'!$C15)+(Inputs!$B$16*'Sensitivity Analysis - Acreage'!$C15))-(((((Inputs!$I$13+Inputs!$K$13)*'Sensitivity Analysis - Acreage'!K$9)+Inputs!$B$30+Inputs!$D$32)*'Sensitivity Analysis - Acreage'!$C15)+Inputs!$B$20+Inputs!$B$25+Inputs!$B$31+'Maintenance Costs'!$J$34*1.75) -> 9288.822256 | L15: =((Inputs!$I$10*'Sensitivity Analysis - Acreage'!L$9*'Sensitivity Analysis - Acreage'!$C15)+(Inputs!$B$16*'Sensitivity Analysis - Acreage'!$C15))-(((((Inputs!$I$13+Inputs!$K$13)*'Sensitivity Analysis - Acreage'!L$9)+Inputs!$B$30+Inputs!$D$32)*'Sensitivity Analysis - Acreage'!$C15)+Inputs!$B$20+Inputs!$B$25+Inputs!$B$31+'Maintenance Costs'!$J$34*2) -> 14012.48258 | M15: =((Inputs!$I$10*'Sensitivity Analysis - Acreage'!M$9*'Sensitivity Analysis - Acreage'!$C15)+(Inputs!$B$16*'Sensitivity Analysis - Acreage'!$C15))-(((((Inputs!$I$13+Inputs!$K$13)*'Sensitivity Analysis - Acreage'!M$9)+Inputs!$B$30+Inputs!$D$32)*'Sensitivity Analysis - Acreage'!$C15)+Inputs!$B$20+Inputs!$B$25+Inputs!$B$31+'Maintenance Costs'!$J$34*2.5) -> 23459.80322 | N15: =((Inputs!$I$10*'Sensitivity Analysis - Acreage'!N$9*'Sensitivity Analysis - Acreage'!$C15)+(Inputs!$B$16*'Sensitivity Analysis - Acreage'!$C15))-(((((Inputs!$I$13+Inputs!$K$13)*'Sensitivity Analysis - Acreage'!N$9)+Inputs!$B$30+Inputs!$D$32)*'Sensitivity Analysis - Acreage'!$C15)+Inputs!$B$20+Inputs!$B$25+Inputs!$B$31+'Maintenance Costs'!$J$34*5) -> 70696.40644 | O15: =((Inputs!$I$10*'Sensitivity Analysis - Acreage'!O$9*'Sensitivity Analysis - Acreage'!$C15)+(Inputs!$B$16*'Sensitivity Analysis - Acreage'!$C15))-(((((Inputs!$I$13+Inputs!$K$13)*'Sensitivity Analysis - Acreage'!O$9)+Inputs!$B$30+Inputs!$D$32)*'Sensitivity Analysis - Acreage'!$C15)+Inputs!$B$20+Inputs!$B$25+Inputs!$B$31+'Maintenance Costs'!$J$34*10) -> 165169.6129
C16: 7 | D16: =((Inputs!$I$10*'Sensitivity Analysis - Acreage'!D$9*'Sensitivity Analysis - Acreage'!$C16)+(Inputs!$B$16*'Sensitivity Analysis - Acreage'!$C16))-(((((Inputs!$I$13+Inputs!$K$13)*'Sensitivity Analysis - Acreage'!D$9)+Inputs!$B$30+Inputs!$D$32)*'Sensitivity Analysis - Acreage'!$C16)+Inputs!$B$20+Inputs!$B$25+Inputs!$B$31+'Maintenance Costs'!$K$34*0.1) -> -22285.72918 | E16: =((Inputs!$I$10*'Sensitivity Analysis - Acreage'!E$9*'Sensitivity Analysis - Acreage'!$C16)+(Inputs!$B$16*'Sensitivity Analysis - Acreage'!$C16))-(((((Inputs!$I$13+Inputs!$K$13)*'Sensitivity Analysis - Acreage'!E$9)+Inputs!$B$30+Inputs!$D$32)*'Sensitivity Analysis - Acreage'!$C16)+Inputs!$B$20+Inputs!$B$25+Inputs!$B$31+'Maintenance Costs'!$K$34*0.25) -> -19058.42296 | F16: =((Inputs!$I$10*'Sensitivity Analysis - Acreage'!F$9*'Sensitivity Analysis - Acreage'!$C16)+(Inputs!$B$16*'Sensitivity Analysis - Acreage'!$C16))-(((((Inputs!$I$13+Inputs!$K$13)*'Sensitivity Analysis - Acreage'!F$9)+Inputs!$B$30+Inputs!$D$32)*'Sensitivity Analysis - Acreage'!$C16)+Inputs!$B$20+Inputs!$B$25+Inputs!$B$31+'Maintenance Costs'!$K$34*0.5) -> -13679.57925 | G16: =((Inputs!$I$10*'Sensitivity Analysis - Acreage'!G$9*'Sensitivity Analysis - Acreage'!$C16)+(Inputs!$B$16*'Sensitivity Analysis - Acreage'!$C16))-(((((Inputs!$I$13+Inputs!$K$13)*'Sensitivity Analysis - Acreage'!G$9)+Inputs!$B$30+Inputs!$D$32)*'Sensitivity Analysis - Acreage'!$C16)+Inputs!$B$20+Inputs!$B$25+Inputs!$B$31+'Maintenance Costs'!$K$34*0.75) -> -8300.735539 | H16: =((Inputs!$I$10*'Sensitivity Analysis - Acreage'!H$9*'Sensitivity Analysis - Acreage'!$C16)+(Inputs!$B$16*'Sensitivity Analysis - Acreage'!$C16))-(((((Inputs!$I$13+Inputs!$K$13)*'Sensitivity Analysis - Acreage'!H$9)+Inputs!$B$30+Inputs!$D$32)*'Sensitivity Analysis - Acreage'!$C16)+Inputs!$B$20+Inputs!$B$25+Inputs!$B$31+'Maintenance Costs'!$K$34) -> -2921.89183 | I16: =((Inputs!$I$10*'Sensitivity Analysis - Acreage'!I$9*'Sensitivity Analysis - Acreage'!$C16)+(Inputs!$B$16*'Sensitivity Analysis - Acreage'!$C16))-(((((Inputs!$I$13+Inputs!$K$13)*'Sensitivity Analysis - Acreage'!I$9)+Inputs!$B$30+Inputs!$D$32)*'Sensitivity Analysis - Acreage'!$C16)+Inputs!$B$20+Inputs!$B$25+Inputs!$B$31+'Maintenance Costs'!$K$34*1.25) -> 2456.95188 | J16: =((Inputs!$I$10*'Sensitivity Analysis - Acreage'!J$9*'Sensitivity Analysis - Acreage'!$C16)+(Inputs!$B$16*'Sensitivity Analysis - Acreage'!$C16))-(((((Inputs!$I$13+Inputs!$K$13)*'Sensitivity Analysis - Acreage'!J$9)+Inputs!$B$30+Inputs!$D$32)*'Sensitivity Analysis - Acreage'!$C16)+Inputs!$B$20+Inputs!$B$25+Inputs!$B$31+'Maintenance Costs'!$K$34*1.5) -> 7835.795589 | K16: =((Inputs!$I$10*'Sensitivity Analysis - Acreage'!K$9*'Sensitivity Analysis - Acreage'!$C16)+(Inputs!$B$16*'Sensitivity Analysis - Acreage'!$C16))-(((((Inputs!$I$13+Inputs!$K$13)*'Sensitivity Analysis - Acreage'!K$9)+Inputs!$B$30+Inputs!$D$32)*'Sensitivity Analysis - Acreage'!$C16)+Inputs!$B$20+Inputs!$B$25+Inputs!$B$31+'Maintenance Costs'!$K$34*1.75) -> 13214.6393 | L16: =((Inputs!$I$10*'Sensitivity Analysis - Acreage'!L$9*'Sensitivity Analysis - Acreage'!$C16)+(Inputs!$B$16*'Sensitivity Analysis - Acreage'!$C16))-(((((Inputs!$I$13+Inputs!$K$13)*'Sensitivity Analysis - Acreage'!L$9)+Inputs!$B$30+Inputs!$D$32)*'Sensitivity Analysis - Acreage'!$C16)+Inputs!$B$20+Inputs!$B$25+Inputs!$B$31+'Maintenance Costs'!$K$34*2) -> 18593.48301 | M16: =((Inputs!$I$10*'Sensitivity Analysis - Acreage'!M$9*'Sensitivity Analysis - Acreage'!$C16)+(Inputs!$B$16*'Sensitivity Analysis - Acreage'!$C16))-(((((Inputs!$I$13+Inputs!$K$13)*'Sensitivity Analysis - Acreage'!M$9)+Inputs!$B$30+Inputs!$D$32)*'Sensitivity Analysis - Acreage'!$C16)+Inputs!$B$20+Inputs!$B$25+Inputs!$B$31+'Maintenance Costs'!$K$34*2.5) -> 29351.17043 | N16: =((Inputs!$I$10*'Sensitivity Analysis - Acreage'!N$9*'Sensitivity Analysis - Acreage'!$C16)+(Inputs!$B$16*'Sensitivity Analysis - Acreage'!$C16))-(((((Inputs!$I$13+Inputs!$K$13)*'Sensitivity Analysis - Acreage'!N$9)+Inputs!$B$30+Inputs!$D$32)*'Sensitivity Analysis - Acreage'!$C16)+Inputs!$B$20+Inputs!$B$25+Inputs!$B$31+'Maintenance Costs'!$K$34*5) -> 83139.60752 | O16: =((Inputs!$I$10*'Sensitivity Analysis - Acreage'!O$9*'Sensitivity Analysis - Acreage'!$C16)+(Inputs!$B$16*'Sensitivity Analysis - Acreage'!$C16))-(((((Inputs!$I$13+Inputs!$K$13)*'Sensitivity Analysis - Acreage'!O$9)+Inputs!$B$30+Inputs!$D$32)*'Sensitivity Analysis - Acreage'!$C16)+Inputs!$B$20+Inputs!$B$25+Inputs!$B$31+'Maintenance Costs'!$K$34*10) -> 190716.4817
C17: 8 | D17: =((Inputs!$I$10*'Sensitivity Analysis - Acreage'!D$9*'Sensitivity Analysis - Acreage'!$C17)+(Inputs!$B$16*'Sensitivity Analysis - Acreage'!$C17))-(((((Inputs!$I$13+Inputs!$K$13)*'Sensitivity Analysis - Acreage'!D$9)+Inputs!$B$30+Inputs!$D$32)*'Sensitivity Analysis - Acreage'!$C17)+Inputs!$B$20+Inputs!$B$25+Inputs!$B$31+'Maintenance Costs'!$L$34*0.1) -> -22624.68049 | E17: =((Inputs!$I$10*'Sensitivity Analysis - Acreage'!E$9*'Sensitivity Analysis - Acreage'!$C17)+(Inputs!$B$16*'Sensitivity Analysis - Acreage'!$C17))-(((((Inputs!$I$13+Inputs!$K$13)*'Sensitivity Analysis - Acreage'!E$9)+Inputs!$B$30+Inputs!$D$32)*'Sensitivity Analysis - Acreage'!$C17)+Inputs!$B$20+Inputs!$B$25+Inputs!$B$31+'Maintenance Costs'!$L$34*0.25) -> -18915.10124 | F17: =((Inputs!$I$10*'Sensitivity Analysis - Acreage'!F$9*'Sensitivity Analysis - Acreage'!$C17)+(Inputs!$B$16*'Sensitivity Analysis - Acreage'!$C17))-(((((Inputs!$I$13+Inputs!$K$13)*'Sensitivity Analysis - Acreage'!F$9)+Inputs!$B$30+Inputs!$D$32)*'Sensitivity Analysis - Acreage'!$C17)+Inputs!$B$20+Inputs!$B$25+Inputs!$B$31+'Maintenance Costs'!$L$34*0.5) -> -12732.46914 | G17: =((Inputs!$I$10*'Sensitivity Analysis - Acreage'!G$9*'Sensitivity Analysis - Acreage'!$C17)+(Inputs!$B$16*'Sensitivity Analysis - Acreage'!$C17))-(((((Inputs!$I$13+Inputs!$K$13)*'Sensitivity Analysis - Acreage'!G$9)+Inputs!$B$30+Inputs!$D$32)*'Sensitivity Analysis - Acreage'!$C17)+Inputs!$B$20+Inputs!$B$25+Inputs!$B$31+'Maintenance Costs'!$L$34*0.75) -> -6549.837044 | H17: =((Inputs!$I$10*'Sensitivity Analysis - Acreage'!H$9*'Sensitivity Analysis - Acreage'!$C17)+(Inputs!$B$16*'Sensitivity Analysis - Acreage'!$C17))-(((((Inputs!$I$13+Inputs!$K$13)*'Sensitivity Analysis - Acreage'!H$9)+Inputs!$B$30+Inputs!$D$32)*'Sensitivity Analysis - Acreage'!$C17)+Inputs!$B$20+Inputs!$B$25+Inputs!$B$31+'Maintenance Costs'!$L$34) -> -367.2049481 | I17: =((Inputs!$I$10*'Sensitivity Analysis - Acreage'!I$9*'Sensitivity Analysis - Acreage'!$C17)+(Inputs!$B$16*'Sensitivity Analysis - Acreage'!$C17))-(((((Inputs!$I$13+Inputs!$K$13)*'Sensitivity Analysis - Acreage'!I$9)+Inputs!$B$30+Inputs!$D$32)*'Sensitivity Analysis - Acreage'!$C17)+Inputs!$B$20+Inputs!$B$25+Inputs!$B$31+'Maintenance Costs'!$L$34*1.25) -> 5815.427148 | J17: =((Inputs!$I$10*'Sensitivity Analysis - Acreage'!J$9*'Sensitivity Analysis - Acreage'!$C17)+(Inputs!$B$16*'Sensitivity Analysis - Acreage'!$C17))-(((((Inputs!$I$13+Inputs!$K$13)*'Sensitivity Analysis - Acreage'!J$9)+Inputs!$B$30+Inputs!$D$32)*'Sensitivity Analysis - Acreage'!$C17)+Inputs!$B$20+Inputs!$B$25+Inputs!$B$31+'Maintenance Costs'!$L$34*1.5) -> 11998.05924 | K17: =((Inputs!$I$10*'Sensitivity Analysis - Acreage'!K$9*'Sensitivity Analysis - Acreage'!$C17)+(Inputs!$B$16*'Sensitivity Analysis - Acreage'!$C17))-(((((Inputs!$I$13+Inputs!$K$13)*'Sensitivity Analysis - Acreage'!K$9)+Inputs!$B$30+Inputs!$D$32)*'Sensitivity Analysis - Acreage'!$C17)+Inputs!$B$20+Inputs!$B$25+Inputs!$B$31+'Maintenance Costs'!$L$34*1.75) -> 18180.69134 | L17: =((Inputs!$I$10*'Sensitivity Analysis - Acreage'!L$9*'Sensitivity Analysis - Acreage'!$C17)+(Inputs!$B$16*'Sensitivity Analysis - Acreage'!$C17))-(((((Inputs!$I$13+Inputs!$K$13)*'Sensitivity Analysis - Acreage'!L$9)+Inputs!$B$30+Inputs!$D$32)*'Sensitivity Analysis - Acreage'!$C17)+Inputs!$B$20+Inputs!$B$25+Inputs!$B$31+'Maintenance Costs'!$L$34*2) -> 24363.32344 | M17: =((Inputs!$I$10*'Sensitivity Analysis - Acreage'!M$9*'Sensitivity Analysis - Acreage'!$C17)+(Inputs!$B$16*'Sensitivity Analysis - Acreage'!$C17))-(((((Inputs!$I$13+Inputs!$K$13)*'Sensitivity Analysis - Acreage'!M$9)+Inputs!$B$30+Inputs!$D$32)*'Sensitivity Analysis - Acreage'!$C17)+Inputs!$B$20+Inputs!$B$25+Inputs!$B$31+'Maintenance Costs'!$L$34*2.5) -> 36728.58763 | N17: =((Inputs!$I$10*'Sensitivity Analysis - Acreage'!N$9*'Sensitivity Analysis - Acreage'!$C17)+(Inputs!$B$16*'Sensitivity Analysis - Acreage'!$C17))-(((((Inputs!$I$13+Inputs!$K$13)*'Sensitivity Analysis - Acreage'!N$9)+Inputs!$B$30+Inputs!$D$32)*'Sensitivity Analysis - Acreage'!$C17)+Inputs!$B$20+Inputs!$B$25+Inputs!$B$31+'Maintenance Costs'!$L$34*5) -> 98554.90859 | O17: =((Inputs!$I$10*'Sensitivity Analysis - Acreage'!O$9*'Sensitivity Analysis - Acreage'!$C17)+(Inputs!$B$16*'Sensitivity Analysis - Acreage'!$C17))-(((((Inputs!$I$13+Inputs!$K$13)*'Sensitivity Analysis - Acreage'!O$9)+Inputs!$B$30+Inputs!$D$32)*'Sensitivity Analysis - Acreage'!$C17)+Inputs!$B$20+Inputs!$B$25+Inputs!$B$31+'Maintenance Costs'!$L$34*10) -> 222207.5505
C18: 9 | D18: =((Inputs!$I$10*'Sensitivity Analysis - Acreage'!D$9*'Sensitivity Analysis - Acreage'!$C18)+(Inputs!$B$16*'Sensitivity Analysis - Acreage'!$C18))-(((((Inputs!$I$13+Inputs!$K$13)*'Sensitivity Analysis - Acreage'!D$9)+Inputs!$B$30+Inputs!$D$32)*'Sensitivity Analysis - Acreage'!$C18)+Inputs!$B$20+Inputs!$B$25+Inputs!$B$31+'Maintenance Costs'!$M$34*0.1) -> -22963.63181 | E18: =((Inputs!$I$10*'Sensitivity Analysis - Acreage'!E$9*'Sensitivity Analysis - Acreage'!$C18)+(Inputs!$B$16*'Sensitivity Analysis - Acreage'!$C18))-(((((Inputs!$I$13+Inputs!$K$13)*'Sensitivity Analysis - Acreage'!E$9)+Inputs!$B$30+Inputs!$D$32)*'Sensitivity Analysis - Acreage'!$C18)+Inputs!$B$20+Inputs!$B$25+Inputs!$B$31+'Maintenance Costs'!$M$34*0.25) -> -18771.77952 | F18: =((Inputs!$I$10*'Sensitivity Analysis - Acreage'!F$9*'Sensitivity Analysis - Acreage'!$C18)+(Inputs!$B$16*'Sensitivity Analysis - Acreage'!$C18))-(((((Inputs!$I$13+Inputs!$K$13)*'Sensitivity Analysis - Acreage'!F$9)+Inputs!$B$30+Inputs!$D$32)*'Sensitivity Analysis - Acreage'!$C18)+Inputs!$B$20+Inputs!$B$25+Inputs!$B$31+'Maintenance Costs'!$M$34*0.5) -> -11785.35903 | G18: =((Inputs!$I$10*'Sensitivity Analysis - Acreage'!G$9*'Sensitivity Analysis - Acreage'!$C18)+(Inputs!$B$16*'Sensitivity Analysis - Acreage'!$C18))-(((((Inputs!$I$13+Inputs!$K$13)*'Sensitivity Analysis - Acreage'!G$9)+Inputs!$B$30+Inputs!$D$32)*'Sensitivity Analysis - Acreage'!$C18)+Inputs!$B$20+Inputs!$B$25+Inputs!$B$31+'Maintenance Costs'!$M$34*0.75) -> -4798.93855 | H18: =((Inputs!$I$10*'Sensitivity Analysis - Acreage'!H$9*'Sensitivity Analysis - Acreage'!$C18)+(Inputs!$B$16*'Sensitivity Analysis - Acreage'!$C18))-(((((Inputs!$I$13+Inputs!$K$13)*'Sensitivity Analysis - Acreage'!H$9)+Inputs!$B$30+Inputs!$D$32)*'Sensitivity Analysis - Acreage'!$C18)+Inputs!$B$20+Inputs!$B$25+Inputs!$B$31+'Maintenance Costs'!$M$34) -> 2187.481933 | I18: =((Inputs!$I$10*'Sensitivity Analysis - Acreage'!I$9*'Sensitivity Analysis - Acreage'!$C18)+(Inputs!$B$16*'Sensitivity Analysis - Acreage'!$C18))-(((((Inputs!$I$13+Inputs!$K$13)*'Sensitivity Analysis - Acreage'!I$9)+Inputs!$B$30+Inputs!$D$32)*'Sensitivity Analysis - Acreage'!$C18)+Inputs!$B$20+Inputs!$B$25+Inputs!$B$31+'Maintenance Costs'!$M$34*1.25) -> 9173.902417 | J18: =((Inputs!$I$10*'Sensitivity Analysis - Acreage'!J$9*'Sensitivity Analysis - Acreage'!$C18)+(Inputs!$B$16*'Sensitivity Analysis - Acreage'!$C18))-(((((Inputs!$I$13+Inputs!$K$13)*'Sensitivity Analysis - Acreage'!J$9)+Inputs!$B$30+Inputs!$D$32)*'Sensitivity Analysis - Acreage'!$C18)+Inputs!$B$20+Inputs!$B$25+Inputs!$B$31+'Maintenance Costs'!$M$34*1.5) -> 16160.3229 | K18: =((Inputs!$I$10*'Sensitivity Analysis - Acreage'!K$9*'Sensitivity Analysis - Acreage'!$C18)+(Inputs!$B$16*'Sensitivity Analysis - Acreage'!$C18))-(((((Inputs!$I$13+Inputs!$K$13)*'Sensitivity Analysis - Acreage'!K$9)+Inputs!$B$30+Inputs!$D$32)*'Sensitivity Analysis - Acreage'!$C18)+Inputs!$B$20+Inputs!$B$25+Inputs!$B$31+'Maintenance Costs'!$M$34*1.75) -> 23146.74338 | L18: =((Inputs!$I$10*'Sensitivity Analysis - Acreage'!L$9*'Sensitivity Analysis - Acreage'!$C18)+(Inputs!$B$16*'Sensitivity Analysis - Acreage'!$C18))-(((((Inputs!$I$13+Inputs!$K$13)*'Sensitivity Analysis - Acreage'!L$9)+Inputs!$B$30+Inputs!$D$32)*'Sensitivity Analysis - Acreage'!$C18)+Inputs!$B$20+Inputs!$B$25+Inputs!$B$31+'Maintenance Costs'!$M$34*2) -> 30133.16387 | M18: =((Inputs!$I$10*'Sensitivity Analysis - Acreage'!M$9*'Sensitivity Analysis - Acreage'!$C18)+(Inputs!$B$16*'Sensitivity Analysis - Acreage'!$C18))-(((((Inputs!$I$13+Inputs!$K$13)*'Sensitivity Analysis - Acreage'!M$9)+Inputs!$B$30+Inputs!$D$32)*'Sensitivity Analysis - Acreage'!$C18)+Inputs!$B$20+Inputs!$B$25+Inputs!$B$31+'Maintenance Costs'!$M$34*2.5) -> 44106.00483 | N18: =((Inputs!$I$10*'Sensitivity Analysis - Acreage'!N$9*'Sensitivity Analysis - Acreage'!$C18)+(Inputs!$B$16*'Sensitivity Analysis - Acreage'!$C18))-(((((Inputs!$I$13+Inputs!$K$13)*'Sensitivity Analysis - Acreage'!N$9)+Inputs!$B$30+Inputs!$D$32)*'Sensitivity Analysis - Acreage'!$C18)+Inputs!$B$20+Inputs!$B$25+Inputs!$B$31+'Maintenance Costs'!$M$34*5) -> 113970.2097 | O18: =((Inputs!$I$10*'Sensitivity Analysis - Acreage'!O$9*'Sensitivity Analysis - Acreage'!$C18)+(Inputs!$B$16*'Sensitivity Analysis - Acreage'!$C18))-(((((Inputs!$I$13+Inputs!$K$13)*'Sensitivity Analysis - Acreage'!O$9)+Inputs!$B$30+Inputs!$D$32)*'Sensitivity Analysis - Acreage'!$C18)+Inputs!$B$20+Inputs!$B$25+Inputs!$B$31+'Maintenance Costs'!$M$34*10) -> 253698.6193
C19: 10 | D19: =((Inputs!$I$10*'Sensitivity Analysis - Acreage'!D$9*'Sensitivity Analysis - Acreage'!$C19)+(Inputs!$B$16*'Sensitivity Analysis - Acreage'!$C19))-(((((Inputs!$I$13+Inputs!$K$13)*'Sensitivity Analysis - Acreage'!D$9)+Inputs!$B$30+Inputs!$D$32)*'Sensitivity Analysis - Acreage'!$C19)+Inputs!$B$20+Inputs!$B$25+Inputs!$B$31+'Maintenance Costs'!$N$34*0.1) -> -23381.83912 | E19: =((Inputs!$I$10*'Sensitivity Analysis - Acreage'!E$9*'Sensitivity Analysis - Acreage'!$C19)+(Inputs!$B$16*'Sensitivity Analysis - Acreage'!$C19))-(((((Inputs!$I$13+Inputs!$K$13)*'Sensitivity Analysis - Acreage'!E$9)+Inputs!$B$30+Inputs!$D$32)*'Sensitivity Analysis - Acreage'!$C19)+Inputs!$B$20+Inputs!$B$25+Inputs!$B$31+'Maintenance Costs'!$N$34*0.25) -> -18826.5978 | F19: =((Inputs!$I$10*'Sensitivity Analysis - Acreage'!F$9*'Sensitivity Analysis - Acreage'!$C19)+(Inputs!$B$16*'Sensitivity Analysis - Acreage'!$C19))-(((((Inputs!$I$13+Inputs!$K$13)*'Sensitivity Analysis - Acreage'!F$9)+Inputs!$B$30+Inputs!$D$32)*'Sensitivity Analysis - Acreage'!$C19)+Inputs!$B$20+Inputs!$B$25+Inputs!$B$31+'Maintenance Costs'!$N$34*0.5) -> -11234.52893 | G19: =((Inputs!$I$10*'Sensitivity Analysis - Acreage'!G$9*'Sensitivity Analysis - Acreage'!$C19)+(Inputs!$B$16*'Sensitivity Analysis - Acreage'!$C19))-(((((Inputs!$I$13+Inputs!$K$13)*'Sensitivity Analysis - Acreage'!G$9)+Inputs!$B$30+Inputs!$D$32)*'Sensitivity Analysis - Acreage'!$C19)+Inputs!$B$20+Inputs!$B$25+Inputs!$B$31+'Maintenance Costs'!$N$34*0.75) -> -3642.460056 | H19: =((Inputs!$I$10*'Sensitivity Analysis - Acreage'!H$9*'Sensitivity Analysis - Acreage'!$C19)+(Inputs!$B$16*'Sensitivity Analysis - Acreage'!$C19))-(((((Inputs!$I$13+Inputs!$K$13)*'Sensitivity Analysis - Acreage'!H$9)+Inputs!$B$30+Inputs!$D$32)*'Sensitivity Analysis - Acreage'!$C19)+Inputs!$B$20+Inputs!$B$25+Inputs!$B$31+'Maintenance Costs'!$N$34) -> 3949.608815 | I19: =((Inputs!$I$10*'Sensitivity Analysis - Acreage'!I$9*'Sensitivity Analysis - Acreage'!$C19)+(Inputs!$B$16*'Sensitivity Analysis - Acreage'!$C19))-(((((Inputs!$I$13+Inputs!$K$13)*'Sensitivity Analysis - Acreage'!I$9)+Inputs!$B$30+Inputs!$D$32)*'Sensitivity Analysis - Acreage'!$C19)+Inputs!$B$20+Inputs!$B$25+Inputs!$B$31+'Maintenance Costs'!$N$34*1.25) -> 11541.67769 | J19: =((Inputs!$I$10*'Sensitivity Analysis - Acreage'!J$9*'Sensitivity Analysis - Acreage'!$C19)+(Inputs!$B$16*'Sensitivity Analysis - Acreage'!$C19))-(((((Inputs!$I$13+Inputs!$K$13)*'Sensitivity Analysis - Acreage'!J$9)+Inputs!$B$30+Inputs!$D$32)*'Sensitivity Analysis - Acreage'!$C19)+Inputs!$B$20+Inputs!$B$25+Inputs!$B$31+'Maintenance Costs'!$N$34*1.5) -> 19133.74656 | K19: =((Inputs!$I$10*'Sensitivity Analysis - Acreage'!K$9*'Sensitivity Analysis - Acreage'!$C19)+(Inputs!$B$16*'Sensitivity Analysis - Acreage'!$C19))-(((((Inputs!$I$13+Inputs!$K$13)*'Sensitivity Analysis - Acreage'!K$9)+Inputs!$B$30+Inputs!$D$32)*'Sensitivity Analysis - Acreage'!$C19)+Inputs!$B$20+Inputs!$B$25+Inputs!$B$31+'Maintenance Costs'!$N$34*1.75) -> 26725.81543 | L19: =((Inputs!$I$10*'Sensitivity Analysis - Acreage'!L$9*'Sensitivity Analysis - Acreage'!$C19)+(Inputs!$B$16*'Sensitivity Analysis - Acreage'!$C19))-(((((Inputs!$I$13+Inputs!$K$13)*'Sensitivity Analysis - Acreage'!L$9)+Inputs!$B$30+Inputs!$D$32)*'Sensitivity Analysis - Acreage'!$C19)+Inputs!$B$20+Inputs!$B$25+Inputs!$B$31+'Maintenance Costs'!$N$34*2) -> 34317.8843 | M19: =((Inputs!$I$10*'Sensitivity Analysis - Acreage'!M$9*'Sensitivity Analysis - Acreage'!$C19)+(Inputs!$B$16*'Sensitivity Analysis - Acreage'!$C19))-(((((Inputs!$I$13+Inputs!$K$13)*'Sensitivity Analysis - Acreage'!M$9)+Inputs!$B$30+Inputs!$D$32)*'Sensitivity Analysis - Acreage'!$C19)+Inputs!$B$20+Inputs!$B$25+Inputs!$B$31+'Maintenance Costs'!$N$34*2.5) -> 49502.02204 | N19: =((Inputs!$I$10*'Sensitivity Analysis - Acreage'!N$9*'Sensitivity Analysis - Acreage'!$C19)+(Inputs!$B$16*'Sensitivity Analysis - Acreage'!$C19))-(((((Inputs!$I$13+Inputs!$K$13)*'Sensitivity Analysis - Acreage'!N$9)+Inputs!$B$30+Inputs!$D$32)*'Sensitivity Analysis - Acreage'!$C19)+Inputs!$B$20+Inputs!$B$25+Inputs!$B$31+'Maintenance Costs'!$N$34*5) -> 125422.7107 | O19: =((Inputs!$I$10*'Sensitivity Analysis - Acreage'!O$9*'Sensitivity Analysis - Acreage'!$C19)+(Inputs!$B$16*'Sensitivity Analysis - Acreage'!$C19))-(((((Inputs!$I$13+Inputs!$K$13)*'Sensitivity Analysis - Acreage'!O$9)+Inputs!$B$30+Inputs!$D$32)*'Sensitivity Analysis - Acreage'!$C19)+Inputs!$B$20+Inputs!$B$25+Inputs!$B$31+'Maintenance Costs'!$N$34*10) -> 277264.0881
C20: 11 | D20: =((Inputs!$I$10*'Sensitivity Analysis - Acreage'!D$9*'Sensitivity Analysis - Acreage'!$C20)+(Inputs!$B$16*'Sensitivity Analysis - Acreage'!$C20))-(((((Inputs!$I$13+Inputs!$K$13)*'Sensitivity Analysis - Acreage'!D$9)+Inputs!$B$30+Inputs!$D$32)*'Sensitivity Analysis - Acreage'!$C20)+Inputs!$B$20+Inputs!$B$25+Inputs!$B$31+'Maintenance Costs'!$O$34*0.1) -> -23720.79043 | E20: =((Inputs!$I$10*'Sensitivity Analysis - Acreage'!E$9*'Sensitivity Analysis - Acreage'!$C20)+(Inputs!$B$16*'Sensitivity Analysis - Acreage'!$C20))-(((((Inputs!$I$13+Inputs!$K$13)*'Sensitivity Analysis - Acreage'!E$9)+Inputs!$B$30+Inputs!$D$32)*'Sensitivity Analysis - Acreage'!$C20)+Inputs!$B$20+Inputs!$B$25+Inputs!$B$31+'Maintenance Costs'!$O$34*0.25) -> -18683.27608 | F20: =((Inputs!$I$10*'Sensitivity Analysis - Acreage'!F$9*'Sensitivity Analysis - Acreage'!$C20)+(Inputs!$B$16*'Sensitivity Analysis - Acreage'!$C20))-(((((Inputs!$I$13+Inputs!$K$13)*'Sensitivity Analysis - Acreage'!F$9)+Inputs!$B$30+Inputs!$D$32)*'Sensitivity Analysis - Acreage'!$C20)+Inputs!$B$20+Inputs!$B$25+Inputs!$B$31+'Maintenance Costs'!$O$34*0.5) -> -10287.41882 | G20: =((Inputs!$I$10*'Sensitivity Analysis - Acreage'!G$9*'Sensitivity Analysis - Acreage'!$C20)+(Inputs!$B$16*'Sensitivity Analysis - Acreage'!$C20))-(((((Inputs!$I$13+Inputs!$K$13)*'Sensitivity Analysis - Acreage'!G$9)+Inputs!$B$30+Inputs!$D$32)*'Sensitivity Analysis - Acreage'!$C20)+Inputs!$B$20+Inputs!$B$25+Inputs!$B$31+'Maintenance Costs'!$O$34*0.75) -> -1891.561561 | H20: =((Inputs!$I$10*'Sensitivity Analysis - Acreage'!H$9*'Sensitivity Analysis - Acreage'!$C20)+(Inputs!$B$16*'Sensitivity Analysis - Acreage'!$C20))-(((((Inputs!$I$13+Inputs!$K$13)*'Sensitivity Analysis - Acreage'!H$9)+Inputs!$B$30+Inputs!$D$32)*'Sensitivity Analysis - Acreage'!$C20)+Inputs!$B$20+Inputs!$B$25+Inputs!$B$31+'Maintenance Costs'!$O$34) -> 6504.295696 | I20: =((Inputs!$I$10*'Sensitivity Analysis - Acreage'!I$9*'Sensitivity Analysis - Acreage'!$C20)+(Inputs!$B$16*'Sensitivity Analysis - Acreage'!$C20))-(((((Inputs!$I$13+Inputs!$K$13)*'Sensitivity Analysis - Acreage'!I$9)+Inputs!$B$30+Inputs!$D$32)*'Sensitivity Analysis - Acreage'!$C20)+Inputs!$B$20+Inputs!$B$25+Inputs!$B$31+'Maintenance Costs'!$O$34*1.25) -> 14900.15295 | J20: =((Inputs!$I$10*'Sensitivity Analysis - Acreage'!J$9*'Sensitivity Analysis - Acreage'!$C20)+(Inputs!$B$16*'Sensitivity Analysis - Acreage'!$C20))-(((((Inputs!$I$13+Inputs!$K$13)*'Sensitivity Analysis - Acreage'!J$9)+Inputs!$B$30+Inputs!$D$32)*'Sensitivity Analysis - Acreage'!$C20)+Inputs!$B$20+Inputs!$B$25+Inputs!$B$31+'Maintenance Costs'!$O$34*1.5) -> 23296.01021 | K20: =((Inputs!$I$10*'Sensitivity Analysis - Acreage'!K$9*'Sensitivity Analysis - Acreage'!$C20)+(Inputs!$B$16*'Sensitivity Analysis - Acreage'!$C20))-(((((Inputs!$I$13+Inputs!$K$13)*'Sensitivity Analysis - Acreage'!K$9)+Inputs!$B$30+Inputs!$D$32)*'Sensitivity Analysis - Acreage'!$C20)+Inputs!$B$20+Inputs!$B$25+Inputs!$B$31+'Maintenance Costs'!$O$34*1.75) -> 31691.86747 | L20: =((Inputs!$I$10*'Sensitivity Analysis - Acreage'!L$9*'Sensitivity Analysis - Acreage'!$C20)+(Inputs!$B$16*'Sensitivity Analysis - Acreage'!$C20))-(((((Inputs!$I$13+Inputs!$K$13)*'Sensitivity Analysis - Acreage'!L$9)+Inputs!$B$30+Inputs!$D$32)*'Sensitivity Analysis - Acreage'!$C20)+Inputs!$B$20+Inputs!$B$25+Inputs!$B$31+'Maintenance Costs'!$O$34*2) -> 40087.72473 | M20: =((Inputs!$I$10*'Sensitivity Analysis - Acreage'!M$9*'Sensitivity Analysis - Acreage'!$C20)+(Inputs!$B$16*'Sensitivity Analysis - Acreage'!$C20))-(((((Inputs!$I$13+Inputs!$K$13)*'Sensitivity Analysis - Acreage'!M$9)+Inputs!$B$30+Inputs!$D$32)*'Sensitivity Analysis - Acreage'!$C20)+Inputs!$B$20+Inputs!$B$25+Inputs!$B$31+'Maintenance Costs'!$O$34*2.5) -> 56879.43924 | N20: =((Inputs!$I$10*'Sensitivity Analysis - Acreage'!N$9*'Sensitivity Analysis - Acreage'!$C20)+(Inputs!$B$16*'Sensitivity Analysis - Acreage'!$C20))-(((((Inputs!$I$13+Inputs!$K$13)*'Sensitivity Analysis - Acreage'!N$9)+Inputs!$B$30+Inputs!$D$32)*'Sensitivity Analysis - Acreage'!$C20)+Inputs!$B$20+Inputs!$B$25+Inputs!$B$31+'Maintenance Costs'!$O$34*5) -> 140838.0118 | O20: =((Inputs!$I$10*'Sensitivity Analysis - Acreage'!O$9*'Sensitivity Analysis - Acreage'!$C20)+(Inputs!$B$16*'Sensitivity Analysis - Acreage'!$C20))-(((((Inputs!$I$13+Inputs!$K$13)*'Sensitivity Analysis - Acreage'!O$9)+Inputs!$B$30+Inputs!$D$32)*'Sensitivity Analysis - Acreage'!$C20)+Inputs!$B$20+Inputs!$B$25+Inputs!$B$31+'Maintenance Costs'!$O$34*10) -> 308755.157
C21: 12 | D21: =((Inputs!$I$10*'Sensitivity Analysis - Acreage'!D$9*'Sensitivity Analysis - Acreage'!$C21)+(Inputs!$B$16*'Sensitivity Analysis - Acreage'!$C21))-(((((Inputs!$I$13+Inputs!$K$13)*'Sensitivity Analysis - Acreage'!D$9)+Inputs!$B$30+Inputs!$D$32)*'Sensitivity Analysis - Acreage'!$C21)+Inputs!$B$20+Inputs!$B$25+Inputs!$B$31+'Maintenance Costs'!$P$34*0.1) -> -24059.74174 | E21: =((Inputs!$I$10*'Sensitivity Analysis - Acreage'!E$9*'Sensitivity Analysis - Acreage'!$C21)+(Inputs!$B$16*'Sensitivity Analysis - Acreage'!$C21))-(((((Inputs!$I$13+Inputs!$K$13)*'Sensitivity Analysis - Acreage'!E$9)+Inputs!$B$30+Inputs!$D$32)*'Sensitivity Analysis - Acreage'!$C21)+Inputs!$B$20+Inputs!$B$25+Inputs!$B$31+'Maintenance Costs'!$P$34*0.25) -> -18539.95436 | F21: =((Inputs!$I$10*'Sensitivity Analysis - Acreage'!F$9*'Sensitivity Analysis - Acreage'!$C21)+(Inputs!$B$16*'Sensitivity Analysis - Acreage'!$C21))-(((((Inputs!$I$13+Inputs!$K$13)*'Sensitivity Analysis - Acreage'!F$9)+Inputs!$B$30+Inputs!$D$32)*'Sensitivity Analysis - Acreage'!$C21)+Inputs!$B$20+Inputs!$B$25+Inputs!$B$31+'Maintenance Costs'!$P$34*0.5) -> -9340.308711 | G21: =((Inputs!$I$10*'Sensitivity Analysis - Acreage'!G$9*'Sensitivity Analysis - Acreage'!$C21)+(Inputs!$B$16*'Sensitivity Analysis - Acreage'!$C21))-(((((Inputs!$I$13+Inputs!$K$13)*'Sensitivity Analysis - Acreage'!G$9)+Inputs!$B$30+Inputs!$D$32)*'Sensitivity Analysis - Acreage'!$C21)+Inputs!$B$20+Inputs!$B$25+Inputs!$B$31+'Maintenance Costs'!$P$34*0.75) -> -140.6630667 | H21: =((Inputs!$I$10*'Sensitivity Analysis - Acreage'!H$9*'Sensitivity Analysis - Acreage'!$C21)+(Inputs!$B$16*'Sensitivity Analysis - Acreage'!$C21))-(((((Inputs!$I$13+Inputs!$K$13)*'Sensitivity Analysis - Acreage'!H$9)+Inputs!$B$30+Inputs!$D$32)*'Sensitivity Analysis - Acreage'!$C21)+Inputs!$B$20+Inputs!$B$25+Inputs!$B$31+'Maintenance Costs'!$P$34) -> 9058.982578 | I21: =((Inputs!$I$10*'Sensitivity Analysis - Acreage'!I$9*'Sensitivity Analysis - Acreage'!$C21)+(Inputs!$B$16*'Sensitivity Analysis - Acreage'!$C21))-(((((Inputs!$I$13+Inputs!$K$13)*'Sensitivity Analysis - Acreage'!I$9)+Inputs!$B$30+Inputs!$D$32)*'Sensitivity Analysis - Acreage'!$C21)+Inputs!$B$20+Inputs!$B$25+Inputs!$B$31+'Maintenance Costs'!$P$34*1.25) -> 18258.62822 | J21: =((Inputs!$I$10*'Sensitivity Analysis - Acreage'!J$9*'Sensitivity Analysis - Acreage'!$C21)+(Inputs!$B$16*'Sensitivity Analysis - Acreage'!$C21))-(((((Inputs!$I$13+Inputs!$K$13)*'Sensitivity Analysis - Acreage'!J$9)+Inputs!$B$30+Inputs!$D$32)*'Sensitivity Analysis - Acreage'!$C21)+Inputs!$B$20+Inputs!$B$25+Inputs!$B$31+'Maintenance Costs'!$P$34*1.5) -> 27458.27387 | K21: =((Inputs!$I$10*'Sensitivity Analysis - Acreage'!K$9*'Sensitivity Analysis - Acreage'!$C21)+(Inputs!$B$16*'Sensitivity Analysis - Acreage'!$C21))-(((((Inputs!$I$13+Inputs!$K$13)*'Sensitivity Analysis - Acreage'!K$9)+Inputs!$B$30+Inputs!$D$32)*'Sensitivity Analysis - Acreage'!$C21)+Inputs!$B$20+Inputs!$B$25+Inputs!$B$31+'Maintenance Costs'!$P$34*1.75) -> 36657.91951 | L21: =((Inputs!$I$10*'Sensitivity Analysis - Acreage'!L$9*'Sensitivity Analysis - Acreage'!$C21)+(Inputs!$B$16*'Sensitivity Analysis - Acreage'!$C21))-(((((Inputs!$I$13+Inputs!$K$13)*'Sensitivity Analysis - Acreage'!L$9)+Inputs!$B$30+Inputs!$D$32)*'Sensitivity Analysis - Acreage'!$C21)+Inputs!$B$20+Inputs!$B$25+Inputs!$B$31+'Maintenance Costs'!$P$34*2) -> 45857.56516 | M21: =((Inputs!$I$10*'Sensitivity Analysis - Acreage'!M$9*'Sensitivity Analysis - Acreage'!$C21)+(Inputs!$B$16*'Sensitivity Analysis - Acreage'!$C21))-(((((Inputs!$I$13+Inputs!$K$13)*'Sensitivity Analysis - Acreage'!M$9)+Inputs!$B$30+Inputs!$D$32)*'Sensitivity Analysis - Acreage'!$C21)+Inputs!$B$20+Inputs!$B$25+Inputs!$B$31+'Maintenance Costs'!$P$34*2.5) -> 64256.85644 | N21: =((Inputs!$I$10*'Sensitivity Analysis - Acreage'!N$9*'Sensitivity Analysis - Acreage'!$C21)+(Inputs!$B$16*'Sensitivity Analysis - Acreage'!$C21))-(((((Inputs!$I$13+Inputs!$K$13)*'Sensitivity Analysis - Acreage'!N$9)+Inputs!$B$30+Inputs!$D$32)*'Sensitivity Analysis - Acreage'!$C21)+Inputs!$B$20+Inputs!$B$25+Inputs!$B$31+'Maintenance Costs'!$P$34*5) -> 156253.3129 | O21: =((Inputs!$I$10*'Sensitivity Analysis - Acreage'!O$9*'Sensitivity Analysis - Acreage'!$C21)+(Inputs!$B$16*'Sensitivity Analysis - Acreage'!$C21))-(((((Inputs!$I$13+Inputs!$K$13)*'Sensitivity Analysis - Acreage'!O$9)+Inputs!$B$30+Inputs!$D$32)*'Sensitivity Analysis - Acreage'!$C21)+Inputs!$B$20+Inputs!$B$25+Inputs!$B$31+'Maintenance Costs'!$P$34*10) -> 340246.2258
C22: 13 | D22: =((Inputs!$I$10*'Sensitivity Analysis - Acreage'!D$9*'Sensitivity Analysis - Acreage'!$C22)+(Inputs!$B$16*'Sensitivity Analysis - Acreage'!$C22))-(((((Inputs!$I$13+Inputs!$K$13)*'Sensitivity Analysis - Acreage'!D$9)+Inputs!$B$30+Inputs!$D$32)*'Sensitivity Analysis - Acreage'!$C22)+Inputs!$B$20+Inputs!$B$25+Inputs!$B$31+'Maintenance Costs'!$Q$34*0.1) -> -24497.76305 | E22: =((Inputs!$I$10*'Sensitivity Analysis - Acreage'!E$9*'Sensitivity Analysis - Acreage'!$C22)+(Inputs!$B$16*'Sensitivity Analysis - Acreage'!$C22))-(((((Inputs!$I$13+Inputs!$K$13)*'Sensitivity Analysis - Acreage'!E$9)+Inputs!$B$30+Inputs!$D$32)*'Sensitivity Analysis - Acreage'!$C22)+Inputs!$B$20+Inputs!$B$25+Inputs!$B$31+'Maintenance Costs'!$Q$34*0.25) -> -18644.30764 | F22: =((Inputs!$I$10*'Sensitivity Analysis - Acreage'!F$9*'Sensitivity Analysis - Acreage'!$C22)+(Inputs!$B$16*'Sensitivity Analysis - Acreage'!$C22))-(((((Inputs!$I$13+Inputs!$K$13)*'Sensitivity Analysis - Acreage'!F$9)+Inputs!$B$30+Inputs!$D$32)*'Sensitivity Analysis - Acreage'!$C22)+Inputs!$B$20+Inputs!$B$25+Inputs!$B$31+'Maintenance Costs'!$Q$34*0.5) -> -8888.548604 | G22: =((Inputs!$I$10*'Sensitivity Analysis - Acreage'!G$9*'Sensitivity Analysis - Acreage'!$C22)+(Inputs!$B$16*'Sensitivity Analysis - Acreage'!$C22))-(((((Inputs!$I$13+Inputs!$K$13)*'Sensitivity Analysis - Acreage'!G$9)+Inputs!$B$30+Inputs!$D$32)*'Sensitivity Analysis - Acreage'!$C22)+Inputs!$B$20+Inputs!$B$25+Inputs!$B$31+'Maintenance Costs'!$Q$34*0.75) -> 867.2104278 | H22: =((Inputs!$I$10*'Sensitivity Analysis - Acreage'!H$9*'Sensitivity Analysis - Acreage'!$C22)+(Inputs!$B$16*'Sensitivity Analysis - Acreage'!$C22))-(((((Inputs!$I$13+Inputs!$K$13)*'Sensitivity Analysis - Acreage'!H$9)+Inputs!$B$30+Inputs!$D$32)*'Sensitivity Analysis - Acreage'!$C22)+Inputs!$B$20+Inputs!$B$25+Inputs!$B$31+'Maintenance Costs'!$Q$34) -> 10622.96946 | I22: =((Inputs!$I$10*'Sensitivity Analysis - Acreage'!I$9*'Sensitivity Analysis - Acreage'!$C22)+(Inputs!$B$16*'Sensitivity Analysis - Acreage'!$C22))-(((((Inputs!$I$13+Inputs!$K$13)*'Sensitivity Analysis - Acreage'!I$9)+Inputs!$B$30+Inputs!$D$32)*'Sensitivity Analysis - Acreage'!$C22)+Inputs!$B$20+Inputs!$B$25+Inputs!$B$31+'Maintenance Costs'!$Q$34*1.25) -> 20378.72849 | J22: =((Inputs!$I$10*'Sensitivity Analysis - Acreage'!J$9*'Sensitivity Analysis - Acreage'!$C22)+(Inputs!$B$16*'Sensitivity Analysis - Acreage'!$C22))-(((((Inputs!$I$13+Inputs!$K$13)*'Sensitivity Analysis - Acreage'!J$9)+Inputs!$B$30+Inputs!$D$32)*'Sensitivity Analysis - Acreage'!$C22)+Inputs!$B$20+Inputs!$B$25+Inputs!$B$31+'Maintenance Costs'!$Q$34*1.5) -> 30134.48752 | K22: =((Inputs!$I$10*'Sensitivity Analysis - Acreage'!K$9*'Sensitivity Analysis - Acreage'!$C22)+(Inputs!$B$16*'Sensitivity Analysis - Acreage'!$C22))-(((((Inputs!$I$13+Inputs!$K$13)*'Sensitivity Analysis - Acreage'!K$9)+Inputs!$B$30+Inputs!$D$32)*'Sensitivity Analysis - Acreage'!$C22)+Inputs!$B$20+Inputs!$B$25+Inputs!$B$31+'Maintenance Costs'!$Q$34*1.75) -> 39890.24655 | L22: =((Inputs!$I$10*'Sensitivity Analysis - Acreage'!L$9*'Sensitivity Analysis - Acreage'!$C22)+(Inputs!$B$16*'Sensitivity Analysis - Acreage'!$C22))-(((((Inputs!$I$13+Inputs!$K$13)*'Sensitivity Analysis - Acreage'!L$9)+Inputs!$B$30+Inputs!$D$32)*'Sensitivity Analysis - Acreage'!$C22)+Inputs!$B$20+Inputs!$B$25+Inputs!$B$31+'Maintenance Costs'!$Q$34*2) -> 49646.00559 | M22: =((Inputs!$I$10*'Sensitivity Analysis - Acreage'!M$9*'Sensitivity Analysis - Acreage'!$C22)+(Inputs!$B$16*'Sensitivity Analysis - Acreage'!$C22))-(((((Inputs!$I$13+Inputs!$K$13)*'Sensitivity Analysis - Acreage'!M$9)+Inputs!$B$30+Inputs!$D$32)*'Sensitivity Analysis - Acreage'!$C22)+Inputs!$B$20+Inputs!$B$25+Inputs!$B$31+'Maintenance Costs'!$Q$34*2.5) -> 69157.52365 | N22: =((Inputs!$I$10*'Sensitivity Analysis - Acreage'!N$9*'Sensitivity Analysis - Acreage'!$C22)+(Inputs!$B$16*'Sensitivity Analysis - Acreage'!$C22))-(((((Inputs!$I$13+Inputs!$K$13)*'Sensitivity Analysis - Acreage'!N$9)+Inputs!$B$30+Inputs!$D$32)*'Sensitivity Analysis - Acreage'!$C22)+Inputs!$B$20+Inputs!$B$25+Inputs!$B$31+'Maintenance Costs'!$Q$34*5) -> 166715.114 | O22: =((Inputs!$I$10*'Sensitivity Analysis - Acreage'!O$9*'Sensitivity Analysis - Acreage'!$C22)+(Inputs!$B$16*'Sensitivity Analysis - Acreage'!$C22))-(((((Inputs!$I$13+Inputs!$K$13)*'Sensitivity Analysis - Acreage'!O$9)+Inputs!$B$30+Inputs!$D$32)*'Sensitivity Analysis - Acreage'!$C22)+Inputs!$B$20+Inputs!$B$25+Inputs!$B$31+'Maintenance Costs'!$Q$34*10) -> 361830.2946
C23: 14 | D23: =((Inputs!$I$10*'Sensitivity Analysis - Acreage'!D$9*'Sensitivity Analysis - Acreage'!$C23)+(Inputs!$B$16*'Sensitivity Analysis - Acreage'!$C23))-(((((Inputs!$I$13+Inputs!$K$13)*'Sensitivity Analysis - Acreage'!D$9)+Inputs!$B$30+Inputs!$D$32)*'Sensitivity Analysis - Acreage'!$C23)+Inputs!$B$20+Inputs!$B$25+Inputs!$B$31+'Maintenance Costs'!$R$34*0.1) -> -24836.71437 | E23: =((Inputs!$I$10*'Sensitivity Analysis - Acreage'!E$9*'Sensitivity Analysis - Acreage'!$C23)+(Inputs!$B$16*'Sensitivity Analysis - Acreage'!$C23))-(((((Inputs!$I$13+Inputs!$K$13)*'Sensitivity Analysis - Acreage'!E$9)+Inputs!$B$30+Inputs!$D$32)*'Sensitivity Analysis - Acreage'!$C23)+Inputs!$B$20+Inputs!$B$25+Inputs!$B$31+'Maintenance Costs'!$R$34*0.25) -> -18500.98591 | F23: =((Inputs!$I$10*'Sensitivity Analysis - Acreage'!F$9*'Sensitivity Analysis - Acreage'!$C23)+(Inputs!$B$16*'Sensitivity Analysis - Acreage'!$C23))-(((((Inputs!$I$13+Inputs!$K$13)*'Sensitivity Analysis - Acreage'!F$9)+Inputs!$B$30+Inputs!$D$32)*'Sensitivity Analysis - Acreage'!$C23)+Inputs!$B$20+Inputs!$B$25+Inputs!$B$31+'Maintenance Costs'!$R$34*0.5) -> -7941.438496 | G23: =((Inputs!$I$10*'Sensitivity Analysis - Acreage'!G$9*'Sensitivity Analysis - Acreage'!$C23)+(Inputs!$B$16*'Sensitivity Analysis - Acreage'!$C23))-(((((Inputs!$I$13+Inputs!$K$13)*'Sensitivity Analysis - Acreage'!G$9)+Inputs!$B$30+Inputs!$D$32)*'Sensitivity Analysis - Acreage'!$C23)+Inputs!$B$20+Inputs!$B$25+Inputs!$B$31+'Maintenance Costs'!$R$34*0.75) -> 2618.108922 | H23: =((Inputs!$I$10*'Sensitivity Analysis - Acreage'!H$9*'Sensitivity Analysis - Acreage'!$C23)+(Inputs!$B$16*'Sensitivity Analysis - Acreage'!$C23))-(((((Inputs!$I$13+Inputs!$K$13)*'Sensitivity Analysis - Acreage'!H$9)+Inputs!$B$30+Inputs!$D$32)*'Sensitivity Analysis - Acreage'!$C23)+Inputs!$B$20+Inputs!$B$25+Inputs!$B$31+'Maintenance Costs'!$R$34) -> 13177.65634 | I23: =((Inputs!$I$10*'Sensitivity Analysis - Acreage'!I$9*'Sensitivity Analysis - Acreage'!$C23)+(Inputs!$B$16*'Sensitivity Analysis - Acreage'!$C23))-(((((Inputs!$I$13+Inputs!$K$13)*'Sensitivity Analysis - Acreage'!I$9)+Inputs!$B$30+Inputs!$D$32)*'Sensitivity Analysis - Acreage'!$C23)+Inputs!$B$20+Inputs!$B$25+Inputs!$B$31+'Maintenance Costs'!$R$34*1.25) -> 23737.20376 | J23: =((Inputs!$I$10*'Sensitivity Analysis - Acreage'!J$9*'Sensitivity Analysis - Acreage'!$C23)+(Inputs!$B$16*'Sensitivity Analysis - Acreage'!$C23))-(((((Inputs!$I$13+Inputs!$K$13)*'Sensitivity Analysis - Acreage'!J$9)+Inputs!$B$30+Inputs!$D$32)*'Sensitivity Analysis - Acreage'!$C23)+Inputs!$B$20+Inputs!$B$25+Inputs!$B$31+'Maintenance Costs'!$R$34*1.5) -> 34296.75118 | K23: =((Inputs!$I$10*'Sensitivity Analysis - Acreage'!K$9*'Sensitivity Analysis - Acreage'!$C23)+(Inputs!$B$16*'Sensitivity Analysis - Acreage'!$C23))-(((((Inputs!$I$13+Inputs!$K$13)*'Sensitivity Analysis - Acreage'!K$9)+Inputs!$B$30+Inputs!$D$32)*'Sensitivity Analysis - Acreage'!$C23)+Inputs!$B$20+Inputs!$B$25+Inputs!$B$31+'Maintenance Costs'!$R$34*1.75) -> 44856.2986 | L23: =((Inputs!$I$10*'Sensitivity Analysis - Acreage'!L$9*'Sensitivity Analysis - Acreage'!$C23)+(Inputs!$B$16*'Sensitivity Analysis - Acreage'!$C23))-(((((Inputs!$I$13+Inputs!$K$13)*'Sensitivity Analysis - Acreage'!L$9)+Inputs!$B$30+Inputs!$D$32)*'Sensitivity Analysis - Acreage'!$C23)+Inputs!$B$20+Inputs!$B$25+Inputs!$B$31+'Maintenance Costs'!$R$34*2) -> 55415.84601 | M23: =((Inputs!$I$10*'Sensitivity Analysis - Acreage'!M$9*'Sensitivity Analysis - Acreage'!$C23)+(Inputs!$B$16*'Sensitivity Analysis - Acreage'!$C23))-(((((Inputs!$I$13+Inputs!$K$13)*'Sensitivity Analysis - Acreage'!M$9)+Inputs!$B$30+Inputs!$D$32)*'Sensitivity Analysis - Acreage'!$C23)+Inputs!$B$20+Inputs!$B$25+Inputs!$B$31+'Maintenance Costs'!$R$34*2.5) -> 76534.94085 | N23: =((Inputs!$I$10*'Sensitivity Analysis - Acreage'!N$9*'Sensitivity Analysis - Acreage'!$C23)+(Inputs!$B$16*'Sensitivity Analysis - Acreage'!$C23))-(((((Inputs!$I$13+Inputs!$K$13)*'Sensitivity Analysis - Acreage'!N$9)+Inputs!$B$30+Inputs!$D$32)*'Sensitivity Analysis - Acreage'!$C23)+Inputs!$B$20+Inputs!$B$25+Inputs!$B$31+'Maintenance Costs'!$R$34*5) -> 182130.415 | O23: =((Inputs!$I$10*'Sensitivity Analysis - Acreage'!O$9*'Sensitivity Analysis - Acreage'!$C23)+(Inputs!$B$16*'Sensitivity Analysis - Acreage'!$C23))-(((((Inputs!$I$13+Inputs!$K$13)*'Sensitivity Analysis - Acreage'!O$9)+Inputs!$B$30+Inputs!$D$32)*'Sensitivity Analysis - Acreage'!$C23)+Inputs!$B$20+Inputs!$B$25+Inputs!$B$31+'Maintenance Costs'!$R$34*10) -> 393321.3634
C24: 15 | D24: =((Inputs!$I$10*'Sensitivity Analysis - Acreage'!D$9*'Sensitivity Analysis - Acreage'!$C24)+(Inputs!$B$16*'Sensitivity Analysis - Acreage'!$C24))-(((((Inputs!$I$13+Inputs!$K$13)*'Sensitivity Analysis - Acreage'!D$9)+Inputs!$B$30+Inputs!$D$32)*'Sensitivity Analysis - Acreage'!$C24)+Inputs!$B$20+Inputs!$B$25+Inputs!$B$31+'Maintenance Costs'!$S$34*0.1) -> -25175.66568 | E24: =((Inputs!$I$10*'Sensitivity Analysis - Acreage'!E$9*'Sensitivity Analysis - Acreage'!$C24)+(Inputs!$B$16*'Sensitivity Analysis - Acreage'!$C24))-(((((Inputs!$I$13+Inputs!$K$13)*'Sensitivity Analysis - Acreage'!E$9)+Inputs!$B$30+Inputs!$D$32)*'Sensitivity Analysis - Acreage'!$C24)+Inputs!$B$20+Inputs!$B$25+Inputs!$B$31+'Maintenance Costs'!$S$34*0.25) -> -18357.66419 | F24: =((Inputs!$I$10*'Sensitivity Analysis - Acreage'!F$9*'Sensitivity Analysis - Acreage'!$C24)+(Inputs!$B$16*'Sensitivity Analysis - Acreage'!$C24))-(((((Inputs!$I$13+Inputs!$K$13)*'Sensitivity Analysis - Acreage'!F$9)+Inputs!$B$30+Inputs!$D$32)*'Sensitivity Analysis - Acreage'!$C24)+Inputs!$B$20+Inputs!$B$25+Inputs!$B$31+'Maintenance Costs'!$S$34*0.5) -> -6994.328389 | G24: =((Inputs!$I$10*'Sensitivity Analysis - Acreage'!G$9*'Sensitivity Analysis - Acreage'!$C24)+(Inputs!$B$16*'Sensitivity Analysis - Acreage'!$C24))-(((((Inputs!$I$13+Inputs!$K$13)*'Sensitivity Analysis - Acreage'!G$9)+Inputs!$B$30+Inputs!$D$32)*'Sensitivity Analysis - Acreage'!$C24)+Inputs!$B$20+Inputs!$B$25+Inputs!$B$31+'Maintenance Costs'!$S$34*0.75) -> 4369.007417 | H24: =((Inputs!$I$10*'Sensitivity Analysis - Acreage'!H$9*'Sensitivity Analysis - Acreage'!$C24)+(Inputs!$B$16*'Sensitivity Analysis - Acreage'!$C24))-(((((Inputs!$I$13+Inputs!$K$13)*'Sensitivity Analysis - Acreage'!H$9)+Inputs!$B$30+Inputs!$D$32)*'Sensitivity Analysis - Acreage'!$C24)+Inputs!$B$20+Inputs!$B$25+Inputs!$B$31+'Maintenance Costs'!$S$34) -> 15732.34322 | I24: =((Inputs!$I$10*'Sensitivity Analysis - Acreage'!I$9*'Sensitivity Analysis - Acreage'!$C24)+(Inputs!$B$16*'Sensitivity Analysis - Acreage'!$C24))-(((((Inputs!$I$13+Inputs!$K$13)*'Sensitivity Analysis - Acreage'!I$9)+Inputs!$B$30+Inputs!$D$32)*'Sensitivity Analysis - Acreage'!$C24)+Inputs!$B$20+Inputs!$B$25+Inputs!$B$31+'Maintenance Costs'!$S$34*1.25) -> 27095.67903 | J24: =((Inputs!$I$10*'Sensitivity Analysis - Acreage'!J$9*'Sensitivity Analysis - Acreage'!$C24)+(Inputs!$B$16*'Sensitivity Analysis - Acreage'!$C24))-(((((Inputs!$I$13+Inputs!$K$13)*'Sensitivity Analysis - Acreage'!J$9)+Inputs!$B$30+Inputs!$D$32)*'Sensitivity Analysis - Acreage'!$C24)+Inputs!$B$20+Inputs!$B$25+Inputs!$B$31+'Maintenance Costs'!$S$34*1.5) -> 38459.01483 | K24: =((Inputs!$I$10*'Sensitivity Analysis - Acreage'!K$9*'Sensitivity Analysis - Acreage'!$C24)+(Inputs!$B$16*'Sensitivity Analysis - Acreage'!$C24))-(((((Inputs!$I$13+Inputs!$K$13)*'Sensitivity Analysis - Acreage'!K$9)+Inputs!$B$30+Inputs!$D$32)*'Sensitivity Analysis - Acreage'!$C24)+Inputs!$B$20+Inputs!$B$25+Inputs!$B$31+'Maintenance Costs'!$S$34*1.75) -> 49822.35064 | L24: =((Inputs!$I$10*'Sensitivity Analysis - Acreage'!L$9*'Sensitivity Analysis - Acreage'!$C24)+(Inputs!$B$16*'Sensitivity Analysis - Acreage'!$C24))-(((((Inputs!$I$13+Inputs!$K$13)*'Sensitivity Analysis - Acreage'!L$9)+Inputs!$B$30+Inputs!$D$32)*'Sensitivity Analysis - Acreage'!$C24)+Inputs!$B$20+Inputs!$B$25+Inputs!$B$31+'Maintenance Costs'!$S$34*2) -> 61185.68644 | M24: =((Inputs!$I$10*'Sensitivity Analysis - Acreage'!M$9*'Sensitivity Analysis - Acreage'!$C24)+(Inputs!$B$16*'Sensitivity Analysis - Acreage'!$C24))-(((((Inputs!$I$13+Inputs!$K$13)*'Sensitivity Analysis - Acreage'!M$9)+Inputs!$B$30+Inputs!$D$32)*'Sensitivity Analysis - Acreage'!$C24)+Inputs!$B$20+Inputs!$B$25+Inputs!$B$31+'Maintenance Costs'!$S$34*2.5) -> 83912.35806 | N24: =((Inputs!$I$10*'Sensitivity Analysis - Acreage'!N$9*'Sensitivity Analysis - Acreage'!$C24)+(Inputs!$B$16*'Sensitivity Analysis - Acreage'!$C24))-(((((Inputs!$I$13+Inputs!$K$13)*'Sensitivity Analysis - Acreage'!N$9)+Inputs!$B$30+Inputs!$D$32)*'Sensitivity Analysis - Acreage'!$C24)+Inputs!$B$20+Inputs!$B$25+Inputs!$B$31+'Maintenance Costs'!$S$34*5) -> 197545.7161 | O24: =((Inputs!$I$10*'Sensitivity Analysis - Acreage'!O$9*'Sensitivity Analysis - Acreage'!$C24)+(Inputs!$B$16*'Sensitivity Analysis - Acreage'!$C24))-(((((Inputs!$I$13+Inputs!$K$13)*'Sensitivity Analysis - Acreage'!O$9)+Inputs!$B$30+Inputs!$D$32)*'Sensitivity Analysis - Acreage'!$C24)+Inputs!$B$20+Inputs!$B$25+Inputs!$B$31+'Maintenance Costs'!$S$34*10) -> 424812.4322
C25: 16 | D25: =((Inputs!$I$10*'Sensitivity Analysis - Acreage'!D$9*'Sensitivity Analysis - Acreage'!$C25)+(Inputs!$B$16*'Sensitivity Analysis - Acreage'!$C25))-(((((Inputs!$I$13+Inputs!$K$13)*'Sensitivity Analysis - Acreage'!D$9)+Inputs!$B$30+Inputs!$D$32)*'Sensitivity Analysis - Acreage'!$C25)+Inputs!$B$20+Inputs!$B$25+Inputs!$B$31+'Maintenance Costs'!$T$34*0.1) -> -25514.61699 | E25: =((Inputs!$I$10*'Sensitivity Analysis - Acreage'!E$9*'Sensitivity Analysis - Acreage'!$C25)+(Inputs!$B$16*'Sensitivity Analysis - Acreage'!$C25))-(((((Inputs!$I$13+Inputs!$K$13)*'Sensitivity Analysis - Acreage'!E$9)+Inputs!$B$30+Inputs!$D$32)*'Sensitivity Analysis - Acreage'!$C25)+Inputs!$B$20+Inputs!$B$25+Inputs!$B$31+'Maintenance Costs'!$T$34*0.25) -> -18214.34247 | F25: =((Inputs!$I$10*'Sensitivity Analysis - Acreage'!F$9*'Sensitivity Analysis - Acreage'!$C25)+(Inputs!$B$16*'Sensitivity Analysis - Acreage'!$C25))-(((((Inputs!$I$13+Inputs!$K$13)*'Sensitivity Analysis - Acreage'!F$9)+Inputs!$B$30+Inputs!$D$32)*'Sensitivity Analysis - Acreage'!$C25)+Inputs!$B$20+Inputs!$B$25+Inputs!$B$31+'Maintenance Costs'!$T$34*0.5) -> -6047.218281 | G25: =((Inputs!$I$10*'Sensitivity Analysis - Acreage'!G$9*'Sensitivity Analysis - Acreage'!$C25)+(Inputs!$B$16*'Sensitivity Analysis - Acreage'!$C25))-(((((Inputs!$I$13+Inputs!$K$13)*'Sensitivity Analysis - Acreage'!G$9)+Inputs!$B$30+Inputs!$D$32)*'Sensitivity Analysis - Acreage'!$C25)+Inputs!$B$20+Inputs!$B$25+Inputs!$B$31+'Maintenance Costs'!$T$34*0.75) -> 6119.905911 | H25: =((Inputs!$I$10*'Sensitivity Analysis - Acreage'!H$9*'Sensitivity Analysis - Acreage'!$C25)+(Inputs!$B$16*'Sensitivity Analysis - Acreage'!$C25))-(((((Inputs!$I$13+Inputs!$K$13)*'Sensitivity Analysis - Acreage'!H$9)+Inputs!$B$30+Inputs!$D$32)*'Sensitivity Analysis - Acreage'!$C25)+Inputs!$B$20+Inputs!$B$25+Inputs!$B$31+'Maintenance Costs'!$T$34) -> 18287.0301 | I25: =((Inputs!$I$10*'Sensitivity Analysis - Acreage'!I$9*'Sensitivity Analysis - Acreage'!$C25)+(Inputs!$B$16*'Sensitivity Analysis - Acreage'!$C25))-(((((Inputs!$I$13+Inputs!$K$13)*'Sensitivity Analysis - Acreage'!I$9)+Inputs!$B$30+Inputs!$D$32)*'Sensitivity Analysis - Acreage'!$C25)+Inputs!$B$20+Inputs!$B$25+Inputs!$B$31+'Maintenance Costs'!$T$34*1.25) -> 30454.1543 | J25: =((Inputs!$I$10*'Sensitivity Analysis - Acreage'!J$9*'Sensitivity Analysis - Acreage'!$C25)+(Inputs!$B$16*'Sensitivity Analysis - Acreage'!$C25))-(((((Inputs!$I$13+Inputs!$K$13)*'Sensitivity Analysis - Acreage'!J$9)+Inputs!$B$30+Inputs!$D$32)*'Sensitivity Analysis - Acreage'!$C25)+Inputs!$B$20+Inputs!$B$25+Inputs!$B$31+'Maintenance Costs'!$T$34*1.5) -> 42621.27849 | K25: =((Inputs!$I$10*'Sensitivity Analysis - Acreage'!K$9*'Sensitivity Analysis - Acreage'!$C25)+(Inputs!$B$16*'Sensitivity Analysis - Acreage'!$C25))-(((((Inputs!$I$13+Inputs!$K$13)*'Sensitivity Analysis - Acreage'!K$9)+Inputs!$B$30+Inputs!$D$32)*'Sensitivity Analysis - Acreage'!$C25)+Inputs!$B$20+Inputs!$B$25+Inputs!$B$31+'Maintenance Costs'!$T$34*1.75) -> 54788.40268 | L25: =((Inputs!$I$10*'Sensitivity Analysis - Acreage'!L$9*'Sensitivity Analysis - Acreage'!$C25)+(Inputs!$B$16*'Sensitivity Analysis - Acreage'!$C25))-(((((Inputs!$I$13+Inputs!$K$13)*'Sensitivity Analysis - Acreage'!L$9)+Inputs!$B$30+Inputs!$D$32)*'Sensitivity Analysis - Acreage'!$C25)+Inputs!$B$20+Inputs!$B$25+Inputs!$B$31+'Maintenance Costs'!$T$34*2) -> 66955.52687 | M25: =((Inputs!$I$10*'Sensitivity Analysis - Acreage'!M$9*'Sensitivity Analysis - Acreage'!$C25)+(Inputs!$B$16*'Sensitivity Analysis - Acreage'!$C25))-(((((Inputs!$I$13+Inputs!$K$13)*'Sensitivity Analysis - Acreage'!M$9)+Inputs!$B$30+Inputs!$D$32)*'Sensitivity Analysis - Acreage'!$C25)+Inputs!$B$20+Inputs!$B$25+Inputs!$B$31+'Maintenance Costs'!$T$34*2.5) -> 91289.77526 | N25: =((Inputs!$I$10*'Sensitivity Analysis - Acreage'!N$9*'Sensitivity Analysis - Acreage'!$C25)+(Inputs!$B$16*'Sensitivity Analysis - Acreage'!$C25))-(((((Inputs!$I$13+Inputs!$K$13)*'Sensitivity Analysis - Acreage'!N$9)+Inputs!$B$30+Inputs!$D$32)*'Sensitivity Analysis - Acreage'!$C25)+Inputs!$B$20+Inputs!$B$25+Inputs!$B$31+'Maintenance Costs'!$T$34*5) -> 212961.0172 | O25: =((Inputs!$I$10*'Sensitivity Analysis - Acreage'!O$9*'Sensitivity Analysis - Acreage'!$C25)+(Inputs!$B$16*'Sensitivity Analysis - Acreage'!$C25))-(((((Inputs!$I$13+Inputs!$K$13)*'Sensitivity Analysis - Acreage'!O$9)+Inputs!$B$30+Inputs!$D$32)*'Sensitivity Analysis - Acreage'!$C25)+Inputs!$B$20+Inputs!$B$25+Inputs!$B$31+'Maintenance Costs'!$T$34*10) -> 456303.501
C26: 17 | D26: =((Inputs!$I$10*'Sensitivity Analysis - Acreage'!D$9*'Sensitivity Analysis - Acreage'!$C26)+(Inputs!$B$16*'Sensitivity Analysis - Acreage'!$C26))-(((((Inputs!$I$13+Inputs!$K$13)*'Sensitivity Analysis - Acreage'!D$9)+Inputs!$B$30+Inputs!$D$32)*'Sensitivity Analysis - Acreage'!$C26)+Inputs!$B$20+Inputs!$B$25+Inputs!$B$31+'Maintenance Costs'!$U$34*0.1) -> -25962.5453 | E26: =((Inputs!$I$10*'Sensitivity Analysis - Acreage'!E$9*'Sensitivity Analysis - Acreage'!$C26)+(Inputs!$B$16*'Sensitivity Analysis - Acreage'!$C26))-(((((Inputs!$I$13+Inputs!$K$13)*'Sensitivity Analysis - Acreage'!E$9)+Inputs!$B$30+Inputs!$D$32)*'Sensitivity Analysis - Acreage'!$C26)+Inputs!$B$20+Inputs!$B$25+Inputs!$B$31+'Maintenance Costs'!$U$34*0.25) -> -18343.46325 | F26: =((Inputs!$I$10*'Sensitivity Analysis - Acreage'!F$9*'Sensitivity Analysis - Acreage'!$C26)+(Inputs!$B$16*'Sensitivity Analysis - Acreage'!$C26))-(((((Inputs!$I$13+Inputs!$K$13)*'Sensitivity Analysis - Acreage'!F$9)+Inputs!$B$30+Inputs!$D$32)*'Sensitivity Analysis - Acreage'!$C26)+Inputs!$B$20+Inputs!$B$25+Inputs!$B$31+'Maintenance Costs'!$U$34*0.5) -> -5644.993174 | G26: =((Inputs!$I$10*'Sensitivity Analysis - Acreage'!G$9*'Sensitivity Analysis - Acreage'!$C26)+(Inputs!$B$16*'Sensitivity Analysis - Acreage'!$C26))-(((((Inputs!$I$13+Inputs!$K$13)*'Sensitivity Analysis - Acreage'!G$9)+Inputs!$B$30+Inputs!$D$32)*'Sensitivity Analysis - Acreage'!$C26)+Inputs!$B$20+Inputs!$B$25+Inputs!$B$31+'Maintenance Costs'!$U$34*0.75) -> 7053.476906 | H26: =((Inputs!$I$10*'Sensitivity Analysis - Acreage'!H$9*'Sensitivity Analysis - Acreage'!$C26)+(Inputs!$B$16*'Sensitivity Analysis - Acreage'!$C26))-(((((Inputs!$I$13+Inputs!$K$13)*'Sensitivity Analysis - Acreage'!H$9)+Inputs!$B$30+Inputs!$D$32)*'Sensitivity Analysis - Acreage'!$C26)+Inputs!$B$20+Inputs!$B$25+Inputs!$B$31+'Maintenance Costs'!$U$34) -> 19751.94699 | I26: =((Inputs!$I$10*'Sensitivity Analysis - Acreage'!I$9*'Sensitivity Analysis - Acreage'!$C26)+(Inputs!$B$16*'Sensitivity Analysis - Acreage'!$C26))-(((((Inputs!$I$13+Inputs!$K$13)*'Sensitivity Analysis - Acreage'!I$9)+Inputs!$B$30+Inputs!$D$32)*'Sensitivity Analysis - Acreage'!$C26)+Inputs!$B$20+Inputs!$B$25+Inputs!$B$31+'Maintenance Costs'!$U$34*1.25) -> 32450.41706 | J26: =((Inputs!$I$10*'Sensitivity Analysis - Acreage'!J$9*'Sensitivity Analysis - Acreage'!$C26)+(Inputs!$B$16*'Sensitivity Analysis - Acreage'!$C26))-(((((Inputs!$I$13+Inputs!$K$13)*'Sensitivity Analysis - Acreage'!J$9)+Inputs!$B$30+Inputs!$D$32)*'Sensitivity Analysis - Acreage'!$C26)+Inputs!$B$20+Inputs!$B$25+Inputs!$B$31+'Maintenance Costs'!$U$34*1.5) -> 45148.88714 | K26: =((Inputs!$I$10*'Sensitivity Analysis - Acreage'!K$9*'Sensitivity Analysis - Acreage'!$C26)+(Inputs!$B$16*'Sensitivity Analysis - Acreage'!$C26))-(((((Inputs!$I$13+Inputs!$K$13)*'Sensitivity Analysis - Acreage'!K$9)+Inputs!$B$30+Inputs!$D$32)*'Sensitivity Analysis - Acreage'!$C26)+Inputs!$B$20+Inputs!$B$25+Inputs!$B$31+'Maintenance Costs'!$U$34*1.75) -> 57847.35722 | L26: =((Inputs!$I$10*'Sensitivity Analysis - Acreage'!L$9*'Sensitivity Analysis - Acreage'!$C26)+(Inputs!$B$16*'Sensitivity Analysis - Acreage'!$C26))-(((((Inputs!$I$13+Inputs!$K$13)*'Sensitivity Analysis - Acreage'!L$9)+Inputs!$B$30+Inputs!$D$32)*'Sensitivity Analysis - Acreage'!$C26)+Inputs!$B$20+Inputs!$B$25+Inputs!$B$31+'Maintenance Costs'!$U$34*2) -> 70545.8273 | M26: =((Inputs!$I$10*'Sensitivity Analysis - Acreage'!M$9*'Sensitivity Analysis - Acreage'!$C26)+(Inputs!$B$16*'Sensitivity Analysis - Acreage'!$C26))-(((((Inputs!$I$13+Inputs!$K$13)*'Sensitivity Analysis - Acreage'!M$9)+Inputs!$B$30+Inputs!$D$32)*'Sensitivity Analysis - Acreage'!$C26)+Inputs!$B$20+Inputs!$B$25+Inputs!$B$31+'Maintenance Costs'!$U$34*2.5) -> 95942.76746 | N26: =((Inputs!$I$10*'Sensitivity Analysis - Acreage'!N$9*'Sensitivity Analysis - Acreage'!$C26)+(Inputs!$B$16*'Sensitivity Analysis - Acreage'!$C26))-(((((Inputs!$I$13+Inputs!$K$13)*'Sensitivity Analysis - Acreage'!N$9)+Inputs!$B$30+Inputs!$D$32)*'Sensitivity Analysis - Acreage'!$C26)+Inputs!$B$20+Inputs!$B$25+Inputs!$B$31+'Maintenance Costs'!$U$34*5) -> 222927.4683 | O26: =((Inputs!$I$10*'Sensitivity Analysis - Acreage'!O$9*'Sensitivity Analysis - Acreage'!$C26)+(Inputs!$B$16*'Sensitivity Analysis - Acreage'!$C26))-(((((Inputs!$I$13+Inputs!$K$13)*'Sensitivity Analysis - Acreage'!O$9)+Inputs!$B$30+Inputs!$D$32)*'Sensitivity Analysis - Acreage'!$C26)+Inputs!$B$20+Inputs!$B$25+Inputs!$B$31+'Maintenance Costs'!$U$34*10) -> 476896.8699
C27: 18 | D27: =((Inputs!$I$10*'Sensitivity Analysis - Acreage'!D$9*'Sensitivity Analysis - Acreage'!$C27)+(Inputs!$B$16*'Sensitivity Analysis - Acreage'!$C27))-(((((Inputs!$I$13+Inputs!$K$13)*'Sensitivity Analysis - Acreage'!D$9)+Inputs!$B$30+Inputs!$D$32)*'Sensitivity Analysis - Acreage'!$C27)+Inputs!$B$20+Inputs!$B$25+Inputs!$B$31+'Maintenance Costs'!$V$34*0.1) -> -26301.49661 | E27: =((Inputs!$I$10*'Sensitivity Analysis - Acreage'!E$9*'Sensitivity Analysis - Acreage'!$C27)+(Inputs!$B$16*'Sensitivity Analysis - Acreage'!$C27))-(((((Inputs!$I$13+Inputs!$K$13)*'Sensitivity Analysis - Acreage'!E$9)+Inputs!$B$30+Inputs!$D$32)*'Sensitivity Analysis - Acreage'!$C27)+Inputs!$B$20+Inputs!$B$25+Inputs!$B$31+'Maintenance Costs'!$V$34*0.25) -> -18200.14153 | F27: =((Inputs!$I$10*'Sensitivity Analysis - Acreage'!F$9*'Sensitivity Analysis - Acreage'!$C27)+(Inputs!$B$16*'Sensitivity Analysis - Acreage'!$C27))-(((((Inputs!$I$13+Inputs!$K$13)*'Sensitivity Analysis - Acreage'!F$9)+Inputs!$B$30+Inputs!$D$32)*'Sensitivity Analysis - Acreage'!$C27)+Inputs!$B$20+Inputs!$B$25+Inputs!$B$31+'Maintenance Costs'!$V$34*0.5) -> -4697.883067 | G27: =((Inputs!$I$10*'Sensitivity Analysis - Acreage'!G$9*'Sensitivity Analysis - Acreage'!$C27)+(Inputs!$B$16*'Sensitivity Analysis - Acreage'!$C27))-(((((Inputs!$I$13+Inputs!$K$13)*'Sensitivity Analysis - Acreage'!G$9)+Inputs!$B$30+Inputs!$D$32)*'Sensitivity Analysis - Acreage'!$C27)+Inputs!$B$20+Inputs!$B$25+Inputs!$B$31+'Maintenance Costs'!$V$34*0.75) -> 8804.3754 | H27: =((Inputs!$I$10*'Sensitivity Analysis - Acreage'!H$9*'Sensitivity Analysis - Acreage'!$C27)+(Inputs!$B$16*'Sensitivity Analysis - Acreage'!$C27))-(((((Inputs!$I$13+Inputs!$K$13)*'Sensitivity Analysis - Acreage'!H$9)+Inputs!$B$30+Inputs!$D$32)*'Sensitivity Analysis - Acreage'!$C27)+Inputs!$B$20+Inputs!$B$25+Inputs!$B$31+'Maintenance Costs'!$V$34) -> 22306.63387 | I27: =((Inputs!$I$10*'Sensitivity Analysis - Acreage'!I$9*'Sensitivity Analysis - Acreage'!$C27)+(Inputs!$B$16*'Sensitivity Analysis - Acreage'!$C27))-(((((Inputs!$I$13+Inputs!$K$13)*'Sensitivity Analysis - Acreage'!I$9)+Inputs!$B$30+Inputs!$D$32)*'Sensitivity Analysis - Acreage'!$C27)+Inputs!$B$20+Inputs!$B$25+Inputs!$B$31+'Maintenance Costs'!$V$34*1.25) -> 35808.89233 | J27: =((Inputs!$I$10*'Sensitivity Analysis - Acreage'!J$9*'Sensitivity Analysis - Acreage'!$C27)+(Inputs!$B$16*'Sensitivity Analysis - Acreage'!$C27))-(((((Inputs!$I$13+Inputs!$K$13)*'Sensitivity Analysis - Acreage'!J$9)+Inputs!$B$30+Inputs!$D$32)*'Sensitivity Analysis - Acreage'!$C27)+Inputs!$B$20+Inputs!$B$25+Inputs!$B$31+'Maintenance Costs'!$V$34*1.5) -> 49311.1508 | K27: =((Inputs!$I$10*'Sensitivity Analysis - Acreage'!K$9*'Sensitivity Analysis - Acreage'!$C27)+(Inputs!$B$16*'Sensitivity Analysis - Acreage'!$C27))-(((((Inputs!$I$13+Inputs!$K$13)*'Sensitivity Analysis - Acreage'!K$9)+Inputs!$B$30+Inputs!$D$32)*'Sensitivity Analysis - Acreage'!$C27)+Inputs!$B$20+Inputs!$B$25+Inputs!$B$31+'Maintenance Costs'!$V$34*1.75) -> 62813.40927 | L27: =((Inputs!$I$10*'Sensitivity Analysis - Acreage'!L$9*'Sensitivity Analysis - Acreage'!$C27)+(Inputs!$B$16*'Sensitivity Analysis - Acreage'!$C27))-(((((Inputs!$I$13+Inputs!$K$13)*'Sensitivity Analysis - Acreage'!L$9)+Inputs!$B$30+Inputs!$D$32)*'Sensitivity Analysis - Acreage'!$C27)+Inputs!$B$20+Inputs!$B$25+Inputs!$B$31+'Maintenance Costs'!$V$34*2) -> 76315.66773 | M27: =((Inputs!$I$10*'Sensitivity Analysis - Acreage'!M$9*'Sensitivity Analysis - Acreage'!$C27)+(Inputs!$B$16*'Sensitivity Analysis - Acreage'!$C27))-(((((Inputs!$I$13+Inputs!$K$13)*'Sensitivity Analysis - Acreage'!M$9)+Inputs!$B$30+Inputs!$D$32)*'Sensitivity Analysis - Acreage'!$C27)+Inputs!$B$20+Inputs!$B$25+Inputs!$B$31+'Maintenance Costs'!$V$34*2.5) -> 103320.1847 | N27: =((Inputs!$I$10*'Sensitivity Analysis - Acreage'!N$9*'Sensitivity Analysis - Acreage'!$C27)+(Inputs!$B$16*'Sensitivity Analysis - Acreage'!$C27))-(((((Inputs!$I$13+Inputs!$K$13)*'Sensitivity Analysis - Acreage'!N$9)+Inputs!$B$30+Inputs!$D$32)*'Sensitivity Analysis - Acreage'!$C27)+Inputs!$B$20+Inputs!$B$25+Inputs!$B$31+'Maintenance Costs'!$V$34*5) -> 238342.7693 | O27: =((Inputs!$I$10*'Sensitivity Analysis - Acreage'!O$9*'Sensitivity Analysis - Acreage'!$C27)+(Inputs!$B$16*'Sensitivity Analysis - Acreage'!$C27))-(((((Inputs!$I$13+Inputs!$K$13)*'Sensitivity Analysis - Acreage'!O$9)+Inputs!$B$30+Inputs!$D$32)*'Sensitivity Analysis - Acreage'!$C27)+Inputs!$B$20+Inputs!$B$25+Inputs!$B$31+'Maintenance Costs'!$V$34*10) -> 508387.9387
C28: 19 | D28: =((Inputs!$I$10*'Sensitivity Analysis - Acreage'!D$9*'Sensitivity Analysis - Acreage'!$C28)+(Inputs!$B$16*'Sensitivity Analysis - Acreage'!$C28))-(((((Inputs!$I$13+Inputs!$K$13)*'Sensitivity Analysis - Acreage'!D$9)+Inputs!$B$30+Inputs!$D$32)*'Sensitivity Analysis - Acreage'!$C28)+Inputs!$B$20+Inputs!$B$25+Inputs!$B$31+'Maintenance Costs'!$W$34*0.1) -> -26640.44793 | E28: =((Inputs!$I$10*'Sensitivity Analysis - Acreage'!E$9*'Sensitivity Analysis - Acreage'!$C28)+(Inputs!$B$16*'Sensitivity Analysis - Acreage'!$C28))-(((((Inputs!$I$13+Inputs!$K$13)*'Sensitivity Analysis - Acreage'!E$9)+Inputs!$B$30+Inputs!$D$32)*'Sensitivity Analysis - Acreage'!$C28)+Inputs!$B$20+Inputs!$B$25+Inputs!$B$31+'Maintenance Costs'!$W$34*0.25) -> -18056.81981 | F28: =((Inputs!$I$10*'Sensitivity Analysis - Acreage'!F$9*'Sensitivity Analysis - Acreage'!$C28)+(Inputs!$B$16*'Sensitivity Analysis - Acreage'!$C28))-(((((Inputs!$I$13+Inputs!$K$13)*'Sensitivity Analysis - Acreage'!F$9)+Inputs!$B$30+Inputs!$D$32)*'Sensitivity Analysis - Acreage'!$C28)+Inputs!$B$20+Inputs!$B$25+Inputs!$B$31+'Maintenance Costs'!$W$34*0.5) -> -3750.772959 | G28: =((Inputs!$I$10*'Sensitivity Analysis - Acreage'!G$9*'Sensitivity Analysis - Acreage'!$C28)+(Inputs!$B$16*'Sensitivity Analysis - Acreage'!$C28))-(((((Inputs!$I$13+Inputs!$K$13)*'Sensitivity Analysis - Acreage'!G$9)+Inputs!$B$30+Inputs!$D$32)*'Sensitivity Analysis - Acreage'!$C28)+Inputs!$B$20+Inputs!$B$25+Inputs!$B$31+'Maintenance Costs'!$W$34*0.75) -> 10555.27389 | H28: =((Inputs!$I$10*'Sensitivity Analysis - Acreage'!H$9*'Sensitivity Analysis - Acreage'!$C28)+(Inputs!$B$16*'Sensitivity Analysis - Acreage'!$C28))-(((((Inputs!$I$13+Inputs!$K$13)*'Sensitivity Analysis - Acreage'!H$9)+Inputs!$B$30+Inputs!$D$32)*'Sensitivity Analysis - Acreage'!$C28)+Inputs!$B$20+Inputs!$B$25+Inputs!$B$31+'Maintenance Costs'!$W$34) -> 24861.32075 | I28: =((Inputs!$I$10*'Sensitivity Analysis - Acreage'!I$9*'Sensitivity Analysis - Acreage'!$C28)+(Inputs!$B$16*'Sensitivity Analysis - Acreage'!$C28))-(((((Inputs!$I$13+Inputs!$K$13)*'Sensitivity Analysis - Acreage'!I$9)+Inputs!$B$30+Inputs!$D$32)*'Sensitivity Analysis - Acreage'!$C28)+Inputs!$B$20+Inputs!$B$25+Inputs!$B$31+'Maintenance Costs'!$W$34*1.25) -> 39167.3676 | J28: =((Inputs!$I$10*'Sensitivity Analysis - Acreage'!J$9*'Sensitivity Analysis - Acreage'!$C28)+(Inputs!$B$16*'Sensitivity Analysis - Acreage'!$C28))-(((((Inputs!$I$13+Inputs!$K$13)*'Sensitivity Analysis - Acreage'!J$9)+Inputs!$B$30+Inputs!$D$32)*'Sensitivity Analysis - Acreage'!$C28)+Inputs!$B$20+Inputs!$B$25+Inputs!$B$31+'Maintenance Costs'!$W$34*1.5) -> 53473.41446 | K28: =((Inputs!$I$10*'Sensitivity Analysis - Acreage'!K$9*'Sensitivity Analysis - Acreage'!$C28)+(Inputs!$B$16*'Sensitivity Analysis - Acreage'!$C28))-(((((Inputs!$I$13+Inputs!$K$13)*'Sensitivity Analysis - Acreage'!K$9)+Inputs!$B$30+Inputs!$D$32)*'Sensitivity Analysis - Acreage'!$C28)+Inputs!$B$20+Inputs!$B$25+Inputs!$B$31+'Maintenance Costs'!$W$34*1.75) -> 67779.46131 | L28: =((Inputs!$I$10*'Sensitivity Analysis - Acreage'!L$9*'Sensitivity Analysis - Acreage'!$C28)+(Inputs!$B$16*'Sensitivity Analysis - Acreage'!$C28))-(((((Inputs!$I$13+Inputs!$K$13)*'Sensitivity Analysis - Acreage'!L$9)+Inputs!$B$30+Inputs!$D$32)*'Sensitivity Analysis - Acreage'!$C28)+Inputs!$B$20+Inputs!$B$25+Inputs!$B$31+'Maintenance Costs'!$W$34*2) -> 82085.50816 | M28: =((Inputs!$I$10*'Sensitivity Analysis - Acreage'!M$9*'Sensitivity Analysis - Acreage'!$C28)+(Inputs!$B$16*'Sensitivity Analysis - Acreage'!$C28))-(((((Inputs!$I$13+Inputs!$K$13)*'Sensitivity Analysis - Acreage'!M$9)+Inputs!$B$30+Inputs!$D$32)*'Sensitivity Analysis - Acreage'!$C28)+Inputs!$B$20+Inputs!$B$25+Inputs!$B$31+'Maintenance Costs'!$W$34*2.5) -> 110697.6019 | N28: =((Inputs!$I$10*'Sensitivity Analysis - Acreage'!N$9*'Sensitivity Analysis - Acreage'!$C28)+(Inputs!$B$16*'Sensitivity Analysis - Acreage'!$C28))-(((((Inputs!$I$13+Inputs!$K$13)*'Sensitivity Analysis - Acreage'!N$9)+Inputs!$B$30+Inputs!$D$32)*'Sensitivity Analysis - Acreage'!$C28)+Inputs!$B$20+Inputs!$B$25+Inputs!$B$31+'Maintenance Costs'!$W$34*5) -> 253758.0704 | O28: =((Inputs!$I$10*'Sensitivity Analysis - Acreage'!O$9*'Sensitivity Analysis - Acreage'!$C28)+(Inputs!$B$16*'Sensitivity Analysis - Acreage'!$C28))-(((((Inputs!$I$13+Inputs!$K$13)*'Sensitivity Analysis - Acreage'!O$9)+Inputs!$B$30+Inputs!$D$32)*'Sensitivity Analysis - Acreage'!$C28)+Inputs!$B$20+Inputs!$B$25+Inputs!$B$31+'Maintenance Costs'!$W$34*10) -> 539879.0075
C29: =C28+1 -> 20 | D29: =((Inputs!$I$10*'Sensitivity Analysis - Acreage'!D$9*'Sensitivity Analysis - Acreage'!$C29)+(Inputs!$B$16*'Sensitivity Analysis - Acreage'!$C29))-(((((Inputs!$I$13+Inputs!$K$13)*'Sensitivity Analysis - Acreage'!D$9)+Inputs!$B$30+Inputs!$D$32)*'Sensitivity Analysis - Acreage'!$C29)+Inputs!$B$20+Inputs!$B$25+Inputs!$B$31+'Maintenance Costs'!$X$34*0.1) -> -27098.28324 | E29: =((Inputs!$I$10*'Sensitivity Analysis - Acreage'!E$9*'Sensitivity Analysis - Acreage'!$C29)+(Inputs!$B$16*'Sensitivity Analysis - Acreage'!$C29))-(((((Inputs!$I$13+Inputs!$K$13)*'Sensitivity Analysis - Acreage'!E$9)+Inputs!$B$30+Inputs!$D$32)*'Sensitivity Analysis - Acreage'!$C29)+Inputs!$B$20+Inputs!$B$25+Inputs!$B$31+'Maintenance Costs'!$X$34*0.25) -> -18210.70809 | F29: =((Inputs!$I$10*'Sensitivity Analysis - Acreage'!F$9*'Sensitivity Analysis - Acreage'!$C29)+(Inputs!$B$16*'Sensitivity Analysis - Acreage'!$C29))-(((((Inputs!$I$13+Inputs!$K$13)*'Sensitivity Analysis - Acreage'!F$9)+Inputs!$B$30+Inputs!$D$32)*'Sensitivity Analysis - Acreage'!$C29)+Inputs!$B$20+Inputs!$B$25+Inputs!$B$31+'Maintenance Costs'!$X$34*0.5) -> -3398.082852 | G29: =((Inputs!$I$10*'Sensitivity Analysis - Acreage'!G$9*'Sensitivity Analysis - Acreage'!$C29)+(Inputs!$B$16*'Sensitivity Analysis - Acreage'!$C29))-(((((Inputs!$I$13+Inputs!$K$13)*'Sensitivity Analysis - Acreage'!G$9)+Inputs!$B$30+Inputs!$D$32)*'Sensitivity Analysis - Acreage'!$C29)+Inputs!$B$20+Inputs!$B$25+Inputs!$B$31+'Maintenance Costs'!$X$34*0.75) -> 11414.54239 | H29: =((Inputs!$I$10*'Sensitivity Analysis - Acreage'!H$9*'Sensitivity Analysis - Acreage'!$C29)+(Inputs!$B$16*'Sensitivity Analysis - Acreage'!$C29))-(((((Inputs!$I$13+Inputs!$K$13)*'Sensitivity Analysis - Acreage'!H$9)+Inputs!$B$30+Inputs!$D$32)*'Sensitivity Analysis - Acreage'!$C29)+Inputs!$B$20+Inputs!$B$25+Inputs!$B$31+'Maintenance Costs'!$X$34) -> 26227.16763 | I29: =((Inputs!$I$10*'Sensitivity Analysis - Acreage'!I$9*'Sensitivity Analysis - Acreage'!$C29)+(Inputs!$B$16*'Sensitivity Analysis - Acreage'!$C29))-(((((Inputs!$I$13+Inputs!$K$13)*'Sensitivity Analysis - Acreage'!I$9)+Inputs!$B$30+Inputs!$D$32)*'Sensitivity Analysis - Acreage'!$C29)+Inputs!$B$20+Inputs!$B$25+Inputs!$B$31+'Maintenance Costs'!$X$34*1.25) -> 41039.79287 | J29: =((Inputs!$I$10*'Sensitivity Analysis - Acreage'!J$9*'Sensitivity Analysis - Acreage'!$C29)+(Inputs!$B$16*'Sensitivity Analysis - Acreage'!$C29))-(((((Inputs!$I$13+Inputs!$K$13)*'Sensitivity Analysis - Acreage'!J$9)+Inputs!$B$30+Inputs!$D$32)*'Sensitivity Analysis - Acreage'!$C29)+Inputs!$B$20+Inputs!$B$25+Inputs!$B$31+'Maintenance Costs'!$X$34*1.5) -> 55852.41811 | K29: =((Inputs!$I$10*'Sensitivity Analysis - Acreage'!K$9*'Sensitivity Analysis - Acreage'!$C29)+(Inputs!$B$16*'Sensitivity Analysis - Acreage'!$C29))-(((((Inputs!$I$13+Inputs!$K$13)*'Sensitivity Analysis - Acreage'!K$9)+Inputs!$B$30+Inputs!$D$32)*'Sensitivity Analysis - Acreage'!$C29)+Inputs!$B$20+Inputs!$B$25+Inputs!$B$31+'Maintenance Costs'!$X$34*1.75) -> 70665.04335 | L29: =((Inputs!$I$10*'Sensitivity Analysis - Acreage'!L$9*'Sensitivity Analysis - Acreage'!$C29)+(Inputs!$B$16*'Sensitivity Analysis - Acreage'!$C29))-(((((Inputs!$I$13+Inputs!$K$13)*'Sensitivity Analysis - Acreage'!L$9)+Inputs!$B$30+Inputs!$D$32)*'Sensitivity Analysis - Acreage'!$C29)+Inputs!$B$20+Inputs!$B$25+Inputs!$B$31+'Maintenance Costs'!$X$34*2) -> 85477.66859 | M29: =((Inputs!$I$10*'Sensitivity Analysis - Acreage'!M$9*'Sensitivity Analysis - Acreage'!$C29)+(Inputs!$B$16*'Sensitivity Analysis - Acreage'!$C29))-(((((Inputs!$I$13+Inputs!$K$13)*'Sensitivity Analysis - Acreage'!M$9)+Inputs!$B$30+Inputs!$D$32)*'Sensitivity Analysis - Acreage'!$C29)+Inputs!$B$20+Inputs!$B$25+Inputs!$B$31+'Maintenance Costs'!$X$34*2.5) -> 115102.9191 | N29: =((Inputs!$I$10*'Sensitivity Analysis - Acreage'!N$9*'Sensitivity Analysis - Acreage'!$C29)+(Inputs!$B$16*'Sensitivity Analysis - Acreage'!$C29))-(((((Inputs!$I$13+Inputs!$K$13)*'Sensitivity Analysis - Acreage'!N$9)+Inputs!$B$30+Inputs!$D$32)*'Sensitivity Analysis - Acreage'!$C29)+Inputs!$B$20+Inputs!$B$25+Inputs!$B$31+'Maintenance Costs'!$X$34*5) -> 263229.1715 | O29: =((Inputs!$I$10*'Sensitivity Analysis - Acreage'!O$9*'Sensitivity Analysis - Acreage'!$C29)+(Inputs!$B$16*'Sensitivity Analysis - Acreage'!$C29))-(((((Inputs!$I$13+Inputs!$K$13)*'Sensitivity Analysis - Acreage'!O$9)+Inputs!$B$30+Inputs!$D$32)*'Sensitivity Analysis - Acreage'!$C29)+Inputs!$B$20+Inputs!$B$25+Inputs!$B$31+'Maintenance Costs'!$X$34*10) -> 559481.6763
C30: 21 | D30: =((Inputs!$I$10*'Sensitivity Analysis - Acreage'!D$9*'Sensitivity Analysis - Acreage'!$C30)+(Inputs!$B$16*'Sensitivity Analysis - Acreage'!$C30))-(((((Inputs!$I$13+Inputs!$K$13)*'Sensitivity Analysis - Acreage'!D$9)+Inputs!$B$30+Inputs!$D$32)*'Sensitivity Analysis - Acreage'!$C30)+Inputs!$B$20+Inputs!$B$25+Inputs!$B$31+'Maintenance Costs'!$Y$34*0.1) -> -27437.23455 | E30: =((Inputs!$I$10*'Sensitivity Analysis - Acreage'!E$9*'Sensitivity Analysis - Acreage'!$C30)+(Inputs!$B$16*'Sensitivity Analysis - Acreage'!$C30))-(((((Inputs!$I$13+Inputs!$K$13)*'Sensitivity Analysis - Acreage'!E$9)+Inputs!$B$30+Inputs!$D$32)*'Sensitivity Analysis - Acreage'!$C30)+Inputs!$B$20+Inputs!$B$25+Inputs!$B$31+'Maintenance Costs'!$Y$34*0.25) -> -18067.38637 | F30: =((Inputs!$I$10*'Sensitivity Analysis - Acreage'!F$9*'Sensitivity Analysis - Acreage'!$C30)+(Inputs!$B$16*'Sensitivity Analysis - Acreage'!$C30))-(((((Inputs!$I$13+Inputs!$K$13)*'Sensitivity Analysis - Acreage'!F$9)+Inputs!$B$30+Inputs!$D$32)*'Sensitivity Analysis - Acreage'!$C30)+Inputs!$B$20+Inputs!$B$25+Inputs!$B$31+'Maintenance Costs'!$Y$34*0.5) -> -2450.972744 | G30: =((Inputs!$I$10*'Sensitivity Analysis - Acreage'!G$9*'Sensitivity Analysis - Acreage'!$C30)+(Inputs!$B$16*'Sensitivity Analysis - Acreage'!$C30))-(((((Inputs!$I$13+Inputs!$K$13)*'Sensitivity Analysis - Acreage'!G$9)+Inputs!$B$30+Inputs!$D$32)*'Sensitivity Analysis - Acreage'!$C30)+Inputs!$B$20+Inputs!$B$25+Inputs!$B$31+'Maintenance Costs'!$Y$34*0.75) -> 13165.44088 | H30: =((Inputs!$I$10*'Sensitivity Analysis - Acreage'!H$9*'Sensitivity Analysis - Acreage'!$C30)+(Inputs!$B$16*'Sensitivity Analysis - Acreage'!$C30))-(((((Inputs!$I$13+Inputs!$K$13)*'Sensitivity Analysis - Acreage'!H$9)+Inputs!$B$30+Inputs!$D$32)*'Sensitivity Analysis - Acreage'!$C30)+Inputs!$B$20+Inputs!$B$25+Inputs!$B$31+'Maintenance Costs'!$Y$34) -> 28781.85451 | I30: =((Inputs!$I$10*'Sensitivity Analysis - Acreage'!I$9*'Sensitivity Analysis - Acreage'!$C30)+(Inputs!$B$16*'Sensitivity Analysis - Acreage'!$C30))-(((((Inputs!$I$13+Inputs!$K$13)*'Sensitivity Analysis - Acreage'!I$9)+Inputs!$B$30+Inputs!$D$32)*'Sensitivity Analysis - Acreage'!$C30)+Inputs!$B$20+Inputs!$B$25+Inputs!$B$31+'Maintenance Costs'!$Y$34*1.25) -> 44398.26814 | J30: =((Inputs!$I$10*'Sensitivity Analysis - Acreage'!J$9*'Sensitivity Analysis - Acreage'!$C30)+(Inputs!$B$16*'Sensitivity Analysis - Acreage'!$C30))-(((((Inputs!$I$13+Inputs!$K$13)*'Sensitivity Analysis - Acreage'!J$9)+Inputs!$B$30+Inputs!$D$32)*'Sensitivity Analysis - Acreage'!$C30)+Inputs!$B$20+Inputs!$B$25+Inputs!$B$31+'Maintenance Costs'!$Y$34*1.5) -> 60014.68177 | K30: =((Inputs!$I$10*'Sensitivity Analysis - Acreage'!K$9*'Sensitivity Analysis - Acreage'!$C30)+(Inputs!$B$16*'Sensitivity Analysis - Acreage'!$C30))-(((((Inputs!$I$13+Inputs!$K$13)*'Sensitivity Analysis - Acreage'!K$9)+Inputs!$B$30+Inputs!$D$32)*'Sensitivity Analysis - Acreage'!$C30)+Inputs!$B$20+Inputs!$B$25+Inputs!$B$31+'Maintenance Costs'!$Y$34*1.75) -> 75631.09539 | L30: =((Inputs!$I$10*'Sensitivity Analysis - Acreage'!L$9*'Sensitivity Analysis - Acreage'!$C30)+(Inputs!$B$16*'Sensitivity Analysis - Acreage'!$C30))-(((((Inputs!$I$13+Inputs!$K$13)*'Sensitivity Analysis - Acreage'!L$9)+Inputs!$B$30+Inputs!$D$32)*'Sensitivity Analysis - Acreage'!$C30)+Inputs!$B$20+Inputs!$B$25+Inputs!$B$31+'Maintenance Costs'!$Y$34*2) -> 91247.50902 | M30: =((Inputs!$I$10*'Sensitivity Analysis - Acreage'!M$9*'Sensitivity Analysis - Acreage'!$C30)+(Inputs!$B$16*'Sensitivity Analysis - Acreage'!$C30))-(((((Inputs!$I$13+Inputs!$K$13)*'Sensitivity Analysis - Acreage'!M$9)+Inputs!$B$30+Inputs!$D$32)*'Sensitivity Analysis - Acreage'!$C30)+Inputs!$B$20+Inputs!$B$25+Inputs!$B$31+'Maintenance Costs'!$Y$34*2.5) -> 122480.3363 | N30: =((Inputs!$I$10*'Sensitivity Analysis - Acreage'!N$9*'Sensitivity Analysis - Acreage'!$C30)+(Inputs!$B$16*'Sensitivity Analysis - Acreage'!$C30))-(((((Inputs!$I$13+Inputs!$K$13)*'Sensitivity Analysis - Acreage'!N$9)+Inputs!$B$30+Inputs!$D$32)*'Sensitivity Analysis - Acreage'!$C30)+Inputs!$B$20+Inputs!$B$25+Inputs!$B$31+'Maintenance Costs'!$Y$34*5) -> 278644.4726 | O30: =((Inputs!$I$10*'Sensitivity Analysis - Acreage'!O$9*'Sensitivity Analysis - Acreage'!$C30)+(Inputs!$B$16*'Sensitivity Analysis - Acreage'!$C30))-(((((Inputs!$I$13+Inputs!$K$13)*'Sensitivity Analysis - Acreage'!O$9)+Inputs!$B$30+Inputs!$D$32)*'Sensitivity Analysis - Acreage'!$C30)+Inputs!$B$20+Inputs!$B$25+Inputs!$B$31+'Maintenance Costs'!$Y$34*10) -> 590972.7451
C31: 22 | D31: =((Inputs!$I$10*'Sensitivity Analysis - Acreage'!D$9*'Sensitivity Analysis - Acreage'!$C31)+(Inputs!$B$16*'Sensitivity Analysis - Acreage'!$C31))-(((((Inputs!$I$13+Inputs!$K$13)*'Sensitivity Analysis - Acreage'!D$9)+Inputs!$B$30+Inputs!$D$32)*'Sensitivity Analysis - Acreage'!$C31)+Inputs!$B$20+Inputs!$B$25+Inputs!$B$31+'Maintenance Costs'!$Z$34*0.1) -> -27776.18586 | E31: =((Inputs!$I$10*'Sensitivity Analysis - Acreage'!E$9*'Sensitivity Analysis - Acreage'!$C31)+(Inputs!$B$16*'Sensitivity Analysis - Acreage'!$C31))-(((((Inputs!$I$13+Inputs!$K$13)*'Sensitivity Analysis - Acreage'!E$9)+Inputs!$B$30+Inputs!$D$32)*'Sensitivity Analysis - Acreage'!$C31)+Inputs!$B$20+Inputs!$B$25+Inputs!$B$31+'Maintenance Costs'!$Z$34*0.25) -> -17924.06465 | F31: =((Inputs!$I$10*'Sensitivity Analysis - Acreage'!F$9*'Sensitivity Analysis - Acreage'!$C31)+(Inputs!$B$16*'Sensitivity Analysis - Acreage'!$C31))-(((((Inputs!$I$13+Inputs!$K$13)*'Sensitivity Analysis - Acreage'!F$9)+Inputs!$B$30+Inputs!$D$32)*'Sensitivity Analysis - Acreage'!$C31)+Inputs!$B$20+Inputs!$B$25+Inputs!$B$31+'Maintenance Costs'!$Z$34*0.5) -> -1503.862637 | G31: =((Inputs!$I$10*'Sensitivity Analysis - Acreage'!G$9*'Sensitivity Analysis - Acreage'!$C31)+(Inputs!$B$16*'Sensitivity Analysis - Acreage'!$C31))-(((((Inputs!$I$13+Inputs!$K$13)*'Sensitivity Analysis - Acreage'!G$9)+Inputs!$B$30+Inputs!$D$32)*'Sensitivity Analysis - Acreage'!$C31)+Inputs!$B$20+Inputs!$B$25+Inputs!$B$31+'Maintenance Costs'!$Z$34*0.75) -> 14916.33938 | H31: =((Inputs!$I$10*'Sensitivity Analysis - Acreage'!H$9*'Sensitivity Analysis - Acreage'!$C31)+(Inputs!$B$16*'Sensitivity Analysis - Acreage'!$C31))-(((((Inputs!$I$13+Inputs!$K$13)*'Sensitivity Analysis - Acreage'!H$9)+Inputs!$B$30+Inputs!$D$32)*'Sensitivity Analysis - Acreage'!$C31)+Inputs!$B$20+Inputs!$B$25+Inputs!$B$31+'Maintenance Costs'!$Z$34) -> 31336.54139 | I31: =((Inputs!$I$10*'Sensitivity Analysis - Acreage'!I$9*'Sensitivity Analysis - Acreage'!$C31)+(Inputs!$B$16*'Sensitivity Analysis - Acreage'!$C31))-(((((Inputs!$I$13+Inputs!$K$13)*'Sensitivity Analysis - Acreage'!I$9)+Inputs!$B$30+Inputs!$D$32)*'Sensitivity Analysis - Acreage'!$C31)+Inputs!$B$20+Inputs!$B$25+Inputs!$B$31+'Maintenance Costs'!$Z$34*1.25) -> 47756.74341 | J31: =((Inputs!$I$10*'Sensitivity Analysis - Acreage'!J$9*'Sensitivity Analysis - Acreage'!$C31)+(Inputs!$B$16*'Sensitivity Analysis - Acreage'!$C31))-(((((Inputs!$I$13+Inputs!$K$13)*'Sensitivity Analysis - Acreage'!J$9)+Inputs!$B$30+Inputs!$D$32)*'Sensitivity Analysis - Acreage'!$C31)+Inputs!$B$20+Inputs!$B$25+Inputs!$B$31+'Maintenance Costs'!$Z$34*1.5) -> 64176.94542 | K31: =((Inputs!$I$10*'Sensitivity Analysis - Acreage'!K$9*'Sensitivity Analysis - Acreage'!$C31)+(Inputs!$B$16*'Sensitivity Analysis - Acreage'!$C31))-(((((Inputs!$I$13+Inputs!$K$13)*'Sensitivity Analysis - Acreage'!K$9)+Inputs!$B$30+Inputs!$D$32)*'Sensitivity Analysis - Acreage'!$C31)+Inputs!$B$20+Inputs!$B$25+Inputs!$B$31+'Maintenance Costs'!$Z$34*1.75) -> 80597.14744 | L31: =((Inputs!$I$10*'Sensitivity Analysis - Acreage'!L$9*'Sensitivity Analysis - Acreage'!$C31)+(Inputs!$B$16*'Sensitivity Analysis - Acreage'!$C31))-(((((Inputs!$I$13+Inputs!$K$13)*'Sensitivity Analysis - Acreage'!L$9)+Inputs!$B$30+Inputs!$D$32)*'Sensitivity Analysis - Acreage'!$C31)+Inputs!$B$20+Inputs!$B$25+Inputs!$B$31+'Maintenance Costs'!$Z$34*2) -> 97017.34945 | M31: =((Inputs!$I$10*'Sensitivity Analysis - Acreage'!M$9*'Sensitivity Analysis - Acreage'!$C31)+(Inputs!$B$16*'Sensitivity Analysis - Acreage'!$C31))-(((((Inputs!$I$13+Inputs!$K$13)*'Sensitivity Analysis - Acreage'!M$9)+Inputs!$B$30+Inputs!$D$32)*'Sensitivity Analysis - Acreage'!$C31)+Inputs!$B$20+Inputs!$B$25+Inputs!$B$31+'Maintenance Costs'!$Z$34*2.5) -> 129857.7535 | N31: =((Inputs!$I$10*'Sensitivity Analysis - Acreage'!N$9*'Sensitivity Analysis - Acreage'!$C31)+(Inputs!$B$16*'Sensitivity Analysis - Acreage'!$C31))-(((((Inputs!$I$13+Inputs!$K$13)*'Sensitivity Analysis - Acreage'!N$9)+Inputs!$B$30+Inputs!$D$32)*'Sensitivity Analysis - Acreage'!$C31)+Inputs!$B$20+Inputs!$B$25+Inputs!$B$31+'Maintenance Costs'!$Z$34*5) -> 294059.7736 | O31: =((Inputs!$I$10*'Sensitivity Analysis - Acreage'!O$9*'Sensitivity Analysis - Acreage'!$C31)+(Inputs!$B$16*'Sensitivity Analysis - Acreage'!$C31))-(((((Inputs!$I$13+Inputs!$K$13)*'Sensitivity Analysis - Acreage'!O$9)+Inputs!$B$30+Inputs!$D$32)*'Sensitivity Analysis - Acreage'!$C31)+Inputs!$B$20+Inputs!$B$25+Inputs!$B$31+'Maintenance Costs'!$Z$34*10) -> 622463.8139
C32: 23 | D32: =((Inputs!$I$10*'Sensitivity Analysis - Acreage'!D$9*'Sensitivity Analysis - Acreage'!$C32)+(Inputs!$B$16*'Sensitivity Analysis - Acreage'!$C32))-(((((Inputs!$I$13+Inputs!$K$13)*'Sensitivity Analysis - Acreage'!D$9)+Inputs!$B$30+Inputs!$D$32)*'Sensitivity Analysis - Acreage'!$C32)+Inputs!$B$20+Inputs!$B$25+Inputs!$B$31+'Maintenance Costs'!$AA$34*0.1) -> -28214.20717 | E32: =((Inputs!$I$10*'Sensitivity Analysis - Acreage'!E$9*'Sensitivity Analysis - Acreage'!$C32)+(Inputs!$B$16*'Sensitivity Analysis - Acreage'!$C32))-(((((Inputs!$I$13+Inputs!$K$13)*'Sensitivity Analysis - Acreage'!E$9)+Inputs!$B$30+Inputs!$D$32)*'Sensitivity Analysis - Acreage'!$C32)+Inputs!$B$20+Inputs!$B$25+Inputs!$B$31+'Maintenance Costs'!$AA$34*0.25) -> -18028.41793 | F32: =((Inputs!$I$10*'Sensitivity Analysis - Acreage'!F$9*'Sensitivity Analysis - Acreage'!$C32)+(Inputs!$B$16*'Sensitivity Analysis - Acreage'!$C32))-(((((Inputs!$I$13+Inputs!$K$13)*'Sensitivity Analysis - Acreage'!F$9)+Inputs!$B$30+Inputs!$D$32)*'Sensitivity Analysis - Acreage'!$C32)+Inputs!$B$20+Inputs!$B$25+Inputs!$B$31+'Maintenance Costs'!$AA$34*0.5) -> -1052.10253 | G32: =((Inputs!$I$10*'Sensitivity Analysis - Acreage'!G$9*'Sensitivity Analysis - Acreage'!$C32)+(Inputs!$B$16*'Sensitivity Analysis - Acreage'!$C32))-(((((Inputs!$I$13+Inputs!$K$13)*'Sensitivity Analysis - Acreage'!G$9)+Inputs!$B$30+Inputs!$D$32)*'Sensitivity Analysis - Acreage'!$C32)+Inputs!$B$20+Inputs!$B$25+Inputs!$B$31+'Maintenance Costs'!$AA$34*0.75) -> 15924.21287 | H32: =((Inputs!$I$10*'Sensitivity Analysis - Acreage'!H$9*'Sensitivity Analysis - Acreage'!$C32)+(Inputs!$B$16*'Sensitivity Analysis - Acreage'!$C32))-(((((Inputs!$I$13+Inputs!$K$13)*'Sensitivity Analysis - Acreage'!H$9)+Inputs!$B$30+Inputs!$D$32)*'Sensitivity Analysis - Acreage'!$C32)+Inputs!$B$20+Inputs!$B$25+Inputs!$B$31+'Maintenance Costs'!$AA$34) -> 32900.52827 | I32: =((Inputs!$I$10*'Sensitivity Analysis - Acreage'!I$9*'Sensitivity Analysis - Acreage'!$C32)+(Inputs!$B$16*'Sensitivity Analysis - Acreage'!$C32))-(((((Inputs!$I$13+Inputs!$K$13)*'Sensitivity Analysis - Acreage'!I$9)+Inputs!$B$30+Inputs!$D$32)*'Sensitivity Analysis - Acreage'!$C32)+Inputs!$B$20+Inputs!$B$25+Inputs!$B$31+'Maintenance Costs'!$AA$34*1.25) -> 49876.84368 | J32: =((Inputs!$I$10*'Sensitivity Analysis - Acreage'!J$9*'Sensitivity Analysis - Acreage'!$C32)+(Inputs!$B$16*'Sensitivity Analysis - Acreage'!$C32))-(((((Inputs!$I$13+Inputs!$K$13)*'Sensitivity Analysis - Acreage'!J$9)+Inputs!$B$30+Inputs!$D$32)*'Sensitivity Analysis - Acreage'!$C32)+Inputs!$B$20+Inputs!$B$25+Inputs!$B$31+'Maintenance Costs'!$AA$34*1.5) -> 66853.15908 | K32: =((Inputs!$I$10*'Sensitivity Analysis - Acreage'!K$9*'Sensitivity Analysis - Acreage'!$C32)+(Inputs!$B$16*'Sensitivity Analysis - Acreage'!$C32))-(((((Inputs!$I$13+Inputs!$K$13)*'Sensitivity Analysis - Acreage'!K$9)+Inputs!$B$30+Inputs!$D$32)*'Sensitivity Analysis - Acreage'!$C32)+Inputs!$B$20+Inputs!$B$25+Inputs!$B$31+'Maintenance Costs'!$AA$34*1.75) -> 83829.47448 | L32: =((Inputs!$I$10*'Sensitivity Analysis - Acreage'!L$9*'Sensitivity Analysis - Acreage'!$C32)+(Inputs!$B$16*'Sensitivity Analysis - Acreage'!$C32))-(((((Inputs!$I$13+Inputs!$K$13)*'Sensitivity Analysis - Acreage'!L$9)+Inputs!$B$30+Inputs!$D$32)*'Sensitivity Analysis - Acreage'!$C32)+Inputs!$B$20+Inputs!$B$25+Inputs!$B$31+'Maintenance Costs'!$AA$34*2) -> 100805.7899 | M32: =((Inputs!$I$10*'Sensitivity Analysis - Acreage'!M$9*'Sensitivity Analysis - Acreage'!$C32)+(Inputs!$B$16*'Sensitivity Analysis - Acreage'!$C32))-(((((Inputs!$I$13+Inputs!$K$13)*'Sensitivity Analysis - Acreage'!M$9)+Inputs!$B$30+Inputs!$D$32)*'Sensitivity Analysis - Acreage'!$C32)+Inputs!$B$20+Inputs!$B$25+Inputs!$B$31+'Maintenance Costs'!$AA$34*2.5) -> 134758.4207 | N32: =((Inputs!$I$10*'Sensitivity Analysis - Acreage'!N$9*'Sensitivity Analysis - Acreage'!$C32)+(Inputs!$B$16*'Sensitivity Analysis - Acreage'!$C32))-(((((Inputs!$I$13+Inputs!$K$13)*'Sensitivity Analysis - Acreage'!N$9)+Inputs!$B$30+Inputs!$D$32)*'Sensitivity Analysis - Acreage'!$C32)+Inputs!$B$20+Inputs!$B$25+Inputs!$B$31+'Maintenance Costs'!$AA$34*5) -> 304521.5747 | O32: =((Inputs!$I$10*'Sensitivity Analysis - Acreage'!O$9*'Sensitivity Analysis - Acreage'!$C32)+(Inputs!$B$16*'Sensitivity Analysis - Acreage'!$C32))-(((((Inputs!$I$13+Inputs!$K$13)*'Sensitivity Analysis - Acreage'!O$9)+Inputs!$B$30+Inputs!$D$32)*'Sensitivity Analysis - Acreage'!$C32)+Inputs!$B$20+Inputs!$B$25+Inputs!$B$31+'Maintenance Costs'!$AA$34*10) -> 644047.8827
C33: 24 | D33: =((Inputs!$I$10*'Sensitivity Analysis - Acreage'!D$9*'Sensitivity Analysis - Acreage'!$C33)+(Inputs!$B$16*'Sensitivity Analysis - Acreage'!$C33))-(((((Inputs!$I$13+Inputs!$K$13)*'Sensitivity Analysis - Acreage'!D$9)+Inputs!$B$30+Inputs!$D$32)*'Sensitivity Analysis - Acreage'!$C33)+Inputs!$B$20+Inputs!$B$25+Inputs!$B$31+'Maintenance Costs'!$AB$34*0.1) -> -28553.15848 | E33: =((Inputs!$I$10*'Sensitivity Analysis - Acreage'!E$9*'Sensitivity Analysis - Acreage'!$C33)+(Inputs!$B$16*'Sensitivity Analysis - Acreage'!$C33))-(((((Inputs!$I$13+Inputs!$K$13)*'Sensitivity Analysis - Acreage'!E$9)+Inputs!$B$30+Inputs!$D$32)*'Sensitivity Analysis - Acreage'!$C33)+Inputs!$B$20+Inputs!$B$25+Inputs!$B$31+'Maintenance Costs'!$AB$34*0.25) -> -17885.09621 | F33: =((Inputs!$I$10*'Sensitivity Analysis - Acreage'!F$9*'Sensitivity Analysis - Acreage'!$C33)+(Inputs!$B$16*'Sensitivity Analysis - Acreage'!$C33))-(((((Inputs!$I$13+Inputs!$K$13)*'Sensitivity Analysis - Acreage'!F$9)+Inputs!$B$30+Inputs!$D$32)*'Sensitivity Analysis - Acreage'!$C33)+Inputs!$B$20+Inputs!$B$25+Inputs!$B$31+'Maintenance Costs'!$AB$34*0.5) -> -104.9924222 | G33: =((Inputs!$I$10*'Sensitivity Analysis - Acreage'!G$9*'Sensitivity Analysis - Acreage'!$C33)+(Inputs!$B$16*'Sensitivity Analysis - Acreage'!$C33))-(((((Inputs!$I$13+Inputs!$K$13)*'Sensitivity Analysis - Acreage'!G$9)+Inputs!$B$30+Inputs!$D$32)*'Sensitivity Analysis - Acreage'!$C33)+Inputs!$B$20+Inputs!$B$25+Inputs!$B$31+'Maintenance Costs'!$AB$34*0.75) -> 17675.11137 | H33: =((Inputs!$I$10*'Sensitivity Analysis - Acreage'!H$9*'Sensitivity Analysis - Acreage'!$C33)+(Inputs!$B$16*'Sensitivity Analysis - Acreage'!$C33))-(((((Inputs!$I$13+Inputs!$K$13)*'Sensitivity Analysis - Acreage'!H$9)+Inputs!$B$30+Inputs!$D$32)*'Sensitivity Analysis - Acreage'!$C33)+Inputs!$B$20+Inputs!$B$25+Inputs!$B$31+'Maintenance Costs'!$AB$34) -> 35455.21516 | I33: =((Inputs!$I$10*'Sensitivity Analysis - Acreage'!I$9*'Sensitivity Analysis - Acreage'!$C33)+(Inputs!$B$16*'Sensitivity Analysis - Acreage'!$C33))-(((((Inputs!$I$13+Inputs!$K$13)*'Sensitivity Analysis - Acreage'!I$9)+Inputs!$B$30+Inputs!$D$32)*'Sensitivity Analysis - Acreage'!$C33)+Inputs!$B$20+Inputs!$B$25+Inputs!$B$31+'Maintenance Costs'!$AB$34*1.25) -> 53235.31894 | J33: =((Inputs!$I$10*'Sensitivity Analysis - Acreage'!J$9*'Sensitivity Analysis - Acreage'!$C33)+(Inputs!$B$16*'Sensitivity Analysis - Acreage'!$C33))-(((((Inputs!$I$13+Inputs!$K$13)*'Sensitivity Analysis - Acreage'!J$9)+Inputs!$B$30+Inputs!$D$32)*'Sensitivity Analysis - Acreage'!$C33)+Inputs!$B$20+Inputs!$B$25+Inputs!$B$31+'Maintenance Costs'!$AB$34*1.5) -> 71015.42273 | K33: =((Inputs!$I$10*'Sensitivity Analysis - Acreage'!K$9*'Sensitivity Analysis - Acreage'!$C33)+(Inputs!$B$16*'Sensitivity Analysis - Acreage'!$C33))-(((((Inputs!$I$13+Inputs!$K$13)*'Sensitivity Analysis - Acreage'!K$9)+Inputs!$B$30+Inputs!$D$32)*'Sensitivity Analysis - Acreage'!$C33)+Inputs!$B$20+Inputs!$B$25+Inputs!$B$31+'Maintenance Costs'!$AB$34*1.75) -> 88795.52652 | L33: =((Inputs!$I$10*'Sensitivity Analysis - Acreage'!L$9*'Sensitivity Analysis - Acreage'!$C33)+(Inputs!$B$16*'Sensitivity Analysis - Acreage'!$C33))-(((((Inputs!$I$13+Inputs!$K$13)*'Sensitivity Analysis - Acreage'!L$9)+Inputs!$B$30+Inputs!$D$32)*'Sensitivity Analysis - Acreage'!$C33)+Inputs!$B$20+Inputs!$B$25+Inputs!$B$31+'Maintenance Costs'!$AB$34*2) -> 106575.6303 | M33: =((Inputs!$I$10*'Sensitivity Analysis - Acreage'!M$9*'Sensitivity Analysis - Acreage'!$C33)+(Inputs!$B$16*'Sensitivity Analysis - Acreage'!$C33))-(((((Inputs!$I$13+Inputs!$K$13)*'Sensitivity Analysis - Acreage'!M$9)+Inputs!$B$30+Inputs!$D$32)*'Sensitivity Analysis - Acreage'!$C33)+Inputs!$B$20+Inputs!$B$25+Inputs!$B$31+'Maintenance Costs'!$AB$34*2.5) -> 142135.8379 | N33: =((Inputs!$I$10*'Sensitivity Analysis - Acreage'!N$9*'Sensitivity Analysis - Acreage'!$C33)+(Inputs!$B$16*'Sensitivity Analysis - Acreage'!$C33))-(((((Inputs!$I$13+Inputs!$K$13)*'Sensitivity Analysis - Acreage'!N$9)+Inputs!$B$30+Inputs!$D$32)*'Sensitivity Analysis - Acreage'!$C33)+Inputs!$B$20+Inputs!$B$25+Inputs!$B$31+'Maintenance Costs'!$AB$34*5) -> 319936.8758 | O33: =((Inputs!$I$10*'Sensitivity Analysis - Acreage'!O$9*'Sensitivity Analysis - Acreage'!$C33)+(Inputs!$B$16*'Sensitivity Analysis - Acreage'!$C33))-(((((Inputs!$I$13+Inputs!$K$13)*'Sensitivity Analysis - Acreage'!O$9)+Inputs!$B$30+Inputs!$D$32)*'Sensitivity Analysis - Acreage'!$C33)+Inputs!$B$20+Inputs!$B$25+Inputs!$B$31+'Maintenance Costs'!$AB$34*10) -> 675538.9516
C34: 25 | D34: =((Inputs!$I$10*'Sensitivity Analysis - Acreage'!D$9*'Sensitivity Analysis - Acreage'!$C34)+(Inputs!$B$16*'Sensitivity Analysis - Acreage'!$C34))-(((((Inputs!$I$13+Inputs!$K$13)*'Sensitivity Analysis - Acreage'!D$9)+Inputs!$B$30+Inputs!$D$32)*'Sensitivity Analysis - Acreage'!$C34)+Inputs!$B$20+Inputs!$B$25+Inputs!$B$31+'Maintenance Costs'!$AC$34*0.1) -> -28892.1098 | E34: =((Inputs!$I$10*'Sensitivity Analysis - Acreage'!E$9*'Sensitivity Analysis - Acreage'!$C34)+(Inputs!$B$16*'Sensitivity Analysis - Acreage'!$C34))-(((((Inputs!$I$13+Inputs!$K$13)*'Sensitivity Analysis - Acreage'!E$9)+Inputs!$B$30+Inputs!$D$32)*'Sensitivity Analysis - Acreage'!$C34)+Inputs!$B$20+Inputs!$B$25+Inputs!$B$31+'Maintenance Costs'!$AC$34*0.25) -> -17741.77449 | F34: =((Inputs!$I$10*'Sensitivity Analysis - Acreage'!F$9*'Sensitivity Analysis - Acreage'!$C34)+(Inputs!$B$16*'Sensitivity Analysis - Acreage'!$C34))-(((((Inputs!$I$13+Inputs!$K$13)*'Sensitivity Analysis - Acreage'!F$9)+Inputs!$B$30+Inputs!$D$32)*'Sensitivity Analysis - Acreage'!$C34)+Inputs!$B$20+Inputs!$B$25+Inputs!$B$31+'Maintenance Costs'!$AC$34*0.5) -> 842.1176852 | G34: =((Inputs!$I$10*'Sensitivity Analysis - Acreage'!G$9*'Sensitivity Analysis - Acreage'!$C34)+(Inputs!$B$16*'Sensitivity Analysis - Acreage'!$C34))-(((((Inputs!$I$13+Inputs!$K$13)*'Sensitivity Analysis - Acreage'!G$9)+Inputs!$B$30+Inputs!$D$32)*'Sensitivity Analysis - Acreage'!$C34)+Inputs!$B$20+Inputs!$B$25+Inputs!$B$31+'Maintenance Costs'!$AC$34*0.75) -> 19426.00986 | H34: =((Inputs!$I$10*'Sensitivity Analysis - Acreage'!H$9*'Sensitivity Analysis - Acreage'!$C34)+(Inputs!$B$16*'Sensitivity Analysis - Acreage'!$C34))-(((((Inputs!$I$13+Inputs!$K$13)*'Sensitivity Analysis - Acreage'!H$9)+Inputs!$B$30+Inputs!$D$32)*'Sensitivity Analysis - Acreage'!$C34)+Inputs!$B$20+Inputs!$B$25+Inputs!$B$31+'Maintenance Costs'!$AC$34) -> 38009.90204 | I34: =((Inputs!$I$10*'Sensitivity Analysis - Acreage'!I$9*'Sensitivity Analysis - Acreage'!$C34)+(Inputs!$B$16*'Sensitivity Analysis - Acreage'!$C34))-(((((Inputs!$I$13+Inputs!$K$13)*'Sensitivity Analysis - Acreage'!I$9)+Inputs!$B$30+Inputs!$D$32)*'Sensitivity Analysis - Acreage'!$C34)+Inputs!$B$20+Inputs!$B$25+Inputs!$B$31+'Maintenance Costs'!$AC$34*1.25) -> 56593.79421 | J34: =((Inputs!$I$10*'Sensitivity Analysis - Acreage'!J$9*'Sensitivity Analysis - Acreage'!$C34)+(Inputs!$B$16*'Sensitivity Analysis - Acreage'!$C34))-(((((Inputs!$I$13+Inputs!$K$13)*'Sensitivity Analysis - Acreage'!J$9)+Inputs!$B$30+Inputs!$D$32)*'Sensitivity Analysis - Acreage'!$C34)+Inputs!$B$20+Inputs!$B$25+Inputs!$B$31+'Maintenance Costs'!$AC$34*1.5) -> 75177.68639 | K34: =((Inputs!$I$10*'Sensitivity Analysis - Acreage'!K$9*'Sensitivity Analysis - Acreage'!$C34)+(Inputs!$B$16*'Sensitivity Analysis - Acreage'!$C34))-(((((Inputs!$I$13+Inputs!$K$13)*'Sensitivity Analysis - Acreage'!K$9)+Inputs!$B$30+Inputs!$D$32)*'Sensitivity Analysis - Acreage'!$C34)+Inputs!$B$20+Inputs!$B$25+Inputs!$B$31+'Maintenance Costs'!$AC$34*1.75) -> 93761.57856 | L34: =((Inputs!$I$10*'Sensitivity Analysis - Acreage'!L$9*'Sensitivity Analysis - Acreage'!$C34)+(Inputs!$B$16*'Sensitivity Analysis - Acreage'!$C34))-(((((Inputs!$I$13+Inputs!$K$13)*'Sensitivity Analysis - Acreage'!L$9)+Inputs!$B$30+Inputs!$D$32)*'Sensitivity Analysis - Acreage'!$C34)+Inputs!$B$20+Inputs!$B$25+Inputs!$B$31+'Maintenance Costs'!$AC$34*2) -> 112345.4707 | M34: =((Inputs!$I$10*'Sensitivity Analysis - Acreage'!M$9*'Sensitivity Analysis - Acreage'!$C34)+(Inputs!$B$16*'Sensitivity Analysis - Acreage'!$C34))-(((((Inputs!$I$13+Inputs!$K$13)*'Sensitivity Analysis - Acreage'!M$9)+Inputs!$B$30+Inputs!$D$32)*'Sensitivity Analysis - Acreage'!$C34)+Inputs!$B$20+Inputs!$B$25+Inputs!$B$31+'Maintenance Costs'!$AC$34*2.5) -> 149513.2551 | N34: =((Inputs!$I$10*'Sensitivity Analysis - Acreage'!N$9*'Sensitivity Analysis - Acreage'!$C34)+(Inputs!$B$16*'Sensitivity Analysis - Acreage'!$C34))-(((((Inputs!$I$13+Inputs!$K$13)*'Sensitivity Analysis - Acreage'!N$9)+Inputs!$B$30+Inputs!$D$32)*'Sensitivity Analysis - Acreage'!$C34)+Inputs!$B$20+Inputs!$B$25+Inputs!$B$31+'Maintenance Costs'!$AC$34*5) -> 335352.1769 | O34: =((Inputs!$I$10*'Sensitivity Analysis - Acreage'!O$9*'Sensitivity Analysis - Acreage'!$C34)+(Inputs!$B$16*'Sensitivity Analysis - Acreage'!$C34))-(((((Inputs!$I$13+Inputs!$K$13)*'Sensitivity Analysis - Acreage'!O$9)+Inputs!$B$30+Inputs!$D$32)*'Sensitivity Analysis - Acreage'!$C34)+Inputs!$B$20+Inputs!$B$25+Inputs!$B$31+'Maintenance Costs'!$AC$34*10) -> 707030.0204
C35: 26 | D35: =((Inputs!$I$10*'Sensitivity Analysis - Acreage'!D$9*'Sensitivity Analysis - Acreage'!$C35)+(Inputs!$B$16*'Sensitivity Analysis - Acreage'!$C35))-(((((Inputs!$I$13+Inputs!$K$13)*'Sensitivity Analysis - Acreage'!D$9)+Inputs!$B$30+Inputs!$D$32)*'Sensitivity Analysis - Acreage'!$C35)+Inputs!$B$20+Inputs!$B$25+Inputs!$B$31+'Maintenance Costs'!$AD$34*0.1) -> -29369.75911 | E35: =((Inputs!$I$10*'Sensitivity Analysis - Acreage'!E$9*'Sensitivity Analysis - Acreage'!$C35)+(Inputs!$B$16*'Sensitivity Analysis - Acreage'!$C35))-(((((Inputs!$I$13+Inputs!$K$13)*'Sensitivity Analysis - Acreage'!E$9)+Inputs!$B$30+Inputs!$D$32)*'Sensitivity Analysis - Acreage'!$C35)+Inputs!$B$20+Inputs!$B$25+Inputs!$B$31+'Maintenance Costs'!$AD$34*0.25) -> -17945.19777 | F35: =((Inputs!$I$10*'Sensitivity Analysis - Acreage'!F$9*'Sensitivity Analysis - Acreage'!$C35)+(Inputs!$B$16*'Sensitivity Analysis - Acreage'!$C35))-(((((Inputs!$I$13+Inputs!$K$13)*'Sensitivity Analysis - Acreage'!F$9)+Inputs!$B$30+Inputs!$D$32)*'Sensitivity Analysis - Acreage'!$C35)+Inputs!$B$20+Inputs!$B$25+Inputs!$B$31+'Maintenance Costs'!$AD$34*0.5) -> 1095.737793 | G35: =((Inputs!$I$10*'Sensitivity Analysis - Acreage'!G$9*'Sensitivity Analysis - Acreage'!$C35)+(Inputs!$B$16*'Sensitivity Analysis - Acreage'!$C35))-(((((Inputs!$I$13+Inputs!$K$13)*'Sensitivity Analysis - Acreage'!G$9)+Inputs!$B$30+Inputs!$D$32)*'Sensitivity Analysis - Acreage'!$C35)+Inputs!$B$20+Inputs!$B$25+Inputs!$B$31+'Maintenance Costs'!$AD$34*0.75) -> 20136.67336 | H35: =((Inputs!$I$10*'Sensitivity Analysis - Acreage'!H$9*'Sensitivity Analysis - Acreage'!$C35)+(Inputs!$B$16*'Sensitivity Analysis - Acreage'!$C35))-(((((Inputs!$I$13+Inputs!$K$13)*'Sensitivity Analysis - Acreage'!H$9)+Inputs!$B$30+Inputs!$D$32)*'Sensitivity Analysis - Acreage'!$C35)+Inputs!$B$20+Inputs!$B$25+Inputs!$B$31+'Maintenance Costs'!$AD$34) -> 39177.60892 | I35: =((Inputs!$I$10*'Sensitivity Analysis - Acreage'!I$9*'Sensitivity Analysis - Acreage'!$C35)+(Inputs!$B$16*'Sensitivity Analysis - Acreage'!$C35))-(((((Inputs!$I$13+Inputs!$K$13)*'Sensitivity Analysis - Acreage'!I$9)+Inputs!$B$30+Inputs!$D$32)*'Sensitivity Analysis - Acreage'!$C35)+Inputs!$B$20+Inputs!$B$25+Inputs!$B$31+'Maintenance Costs'!$AD$34*1.25) -> 58218.54448 | J35: =((Inputs!$I$10*'Sensitivity Analysis - Acreage'!J$9*'Sensitivity Analysis - Acreage'!$C35)+(Inputs!$B$16*'Sensitivity Analysis - Acreage'!$C35))-(((((Inputs!$I$13+Inputs!$K$13)*'Sensitivity Analysis - Acreage'!J$9)+Inputs!$B$30+Inputs!$D$32)*'Sensitivity Analysis - Acreage'!$C35)+Inputs!$B$20+Inputs!$B$25+Inputs!$B$31+'Maintenance Costs'!$AD$34*1.5) -> 77259.48004 | K35: =((Inputs!$I$10*'Sensitivity Analysis - Acreage'!K$9*'Sensitivity Analysis - Acreage'!$C35)+(Inputs!$B$16*'Sensitivity Analysis - Acreage'!$C35))-(((((Inputs!$I$13+Inputs!$K$13)*'Sensitivity Analysis - Acreage'!K$9)+Inputs!$B$30+Inputs!$D$32)*'Sensitivity Analysis - Acreage'!$C35)+Inputs!$B$20+Inputs!$B$25+Inputs!$B$31+'Maintenance Costs'!$AD$34*1.75) -> 96300.41561 | L35: =((Inputs!$I$10*'Sensitivity Analysis - Acreage'!L$9*'Sensitivity Analysis - Acreage'!$C35)+(Inputs!$B$16*'Sensitivity Analysis - Acreage'!$C35))-(((((Inputs!$I$13+Inputs!$K$13)*'Sensitivity Analysis - Acreage'!L$9)+Inputs!$B$30+Inputs!$D$32)*'Sensitivity Analysis - Acreage'!$C35)+Inputs!$B$20+Inputs!$B$25+Inputs!$B$31+'Maintenance Costs'!$AD$34*2) -> 115341.3512 | M35: =((Inputs!$I$10*'Sensitivity Analysis - Acreage'!M$9*'Sensitivity Analysis - Acreage'!$C35)+(Inputs!$B$16*'Sensitivity Analysis - Acreage'!$C35))-(((((Inputs!$I$13+Inputs!$K$13)*'Sensitivity Analysis - Acreage'!M$9)+Inputs!$B$30+Inputs!$D$32)*'Sensitivity Analysis - Acreage'!$C35)+Inputs!$B$20+Inputs!$B$25+Inputs!$B$31+'Maintenance Costs'!$AD$34*2.5) -> 153423.2223 | N35: =((Inputs!$I$10*'Sensitivity Analysis - Acreage'!N$9*'Sensitivity Analysis - Acreage'!$C35)+(Inputs!$B$16*'Sensitivity Analysis - Acreage'!$C35))-(((((Inputs!$I$13+Inputs!$K$13)*'Sensitivity Analysis - Acreage'!N$9)+Inputs!$B$30+Inputs!$D$32)*'Sensitivity Analysis - Acreage'!$C35)+Inputs!$B$20+Inputs!$B$25+Inputs!$B$31+'Maintenance Costs'!$AD$34*5) -> 343832.5779 | O35: =((Inputs!$I$10*'Sensitivity Analysis - Acreage'!O$9*'Sensitivity Analysis - Acreage'!$C35)+(Inputs!$B$16*'Sensitivity Analysis - Acreage'!$C35))-(((((Inputs!$I$13+Inputs!$K$13)*'Sensitivity Analysis - Acreage'!O$9)+Inputs!$B$30+Inputs!$D$32)*'Sensitivity Analysis - Acreage'!$C35)+Inputs!$B$20+Inputs!$B$25+Inputs!$B$31+'Maintenance Costs'!$AD$34*10) -> 724651.2892
C36: 27 | D36: =((Inputs!$I$10*'Sensitivity Analysis - Acreage'!D$9*'Sensitivity Analysis - Acreage'!$C36)+(Inputs!$B$16*'Sensitivity Analysis - Acreage'!$C36))-(((((Inputs!$I$13+Inputs!$K$13)*'Sensitivity Analysis - Acreage'!D$9)+Inputs!$B$30+Inputs!$D$32)*'Sensitivity Analysis - Acreage'!$C36)+Inputs!$B$20+Inputs!$B$25+Inputs!$B$31+'Maintenance Costs'!$AE$34*0.1) -> -29708.71042 | E36: =((Inputs!$I$10*'Sensitivity Analysis - Acreage'!E$9*'Sensitivity Analysis - Acreage'!$C36)+(Inputs!$B$16*'Sensitivity Analysis - Acreage'!$C36))-(((((Inputs!$I$13+Inputs!$K$13)*'Sensitivity Analysis - Acreage'!E$9)+Inputs!$B$30+Inputs!$D$32)*'Sensitivity Analysis - Acreage'!$C36)+Inputs!$B$20+Inputs!$B$25+Inputs!$B$31+'Maintenance Costs'!$AE$34*0.25) -> -17801.87605 | F36: =((Inputs!$I$10*'Sensitivity Analysis - Acreage'!F$9*'Sensitivity Analysis - Acreage'!$C36)+(Inputs!$B$16*'Sensitivity Analysis - Acreage'!$C36))-(((((Inputs!$I$13+Inputs!$K$13)*'Sensitivity Analysis - Acreage'!F$9)+Inputs!$B$30+Inputs!$D$32)*'Sensitivity Analysis - Acreage'!$C36)+Inputs!$B$20+Inputs!$B$25+Inputs!$B$31+'Maintenance Costs'!$AE$34*0.5) -> 2042.8479 | G36: =((Inputs!$I$10*'Sensitivity Analysis - Acreage'!G$9*'Sensitivity Analysis - Acreage'!$C36)+(Inputs!$B$16*'Sensitivity Analysis - Acreage'!$C36))-(((((Inputs!$I$13+Inputs!$K$13)*'Sensitivity Analysis - Acreage'!G$9)+Inputs!$B$30+Inputs!$D$32)*'Sensitivity Analysis - Acreage'!$C36)+Inputs!$B$20+Inputs!$B$25+Inputs!$B$31+'Maintenance Costs'!$AE$34*0.75) -> 21887.57185 | H36: =((Inputs!$I$10*'Sensitivity Analysis - Acreage'!H$9*'Sensitivity Analysis - Acreage'!$C36)+(Inputs!$B$16*'Sensitivity Analysis - Acreage'!$C36))-(((((Inputs!$I$13+Inputs!$K$13)*'Sensitivity Analysis - Acreage'!H$9)+Inputs!$B$30+Inputs!$D$32)*'Sensitivity Analysis - Acreage'!$C36)+Inputs!$B$20+Inputs!$B$25+Inputs!$B$31+'Maintenance Costs'!$AE$34) -> 41732.2958 | I36: =((Inputs!$I$10*'Sensitivity Analysis - Acreage'!I$9*'Sensitivity Analysis - Acreage'!$C36)+(Inputs!$B$16*'Sensitivity Analysis - Acreage'!$C36))-(((((Inputs!$I$13+Inputs!$K$13)*'Sensitivity Analysis - Acreage'!I$9)+Inputs!$B$30+Inputs!$D$32)*'Sensitivity Analysis - Acreage'!$C36)+Inputs!$B$20+Inputs!$B$25+Inputs!$B$31+'Maintenance Costs'!$AE$34*1.25) -> 61577.01975 | J36: =((Inputs!$I$10*'Sensitivity Analysis - Acreage'!J$9*'Sensitivity Analysis - Acreage'!$C36)+(Inputs!$B$16*'Sensitivity Analysis - Acreage'!$C36))-(((((Inputs!$I$13+Inputs!$K$13)*'Sensitivity Analysis - Acreage'!J$9)+Inputs!$B$30+Inputs!$D$32)*'Sensitivity Analysis - Acreage'!$C36)+Inputs!$B$20+Inputs!$B$25+Inputs!$B$31+'Maintenance Costs'!$AE$34*1.5) -> 81421.7437 | K36: =((Inputs!$I$10*'Sensitivity Analysis - Acreage'!K$9*'Sensitivity Analysis - Acreage'!$C36)+(Inputs!$B$16*'Sensitivity Analysis - Acreage'!$C36))-(((((Inputs!$I$13+Inputs!$K$13)*'Sensitivity Analysis - Acreage'!K$9)+Inputs!$B$30+Inputs!$D$32)*'Sensitivity Analysis - Acreage'!$C36)+Inputs!$B$20+Inputs!$B$25+Inputs!$B$31+'Maintenance Costs'!$AE$34*1.75) -> 101266.4677 | L36: =((Inputs!$I$10*'Sensitivity Analysis - Acreage'!L$9*'Sensitivity Analysis - Acreage'!$C36)+(Inputs!$B$16*'Sensitivity Analysis - Acreage'!$C36))-(((((Inputs!$I$13+Inputs!$K$13)*'Sensitivity Analysis - Acreage'!L$9)+Inputs!$B$30+Inputs!$D$32)*'Sensitivity Analysis - Acreage'!$C36)+Inputs!$B$20+Inputs!$B$25+Inputs!$B$31+'Maintenance Costs'!$AE$34*2) -> 121111.1916 | M36: =((Inputs!$I$10*'Sensitivity Analysis - Acreage'!M$9*'Sensitivity Analysis - Acreage'!$C36)+(Inputs!$B$16*'Sensitivity Analysis - Acreage'!$C36))-(((((Inputs!$I$13+Inputs!$K$13)*'Sensitivity Analysis - Acreage'!M$9)+Inputs!$B$30+Inputs!$D$32)*'Sensitivity Analysis - Acreage'!$C36)+Inputs!$B$20+Inputs!$B$25+Inputs!$B$31+'Maintenance Costs'!$AE$34*2.5) -> 160800.6395 | N36: =((Inputs!$I$10*'Sensitivity Analysis - Acreage'!N$9*'Sensitivity Analysis - Acreage'!$C36)+(Inputs!$B$16*'Sensitivity Analysis - Acreage'!$C36))-(((((Inputs!$I$13+Inputs!$K$13)*'Sensitivity Analysis - Acreage'!N$9)+Inputs!$B$30+Inputs!$D$32)*'Sensitivity Analysis - Acreage'!$C36)+Inputs!$B$20+Inputs!$B$25+Inputs!$B$31+'Maintenance Costs'!$AE$34*5) -> 359247.879 | O36: =((Inputs!$I$10*'Sensitivity Analysis - Acreage'!O$9*'Sensitivity Analysis - Acreage'!$C36)+(Inputs!$B$16*'Sensitivity Analysis - Acreage'!$C36))-(((((Inputs!$I$13+Inputs!$K$13)*'Sensitivity Analysis - Acreage'!O$9)+Inputs!$B$30+Inputs!$D$32)*'Sensitivity Analysis - Acreage'!$C36)+Inputs!$B$20+Inputs!$B$25+Inputs!$B$31+'Maintenance Costs'!$AE$34*10) -> 756142.358
C37: 28 | D37: =((Inputs!$I$10*'Sensitivity Analysis - Acreage'!D$9*'Sensitivity Analysis - Acreage'!$C37)+(Inputs!$B$16*'Sensitivity Analysis - Acreage'!$C37))-(((((Inputs!$I$13+Inputs!$K$13)*'Sensitivity Analysis - Acreage'!D$9)+Inputs!$B$30+Inputs!$D$32)*'Sensitivity Analysis - Acreage'!$C37)+Inputs!$B$20+Inputs!$B$25+Inputs!$B$31+'Maintenance Costs'!$AF$34*0.1) -> -30047.66173 | E37: =((Inputs!$I$10*'Sensitivity Analysis - Acreage'!E$9*'Sensitivity Analysis - Acreage'!$C37)+(Inputs!$B$16*'Sensitivity Analysis - Acreage'!$C37))-(((((Inputs!$I$13+Inputs!$K$13)*'Sensitivity Analysis - Acreage'!E$9)+Inputs!$B$30+Inputs!$D$32)*'Sensitivity Analysis - Acreage'!$C37)+Inputs!$B$20+Inputs!$B$25+Inputs!$B$31+'Maintenance Costs'!$AF$34*0.25) -> -17658.55433 | F37: =((Inputs!$I$10*'Sensitivity Analysis - Acreage'!F$9*'Sensitivity Analysis - Acreage'!$C37)+(Inputs!$B$16*'Sensitivity Analysis - Acreage'!$C37))-(((((Inputs!$I$13+Inputs!$K$13)*'Sensitivity Analysis - Acreage'!F$9)+Inputs!$B$30+Inputs!$D$32)*'Sensitivity Analysis - Acreage'!$C37)+Inputs!$B$20+Inputs!$B$25+Inputs!$B$31+'Maintenance Costs'!$AF$34*0.5) -> 2989.958007 | G37: =((Inputs!$I$10*'Sensitivity Analysis - Acreage'!G$9*'Sensitivity Analysis - Acreage'!$C37)+(Inputs!$B$16*'Sensitivity Analysis - Acreage'!$C37))-(((((Inputs!$I$13+Inputs!$K$13)*'Sensitivity Analysis - Acreage'!G$9)+Inputs!$B$30+Inputs!$D$32)*'Sensitivity Analysis - Acreage'!$C37)+Inputs!$B$20+Inputs!$B$25+Inputs!$B$31+'Maintenance Costs'!$AF$34*0.75) -> 23638.47034 | H37: =((Inputs!$I$10*'Sensitivity Analysis - Acreage'!H$9*'Sensitivity Analysis - Acreage'!$C37)+(Inputs!$B$16*'Sensitivity Analysis - Acreage'!$C37))-(((((Inputs!$I$13+Inputs!$K$13)*'Sensitivity Analysis - Acreage'!H$9)+Inputs!$B$30+Inputs!$D$32)*'Sensitivity Analysis - Acreage'!$C37)+Inputs!$B$20+Inputs!$B$25+Inputs!$B$31+'Maintenance Costs'!$AF$34) -> 44286.98268 | I37: =((Inputs!$I$10*'Sensitivity Analysis - Acreage'!I$9*'Sensitivity Analysis - Acreage'!$C37)+(Inputs!$B$16*'Sensitivity Analysis - Acreage'!$C37))-(((((Inputs!$I$13+Inputs!$K$13)*'Sensitivity Analysis - Acreage'!I$9)+Inputs!$B$30+Inputs!$D$32)*'Sensitivity Analysis - Acreage'!$C37)+Inputs!$B$20+Inputs!$B$25+Inputs!$B$31+'Maintenance Costs'!$AF$34*1.25) -> 64935.49502 | J37: =((Inputs!$I$10*'Sensitivity Analysis - Acreage'!J$9*'Sensitivity Analysis - Acreage'!$C37)+(Inputs!$B$16*'Sensitivity Analysis - Acreage'!$C37))-(((((Inputs!$I$13+Inputs!$K$13)*'Sensitivity Analysis - Acreage'!J$9)+Inputs!$B$30+Inputs!$D$32)*'Sensitivity Analysis - Acreage'!$C37)+Inputs!$B$20+Inputs!$B$25+Inputs!$B$31+'Maintenance Costs'!$AF$34*1.5) -> 85584.00736 | K37: =((Inputs!$I$10*'Sensitivity Analysis - Acreage'!K$9*'Sensitivity Analysis - Acreage'!$C37)+(Inputs!$B$16*'Sensitivity Analysis - Acreage'!$C37))-(((((Inputs!$I$13+Inputs!$K$13)*'Sensitivity Analysis - Acreage'!K$9)+Inputs!$B$30+Inputs!$D$32)*'Sensitivity Analysis - Acreage'!$C37)+Inputs!$B$20+Inputs!$B$25+Inputs!$B$31+'Maintenance Costs'!$AF$34*1.75) -> 106232.5197 | L37: =((Inputs!$I$10*'Sensitivity Analysis - Acreage'!L$9*'Sensitivity Analysis - Acreage'!$C37)+(Inputs!$B$16*'Sensitivity Analysis - Acreage'!$C37))-(((((Inputs!$I$13+Inputs!$K$13)*'Sensitivity Analysis - Acreage'!L$9)+Inputs!$B$30+Inputs!$D$32)*'Sensitivity Analysis - Acreage'!$C37)+Inputs!$B$20+Inputs!$B$25+Inputs!$B$31+'Maintenance Costs'!$AF$34*2) -> 126881.032 | M37: =((Inputs!$I$10*'Sensitivity Analysis - Acreage'!M$9*'Sensitivity Analysis - Acreage'!$C37)+(Inputs!$B$16*'Sensitivity Analysis - Acreage'!$C37))-(((((Inputs!$I$13+Inputs!$K$13)*'Sensitivity Analysis - Acreage'!M$9)+Inputs!$B$30+Inputs!$D$32)*'Sensitivity Analysis - Acreage'!$C37)+Inputs!$B$20+Inputs!$B$25+Inputs!$B$31+'Maintenance Costs'!$AF$34*2.5) -> 168178.0567 | N37: =((Inputs!$I$10*'Sensitivity Analysis - Acreage'!N$9*'Sensitivity Analysis - Acreage'!$C37)+(Inputs!$B$16*'Sensitivity Analysis - Acreage'!$C37))-(((((Inputs!$I$13+Inputs!$K$13)*'Sensitivity Analysis - Acreage'!N$9)+Inputs!$B$30+Inputs!$D$32)*'Sensitivity Analysis - Acreage'!$C37)+Inputs!$B$20+Inputs!$B$25+Inputs!$B$31+'Maintenance Costs'!$AF$34*5) -> 374663.1801 | O37: =((Inputs!$I$10*'Sensitivity Analysis - Acreage'!O$9*'Sensitivity Analysis - Acreage'!$C37)+(Inputs!$B$16*'Sensitivity Analysis - Acreage'!$C37))-(((((Inputs!$I$13+Inputs!$K$13)*'Sensitivity Analysis - Acreage'!O$9)+Inputs!$B$30+Inputs!$D$32)*'Sensitivity Analysis - Acreage'!$C37)+Inputs!$B$20+Inputs!$B$25+Inputs!$B$31+'Maintenance Costs'!$AF$34*10) -> 787633.4268
C38: 29 | D38: =((Inputs!$I$10*'Sensitivity Analysis - Acreage'!D$9*'Sensitivity Analysis - Acreage'!$C38)+(Inputs!$B$16*'Sensitivity Analysis - Acreage'!$C38))-(((((Inputs!$I$13+Inputs!$K$13)*'Sensitivity Analysis - Acreage'!D$9)+Inputs!$B$30+Inputs!$D$32)*'Sensitivity Analysis - Acreage'!$C38)+Inputs!$B$20+Inputs!$B$25+Inputs!$B$31+'Maintenance Costs'!$AG$34*0.1) -> -30505.49704 | E38: =((Inputs!$I$10*'Sensitivity Analysis - Acreage'!E$9*'Sensitivity Analysis - Acreage'!$C38)+(Inputs!$B$16*'Sensitivity Analysis - Acreage'!$C38))-(((((Inputs!$I$13+Inputs!$K$13)*'Sensitivity Analysis - Acreage'!E$9)+Inputs!$B$30+Inputs!$D$32)*'Sensitivity Analysis - Acreage'!$C38)+Inputs!$B$20+Inputs!$B$25+Inputs!$B$31+'Maintenance Costs'!$AG$34*0.25) -> -17812.44261 | F38: =((Inputs!$I$10*'Sensitivity Analysis - Acreage'!F$9*'Sensitivity Analysis - Acreage'!$C38)+(Inputs!$B$16*'Sensitivity Analysis - Acreage'!$C38))-(((((Inputs!$I$13+Inputs!$K$13)*'Sensitivity Analysis - Acreage'!F$9)+Inputs!$B$30+Inputs!$D$32)*'Sensitivity Analysis - Acreage'!$C38)+Inputs!$B$20+Inputs!$B$25+Inputs!$B$31+'Maintenance Costs'!$AG$34*0.5) -> 3342.648115 | G38: =((Inputs!$I$10*'Sensitivity Analysis - Acreage'!G$9*'Sensitivity Analysis - Acreage'!$C38)+(Inputs!$B$16*'Sensitivity Analysis - Acreage'!$C38))-(((((Inputs!$I$13+Inputs!$K$13)*'Sensitivity Analysis - Acreage'!G$9)+Inputs!$B$30+Inputs!$D$32)*'Sensitivity Analysis - Acreage'!$C38)+Inputs!$B$20+Inputs!$B$25+Inputs!$B$31+'Maintenance Costs'!$AG$34*0.75) -> 24497.73884 | H38: =((Inputs!$I$10*'Sensitivity Analysis - Acreage'!H$9*'Sensitivity Analysis - Acreage'!$C38)+(Inputs!$B$16*'Sensitivity Analysis - Acreage'!$C38))-(((((Inputs!$I$13+Inputs!$K$13)*'Sensitivity Analysis - Acreage'!H$9)+Inputs!$B$30+Inputs!$D$32)*'Sensitivity Analysis - Acreage'!$C38)+Inputs!$B$20+Inputs!$B$25+Inputs!$B$31+'Maintenance Costs'!$AG$34) -> 45652.82956 | I38: =((Inputs!$I$10*'Sensitivity Analysis - Acreage'!I$9*'Sensitivity Analysis - Acreage'!$C38)+(Inputs!$B$16*'Sensitivity Analysis - Acreage'!$C38))-(((((Inputs!$I$13+Inputs!$K$13)*'Sensitivity Analysis - Acreage'!I$9)+Inputs!$B$30+Inputs!$D$32)*'Sensitivity Analysis - Acreage'!$C38)+Inputs!$B$20+Inputs!$B$25+Inputs!$B$31+'Maintenance Costs'!$AG$34*1.25) -> 66807.92029 | J38: =((Inputs!$I$10*'Sensitivity Analysis - Acreage'!J$9*'Sensitivity Analysis - Acreage'!$C38)+(Inputs!$B$16*'Sensitivity Analysis - Acreage'!$C38))-(((((Inputs!$I$13+Inputs!$K$13)*'Sensitivity Analysis - Acreage'!J$9)+Inputs!$B$30+Inputs!$D$32)*'Sensitivity Analysis - Acreage'!$C38)+Inputs!$B$20+Inputs!$B$25+Inputs!$B$31+'Maintenance Costs'!$AG$34*1.5) -> 87963.01101 | K38: =((Inputs!$I$10*'Sensitivity Analysis - Acreage'!K$9*'Sensitivity Analysis - Acreage'!$C38)+(Inputs!$B$16*'Sensitivity Analysis - Acreage'!$C38))-(((((Inputs!$I$13+Inputs!$K$13)*'Sensitivity Analysis - Acreage'!K$9)+Inputs!$B$30+Inputs!$D$32)*'Sensitivity Analysis - Acreage'!$C38)+Inputs!$B$20+Inputs!$B$25+Inputs!$B$31+'Maintenance Costs'!$AG$34*1.75) -> 109118.1017 | L38: =((Inputs!$I$10*'Sensitivity Analysis - Acreage'!L$9*'Sensitivity Analysis - Acreage'!$C38)+(Inputs!$B$16*'Sensitivity Analysis - Acreage'!$C38))-(((((Inputs!$I$13+Inputs!$K$13)*'Sensitivity Analysis - Acreage'!L$9)+Inputs!$B$30+Inputs!$D$32)*'Sensitivity Analysis - Acreage'!$C38)+Inputs!$B$20+Inputs!$B$25+Inputs!$B$31+'Maintenance Costs'!$AG$34*2) -> 130273.1925 | M38: =((Inputs!$I$10*'Sensitivity Analysis - Acreage'!M$9*'Sensitivity Analysis - Acreage'!$C38)+(Inputs!$B$16*'Sensitivity Analysis - Acreage'!$C38))-(((((Inputs!$I$13+Inputs!$K$13)*'Sensitivity Analysis - Acreage'!M$9)+Inputs!$B$30+Inputs!$D$32)*'Sensitivity Analysis - Acreage'!$C38)+Inputs!$B$20+Inputs!$B$25+Inputs!$B$31+'Maintenance Costs'!$AG$34*2.5) -> 172583.3739 | N38: =((Inputs!$I$10*'Sensitivity Analysis - Acreage'!N$9*'Sensitivity Analysis - Acreage'!$C38)+(Inputs!$B$16*'Sensitivity Analysis - Acreage'!$C38))-(((((Inputs!$I$13+Inputs!$K$13)*'Sensitivity Analysis - Acreage'!N$9)+Inputs!$B$30+Inputs!$D$32)*'Sensitivity Analysis - Acreage'!$C38)+Inputs!$B$20+Inputs!$B$25+Inputs!$B$31+'Maintenance Costs'!$AG$34*5) -> 384134.2811 | O38: =((Inputs!$I$10*'Sensitivity Analysis - Acreage'!O$9*'Sensitivity Analysis - Acreage'!$C38)+(Inputs!$B$16*'Sensitivity Analysis - Acreage'!$C38))-(((((Inputs!$I$13+Inputs!$K$13)*'Sensitivity Analysis - Acreage'!O$9)+Inputs!$B$30+Inputs!$D$32)*'Sensitivity Analysis - Acreage'!$C38)+Inputs!$B$20+Inputs!$B$25+Inputs!$B$31+'Maintenance Costs'!$AG$34*10) -> 807236.0956
C39: 30 | D39: =((Inputs!$I$10*'Sensitivity Analysis - Acreage'!D$9*'Sensitivity Analysis - Acreage'!$C39)+(Inputs!$B$16*'Sensitivity Analysis - Acreage'!$C39))-(((((Inputs!$I$13+Inputs!$K$13)*'Sensitivity Analysis - Acreage'!D$9)+Inputs!$B$30+Inputs!$D$32)*'Sensitivity Analysis - Acreage'!$C39)+Inputs!$B$20+Inputs!$B$25+Inputs!$B$31+'Maintenance Costs'!$AH$34*0.1) -> -30844.44836 | E39: =((Inputs!$I$10*'Sensitivity Analysis - Acreage'!E$9*'Sensitivity Analysis - Acreage'!$C39)+(Inputs!$B$16*'Sensitivity Analysis - Acreage'!$C39))-(((((Inputs!$I$13+Inputs!$K$13)*'Sensitivity Analysis - Acreage'!E$9)+Inputs!$B$30+Inputs!$D$32)*'Sensitivity Analysis - Acreage'!$C39)+Inputs!$B$20+Inputs!$B$25+Inputs!$B$31+'Maintenance Costs'!$AH$34*0.25) -> -17669.12089 | F39: =((Inputs!$I$10*'Sensitivity Analysis - Acreage'!F$9*'Sensitivity Analysis - Acreage'!$C39)+(Inputs!$B$16*'Sensitivity Analysis - Acreage'!$C39))-(((((Inputs!$I$13+Inputs!$K$13)*'Sensitivity Analysis - Acreage'!F$9)+Inputs!$B$30+Inputs!$D$32)*'Sensitivity Analysis - Acreage'!$C39)+Inputs!$B$20+Inputs!$B$25+Inputs!$B$31+'Maintenance Costs'!$AH$34*0.5) -> 4289.758222 | G39: =((Inputs!$I$10*'Sensitivity Analysis - Acreage'!G$9*'Sensitivity Analysis - Acreage'!$C39)+(Inputs!$B$16*'Sensitivity Analysis - Acreage'!$C39))-(((((Inputs!$I$13+Inputs!$K$13)*'Sensitivity Analysis - Acreage'!G$9)+Inputs!$B$30+Inputs!$D$32)*'Sensitivity Analysis - Acreage'!$C39)+Inputs!$B$20+Inputs!$B$25+Inputs!$B$31+'Maintenance Costs'!$AH$34*0.75) -> 26248.63733 | H39: =((Inputs!$I$10*'Sensitivity Analysis - Acreage'!H$9*'Sensitivity Analysis - Acreage'!$C39)+(Inputs!$B$16*'Sensitivity Analysis - Acreage'!$C39))-(((((Inputs!$I$13+Inputs!$K$13)*'Sensitivity Analysis - Acreage'!H$9)+Inputs!$B$30+Inputs!$D$32)*'Sensitivity Analysis - Acreage'!$C39)+Inputs!$B$20+Inputs!$B$25+Inputs!$B$31+'Maintenance Costs'!$AH$34) -> 48207.51644 | I39: =((Inputs!$I$10*'Sensitivity Analysis - Acreage'!I$9*'Sensitivity Analysis - Acreage'!$C39)+(Inputs!$B$16*'Sensitivity Analysis - Acreage'!$C39))-(((((Inputs!$I$13+Inputs!$K$13)*'Sensitivity Analysis - Acreage'!I$9)+Inputs!$B$30+Inputs!$D$32)*'Sensitivity Analysis - Acreage'!$C39)+Inputs!$B$20+Inputs!$B$25+Inputs!$B$31+'Maintenance Costs'!$AH$34*1.25) -> 70166.39556 | J39: =((Inputs!$I$10*'Sensitivity Analysis - Acreage'!J$9*'Sensitivity Analysis - Acreage'!$C39)+(Inputs!$B$16*'Sensitivity Analysis - Acreage'!$C39))-(((((Inputs!$I$13+Inputs!$K$13)*'Sensitivity Analysis - Acreage'!J$9)+Inputs!$B$30+Inputs!$D$32)*'Sensitivity Analysis - Acreage'!$C39)+Inputs!$B$20+Inputs!$B$25+Inputs!$B$31+'Maintenance Costs'!$AH$34*1.5) -> 92125.27467 | K39: =((Inputs!$I$10*'Sensitivity Analysis - Acreage'!K$9*'Sensitivity Analysis - Acreage'!$C39)+(Inputs!$B$16*'Sensitivity Analysis - Acreage'!$C39))-(((((Inputs!$I$13+Inputs!$K$13)*'Sensitivity Analysis - Acreage'!K$9)+Inputs!$B$30+Inputs!$D$32)*'Sensitivity Analysis - Acreage'!$C39)+Inputs!$B$20+Inputs!$B$25+Inputs!$B$31+'Maintenance Costs'!$AH$34*1.75) -> 114084.1538 | L39: =((Inputs!$I$10*'Sensitivity Analysis - Acreage'!L$9*'Sensitivity Analysis - Acreage'!$C39)+(Inputs!$B$16*'Sensitivity Analysis - Acreage'!$C39))-(((((Inputs!$I$13+Inputs!$K$13)*'Sensitivity Analysis - Acreage'!L$9)+Inputs!$B$30+Inputs!$D$32)*'Sensitivity Analysis - Acreage'!$C39)+Inputs!$B$20+Inputs!$B$25+Inputs!$B$31+'Maintenance Costs'!$AH$34*2) -> 136043.0329 | M39: =((Inputs!$I$10*'Sensitivity Analysis - Acreage'!M$9*'Sensitivity Analysis - Acreage'!$C39)+(Inputs!$B$16*'Sensitivity Analysis - Acreage'!$C39))-(((((Inputs!$I$13+Inputs!$K$13)*'Sensitivity Analysis - Acreage'!M$9)+Inputs!$B$30+Inputs!$D$32)*'Sensitivity Analysis - Acreage'!$C39)+Inputs!$B$20+Inputs!$B$25+Inputs!$B$31+'Maintenance Costs'!$AH$34*2.5) -> 179960.7911 | N39: =((Inputs!$I$10*'Sensitivity Analysis - Acreage'!N$9*'Sensitivity Analysis - Acreage'!$C39)+(Inputs!$B$16*'Sensitivity Analysis - Acreage'!$C39))-(((((Inputs!$I$13+Inputs!$K$13)*'Sensitivity Analysis - Acreage'!N$9)+Inputs!$B$30+Inputs!$D$32)*'Sensitivity Analysis - Acreage'!$C39)+Inputs!$B$20+Inputs!$B$25+Inputs!$B$31+'Maintenance Costs'!$AH$34*5) -> 399549.5822 | O39: =((Inputs!$I$10*'Sensitivity Analysis - Acreage'!O$9*'Sensitivity Analysis - Acreage'!$C39)+(Inputs!$B$16*'Sensitivity Analysis - Acreage'!$C39))-(((((Inputs!$I$13+Inputs!$K$13)*'Sensitivity Analysis - Acreage'!O$9)+Inputs!$B$30+Inputs!$D$32)*'Sensitivity Analysis - Acreage'!$C39)+Inputs!$B$20+Inputs!$B$25+Inputs!$B$31+'Maintenance Costs'!$AH$34*10) -> 838727.1644
S88: Hand Labor Per Acre Cost | T88: ='Sensitivity Analysis - Wages'!C7*Inputs!$G$10 -> 764.2133333 | U88: ='Sensitivity Analysis - Wages'!D7*Inputs!$G$10 -> 859.74 | V88: ='Sensitivity Analysis - Wages'!E7*Inputs!$G$10 -> 955.2666667 | W88: ='Sensitivity Analysis - Wages'!F7*Inputs!$G$10 -> 1050.793333 | X88: ='Sensitivity Analysis - Wages'!G7*Inputs!$G$10 -> 1146.32 | Y88: ='Sensitivity Analysis - Wages'!H7*Inputs!$G$10 -> 1241.846667 | Z88: ='Sensitivity Analysis - Wages'!I7*Inputs!$G$10 -> 1337.373333 | AA88: ='Sensitivity Analysis - Wages'!J7*Inputs!$G$10 -> 1432.9 | AB88: ='Sensitivity Analysis - Wages'!K7*Inputs!$G$10 -> 1528.426667 | AC88: ='Sensitivity Analysis - Wages'!L7*Inputs!$G$10 -> 1623.953333 | AD88: ='Sensitivity Analysis - Wages'!M7*Inputs!$G$10 -> 1719.48 | AE88: ='Sensitivity Analysis - Wages'!N7*Inputs!$G$10 -> 1815.006667 | AF88: ='Sensitivity Analysis - Wages'!O7*Inputs!$G$10 -> 1910.533333
S89: Yearly Skilled Per acre Cost | T89: ='Sensitivity Analysis - Wages'!C8*(Inputs!$E$13+Inputs!$F$13) -> 211.4956087 | U89: ='Sensitivity Analysis - Wages'!D8*(Inputs!$E$13+Inputs!$F$13) -> 237.9325598 | V89: ='Sensitivity Analysis - Wages'!E8*(Inputs!$E$13+Inputs!$F$13) -> 264.3695109 | W89: ='Sensitivity Analysis - Wages'!F8*(Inputs!$E$13+Inputs!$F$13) -> 290.806462 | X89: ='Sensitivity Analysis - Wages'!G8*(Inputs!$E$13+Inputs!$F$13) -> 317.2434131 | Y89: ='Sensitivity Analysis - Wages'!H8*(Inputs!$E$13+Inputs!$F$13) -> 343.6803642 | Z89: ='Sensitivity Analysis - Wages'!I8*(Inputs!$E$13+Inputs!$F$13) -> 370.1173153 | AA89: ='Sensitivity Analysis - Wages'!J8*(Inputs!$E$13+Inputs!$F$13) -> 396.5542664 | AB89: ='Sensitivity Analysis - Wages'!K8*(Inputs!$E$13+Inputs!$F$13) -> 422.9912175 | AC89: ='Sensitivity Analysis - Wages'!L8*(Inputs!$E$13+Inputs!$F$13) -> 449.4281686 | AD89: ='Sensitivity Analysis - Wages'!M8*(Inputs!$E$13+Inputs!$F$13) -> 475.8651197 | AE89: ='Sensitivity Analysis - Wages'!N8*(Inputs!$E$13+Inputs!$F$13) -> 502.3020707 | AF89: ='Sensitivity Analysis - Wages'!O8*(Inputs!$E$13+Inputs!$F$13) -> 528.7390218
T92: Hand Labor Cost
S93: 1 | T93: =T$88*Inputs!$B$10*$S93+($S93*Inputs!$B$16) -> 3821.066667 | U93: =U$88*Inputs!$B$10*$S93+($S93*Inputs!$B$16) -> 4298.7 | V93: =V$88*Inputs!$B$10*$S93+($S93*Inputs!$B$16) -> 4776.333333 | W93: =W$88*Inputs!$B$10*$S93+($S93*Inputs!$B$16) -> 5253.966667 | X93: =X$88*Inputs!$B$10*$S93+($S93*Inputs!$B$16) -> 5731.6 | Y93: =Y$88*Inputs!$B$10*$S93+($S93*Inputs!$B$16) -> 6209.233333 | Z93: =Z$88*Inputs!$B$10*$S93+($S93*Inputs!$B$16) -> 6686.866667 | AA93: =AA$88*Inputs!$B$10*$S93+($S93*Inputs!$B$16) -> 7164.5 | AB93: =AB$88*Inputs!$B$10*$S93+($S93*Inputs!$B$16) -> 7642.133333 | AC93: =AC$88*Inputs!$B$10*$S93+($S93*Inputs!$B$16) -> 8119.766667 | AD93: =AD$88*Inputs!$B$10*$S93+($S93*Inputs!$B$16) -> 8597.4 | AE93: =AE$88*Inputs!$B$10*$S93+($S93*Inputs!$B$16) -> 9075.033333 | AF93: =AF$88*Inputs!$B$10*$S93+($S93*Inputs!$B$16) -> 9552.666667
S94: 5 | T94: =T$88*Inputs!$B$10*$S94+($S94*Inputs!$B$16) -> 19105.33333 | U94: =U$88*Inputs!$B$10*$S94+($S94*Inputs!$B$16) -> 21493.5 | V94: =V$88*Inputs!$B$10*$S94+($S94*Inputs!$B$16) -> 23881.66667 | W94: =W$88*Inputs!$B$10*$S94+($S94*Inputs!$B$16) -> 26269.83333 | X94: =X$88*Inputs!$B$10*$S94+($S94*Inputs!$B$16) -> 28658 | Y94: =Y$88*Inputs!$B$10*$S94+($S94*Inputs!$B$16) -> 31046.16667 | Z94: =Z$88*Inputs!$B$10*$S94+($S94*Inputs!$B$16) -> 33434.33333 | AA94: =AA$88*Inputs!$B$10*$S94+($S94*Inputs!$B$16) -> 35822.5 | AB94: =AB$88*Inputs!$B$10*$S94+($S94*Inputs!$B$16) -> 38210.66667 | AC94: =AC$88*Inputs!$B$10*$S94+($S94*Inputs!$B$16) -> 40598.83333 | AD94: =AD$88*Inputs!$B$10*$S94+($S94*Inputs!$B$16) -> 42987 | AE94: =AE$88*Inputs!$B$10*$S94+($S94*Inputs!$B$16) -> 45375.16667 | AF94: =AF$88*Inputs!$B$10*$S94+($S94*Inputs!$B$16) -> 47763.33333
S95: 10 | T95: =T$88*Inputs!$B$10*$S95+($S95*Inputs!$B$16) -> 38210.66667 | U95: =U$88*Inputs!$B$10*$S95+($S95*Inputs!$B$16) -> 42987 | V95: =V$88*Inputs!$B$10*$S95+($S95*Inputs!$B$16) -> 47763.33333 | W95: =W$88*Inputs!$B$10*$S95+($S95*Inputs!$B$16) -> 52539.66667 | X95: =X$88*Inputs!$B$10*$S95+($S95*Inputs!$B$16) -> 57316 | Y95: =Y$88*Inputs!$B$10*$S95+($S95*Inputs!$B$16) -> 62092.33333 | Z95: =Z$88*Inputs!$B$10*$S95+($S95*Inputs!$B$16) -> 66868.66667 | AA95: =AA$88*Inputs!$B$10*$S95+($S95*Inputs!$B$16) -> 71645 | AB95: =AB$88*Inputs!$B$10*$S95+($S95*Inputs!$B$16) -> 76421.33333 | AC95: =AC$88*Inputs!$B$10*$S95+($S95*Inputs!$B$16) -> 81197.66667 | AD95: =AD$88*Inputs!$B$10*$S95+($S95*Inputs!$B$16) -> 85974 | AE95: =AE$88*Inputs!$B$10*$S95+($S95*Inputs!$B$16) -> 90750.33333 | AF95: =AF$88*Inputs!$B$10*$S95+($S95*Inputs!$B$16) -> 95526.66667
S96: 15 | T96: =T$88*Inputs!$B$10*$S96+($S96*Inputs!$B$16) -> 57316 | U96: =U$88*Inputs!$B$10*$S96+($S96*Inputs!$B$16) -> 64480.5 | V96: =V$88*Inputs!$B$10*$S96+($S96*Inputs!$B$16) -> 71645 | W96: =W$88*Inputs!$B$10*$S96+($S96*Inputs!$B$16) -> 78809.5 | X96: =X$88*Inputs!$B$10*$S96+($S96*Inputs!$B$16) -> 85974 | Y96: =Y$88*Inputs!$B$10*$S96+($S96*Inputs!$B$16) -> 93138.5 | Z96: =Z$88*Inputs!$B$10*$S96+($S96*Inputs!$B$16) -> 100303 | AA96: =AA$88*Inputs!$B$10*$S96+($S96*Inputs!$B$16) -> 107467.5 | AB96: =AB$88*Inputs!$B$10*$S96+($S96*Inputs!$B$16) -> 114632 | AC96: =AC$88*Inputs!$B$10*$S96+($S96*Inputs!$B$16) -> 121796.5 | AD96: =AD$88*Inputs!$B$10*$S96+($S96*Inputs!$B$16) -> 128961 | AE96: =AE$88*Inputs!$B$10*$S96+($S96*Inputs!$B$16) -> 136125.5 | AF96: =AF$88*Inputs!$B$10*$S96+($S96*Inputs!$B$16) -> 143290
S97: 20 | T97: =T$88*Inputs!$B$10*$S97+($S97*Inputs!$B$16) -> 76421.33333 | U97: =U$88*Inputs!$B$10*$S97+($S97*Inputs!$B$16) -> 85974 | V97: =V$88*Inputs!$B$10*$S97+($S97*Inputs!$B$16) -> 95526.66667 | W97: =W$88*Inputs!$B$10*$S97+($S97*Inputs!$B$16) -> 105079.3333 | X97: =X$88*Inputs!$B$10*$S97+($S97*Inputs!$B$16) -> 114632 | Y97: =Y$88*Inputs!$B$10*$S97+($S97*Inputs!$B$16) -> 124184.6667 | Z97: =Z$88*Inputs!$B$10*$S97+($S97*Inputs!$B$16) -> 133737.3333 | AA97: =AA$88*Inputs!$B$10*$S97+($S97*Inputs!$B$16) -> 143290 | AB97: =AB$88*Inputs!$B$10*$S97+($S97*Inputs!$B$16) -> 152842.6667 | AC97: =AC$88*Inputs!$B$10*$S97+($S97*Inputs!$B$16) -> 162395.3333 | AD97: =AD$88*Inputs!$B$10*$S97+($S97*Inputs!$B$16) -> 171948 | AE97: =AE$88*Inputs!$B$10*$S97+($S97*Inputs!$B$16) -> 181500.6667 | AF97: =AF$88*Inputs!$B$10*$S97+($S97*Inputs!$B$16) -> 191053.3333
S98: 25 | T98: =T$88*Inputs!$B$10*$S98+($S98*Inputs!$B$16) -> 95526.66667 | U98: =U$88*Inputs!$B$10*$S98+($S98*Inputs!$B$16) -> 107467.5 | V98: =V$88*Inputs!$B$10*$S98+($S98*Inputs!$B$16) -> 119408.3333 | W98: =W$88*Inputs!$B$10*$S98+($S98*Inputs!$B$16) -> 131349.1667 | X98: =X$88*Inputs!$B$10*$S98+($S98*Inputs!$B$16) -> 143290 | Y98: =Y$88*Inputs!$B$10*$S98+($S98*Inputs!$B$16) -> 155230.8333 | Z98: =Z$88*Inputs!$B$10*$S98+($S98*Inputs!$B$16) -> 167171.6667 | AA98: =AA$88*Inputs!$B$10*$S98+($S98*Inputs!$B$16) -> 179112.5 | AB98: =AB$88*Inputs!$B$10*$S98+($S98*Inputs!$B$16) -> 191053.3333 | AC98: =AC$88*Inputs!$B$10*$S98+($S98*Inputs!$B$16) -> 202994.1667 | AD98: =AD$88*Inputs!$B$10*$S98+($S98*Inputs!$B$16) -> 214935 | AE98: =AE$88*Inputs!$B$10*$S98+($S98*Inputs!$B$16) -> 226875.8333 | AF98: =AF$88*Inputs!$B$10*$S98+($S98*Inputs!$B$16) -> 238816.6667
S99: 30 | T99: =T$88*Inputs!$B$10*$S99+($S99*Inputs!$B$16) -> 114632 | U99: =U$88*Inputs!$B$10*$S99+($S99*Inputs!$B$16) -> 128961 | V99: =V$88*Inputs!$B$10*$S99+($S99*Inputs!$B$16) -> 143290 | W99: =W$88*Inputs!$B$10*$S99+($S99*Inputs!$B$16) -> 157619 | X99: =X$88*Inputs!$B$10*$S99+($S99*Inputs!$B$16) -> 171948 | Y99: =Y$88*Inputs!$B$10*$S99+($S99*Inputs!$B$16) -> 186277 | Z99: =Z$88*Inputs!$B$10*$S99+($S99*Inputs!$B$16) -> 200606 | AA99: =AA$88*Inputs!$B$10*$S99+($S99*Inputs!$B$16) -> 214935 | AB99: =AB$88*Inputs!$B$10*$S99+($S99*Inputs!$B$16) -> 229264 | AC99: =AC$88*Inputs!$B$10*$S99+($S99*Inputs!$B$16) -> 243593 | AD99: =AD$88*Inputs!$B$10*$S99+($S99*Inputs!$B$16) -> 257922 | AE99: =AE$88*Inputs!$B$10*$S99+($S99*Inputs!$B$16) -> 272251 | AF99: =AF$88*Inputs!$B$10*$S99+($S99*Inputs!$B$16) -> 286580
T102: Operator Labor Cost
S103: 1 | T103: =((T$89+Inputs!$K$13)*Inputs!$B$10*$S103) + (Inputs!$D$32*$S103) + Inputs!$B$20 + Inputs!$B$25 + 'Maintenance Costs'!$E$34 + Inputs!$B$31 + ($S$103 * Inputs!$B$30) -> 21771.27694 | U103: =((U$89+Inputs!$K$13)*Inputs!$B$10*$S103) + (Inputs!$D$32*$S103) + Inputs!$B$20 + Inputs!$B$25 + 'Maintenance Costs'!$E$34 + Inputs!$B$31 + ($S$103 * Inputs!$B$30) -> 21903.4617 | V103: =((V$89+Inputs!$K$13)*Inputs!$B$10*$S103) + (Inputs!$D$32*$S103) + Inputs!$B$20 + Inputs!$B$25 + 'Maintenance Costs'!$E$34 + Inputs!$B$31 + ($S$103 * Inputs!$B$30) -> 22035.64645 | W103: =((W$89+Inputs!$K$13)*Inputs!$B$10*$S103) + (Inputs!$D$32*$S103) + Inputs!$B$20 + Inputs!$B$25 + 'Maintenance Costs'!$E$34 + Inputs!$B$31 + ($S$103 * Inputs!$B$30) -> 22167.83121 | X103: =((X$89+Inputs!$K$13)*Inputs!$B$10*$S103) + (Inputs!$D$32*$S103) + Inputs!$B$20 + Inputs!$B$25 + 'Maintenance Costs'!$E$34 + Inputs!$B$31 + ($S$103 * Inputs!$B$30) -> 22300.01596 | Y103: =((Y$89+Inputs!$K$13)*Inputs!$B$10*$S103) + (Inputs!$D$32*$S103) + Inputs!$B$20 + Inputs!$B$25 + 'Maintenance Costs'!$E$34 + Inputs!$B$31 + ($S$103 * Inputs!$B$30) -> 22432.20072 | Z103: =((Z$89+Inputs!$K$13)*Inputs!$B$10*$S103) + (Inputs!$D$32*$S103) + Inputs!$B$20 + Inputs!$B$25 + 'Maintenance Costs'!$E$34 + Inputs!$B$31 + ($S$103 * Inputs!$B$30) -> 22564.38547 | AA103: =((AA$89+Inputs!$K$13)*Inputs!$B$10*$S103) + (Inputs!$D$32*$S103) + Inputs!$B$20 + Inputs!$B$25 + 'Maintenance Costs'!$E$34 + Inputs!$B$31 + ($S$103 * Inputs!$B$30) -> 22696.57023 | AB103: =((AB$89+Inputs!$K$13)*Inputs!$B$10*$S103) + (Inputs!$D$32*$S103) + Inputs!$B$20 + Inputs!$B$25 + 'Maintenance Costs'!$E$34 + Inputs!$B$31 + ($S$103 * Inputs!$B$30) -> 22828.75498 | AC103: =((AC$89+Inputs!$K$13)*Inputs!$B$10*$S103) + (Inputs!$D$32*$S103) + Inputs!$B$20 + Inputs!$B$25 + 'Maintenance Costs'!$E$34 + Inputs!$B$31 + ($S$103 * Inputs!$B$30) -> 22960.93974 | AD103: =((AD$89+Inputs!$K$13)*Inputs!$B$10*$S103) + (Inputs!$D$32*$S103) + Inputs!$B$20 + Inputs!$B$25 + 'Maintenance Costs'!$E$34 + Inputs!$B$31 + ($S$103 * Inputs!$B$30) -> 23093.1245 | AE103: =((AE$89+Inputs!$K$13)*Inputs!$B$10*$S103) + (Inputs!$D$32*$S103) + Inputs!$B$20 + Inputs!$B$25 + 'Maintenance Costs'!$E$34 + Inputs!$B$31 + ($S$103 * Inputs!$B$30) -> 23225.30925 | AF103: =((AF$89+Inputs!$K$13)*Inputs!$B$10*$S103) + (Inputs!$D$32*$S103) + Inputs!$B$20 + Inputs!$B$25 + 'Maintenance Costs'!$E$34 + Inputs!$B$31 + ($S$103 * Inputs!$B$30) -> 23357.49401
S104: 5 | T104: =((T$89+Inputs!$K$13)*Inputs!$B$10*$S104) + (Inputs!$D$32*$S104) + Inputs!$B$20 + Inputs!$B$25 + 'Maintenance Costs'!$I$34 + Inputs!$B$31+ ($S$104 * Inputs!$B$30) -> 29996.6647 | U104: =((U$89+Inputs!$K$13)*Inputs!$B$10*$S104) + (Inputs!$D$32*$S104) + Inputs!$B$20 + Inputs!$B$25 + 'Maintenance Costs'!$I$34 + Inputs!$B$31+ ($S$104 * Inputs!$B$30) -> 30657.58848 | V104: =((V$89+Inputs!$K$13)*Inputs!$B$10*$S104) + (Inputs!$D$32*$S104) + Inputs!$B$20 + Inputs!$B$25 + 'Maintenance Costs'!$I$34 + Inputs!$B$31+ ($S$104 * Inputs!$B$30) -> 31318.51226 | W104: =((W$89+Inputs!$K$13)*Inputs!$B$10*$S104) + (Inputs!$D$32*$S104) + Inputs!$B$20 + Inputs!$B$25 + 'Maintenance Costs'!$I$34 + Inputs!$B$31+ ($S$104 * Inputs!$B$30) -> 31979.43604 | X104: =((X$89+Inputs!$K$13)*Inputs!$B$10*$S104) + (Inputs!$D$32*$S104) + Inputs!$B$20 + Inputs!$B$25 + 'Maintenance Costs'!$I$34 + Inputs!$B$31+ ($S$104 * Inputs!$B$30) -> 32640.35981 | Y104: =((Y$89+Inputs!$K$13)*Inputs!$B$10*$S104) + (Inputs!$D$32*$S104) + Inputs!$B$20 + Inputs!$B$25 + 'Maintenance Costs'!$I$34 + Inputs!$B$31+ ($S$104 * Inputs!$B$30) -> 33301.28359 | Z104: =((Z$89+Inputs!$K$13)*Inputs!$B$10*$S104) + (Inputs!$D$32*$S104) + Inputs!$B$20 + Inputs!$B$25 + 'Maintenance Costs'!$I$34 + Inputs!$B$31+ ($S$104 * Inputs!$B$30) -> 33962.20737 | AA104: =((AA$89+Inputs!$K$13)*Inputs!$B$10*$S104) + (Inputs!$D$32*$S104) + Inputs!$B$20 + Inputs!$B$25 + 'Maintenance Costs'!$I$34 + Inputs!$B$31+ ($S$104 * Inputs!$B$30) -> 34623.13115 | AB104: =((AB$89+Inputs!$K$13)*Inputs!$B$10*$S104) + (Inputs!$D$32*$S104) + Inputs!$B$20 + Inputs!$B$25 + 'Maintenance Costs'!$I$34 + Inputs!$B$31+ ($S$104 * Inputs!$B$30) -> 35284.05492 | AC104: =((AC$89+Inputs!$K$13)*Inputs!$B$10*$S104) + (Inputs!$D$32*$S104) + Inputs!$B$20 + Inputs!$B$25 + 'Maintenance Costs'!$I$34 + Inputs!$B$31+ ($S$104 * Inputs!$B$30) -> 35944.9787 | AD104: =((AD$89+Inputs!$K$13)*Inputs!$B$10*$S104) + (Inputs!$D$32*$S104) + Inputs!$B$20 + Inputs!$B$25 + 'Maintenance Costs'!$I$34 + Inputs!$B$31+ ($S$104 * Inputs!$B$30) -> 36605.90248 | AE104: =((AE$89+Inputs!$K$13)*Inputs!$B$10*$S104) + (Inputs!$D$32*$S104) + Inputs!$B$20 + Inputs!$B$25 + 'Maintenance Costs'!$I$34 + Inputs!$B$31+ ($S$104 * Inputs!$B$30) -> 37266.82625 | AF104: =((AF$89+Inputs!$K$13)*Inputs!$B$10*$S104) + (Inputs!$D$32*$S104) + Inputs!$B$20 + Inputs!$B$25 + 'Maintenance Costs'!$I$34 + Inputs!$B$31+ ($S$104 * Inputs!$B$30) -> 37927.75003
S105: 10 | T105: =((T$89+Inputs!$K$13)*Inputs!$B$10*$S105) + (Inputs!$D$32*$S105) + Inputs!$B$20 + Inputs!$B$25 + 'Maintenance Costs'!$N$34+ Inputs!$B$31+ ($S$105 * Inputs!$B$30) -> 41170.02941 | U105: =((U$89+Inputs!$K$13)*Inputs!$B$10*$S105) + (Inputs!$D$32*$S105) + Inputs!$B$20 + Inputs!$B$25 + 'Maintenance Costs'!$N$34+ Inputs!$B$31+ ($S$105 * Inputs!$B$30) -> 42491.87696 | V105: =((V$89+Inputs!$K$13)*Inputs!$B$10*$S105) + (Inputs!$D$32*$S105) + Inputs!$B$20 + Inputs!$B$25 + 'Maintenance Costs'!$N$34+ Inputs!$B$31+ ($S$105 * Inputs!$B$30) -> 43813.72452 | W105: =((W$89+Inputs!$K$13)*Inputs!$B$10*$S105) + (Inputs!$D$32*$S105) + Inputs!$B$20 + Inputs!$B$25 + 'Maintenance Costs'!$N$34+ Inputs!$B$31+ ($S$105 * Inputs!$B$30) -> 45135.57207 | X105: =((X$89+Inputs!$K$13)*Inputs!$B$10*$S105) + (Inputs!$D$32*$S105) + Inputs!$B$20 + Inputs!$B$25 + 'Maintenance Costs'!$N$34+ Inputs!$B$31+ ($S$105 * Inputs!$B$30) -> 46457.41963 | Y105: =((Y$89+Inputs!$K$13)*Inputs!$B$10*$S105) + (Inputs!$D$32*$S105) + Inputs!$B$20 + Inputs!$B$25 + 'Maintenance Costs'!$N$34+ Inputs!$B$31+ ($S$105 * Inputs!$B$30) -> 47779.26718 | Z105: =((Z$89+Inputs!$K$13)*Inputs!$B$10*$S105) + (Inputs!$D$32*$S105) + Inputs!$B$20 + Inputs!$B$25 + 'Maintenance Costs'!$N$34+ Inputs!$B$31+ ($S$105 * Inputs!$B$30) -> 49101.11474 | AA105: =((AA$89+Inputs!$K$13)*Inputs!$B$10*$S105) + (Inputs!$D$32*$S105) + Inputs!$B$20 + Inputs!$B$25 + 'Maintenance Costs'!$N$34+ Inputs!$B$31+ ($S$105 * Inputs!$B$30) -> 50422.96229 | AB105: =((AB$89+Inputs!$K$13)*Inputs!$B$10*$S105) + (Inputs!$D$32*$S105) + Inputs!$B$20 + Inputs!$B$25 + 'Maintenance Costs'!$N$34+ Inputs!$B$31+ ($S$105 * Inputs!$B$30) -> 51744.80985 | AC105: =((AC$89+Inputs!$K$13)*Inputs!$B$10*$S105) + (Inputs!$D$32*$S105) + Inputs!$B$20 + Inputs!$B$25 + 'Maintenance Costs'!$N$34+ Inputs!$B$31+ ($S$105 * Inputs!$B$30) -> 53066.6574 | AD105: =((AD$89+Inputs!$K$13)*Inputs!$B$10*$S105) + (Inputs!$D$32*$S105) + Inputs!$B$20 + Inputs!$B$25 + 'Maintenance Costs'!$N$34+ Inputs!$B$31+ ($S$105 * Inputs!$B$30) -> 54388.50496 | AE105: =((AE$89+Inputs!$K$13)*Inputs!$B$10*$S105) + (Inputs!$D$32*$S105) + Inputs!$B$20 + Inputs!$B$25 + 'Maintenance Costs'!$N$34+ Inputs!$B$31+ ($S$105 * Inputs!$B$30) -> 55710.35251 | AF105: =((AF$89+Inputs!$K$13)*Inputs!$B$10*$S105) + (Inputs!$D$32*$S105) + Inputs!$B$20 + Inputs!$B$25 + 'Maintenance Costs'!$N$34+ Inputs!$B$31+ ($S$105 * Inputs!$B$30) -> 57032.20006
S106: 15 | T106: =((T$89+Inputs!$K$13)*Inputs!$B$10*$S106) + (Inputs!$D$32*$S106) + Inputs!$B$20 + Inputs!$B$25 + 'Maintenance Costs'!$S$34+ Inputs!$B$31+ ($S$106 * Inputs!$B$30) -> 51947.11411 | U106: =((U$89+Inputs!$K$13)*Inputs!$B$10*$S106) + (Inputs!$D$32*$S106) + Inputs!$B$20 + Inputs!$B$25 + 'Maintenance Costs'!$S$34+ Inputs!$B$31+ ($S$106 * Inputs!$B$30) -> 53929.88545 | V106: =((V$89+Inputs!$K$13)*Inputs!$B$10*$S106) + (Inputs!$D$32*$S106) + Inputs!$B$20 + Inputs!$B$25 + 'Maintenance Costs'!$S$34+ Inputs!$B$31+ ($S$106 * Inputs!$B$30) -> 55912.65678 | W106: =((W$89+Inputs!$K$13)*Inputs!$B$10*$S106) + (Inputs!$D$32*$S106) + Inputs!$B$20 + Inputs!$B$25 + 'Maintenance Costs'!$S$34+ Inputs!$B$31+ ($S$106 * Inputs!$B$30) -> 57895.42811 | X106: =((X$89+Inputs!$K$13)*Inputs!$B$10*$S106) + (Inputs!$D$32*$S106) + Inputs!$B$20 + Inputs!$B$25 + 'Maintenance Costs'!$S$34+ Inputs!$B$31+ ($S$106 * Inputs!$B$30) -> 59878.19944 | Y106: =((Y$89+Inputs!$K$13)*Inputs!$B$10*$S106) + (Inputs!$D$32*$S106) + Inputs!$B$20 + Inputs!$B$25 + 'Maintenance Costs'!$S$34+ Inputs!$B$31+ ($S$106 * Inputs!$B$30) -> 61860.97077 | Z106: =((Z$89+Inputs!$K$13)*Inputs!$B$10*$S106) + (Inputs!$D$32*$S106) + Inputs!$B$20 + Inputs!$B$25 + 'Maintenance Costs'!$S$34+ Inputs!$B$31+ ($S$106 * Inputs!$B$30) -> 63843.74211 | AA106: =((AA$89+Inputs!$K$13)*Inputs!$B$10*$S106) + (Inputs!$D$32*$S106) + Inputs!$B$20 + Inputs!$B$25 + 'Maintenance Costs'!$S$34+ Inputs!$B$31+ ($S$106 * Inputs!$B$30) -> 65826.51344 | AB106: =((AB$89+Inputs!$K$13)*Inputs!$B$10*$S106) + (Inputs!$D$32*$S106) + Inputs!$B$20 + Inputs!$B$25 + 'Maintenance Costs'!$S$34+ Inputs!$B$31+ ($S$106 * Inputs!$B$30) -> 67809.28477 | AC106: =((AC$89+Inputs!$K$13)*Inputs!$B$10*$S106) + (Inputs!$D$32*$S106) + Inputs!$B$20 + Inputs!$B$25 + 'Maintenance Costs'!$S$34+ Inputs!$B$31+ ($S$106 * Inputs!$B$30) -> 69792.0561 | AD106: =((AD$89+Inputs!$K$13)*Inputs!$B$10*$S106) + (Inputs!$D$32*$S106) + Inputs!$B$20 + Inputs!$B$25 + 'Maintenance Costs'!$S$34+ Inputs!$B$31+ ($S$106 * Inputs!$B$30) -> 71774.82743 | AE106: =((AE$89+Inputs!$K$13)*Inputs!$B$10*$S106) + (Inputs!$D$32*$S106) + Inputs!$B$20 + Inputs!$B$25 + 'Maintenance Costs'!$S$34+ Inputs!$B$31+ ($S$106 * Inputs!$B$30) -> 73757.59876 | AF106: =((AF$89+Inputs!$K$13)*Inputs!$B$10*$S106) + (Inputs!$D$32*$S106) + Inputs!$B$20 + Inputs!$B$25 + 'Maintenance Costs'!$S$34+ Inputs!$B$31+ ($S$106 * Inputs!$B$30) -> 75740.3701
S107: 20 | T107: =((T$89+Inputs!$K$13)*Inputs!$B$10*$S107) + (Inputs!$D$32*$S107) + Inputs!$B$20 + Inputs!$B$25 + 'Maintenance Costs'!$X$34+ Inputs!$B$31+ ($S$107 * Inputs!$B$30) -> 64012.10882 | U107: =((U$89+Inputs!$K$13)*Inputs!$B$10*$S107) + (Inputs!$D$32*$S107) + Inputs!$B$20 + Inputs!$B$25 + 'Maintenance Costs'!$X$34+ Inputs!$B$31+ ($S$107 * Inputs!$B$30) -> 66655.80393 | V107: =((V$89+Inputs!$K$13)*Inputs!$B$10*$S107) + (Inputs!$D$32*$S107) + Inputs!$B$20 + Inputs!$B$25 + 'Maintenance Costs'!$X$34+ Inputs!$B$31+ ($S$107 * Inputs!$B$30) -> 69299.49904 | W107: =((W$89+Inputs!$K$13)*Inputs!$B$10*$S107) + (Inputs!$D$32*$S107) + Inputs!$B$20 + Inputs!$B$25 + 'Maintenance Costs'!$X$34+ Inputs!$B$31+ ($S$107 * Inputs!$B$30) -> 71943.19415 | X107: =((X$89+Inputs!$K$13)*Inputs!$B$10*$S107) + (Inputs!$D$32*$S107) + Inputs!$B$20 + Inputs!$B$25 + 'Maintenance Costs'!$X$34+ Inputs!$B$31+ ($S$107 * Inputs!$B$30) -> 74586.88926 | Y107: =((Y$89+Inputs!$K$13)*Inputs!$B$10*$S107) + (Inputs!$D$32*$S107) + Inputs!$B$20 + Inputs!$B$25 + 'Maintenance Costs'!$X$34+ Inputs!$B$31+ ($S$107 * Inputs!$B$30) -> 77230.58436 | Z107: =((Z$89+Inputs!$K$13)*Inputs!$B$10*$S107) + (Inputs!$D$32*$S107) + Inputs!$B$20 + Inputs!$B$25 + 'Maintenance Costs'!$X$34+ Inputs!$B$31+ ($S$107 * Inputs!$B$30) -> 79874.27947 | AA107: =((AA$89+Inputs!$K$13)*Inputs!$B$10*$S107) + (Inputs!$D$32*$S107) + Inputs!$B$20 + Inputs!$B$25 + 'Maintenance Costs'!$X$34+ Inputs!$B$31+ ($S$107 * Inputs!$B$30) -> 82517.97458 | AB107: =((AB$89+Inputs!$K$13)*Inputs!$B$10*$S107) + (Inputs!$D$32*$S107) + Inputs!$B$20 + Inputs!$B$25 + 'Maintenance Costs'!$X$34+ Inputs!$B$31+ ($S$107 * Inputs!$B$30) -> 85161.66969 | AC107: =((AC$89+Inputs!$K$13)*Inputs!$B$10*$S107) + (Inputs!$D$32*$S107) + Inputs!$B$20 + Inputs!$B$25 + 'Maintenance Costs'!$X$34+ Inputs!$B$31+ ($S$107 * Inputs!$B$30) -> 87805.3648 | AD107: =((AD$89+Inputs!$K$13)*Inputs!$B$10*$S107) + (Inputs!$D$32*$S107) + Inputs!$B$20 + Inputs!$B$25 + 'Maintenance Costs'!$X$34+ Inputs!$B$31+ ($S$107 * Inputs!$B$30) -> 90449.05991 | AE107: =((AE$89+Inputs!$K$13)*Inputs!$B$10*$S107) + (Inputs!$D$32*$S107) + Inputs!$B$20 + Inputs!$B$25 + 'Maintenance Costs'!$X$34+ Inputs!$B$31+ ($S$107 * Inputs!$B$30) -> 93092.75502 | AF107: =((AF$89+Inputs!$K$13)*Inputs!$B$10*$S107) + (Inputs!$D$32*$S107) + Inputs!$B$20 + Inputs!$B$25 + 'Maintenance Costs'!$X$34+ Inputs!$B$31+ ($S$107 * Inputs!$B$30) -> 95736.45013
S108: 25 | T108: =((T$89+Inputs!$K$13)*Inputs!$B$10*$S108) + (Inputs!$D$32*$S108) + Inputs!$B$20 + Inputs!$B$25 + 'Maintenance Costs'!$AC$34+ Inputs!$B$31+ ($S$108 * Inputs!$B$30) -> 74789.19352 | U108: =((U$89+Inputs!$K$13)*Inputs!$B$10*$S108) + (Inputs!$D$32*$S108) + Inputs!$B$20 + Inputs!$B$25 + 'Maintenance Costs'!$AC$34+ Inputs!$B$31+ ($S$108 * Inputs!$B$30) -> 78093.81241 | V108: =((V$89+Inputs!$K$13)*Inputs!$B$10*$S108) + (Inputs!$D$32*$S108) + Inputs!$B$20 + Inputs!$B$25 + 'Maintenance Costs'!$AC$34+ Inputs!$B$31+ ($S$108 * Inputs!$B$30) -> 81398.4313 | W108: =((W$89+Inputs!$K$13)*Inputs!$B$10*$S108) + (Inputs!$D$32*$S108) + Inputs!$B$20 + Inputs!$B$25 + 'Maintenance Costs'!$AC$34+ Inputs!$B$31+ ($S$108 * Inputs!$B$30) -> 84703.05018 | X108: =((X$89+Inputs!$K$13)*Inputs!$B$10*$S108) + (Inputs!$D$32*$S108) + Inputs!$B$20 + Inputs!$B$25 + 'Maintenance Costs'!$AC$34+ Inputs!$B$31+ ($S$108 * Inputs!$B$30) -> 88007.66907 | Y108: =((Y$89+Inputs!$K$13)*Inputs!$B$10*$S108) + (Inputs!$D$32*$S108) + Inputs!$B$20 + Inputs!$B$25 + 'Maintenance Costs'!$AC$34+ Inputs!$B$31+ ($S$108 * Inputs!$B$30) -> 91312.28796 | Z108: =((Z$89+Inputs!$K$13)*Inputs!$B$10*$S108) + (Inputs!$D$32*$S108) + Inputs!$B$20 + Inputs!$B$25 + 'Maintenance Costs'!$AC$34+ Inputs!$B$31+ ($S$108 * Inputs!$B$30) -> 94616.90684 | AA108: =((AA$89+Inputs!$K$13)*Inputs!$B$10*$S108) + (Inputs!$D$32*$S108) + Inputs!$B$20 + Inputs!$B$25 + 'Maintenance Costs'!$AC$34+ Inputs!$B$31+ ($S$108 * Inputs!$B$30) -> 97921.52573 | AB108: =((AB$89+Inputs!$K$13)*Inputs!$B$10*$S108) + (Inputs!$D$32*$S108) + Inputs!$B$20 + Inputs!$B$25 + 'Maintenance Costs'!$AC$34+ Inputs!$B$31+ ($S$108 * Inputs!$B$30) -> 101226.1446 | AC108: =((AC$89+Inputs!$K$13)*Inputs!$B$10*$S108) + (Inputs!$D$32*$S108) + Inputs!$B$20 + Inputs!$B$25 + 'Maintenance Costs'!$AC$34+ Inputs!$B$31+ ($S$108 * Inputs!$B$30) -> 104530.7635 | AD108: =((AD$89+Inputs!$K$13)*Inputs!$B$10*$S108) + (Inputs!$D$32*$S108) + Inputs!$B$20 + Inputs!$B$25 + 'Maintenance Costs'!$AC$34+ Inputs!$B$31+ ($S$108 * Inputs!$B$30) -> 107835.3824 | AE108: =((AE$89+Inputs!$K$13)*Inputs!$B$10*$S108) + (Inputs!$D$32*$S108) + Inputs!$B$20 + Inputs!$B$25 + 'Maintenance Costs'!$AC$34+ Inputs!$B$31+ ($S$108 * Inputs!$B$30) -> 111140.0013 | AF108: =((AF$89+Inputs!$K$13)*Inputs!$B$10*$S108) + (Inputs!$D$32*$S108) + Inputs!$B$20 + Inputs!$B$25 + 'Maintenance Costs'!$AC$34+ Inputs!$B$31+ ($S$108 * Inputs!$B$30) -> 114444.6202
S109: 30 | T109: =((T$89+Inputs!$K$13)*Inputs!$B$10*$S109) + (Inputs!$D$32*$S109) + Inputs!$B$20 + Inputs!$B$25 + 'Maintenance Costs'!$AH$34+ Inputs!$B$31+ ($S$109 * Inputs!$B$30) -> 87151.39823 | U109: =((U$89+Inputs!$K$13)*Inputs!$B$10*$S109) + (Inputs!$D$32*$S109) + Inputs!$B$20 + Inputs!$B$25 + 'Maintenance Costs'!$AH$34+ Inputs!$B$31+ ($S$109 * Inputs!$B$30) -> 91116.94089 | V109: =((V$89+Inputs!$K$13)*Inputs!$B$10*$S109) + (Inputs!$D$32*$S109) + Inputs!$B$20 + Inputs!$B$25 + 'Maintenance Costs'!$AH$34+ Inputs!$B$31+ ($S$109 * Inputs!$B$30) -> 95082.48356 | W109: =((W$89+Inputs!$K$13)*Inputs!$B$10*$S109) + (Inputs!$D$32*$S109) + Inputs!$B$20 + Inputs!$B$25 + 'Maintenance Costs'!$AH$34+ Inputs!$B$31+ ($S$109 * Inputs!$B$30) -> 99048.02622 | X109: =((X$89+Inputs!$K$13)*Inputs!$B$10*$S109) + (Inputs!$D$32*$S109) + Inputs!$B$20 + Inputs!$B$25 + 'Maintenance Costs'!$AH$34+ Inputs!$B$31+ ($S$109 * Inputs!$B$30) -> 103013.5689 | Y109: =((Y$89+Inputs!$K$13)*Inputs!$B$10*$S109) + (Inputs!$D$32*$S109) + Inputs!$B$20 + Inputs!$B$25 + 'Maintenance Costs'!$AH$34+ Inputs!$B$31+ ($S$109 * Inputs!$B$30) -> 106979.1115 | Z109: =((Z$89+Inputs!$K$13)*Inputs!$B$10*$S109) + (Inputs!$D$32*$S109) + Inputs!$B$20 + Inputs!$B$25 + 'Maintenance Costs'!$AH$34+ Inputs!$B$31+ ($S$109 * Inputs!$B$30) -> 110944.6542 | AA109: =((AA$89+Inputs!$K$13)*Inputs!$B$10*$S109) + (Inputs!$D$32*$S109) + Inputs!$B$20 + Inputs!$B$25 + 'Maintenance Costs'!$AH$34+ Inputs!$B$31+ ($S$109 * Inputs!$B$30) -> 114910.1969 | AB109: =((AB$89+Inputs!$K$13)*Inputs!$B$10*$S109) + (Inputs!$D$32*$S109) + Inputs!$B$20 + Inputs!$B$25 + 'Maintenance Costs'!$AH$34+ Inputs!$B$31+ ($S$109 * Inputs!$B$30) -> 118875.7395 | AC109: =((AC$89+Inputs!$K$13)*Inputs!$B$10*$S109) + (Inputs!$D$32*$S109) + Inputs!$B$20 + Inputs!$B$25 + 'Maintenance Costs'!$AH$34+ Inputs!$B$31+ ($S$109 * Inputs!$B$30) -> 122841.2822 | AD109: =((AD$89+Inputs!$K$13)*Inputs!$B$10*$S109) + (Inputs!$D$32*$S109) + Inputs!$B$20 + Inputs!$B$25 + 'Maintenance Costs'!$AH$34+ Inputs!$B$31+ ($S$109 * Inputs!$B$30) -> 126806.8249 | AE109: =((AE$89+Inputs!$K$13)*Inputs!$B$10*$S109) + (Inputs!$D$32*$S109) + Inputs!$B$20 + Inputs!$B$25 + 'Maintenance Costs'!$AH$34+ Inputs!$B$31+ ($S$109 * Inputs!$B$30) -> 130772.3675 | AF109: =((AF$89+Inputs!$K$13)*Inputs!$B$10*$S109) + (Inputs!$D$32*$S109) + Inputs!$B$20 + Inputs!$B$25 + 'Maintenance Costs'!$AH$34+ Inputs!$B$31+ ($S$109 * Inputs!$B$30) -> 134737.9102
Y122: Operator Labor Cost
P124: 0.015 | Q124: 0.02 | R124: 0.025 | S124: 0.03 | T124: 0.04 | U124: 0.05 | V124: 0.06 | W124: 0.07 | Z124: -0.02 | AA124: -0.015 | AB124: -0.01 | AC124: -0.005 | AD124: 0 | AE124: 0.005 | AF124: 0.01 | AG124: 0.015 | AH124: 0.02 | AI124: 0.025 | AJ124: 0.03 | AK124: 0.04 | AL124: 0.05 | AM124: 0.06 | AN124: 0.07
H125: Hand Labor Price
P126: =Inputs!$B$14 -> 17.8 | Q126: =Inputs!$B$14 -> 17.8 | R126: =Inputs!$B$14 -> 17.8 | S126: =Inputs!$B$14 -> 17.8 | T126: =Inputs!$B$14 -> 17.8 | U126: =Inputs!$B$14 -> 17.8 | V126: =Inputs!$B$14 -> 17.8 | W126: =Inputs!$B$14 -> 17.8 | Y126: 1 | Z126: =Inputs!$B$18 -> 21.25 | AA126: =Inputs!$B$18 -> 21.25 | AB126: =Inputs!$B$18 -> 21.25 | AC126: =Inputs!$B$18 -> 21.25 | AD126: =Inputs!$B$18 -> 21.25 | AE126: =Inputs!$B$18 -> 21.25 | AF126: =Inputs!$B$18 -> 21.25 | AG126: =Inputs!$B$18 -> 21.25 | AH126: =Inputs!$B$18 -> 21.25 | AI126: =Inputs!$B$18 -> 21.25 | AJ126: =Inputs!$B$18 -> 21.25 | AK126: =Inputs!$B$18 -> 21.25 | AL126: =Inputs!$B$18 -> 21.25 | AM126: =Inputs!$B$18 -> 21.25 | AN126: =Inputs!$B$18 -> 21.25
I127: -0.02 | J127: -0.015 | K127: -0.01 | L127: -0.005 | M127: 0 | N127: 0.005 | O127: 0.01 | P127: =P126*1.015 -> 18.067 | Q127: =Q126*1.02 -> 18.156 | R127: =R126*1.025 -> 18.245 | S127: =S126*1.03 -> 18.334 | T127: =T126*1.04 -> 18.512 | U127: =U126*1.05 -> 18.69 | V127: =V126*1.06 -> 18.868 | W127: =W126*1.07 -> 19.046 | Y127: =Y126+1 -> 2 | Z127: =Z126*0.98 -> 20.825 | AA127: =AA126*0.985 -> 20.93125 | AB127: =AB126*0.99 -> 21.0375 | AC127: =AC126*0.995 -> 21.14375 | AD127: =Inputs!$B$18 -> 21.25 | AE127: =AE126*1.005 -> 21.35625 | AF127: =AF126*1.01 -> 21.4625 | AG127: =AG126*1.015 -> 21.56875 | AH127: =AH126*1.02 -> 21.675 | AI127: =AI126*1.025 -> 21.78125 | AJ127: =AJ126*1.03 -> 21.8875 | AK127: =AK126*1.04 -> 22.1 | AL127: =AL126*1.05 -> 22.3125 | AM127: =AM126*1.06 -> 22.525 | AN127: =AN126*1.07 -> 22.7375
P128: =P127*1.015 -> 18.338005 | Q128: =Q127*1.02 -> 18.51912 | R128: =R127*1.025 -> 18.701125 | S128: =S127*1.03 -> 18.88402 | T128: =T127*1.04 -> 19.25248 | U128: =U127*1.05 -> 19.6245 | V128: =V127*1.06 -> 20.00008 | W128: =W127*1.07 -> 20.37922 | Y128: =Y127+1 -> 3 | Z128: =Z127*0.98 -> 20.4085 | AA128: =AA127*0.985 -> 20.61728125 | AB128: =AB127*0.99 -> 20.827125 | AC128: =AC127*0.995 -> 21.03803125 | AD128: =Inputs!$B$18 -> 21.25 | AE128: =AE127*1.005 -> 21.46303125 | AF128: =AF127*1.01 -> 21.677125 | AG128: =AG127*1.015 -> 21.89228125 | AH128: =AH127*1.02 -> 22.1085 | AI128: =AI127*1.025 -> 22.32578125 | AJ128: =AJ127*1.03 -> 22.544125 | AK128: =AK127*1.04 -> 22.984 | AL128: =AL127*1.05 -> 23.428125 | AM128: =AM127*1.06 -> 23.8765 | AN128: =AN127*1.07 -> 24.329125
H129: 1 | I129: =Inputs!$B$14 -> 17.8 | J129: =Inputs!$B$14 -> 17.8 | K129: =Inputs!$B$14 -> 17.8 | L129: =Inputs!$B$14 -> 17.8 | M129: =Inputs!$B$14 -> 17.8 | N129: =Inputs!$B$14 -> 17.8 | O129: =Inputs!$B$14 -> 17.8 | P129: 18.61307507 | Q129: 18.8895024 | R129: 19.16865312 | S129: 19.4505406 | T129: 20.0225792 | U129: 20.605725 | V129: 21.2000848 | W129: 21.8057654 | Y129: 4 | Z129: 20.00033 | AA129: 20.30802203 | AB129: 20.61885375 | AC129: 20.93284109 | AD129: =Inputs!$B$18 -> 21.25 | AE129: 21.57034641 | AF129: 21.89389625 | AG129: 22.22066547 | AH129: 22.55067 | AI129: 22.88392578 | AJ129: 23.22044875 | AK129: 23.90336 | AL129: 24.59953125 | AM129: 25.30909 | AN129: 26.03216375
H130: =H129+1 -> 2 | I130: =I129*0.98 -> 17.444 | J130: =J129*0.985 -> 17.533 | K130: =K129*0.99 -> 17.622 | L130: =L129*0.995 -> 17.711 | M130: =Inputs!$B$14 -> 17.8 | N130: =N129*1.005 -> 17.889 | O130: =O129*1.01 -> 17.978 | P130: 18.8922712 | Q130: 19.26729245 | R130: 19.64786945 | S130: 20.03405682 | T130: 20.82348237 | U130: 21.63601125 | V130: 22.47208989 | W130: 23.33216898 | Y130: 5 | Z130: 19.6003234 | AA130: 20.0034017 | AB130: 20.41266521 | AC130: 20.82817689 | AD130: =Inputs!$B$18 -> 21.25 | AE130: 21.67819814 | AF130: 22.11283521 | AG130: 22.55397545 | AH130: 23.0016834 | AI130: 23.45602393 | AJ130: 23.91706221 | AK130: 24.8594944 | AL130: 25.82950781 | AM130: 26.8276354 | AN130: 27.85441521
H131: =H130+1 -> 3 | I131: =I130*0.98 -> 17.09512 | J131: =J130*0.985 -> 17.270005 | K131: =K130*0.99 -> 17.44578 | L131: =L130*0.995 -> 17.622445 | M131: =Inputs!$B$14 -> 17.8 | N131: =N130*1.005 -> 17.978445 | O131: =O130*1.01 -> 18.15778 | P131: 19.17565527 | Q131: 19.6526383 | R131: 20.13906619 | S131: 20.63507852 | T131: 21.65642166 | U131: 22.71781181 | V131: 23.82041528 | W131: 24.96542081 | Y131: 6 | Z131: 19.20831693 | AA131: 19.70335068 | AB131: 20.20853856 | AC131: 20.724036 | AD131: =Inputs!$B$18 -> 21.25 | AE131: 21.78658913 | AF131: 22.33396356 | AG131: 22.89228508 | AH131: 23.46171707 | AI131: 24.04242452 | AJ131: 24.63457408 | AK131: 25.85387418 | AL131: 27.1209832 | AM131: 28.43729352 | AN131: 29.80422428
H132: 4 | I132: 16.7532176 | J132: 17.01095493 | K132: 17.2713222 | L132: 17.53433278 | M132: =Inputs!$B$14 -> 17.8 | N132: 18.06833722 | O132: 18.3393578 | P132: 19.4632901 | Q132: 20.04569106 | R132: 20.64254284 | S132: 21.25413088 | T132: 22.52267853 | U132: 23.8537024 | V132: 25.2496402 | W132: 26.71300026 | Y132: 7 | Z132: 18.82415059 | AA132: 19.40780042 | AB132: 20.00645317 | AC132: 20.62041582 | AD132: =Inputs!$B$18 -> 21.25 | AE132: 21.89552207 | AF132: 22.5573032 | AG132: 23.23566936 | AH132: 23.93095141 | AI132: 24.64348514 | AJ132: 25.3736113 | AK132: 26.88802914 | AL132: 28.47703236 | AM132: 30.14353114 | AN132: 31.89051998
H133: 5 | I133: 16.41815325 | J133: 16.7557906 | K133: 17.09860898 | L133: 17.44666111 | M133: =Inputs!$B$14 -> 17.8 | N133: 18.15867891 | O133: 18.52275138 | P133: 19.75523945 | Q133: 20.44660488 | R133: 21.15860642 | S133: 21.8917548 | T133: 23.42358567 | U133: 25.04638752 | V133: 26.76461861 | W133: 28.58291028 | Y133: 8 | Z133: 18.44766758 | AA133: 19.11668341 | AB133: 19.80638864 | AC133: 20.51731374 | AD133: =Inputs!$B$18 -> 21.25 | AE133: 22.00499968 | AF133: 22.78287623 | AG133: 23.5842044 | AH133: 24.40957044 | AI133: 25.25957227 | AJ133: 26.13481964 | AK133: 27.96355031 | AL133: 29.90088398 | AM133: 31.952143 | AN133: 34.12285638
H134: 6 | I134: 16.08979018 | J134: 16.50445374 | K134: 16.92762289 | L134: 17.35942781 | M134: =Inputs!$B$14 -> 17.8 | N134: 18.24947231 | O134: 18.70797889 | P134: 20.05156804 | Q134: 20.85553698 | R134: 21.68757158 | S134: 22.54850745 | T134: 24.3605291 | U134: 26.2987069 | V134: 28.37049573 | W134: 30.583714 | Y134: 9 | Z134: 18.07871423 | AA134: 18.82993316 | AB134: 19.60832476 | AC134: 20.41472718 | AD134: =Inputs!$B$18 -> 21.25 | AE134: 22.11502468 | AF134: 23.01070499 | AG134: 23.93796747 | AH134: 24.89776185 | AI134: 25.89106157 | AJ134: 26.91886423 | AK134: 29.08209232 | AL134: 31.39592818 | AM134: 33.86927158 | AN134: 36.51145632
H135: 7 | I135: 15.76799438 | J135: 16.25688694 | K135: 16.75834666 | L135: 17.27263067 | M135: =Inputs!$B$14 -> 17.8 | N135: 18.34071967 | O135: 18.89505868 | P135: 20.35234156 | Q135: 21.27264772 | R135: 22.22976087 | S135: 23.22496267 | T135: 25.33495026 | U135: 27.61364224 | V135: 30.07272547 | W135: 32.72457398 | Y135: 10 | Z135: 17.71713995 | AA135: 18.54748416 | AB135: 19.41224151 | AC135: 20.31265354 | AD135: =Inputs!$B$18 -> 21.25 | AE135: 22.22559981 | AF135: 23.24081204 | AG135: 24.29703698 | AH135: 25.39571708 | AI135: 26.53833811 | AJ135: 27.72643016 | AK135: 30.24537601 | AL135: 32.96572459 | AM135: 35.90142788 | AN135: 39.06725826
H136: 8 | I136: 15.45263449 | J136: 16.01303363 | K136: 16.59076319 | L136: 17.18626751 | M136: =Inputs!$B$14 -> 17.8 | N136: 18.43242327 | O136: 19.08400927 | P136: 20.65762669 | Q136: 21.69810068 | R136: 22.78550489 | S136: 23.92171155 | T136: 26.34834827 | U136: 28.99432436 | V136: 31.877089 | W136: 35.01529416 | Y136: 11 | Z136: 17.36279715 | AA136: 18.2692719 | AB136: 19.21811909 | AC136: 20.21109027 | AD136: =Inputs!$B$18 -> 21.25 | AE136: 22.33672781 | AF136: 23.47322016 | AG136: 24.66149253 | AH136: 25.90363142 | AI136: 27.20179656 | AJ136: 28.55822306 | AK136: 31.45519105 | AL136: 34.61401082 | AM136: 38.05551355 | AN136: 41.80196634
H137: 9 | I137: 15.1435818 | J137: 15.77283813 | K137: 16.42485556 | L137: 17.10033618 | M137: =Inputs!$B$14 -> 17.8 | N137: 18.52458538 | O137: 19.27484936 | P137: 20.96749109 | Q137: 22.13206269 | R137: 23.35514251 | S137: 24.6393629 | T137: 27.4022822 | U137: 30.44404057 | V137: 33.78971434 | W137: 37.46636475 | Y137: 12 | Z137: 17.0155412 | AA137: 17.99523282 | AB137: 19.0259379 | AC137: 20.11003482 | AD137: =Inputs!$B$18 -> 21.25 | AE137: 22.44841144 | AF137: 23.70795237 | AG137: 25.03141492 | AH137: 26.42170405 | AI137: 27.88184148 | AJ137: 29.41496975 | AK137: 32.7133987 | AL137: 36.34471136 | AM137: 40.33884436 | AN137: 44.72810399
H138: 10 | I138: 14.84071017 | J138: 15.53624556 | K138: 16.26060701 | L138: 17.01483449 | M138: =Inputs!$B$14 -> 17.8 | N138: 18.61720831 | O138: 19.46759785 | P138: 21.28200345 | Q138: 22.57470394 | R138: 23.93902107 | S138: 25.37854379 | T138: 28.49837349 | U138: 31.9662426 | V138: 35.8170972 | W138: 40.08901028 | Y138: 13 | Z138: 16.67523038 | AA138: 17.72530433 | AB138: 18.83567852 | AC138: 20.00948465 | AD138: =Inputs!$B$18 -> 21.25 | AE138: 22.5606535 | AF138: 23.94503189 | AG138: 25.40688614 | AH138: 26.95013813 | AI138: 28.57888752 | AJ138: 30.29741885 | AK138: 34.02193464 | AL138: 38.16194693 | AM138: 42.75917503 | AN138: 47.85907127
H139: 11 | I139: 14.54389596 | J139: 15.30320187 | K139: 16.09800094 | L139: 16.92976032 | M139: =Inputs!$B$14 -> 17.8 | N139: 18.71029435 | O139: 19.66227383 | P139: 21.6012335 | Q139: 23.02619802 | R139: 24.5374966 | S139: 26.1399001 | T139: 29.63830843 | U139: 33.56455473 | V139: 37.96612303 | W139: 42.895241 | Y139: 14 | Z139: 16.34172577 | AA139: 17.45942476 | AB139: 18.64732174 | AC139: 19.90943722 | AD139: =Inputs!$B$18 -> 21.25 | AE139: 22.67345677 | AF139: 24.18448221 | AG139: 25.78798944 | AH139: 27.4891409 | AI139: 29.2933597 | AJ139: 31.20634141 | AK139: 35.38281203 | AL139: 40.07004427 | AM139: 45.32472553 | AN139: 51.20920625
H140: 12 | I140: 14.25301804 | J140: 15.07365384 | K140: 15.93702093 | L140: 16.84511152 | M140: =Inputs!$B$14 -> 17.8 | N140: 18.80384582 | O140: 19.85889657 | P140: 21.92525201 | Q140: 23.48672198 | R140: 25.15093401 | S140: 26.9240971 | T140: 30.82384077 | U140: 35.24278247 | V140: 40.24409041 | W140: 45.89790787 | Y140: 15 | Z140: 16.01489126 | AA140: 17.19753339 | AB140: 18.46084852 | AC140: 19.80989004 | AD140: =Inputs!$B$18 -> 21.25 | AE140: 22.78682405 | AF140: 24.42632703 | AG140: 26.17480928 | AH140: 28.03892372 | AI140: 30.0256937 | AJ140: 32.14253165 | AK140: 36.79812451 | AL140: 42.07354649 | AM140: 48.04420906 | AN140: 54.79385069
H141: 13 | I141: 13.96795768 | J141: 14.84754904 | K141: 15.77765072 | L141: 16.76088596 | M141: =Inputs!$B$14 -> 17.8 | N141: 18.89786505 | O141: 20.05748554 | P141: 22.25413079 | Q141: 23.95645642 | R141: 25.77970736 | S141: 27.73182002 | T141: 32.0567944 | U141: 37.00492159 | V141: 42.65873584 | W141: 49.11076142 | Y141: 16 | Z141: 15.69459343 | AA141: 16.93957039 | AB141: 18.27624004 | AC141: 19.71084059 | AD141: =Inputs!$B$18 -> 21.25 | AE141: 22.90075817 | AF141: 24.6705903 | AG141: 26.56743142 | AH141: 28.59970219 | AI141: 30.77633604 | AJ141: 33.1068076 | AK141: 38.27004949 | AL141: 44.17722381 | AM141: 50.9268616 | AN141: 58.62942024
H142: 14 | I142: 13.68859853 | J142: 14.6248358 | K142: 15.61987421 | L142: 16.67708153 | M142: =Inputs!$B$14 -> 17.8 | N142: 18.99235438 | O142: 20.25806039 | P142: 22.58794275 | Q142: 24.43558555 | R142: 26.42420005 | S142: 28.56377462 | T142: 33.33906617 | U142: 38.85516767 | V142: 45.21825999 | W142: 52.54851472 | Y142: 17 | Z142: 15.38070156 | AA142: 16.68547683 | AB142: 18.09347764 | AC142: 19.61228638 | AD142: =Inputs!$B$18 -> 21.25 | AE142: 23.01526196 | AF142: 24.9172962 | AG142: 26.96594289 | AH142: 29.17169623 | AI142: 31.54574444 | AJ142: 34.10001183 | AK142: 39.80085147 | AL142: 46.386085 | AM142: 53.9824733 | AN142: 62.73347966
H143: 15 | I143: 13.41482656 | J143: 14.40546326 | K143: 15.46367547 | L143: 16.59369613 | M143: =Inputs!$B$14 -> 17.8 | N143: 19.08731615 | O143: 20.460641 | P143: 22.92676189 | Q143: 24.92429726 | R143: 27.08480505 | S143: 29.42068785 | T143: 34.67262882 | U143: 40.79792606 | V143: 47.93135559 | W143: 56.22691076 | Y143: 18 | Z143: 15.07308753 | AA143: 16.43519468 | AB143: 17.91254286 | AC143: 19.51422495 | AD143: =Inputs!$B$18 -> 21.25 | AE143: 23.13033827 | AF143: 25.16646917 | AG143: 27.37043203 | AH143: 29.75513016 | AI143: 32.33438805 | AJ143: 35.12301219 | AK143: 41.39288553 | AL143: 48.70538925 | AM143: 57.2214217 | AN143: 67.12482323
H144: 16 | I144: 13.14653003 | J144: 14.18938131 | K144: 15.30903871 | L144: 16.51072764 | M144: =Inputs!$B$14 -> 17.8 | N144: 19.18275273 | O144: 20.66524741 | P144: 23.27066332 | Q144: 25.42278321 | R144: 27.76192518 | S144: 30.30330849 | T144: 36.05953397 | U144: 42.83782236 | V144: 50.80723692 | W144: 60.16279451 | Y144: 19 | Z144: 14.77162578 | AA144: 16.18866676 | AB144: 17.73341743 | AC144: 19.41665383 | AD144: =Inputs!$B$18 -> 21.25 | AE144: 23.24598997 | AF144: 25.41813386 | AG144: 27.78098851 | AH144: 30.35023276 | AI144: 33.14274775 | AJ144: 36.17670255 | AK144: 43.04860095 | AL144: 51.14065872 | AM144: 60.654707 | AN144: 71.82356086
H145: 17 | I145: 12.88359943 | J145: 13.9765406 | K145: 15.15594833 | L145: 16.42817401 | M145: =Inputs!$B$14 -> 17.8 | N145: 19.27866649 | O145: 20.87189988 | P145: 23.61972327 | Q145: 25.93123887 | R145: 28.4559733 | S145: 31.21240774 | T145: 37.50191533 | U145: 44.97971348 | V145: 53.85567114 | W145: 64.37419012 | Y145: 20 | Z145: 14.47619327 | AA145: 15.94583676 | AB145: 17.55608326 | AC145: 19.31957056 | AD145: =Inputs!$B$18 -> 21.25 | AE145: 23.36221992 | AF145: 25.6723152 | AG145: 28.19770334 | AH145: 30.95723742 | AI145: 33.97131645 | AJ145: 37.26200363 | AK145: 44.77054499 | AL145: 53.69769165 | AM145: 64.29398942 | AN145: 76.85121012
H146: 18 | I146: 12.62592744 | J146: 13.76689249 | K146: 15.00438884 | L146: 16.34603314 | M146: =Inputs!$B$14 -> 17.8 | N146: 19.37505983 | O146: 21.08061888 | P146: 23.97401912 | Q146: 26.44986365 | R146: 29.16737264 | S146: 32.14877998 | T146: 39.00199195 | U146: 47.22869915 | V146: 57.08701141 | W146: 68.88038343 | Y146: 21 | Z146: 14.1866694 | AA146: 15.70664921 | AB146: 17.38052242 | AC146: 19.22297271 | AD146: =Inputs!$B$18 -> 21.25 | AE146: 23.47903102 | AF146: 25.92903835 | AG146: 28.62066889 | AH146: 31.57638216 | AI146: 34.82059936 | AJ146: 38.37986374 | AK146: 46.56136679 | AL146: 56.38257623 | AM146: 68.15162878 | AN146: 82.23079483
H147: 19 | I147: 12.37340889 | J147: 13.5603891 | K147: 14.85434495 | L147: 16.26430297 | M147: =Inputs!$B$14 -> 17.8 | N147: 19.47193512 | O147: 21.29142507 | P147: 24.3336294 | Q147: 26.97886092 | R147: 29.89655695 | S147: 33.11324338 | T147: 40.56207162 | U147: 49.59013411 | V147: 60.51223209 | W147: 73.70201027 | Y147: 22 | Z147: 13.90293601 | AA147: 15.47104947 | AB147: 17.2067172 | AC147: 19.12685784 | AD147: =Inputs!$B$18 -> 21.25 | AE147: 23.59642617 | AF147: 26.18832873 | AG147: 29.04997892 | AH147: 32.20790981 | AI147: 35.69111434 | AJ147: 39.53125965 | AK147: 48.42382146 | AL147: 59.20170505 | AM147: 72.24072651 | AN147: 87.98695047
H148: 20 | I148: 12.12594071 | J148: 13.35698326 | K148: 14.7058015 | L148: 16.18298146 | M148: =Inputs!$B$14 -> 17.8 | N148: 19.5692948 | O148: 21.50433932 | P148: 24.69863384 | Q148: 27.51843814 | R148: 30.64397088 | S148: 34.10664068 | T148: 42.18455449 | U148: 52.06964081 | V148: 64.14296602 | W148: 78.86115099 | Y148: 23 | Z148: 13.62487729 | AA148: 15.23898373 | AB148: 17.03465003 | AC148: 19.03122355 | AD148: =Inputs!$B$18 -> 21.25 | AE148: 23.7144083 | AF148: 26.45021202 | AG148: 29.48572861 | AH148: 32.852068 | AI148: 36.5833922 | AJ148: 40.71719744 | AK148: 50.36077432 | AL148: 62.1617903 | AM148: 76.5751701 | AN148: 94.146037
H149: 21 | I149: 11.8834219 | J149: 13.15662851 | K149: 14.55874349 | L149: 16.10206655 | M149: =Inputs!$B$14 -> 17.8 | N149: 19.66714127 | O149: 21.71938271 | P149: 25.06911335 | Q149: 28.0688069 | R149: 31.41007015 | S149: 35.1298399 | T149: 43.87193667 | U149: 54.67312286 | V149: 67.99154398 | W149: 84.38143156 | Y149: 24 | Z149: 13.35237975 | AA149: 15.01039897 | AB149: 16.86430353 | AC149: 18.93606744 | AD149: =Inputs!$B$18 -> 21.25 | AE149: 23.83298034 | AF149: 26.71471414 | AG149: 29.92801454 | AH149: 33.50910936 | AI149: 37.497977 | AJ149: 41.93871336 | AK149: 52.37520529 | AL149: 65.26987981 | AM149: 81.16968031 | AN149: 100.7362596
H150: 22 | I150: 11.64575346 | J150: 12.95927909 | K150: 14.41315605 | L150: 16.02155622 | M150: =Inputs!$B$14 -> 17.8 | N150: 19.76547698 | O150: 21.93657654 | P150: 25.44515005 | Q150: 28.63018304 | R150: 32.1953219 | S150: 36.18373509 | T150: 45.62681414 | U150: 57.406779 | V150: 72.07103661 | W150: 90.28813177 | Y150: 25 | Z150: 13.08533215 | AA150: 14.78524299 | AB150: 16.69566049 | AC150: 18.8413871 | AD150: =Inputs!$B$18 -> 21.25 | AE150: 23.95214524 | AF150: 26.98186128 | AG150: 30.37693475 | AH150: 34.17929155 | AI150: 38.43542643 | AJ150: 43.19687476 | AK150: 54.4702135 | AL150: 68.5333738 | AM150: 86.03986113 | AN150: 107.7877978
H151: 23 | I151: 11.41283839 | J151: 12.7648899 | K151: 14.26902449 | L151: 15.94144844 | M151: =Inputs!$B$14 -> 17.8 | N151: 19.86430437 | O151: 22.1559423 | P151: 25.8268273 | Q151: 29.2027867 | R151: 33.00020495 | S151: 37.26924715 | T151: 47.4518867 | U151: 60.27711795 | V151: 76.39529881 | W151: 96.60830099 | Y151: 26 | Z151: 12.82362551 | AA151: 14.56346434 | AB151: 16.52870389 | AC151: 18.74718016 | AD151: =Inputs!$B$18 -> 21.25 | AE151: 24.07190597 | AF151: 27.25167989 | AG151: 30.83258877 | AH151: 34.86287738 | AI151: 39.39631209 | AJ151: 44.49278101 | AK151: 56.64902204 | AL151: 71.96004249 | AM151: 91.20225279 | AN151: 115.3329436
H152: 24 | I152: 11.18458162 | J152: 12.57341655 | K152: 14.12633425 | L152: 15.86174119 | M152: =Inputs!$B$14 -> 17.8 | N152: 19.96362589 | O152: 22.37750173 | P152: 26.21422971 | Q152: 29.78684244 | R152: 33.82521007 | S152: 38.38732456 | T152: 49.34996217 | U152: 63.29097385 | V152: 80.97901674 | W152: 103.3708821 | Y152: 27 | Z152: 12.567153 | AA152: 14.34501238 | AB152: 16.36341685 | AC152: 18.65344426 | AD152: =Inputs!$B$18 -> 21.25 | AE152: 24.1922655 | AF152: 27.52419669 | AG152: 31.29507761 | AH152: 35.56013493 | AI152: 40.38121989 | AJ152: 45.82756444 | AK152: 58.91498293 | AL152: 75.55804462 | AM152: 96.67438796 | AN152: 123.4062497
H153: 25 | I153: 10.96088999 | J153: 12.3848153 | K153: 13.98507091 | L153: 15.78243249 | M153: =Inputs!$B$14 -> 17.8 | N153: 20.06344402 | O153: 22.60127674 | P153: 26.60744316 | Q153: 30.38257928 | R153: 34.67084033 | S153: 39.5389443 | T153: 51.32396066 | U153: 66.45552254 | V153: 85.83775774 | W153: 110.6068438 | Y153: 28 | Z153: 12.31580994 | AA153: 14.12983719 | AB153: 16.19978268 | AC153: 18.56017704 | AD153: =Inputs!$B$18 -> 21.25 | AE153: 24.31322683 | AF153: 27.79943866 | AG153: 31.76450377 | AH153: 36.27133763 | AI153: 41.39075039 | AJ153: 47.20239137 | AK153: 61.27158224 | AL153: 79.33594685 | AM153: 102.4748512 | AN153: 132.0446871
H154: 26 | I154: 10.74167219 | J154: 12.19904307 | K154: 13.8452202 | L154: 15.70352032 | M154: =Inputs!$B$14 -> 17.8 | N154: 20.16376124 | O154: 22.82728951 | P154: 27.00655481 | Q154: 30.99023087 | R154: 35.53761133 | S154: 40.72511263 | T154: 53.37691908 | U154: 69.77829866 | V154: 90.98802321 | W154: 118.3493229 | Y154: 29 | Z154: 12.06949374 | AA154: 13.91788963 | AB154: 16.03778485 | AC154: 18.46737616 | AD154: =Inputs!$B$18 -> 21.25 | AE154: 24.43479296 | AF154: 28.07743305 | AG154: 32.24097133 | AH154: 36.99676438 | AI154: 42.42551915 | AJ154: 48.61846311 | AK154: 63.72244553 | AL154: 83.30274419 | AM154: 108.6233423 | AN154: 141.2878152
H155: 27 | I155: 10.52683875 | J155: 12.01605743 | K155: 13.706768 | L155: 15.62500272 | M155: =Inputs!$B$14 -> 17.8 | N155: 20.26458004 | O155: 23.05556241 | P155: 27.41165313 | Q155: 31.61003549 | R155: 36.42605162 | S155: 41.94686601 | T155: 55.51199584 | U155: 73.2672136 | V155: 96.4473046 | W155: 126.6337755 | Y155: 30 | Z155: 11.82810386 | AA155: 13.70912129 | AB155: 15.877407 | AC155: 18.37503927 | AD155: =Inputs!$B$18 -> 21.25 | AE155: 24.55696693 | AF155: 28.35820738 | AG155: 32.7245859 | AH155: 37.73669967 | AI155: 43.48615713 | AJ155: 50.077017 | AK155: 66.27134335 | AL155: 87.4678814 | AM155: 115.1407429 | AN155: 151.1779623
H156: 28 | I156: 10.31630197 | J156: 11.83581657 | K156: 13.56970032 | L156: 15.54687771 | M156: =Inputs!$B$14 -> 17.8 | N156: 20.36590294 | O156: 23.28611803
H157: 29 | I157: 10.10997593 | J157: 11.65827932 | K157: 13.43400331 | L157: 15.46914332 | M157: =Inputs!$B$14 -> 17.8 | N157: 20.46773246 | O157: 23.51897921
H158: 30 | I158: 9.907776413 | J158: 11.48340513 | K158: 13.29966328 | L158: 15.3917976 | M158: =Inputs!$B$14 -> 17.8 | N158: 20.57007112 | O158: =O157*1.01 -> 23.754169 | P158: =(Inputs!$H$10*'Sensitivity Analysis - Acreage'!P126) + (Inputs!$B$16) +P157 -> 4776.333333 | Q158: =(Inputs!$H$10*'Sensitivity Analysis - Acreage'!Q126) + (Inputs!$B$16) +Q157 -> 4776.333333 | R158: =(Inputs!$H$10*'Sensitivity Analysis - Acreage'!R126) + (Inputs!$B$16) +R157 -> 4776.333333 | S158: =(Inputs!$H$10*'Sensitivity Analysis - Acreage'!S126) + (Inputs!$B$16) +S157 -> 4776.333333 | T158: =(Inputs!$H$10*'Sensitivity Analysis - Acreage'!T126) + (Inputs!$B$16) +T157 -> 4776.333333 | U158: =(Inputs!$H$10*'Sensitivity Analysis - Acreage'!U126) + (Inputs!$B$16) +U157 -> 4776.333333 | V158: =(Inputs!$H$10*'Sensitivity Analysis - Acreage'!V126) + (Inputs!$B$16) +V157 -> 4776.333333 | W158: =(Inputs!$H$10*'Sensitivity Analysis - Acreage'!W126) + (Inputs!$B$16) +W157 -> 4776.333333 | Y158: 1 | Z158: =(Inputs!$H$13*Z126) +(Inputs!$K$13*Inputs!$B$10) + (Inputs!$D$32*'Sensitivity Analysis - Acreage'!$Y126)+Inputs!$B$31+ (Inputs!$B$30*'Sensitivity Analysis - Acreage'!$Y126) +Inputs!$B$20+Inputs!$B$25+'Maintenance Costs'!$E$34 -> 22035.64645 | AA158: =(Inputs!$H$13*AA126) +(Inputs!$K$13*Inputs!$B$10) + (Inputs!$D$32*'Sensitivity Analysis - Acreage'!$Y126)+Inputs!$B$31+ (Inputs!$B$30*'Sensitivity Analysis - Acreage'!$Y126) +Inputs!$B$20+Inputs!$B$25+'Maintenance Costs'!$E$34 -> 22035.64645 | AB158: =(Inputs!$H$13*AB126) +(Inputs!$K$13*Inputs!$B$10) + (Inputs!$D$32*'Sensitivity Analysis - Acreage'!$Y126)+Inputs!$B$31+ (Inputs!$B$30*'Sensitivity Analysis - Acreage'!$Y126) +Inputs!$B$20+Inputs!$B$25+'Maintenance Costs'!$E$34 -> 22035.64645 | AC158: =(Inputs!$H$13*AC126) +(Inputs!$K$13*Inputs!$B$10) + (Inputs!$D$32*'Sensitivity Analysis - Acreage'!$Y126)+Inputs!$B$31+ (Inputs!$B$30*'Sensitivity Analysis - Acreage'!$Y126) +Inputs!$B$20+Inputs!$B$25+'Maintenance Costs'!$E$34 -> 22035.64645 | AD158: =(Inputs!$H$13*AD126) +(Inputs!$K$13*Inputs!$B$10) + (Inputs!$D$32*'Sensitivity Analysis - Acreage'!$Y126)+Inputs!$B$31+ (Inputs!$B$30*'Sensitivity Analysis - Acreage'!$Y126) +Inputs!$B$20+Inputs!$B$25+'Maintenance Costs'!$E$34 -> 22035.64645 | AE158: =(Inputs!$H$13*AE126) +(Inputs!$K$13*Inputs!$B$10) + (Inputs!$D$32*'Sensitivity Analysis - Acreage'!$Y126)+Inputs!$B$31+ (Inputs!$B$30*'Sensitivity Analysis - Acreage'!$Y126) +Inputs!$B$20+Inputs!$B$25+'Maintenance Costs'!$E$34 -> 22035.64645 | AF158: =(Inputs!$H$13*AF126) +(Inputs!$K$13*Inputs!$B$10) + (Inputs!$D$32*'Sensitivity Analysis - Acreage'!$Y126)+Inputs!$B$31+ (Inputs!$B$30*'Sensitivity Analysis - Acreage'!$Y126) +Inputs!$B$20+Inputs!$B$25+'Maintenance Costs'!$E$34 -> 22035.64645 | AG158: =(Inputs!$H$13*AG126) +(Inputs!$K$13*Inputs!$B$10) + (Inputs!$D$32*'Sensitivity Analysis - Acreage'!$Y126)+Inputs!$B$31+ (Inputs!$B$30*'Sensitivity Analysis - Acreage'!$Y126) +Inputs!$B$20+Inputs!$B$25+'Maintenance Costs'!$E$34 -> 22035.64645 | AH158: =(Inputs!$H$13*AH126) +(Inputs!$K$13*Inputs!$B$10) + (Inputs!$D$32*'Sensitivity Analysis - Acreage'!$Y126)+Inputs!$B$31+ (Inputs!$B$30*'Sensitivity Analysis - Acreage'!$Y126) +Inputs!$B$20+Inputs!$B$25+'Maintenance Costs'!$E$34 -> 22035.64645 | AI158: =(Inputs!$H$13*AI126) +(Inputs!$K$13*Inputs!$B$10) + (Inputs!$D$32*'Sensitivity Analysis - Acreage'!$Y126)+Inputs!$B$31+ (Inputs!$B$30*'Sensitivity Analysis - Acreage'!$Y126) +Inputs!$B$20+Inputs!$B$25+'Maintenance Costs'!$E$34 -> 22035.64645 | AJ158: =(Inputs!$H$13*AJ126) +(Inputs!$K$13*Inputs!$B$10) + (Inputs!$D$32*'Sensitivity Analysis - Acreage'!$Y126)+Inputs!$B$31+ (Inputs!$B$30*'Sensitivity Analysis - Acreage'!$Y126) +Inputs!$B$20+Inputs!$B$25+'Maintenance Costs'!$E$34 -> 22035.64645 | AK158: =(Inputs!$H$13*AK126) +(Inputs!$K$13*Inputs!$B$10) + (Inputs!$D$32*'Sensitivity Analysis - Acreage'!$Y126)+Inputs!$B$31+ (Inputs!$B$30*'Sensitivity Analysis - Acreage'!$Y126) +Inputs!$B$20+Inputs!$B$25+'Maintenance Costs'!$E$34 -> 22035.64645 | AL158: =(Inputs!$H$13*AL126) +(Inputs!$K$13*Inputs!$B$10*'Sensitivity Analysis - Acreage'!$Y126) + (Inputs!$D$32*'Sensitivity Analysis - Acreage'!$Y126)+Inputs!$B$31+ (Inputs!$B$30*'Sensitivity Analysis - Acreage'!$Y126) +Inputs!$B$20+Inputs!$B$25+'Maintenance Costs'!$E$34 -> 22035.64645 | AM158: =(Inputs!$H$13*'Sensitivity Analysis - Acreage'!AM126)+(Inputs!$K$13*Inputs!$B$10*$Y126)+(Inputs!$D$32*'Sensitivity Analysis - Acreage'!$Y126)+Inputs!$B$31+(Inputs!$B$30*'Sensitivity Analysis - Acreage'!$Y126)+Inputs!$B$20+Inputs!$B$25+'Maintenance Costs'!$E$34 -> 22035.64645 | AN158: =(Inputs!$H$13*'Sensitivity Analysis - Acreage'!AN126)+(Inputs!$K$13*Inputs!$B$10*$Y126)+(Inputs!$D$32*'Sensitivity Analysis - Acreage'!$Y126)+Inputs!$B$31+(Inputs!$B$30*'Sensitivity Analysis - Acreage'!$Y126)+Inputs!$B$20+Inputs!$B$25+'Maintenance Costs'!$E$34 -> 22035.64645 | AP158: =AK158-AJ158 -> 0 | AQ158: =AL158-AK158 -> 0 | AR158: 0
P159: =(Inputs!$H$10*'Sensitivity Analysis - Acreage'!P127) + (Inputs!$B$16) +P158 -> 9624.311667 | Q159: =(Inputs!$H$10*'Sensitivity Analysis - Acreage'!Q127) + (Inputs!$B$16) +Q158 -> 9648.193333 | R159: =(Inputs!$H$10*'Sensitivity Analysis - Acreage'!R127) + (Inputs!$B$16) +R158 -> 9672.075 | S159: =(Inputs!$H$10*'Sensitivity Analysis - Acreage'!S127) + (Inputs!$B$16) +S158 -> 9695.956667 | T159: =(Inputs!$H$10*'Sensitivity Analysis - Acreage'!T127) + (Inputs!$B$16) +T158 -> 9743.72 | U159: =(Inputs!$H$10*'Sensitivity Analysis - Acreage'!U127) + (Inputs!$B$16) +U158 -> 9791.483333 | V159: =(Inputs!$H$10*'Sensitivity Analysis - Acreage'!V127) + (Inputs!$B$16) +V158 -> 9839.246667 | W159: =(Inputs!$H$10*'Sensitivity Analysis - Acreage'!W127) + (Inputs!$B$16) +W158 -> 9887.01 | Y159: =Y158+1 -> 2 | Z159: =(Inputs!$H$13*Z127) +(Inputs!$K$13*Inputs!$B$10) + (Inputs!$D$32*'Sensitivity Analysis - Acreage'!$Y127)+Inputs!$B$31+ (Inputs!$B$30*'Sensitivity Analysis - Acreage'!$Y127) +Inputs!$B$20+Inputs!$B$25+'Maintenance Costs'!$F$34 +(Z126*Inputs!$H$13)+(Inputs!$K$13*Inputs!$B$10 * 'Sensitivity Analysis - Acreage'!$Y126) -> 24230.85595 | AA159: =(Inputs!$H$13*AA127) +(Inputs!$K$13*Inputs!$B$10) + (Inputs!$D$32*'Sensitivity Analysis - Acreage'!$Y127)+Inputs!$B$31+ (Inputs!$B$30*'Sensitivity Analysis - Acreage'!$Y127) +Inputs!$B$20+Inputs!$B$25+'Maintenance Costs'!$F$34 +(AA126*Inputs!$H$13)+(Inputs!$K$13*Inputs!$B$10 * 'Sensitivity Analysis - Acreage'!$Y126) -> 24237.46519 | AB159: =(Inputs!$H$13*AB127) +(Inputs!$K$13*Inputs!$B$10) + (Inputs!$D$32*'Sensitivity Analysis - Acreage'!$Y127)+Inputs!$B$31+ (Inputs!$B$30*'Sensitivity Analysis - Acreage'!$Y127) +Inputs!$B$20+Inputs!$B$25+'Maintenance Costs'!$F$34 +(AB126*Inputs!$H$13)+(Inputs!$K$13*Inputs!$B$10 * 'Sensitivity Analysis - Acreage'!$Y126) -> 24244.07443 | AC159: =(Inputs!$H$13*AC127) +(Inputs!$K$13*Inputs!$B$10) + (Inputs!$D$32*'Sensitivity Analysis - Acreage'!$Y127)+Inputs!$B$31+ (Inputs!$B$30*'Sensitivity Analysis - Acreage'!$Y127) +Inputs!$B$20+Inputs!$B$25+'Maintenance Costs'!$F$34 +(AC126*Inputs!$H$13)+(Inputs!$K$13*Inputs!$B$10 * 'Sensitivity Analysis - Acreage'!$Y126) -> 24250.68367 | AD159: =(Inputs!$H$13*AD127) +(Inputs!$K$13*Inputs!$B$10) + (Inputs!$D$32*'Sensitivity Analysis - Acreage'!$Y127)+Inputs!$B$31+ (Inputs!$B$30*'Sensitivity Analysis - Acreage'!$Y127) +Inputs!$B$20+Inputs!$B$25+'Maintenance Costs'!$F$34 +(AD126*Inputs!$H$13)+(Inputs!$K$13*Inputs!$B$10 * 'Sensitivity Analysis - Acreage'!$Y126) -> 24257.2929 | AE159: =(Inputs!$H$13*AE127) +(Inputs!$K$13*Inputs!$B$10) + (Inputs!$D$32*'Sensitivity Analysis - Acreage'!$Y127)+Inputs!$B$31+ (Inputs!$B$30*'Sensitivity Analysis - Acreage'!$Y127) +Inputs!$B$20+Inputs!$B$25+'Maintenance Costs'!$F$34 +(AE126*Inputs!$H$13)+(Inputs!$K$13*Inputs!$B$10 * 'Sensitivity Analysis - Acreage'!$Y126) -> 24263.90214 | AF159: =(Inputs!$H$13*AF127) +(Inputs!$K$13*Inputs!$B$10) + (Inputs!$D$32*'Sensitivity Analysis - Acreage'!$Y127)+Inputs!$B$31+ (Inputs!$B$30*'Sensitivity Analysis - Acreage'!$Y127) +Inputs!$B$20+Inputs!$B$25+'Maintenance Costs'!$F$34 +(AF126*Inputs!$H$13)+(Inputs!$K$13*Inputs!$B$10 * 'Sensitivity Analysis - Acreage'!$Y126) -> 24270.51138 | AG159: =(Inputs!$H$13*AG127) +(Inputs!$K$13*Inputs!$B$10) + (Inputs!$D$32*'Sensitivity Analysis - Acreage'!$Y127)+Inputs!$B$31+ (Inputs!$B$30*'Sensitivity Analysis - Acreage'!$Y127) +Inputs!$B$20+Inputs!$B$25+'Maintenance Costs'!$F$34 +(AG126*Inputs!$H$13)+(Inputs!$K$13*Inputs!$B$10 * 'Sensitivity Analysis - Acreage'!$Y126) -> 24277.12062 | AH159: =(Inputs!$H$13*AH127) +(Inputs!$K$13*Inputs!$B$10) + (Inputs!$D$32*'Sensitivity Analysis - Acreage'!$Y127)+Inputs!$B$31+ (Inputs!$B$30*'Sensitivity Analysis - Acreage'!$Y127) +Inputs!$B$20+Inputs!$B$25+'Maintenance Costs'!$F$34 +(AH126*Inputs!$H$13)+(Inputs!$K$13*Inputs!$B$10 * 'Sensitivity Analysis - Acreage'!$Y126) -> 24283.72985 | AI159: =(Inputs!$H$13*AI127) +(Inputs!$K$13*Inputs!$B$10) + (Inputs!$D$32*'Sensitivity Analysis - Acreage'!$Y127)+Inputs!$B$31+ (Inputs!$B$30*'Sensitivity Analysis - Acreage'!$Y127) +Inputs!$B$20+Inputs!$B$25+'Maintenance Costs'!$F$34 +(AI126*Inputs!$H$13)+(Inputs!$K$13*Inputs!$B$10 * 'Sensitivity Analysis - Acreage'!$Y126) -> 24290.33909 | AJ159: =(Inputs!$H$13*AJ127) +(Inputs!$K$13*Inputs!$B$10) + (Inputs!$D$32*'Sensitivity Analysis - Acreage'!$Y127)+Inputs!$B$31+ (Inputs!$B$30*'Sensitivity Analysis - Acreage'!$Y127) +Inputs!$B$20+Inputs!$B$25+'Maintenance Costs'!$F$34 +(AJ126*Inputs!$H$13)+(Inputs!$K$13*Inputs!$B$10 * 'Sensitivity Analysis - Acreage'!$Y126) -> 24296.94833 | AK159: =(Inputs!$H$13*AK127) +(Inputs!$K$13*Inputs!$B$10) + (Inputs!$D$32*'Sensitivity Analysis - Acreage'!$Y127)+Inputs!$B$31+ (Inputs!$B$30*'Sensitivity Analysis - Acreage'!$Y127) +Inputs!$B$20+Inputs!$B$25+'Maintenance Costs'!$F$34 +(AK126*Inputs!$H$13)+(Inputs!$K$13*Inputs!$B$10 * 'Sensitivity Analysis - Acreage'!$Y126) -> 24310.16681 | AL159: =(Inputs!$H$13*AL127) +(Inputs!$K$13*Inputs!$B$10*'Sensitivity Analysis - Acreage'!$Y127) + (Inputs!$D$32*'Sensitivity Analysis - Acreage'!$Y127)+Inputs!$B$31+ (Inputs!$B$30*'Sensitivity Analysis - Acreage'!$Y127) +Inputs!$B$20+Inputs!$B$25+'Maintenance Costs'!$F$34 +(AL126*Inputs!$H$13) -> 24323.38528 | AM159: =(Inputs!$H$13*'Sensitivity Analysis - Acreage'!AM127)+(Inputs!$K$13*Inputs!$B$10*$Y127)+(Inputs!$D$32*'Sensitivity Analysis - Acreage'!$Y127)+Inputs!$B$31+(Inputs!$B$30*'Sensitivity Analysis - Acreage'!$Y127)+Inputs!$B$20+Inputs!$B$25+'Maintenance Costs'!$F$34+(Inputs!$H$13*'Sensitivity Analysis - Acreage'!$AM$126) -> 24336.60376 | AN159: =(Inputs!$H$13*'Sensitivity Analysis - Acreage'!AN127)+(Inputs!$K$13*Inputs!$B$10*$Y127)+(Inputs!$D$32*'Sensitivity Analysis - Acreage'!$Y127)+Inputs!$B$31+(Inputs!$B$30*'Sensitivity Analysis - Acreage'!$Y127)+Inputs!$B$20+Inputs!$B$25+'Maintenance Costs'!$F$34+(Inputs!$H$13*$AN$126) -> 24349.82223 | AP159: =AK159-AJ159 -> 13.21847555 | AQ159: 13.21847555 | AR159: 13.21847555
P160: =(Inputs!$H$10*'Sensitivity Analysis - Acreage'!P128) + (Inputs!$B$16) +P159 -> 14545.00967 | Q160: =(Inputs!$H$10*'Sensitivity Analysis - Acreage'!Q128) + (Inputs!$B$16) +Q159 -> 14617.49053 | R160: =(Inputs!$H$10*'Sensitivity Analysis - Acreage'!R128) + (Inputs!$B$16) +R159 -> 14690.21021 | S160: =(Inputs!$H$10*'Sensitivity Analysis - Acreage'!S128) + (Inputs!$B$16) +S159 -> 14763.1687 | T160: =(Inputs!$H$10*'Sensitivity Analysis - Acreage'!T128) + (Inputs!$B$16) +T159 -> 14909.80213 | U160: =(Inputs!$H$10*'Sensitivity Analysis - Acreage'!U128) + (Inputs!$B$16) +U159 -> 15057.39083 | V160: =(Inputs!$H$10*'Sensitivity Analysis - Acreage'!V128) + (Inputs!$B$16) +V159 -> 15205.9348 | W160: =(Inputs!$H$10*'Sensitivity Analysis - Acreage'!W128) + (Inputs!$B$16) +W159 -> 15355.43403 | Y160: =Y159+1 -> 3 | Z160: =(Inputs!$H$13*Z128) +(Inputs!$K$13*Inputs!$B$10) + (Inputs!$D$32*'Sensitivity Analysis - Acreage'!$Y128)+Inputs!$B$31+ (Inputs!$B$30*'Sensitivity Analysis - Acreage'!$Y128) +Inputs!$B$20+Inputs!$B$25+'Maintenance Costs'!$G$34 +(Z127*Inputs!$H$13)+(Inputs!$K$13*Inputs!$B$10 * 'Sensitivity Analysis - Acreage'!$Y127) + (Z126*Inputs!$H$13) -> 26400.15724 | AA160: =(Inputs!$H$13*AA128) +(Inputs!$K$13*Inputs!$B$10) + (Inputs!$D$32*'Sensitivity Analysis - Acreage'!$Y128)+Inputs!$B$31+ (Inputs!$B$30*'Sensitivity Analysis - Acreage'!$Y128) +Inputs!$B$20+Inputs!$B$25+'Maintenance Costs'!$G$34 +(AA127*Inputs!$H$13)+(Inputs!$K$13*Inputs!$B$10 * 'Sensitivity Analysis - Acreage'!$Y127) + (AA126*Inputs!$H$13) -> 26419.75363 | AB160: =(Inputs!$H$13*AB128) +(Inputs!$K$13*Inputs!$B$10) + (Inputs!$D$32*'Sensitivity Analysis - Acreage'!$Y128)+Inputs!$B$31+ (Inputs!$B$30*'Sensitivity Analysis - Acreage'!$Y128) +Inputs!$B$20+Inputs!$B$25+'Maintenance Costs'!$G$34 +(AB127*Inputs!$H$13)+(Inputs!$K$13*Inputs!$B$10 * 'Sensitivity Analysis - Acreage'!$Y127) + (AB126*Inputs!$H$13) -> 26439.41611 | AC160: =(Inputs!$H$13*AC128) +(Inputs!$K$13*Inputs!$B$10) + (Inputs!$D$32*'Sensitivity Analysis - Acreage'!$Y128)+Inputs!$B$31+ (Inputs!$B$30*'Sensitivity Analysis - Acreage'!$Y128) +Inputs!$B$20+Inputs!$B$25+'Maintenance Costs'!$G$34 +(AC127*Inputs!$H$13)+(Inputs!$K$13*Inputs!$B$10 * 'Sensitivity Analysis - Acreage'!$Y127) + (AC126*Inputs!$H$13) -> 26459.14469 | AD160: =(Inputs!$H$13*AD128) +(Inputs!$K$13*Inputs!$B$10) + (Inputs!$D$32*'Sensitivity Analysis - Acreage'!$Y128)+Inputs!$B$31+ (Inputs!$B$30*'Sensitivity Analysis - Acreage'!$Y128) +Inputs!$B$20+Inputs!$B$25+'Maintenance Costs'!$G$34 +(AD127*Inputs!$H$13)+(Inputs!$K$13*Inputs!$B$10 * 'Sensitivity Analysis - Acreage'!$Y127) + (AD126*Inputs!$H$13) -> 26478.93936 | AE160: =(Inputs!$H$13*AE128) +(Inputs!$K$13*Inputs!$B$10) + (Inputs!$D$32*'Sensitivity Analysis - Acreage'!$Y128)+Inputs!$B$31+ (Inputs!$B$30*'Sensitivity Analysis - Acreage'!$Y128) +Inputs!$B$20+Inputs!$B$25+'Maintenance Costs'!$G$34 +(AE127*Inputs!$H$13)+(Inputs!$K$13*Inputs!$B$10 * 'Sensitivity Analysis - Acreage'!$Y127) + (AE126*Inputs!$H$13) -> 26498.80012 | AF160: =(Inputs!$H$13*AF128) +(Inputs!$K$13*Inputs!$B$10) + (Inputs!$D$32*'Sensitivity Analysis - Acreage'!$Y128)+Inputs!$B$31+ (Inputs!$B$30*'Sensitivity Analysis - Acreage'!$Y128) +Inputs!$B$20+Inputs!$B$25+'Maintenance Costs'!$G$34 +(AF127*Inputs!$H$13)+(Inputs!$K$13*Inputs!$B$10 * 'Sensitivity Analysis - Acreage'!$Y127) + (AF126*Inputs!$H$13) -> 26518.72697 | AG160: =(Inputs!$H$13*AG128) +(Inputs!$K$13*Inputs!$B$10) + (Inputs!$D$32*'Sensitivity Analysis - Acreage'!$Y128)+Inputs!$B$31+ (Inputs!$B$30*'Sensitivity Analysis - Acreage'!$Y128) +Inputs!$B$20+Inputs!$B$25+'Maintenance Costs'!$G$34 +(AG127*Inputs!$H$13)+(Inputs!$K$13*Inputs!$B$10 * 'Sensitivity Analysis - Acreage'!$Y127) + (AG126*Inputs!$H$13) -> 26538.71991 | AH160: =(Inputs!$H$13*AH128) +(Inputs!$K$13*Inputs!$B$10) + (Inputs!$D$32*'Sensitivity Analysis - Acreage'!$Y128)+Inputs!$B$31+ (Inputs!$B$30*'Sensitivity Analysis - Acreage'!$Y128) +Inputs!$B$20+Inputs!$B$25+'Maintenance Costs'!$G$34 +(AH127*Inputs!$H$13)+(Inputs!$K$13*Inputs!$B$10 * 'Sensitivity Analysis - Acreage'!$Y127) + (AH126*Inputs!$H$13) -> 26558.77895 | AI160: =(Inputs!$H$13*AI128) +(Inputs!$K$13*Inputs!$B$10) + (Inputs!$D$32*'Sensitivity Analysis - Acreage'!$Y128)+Inputs!$B$31+ (Inputs!$B$30*'Sensitivity Analysis - Acreage'!$Y128) +Inputs!$B$20+Inputs!$B$25+'Maintenance Costs'!$G$34 +(AI127*Inputs!$H$13)+(Inputs!$K$13*Inputs!$B$10 * 'Sensitivity Analysis - Acreage'!$Y127) + (AI126*Inputs!$H$13) -> 26578.90408 | AJ160: =(Inputs!$H$13*AJ128) +(Inputs!$K$13*Inputs!$B$10) + (Inputs!$D$32*'Sensitivity Analysis - Acreage'!$Y128)+Inputs!$B$31+ (Inputs!$B$30*'Sensitivity Analysis - Acreage'!$Y128) +Inputs!$B$20+Inputs!$B$25+'Maintenance Costs'!$G$34 +(AJ127*Inputs!$H$13)+(Inputs!$K$13*Inputs!$B$10 * 'Sensitivity Analysis - Acreage'!$Y127) + (AJ126*Inputs!$H$13) -> 26599.0953 | AK160: =(Inputs!$H$13*AK128) +(Inputs!$K$13*Inputs!$B$10) + (Inputs!$D$32*'Sensitivity Analysis - Acreage'!$Y128)+Inputs!$B$31+ (Inputs!$B$30*'Sensitivity Analysis - Acreage'!$Y128) +Inputs!$B$20+Inputs!$B$25+'Maintenance Costs'!$G$34 +(AK127*Inputs!$H$13)+(Inputs!$K$13*Inputs!$B$10 * 'Sensitivity Analysis - Acreage'!$Y127) + (AK126*Inputs!$H$13) -> 26639.67602 | AL160: =(Inputs!$H$13*AL128) +(Inputs!$K$13*Inputs!$B$10* 'Sensitivity Analysis - Acreage'!$Y128) + (Inputs!$D$32*'Sensitivity Analysis - Acreage'!$Y128)+Inputs!$B$31+ (Inputs!$B$30*'Sensitivity Analysis - Acreage'!$Y128) +Inputs!$B$20+Inputs!$B$25+'Maintenance Costs'!$G$34 +(AL127*Inputs!$H$13) + (AL126*Inputs!$H$13) -> 26680.52111 | AM160: =(Inputs!$H$13*'Sensitivity Analysis - Acreage'!AM128)+(Inputs!$K$13*Inputs!$B$10*$Y128)+(Inputs!$D$32*'Sensitivity Analysis - Acreage'!$Y128)+Inputs!$B$31+(Inputs!$B$30*'Sensitivity Analysis - Acreage'!$Y128)+Inputs!$B$20+Inputs!$B$25+'Maintenance Costs'!$G$34+(Inputs!$H$13*'Sensitivity Analysis - Acreage'!$AM$126)+(Inputs!$H$13*$AM$127) -> 26721.63057 | AN160: =(Inputs!$H$13*'Sensitivity Analysis - Acreage'!AN128)+(Inputs!$K$13*Inputs!$B$10*$Y128)+(Inputs!$D$32*'Sensitivity Analysis - Acreage'!$Y128)+Inputs!$B$31+(Inputs!$B$30*'Sensitivity Analysis - Acreage'!$Y128)+Inputs!$B$20+Inputs!$B$25+'Maintenance Costs'!$G$34+(Inputs!$H$13*$AN$126)+(Inputs!$H$13*$AN$127) -> 26763.0044 | AP160: 40.58071993 | AQ160: 40.84508944 | AR160: 41.10945895
I161: =(Inputs!$H$10*'Sensitivity Analysis - Acreage'!I129) + (Inputs!$B$16) +I160 -> 4776.333333 | J161: =(Inputs!$H$10*'Sensitivity Analysis - Acreage'!J129) + (Inputs!$B$16) +J160 -> 4776.333333 | K161: =(Inputs!$H$10*'Sensitivity Analysis - Acreage'!K129) + (Inputs!$B$16) +K160 -> 4776.333333 | L161: =(Inputs!$H$10*'Sensitivity Analysis - Acreage'!L129) + (Inputs!$B$16) +L160 -> 4776.333333 | M161: =(Inputs!$H$10*'Sensitivity Analysis - Acreage'!M129) + (Inputs!$B$16) +M160 -> 4776.333333 | N161: =(Inputs!$H$10*'Sensitivity Analysis - Acreage'!N129) + (Inputs!$B$16) +N160 -> 4776.333333 | O161: =(Inputs!$H$10*'Sensitivity Analysis - Acreage'!O129) + (Inputs!$B$16) +O160 -> 4776.333333 | P161: =(Inputs!$H$10*'Sensitivity Analysis - Acreage'!P129) + (Inputs!$B$16) +P160 -> 19539.51815 | Q161: =(Inputs!$H$10*'Sensitivity Analysis - Acreage'!Q129) + (Inputs!$B$16) +Q160 -> 19686.17368 | R161: =(Inputs!$H$10*'Sensitivity Analysis - Acreage'!R129) + (Inputs!$B$16) +R160 -> 19833.7988 | S161: =(Inputs!$H$10*'Sensitivity Analysis - Acreage'!S129) + (Inputs!$B$16) +S160 -> 19982.39709 | T161: =(Inputs!$H$10*'Sensitivity Analysis - Acreage'!T129) + (Inputs!$B$16) +T160 -> 20282.52755 | U161: =(Inputs!$H$10*'Sensitivity Analysis - Acreage'!U129) + (Inputs!$B$16) +U160 -> 20586.59371 | V161: =(Inputs!$H$10*'Sensitivity Analysis - Acreage'!V129) + (Inputs!$B$16) +V160 -> 20894.62422 | W161: =(Inputs!$H$10*'Sensitivity Analysis - Acreage'!W129) + (Inputs!$B$16) +W160 -> 21206.64775 | Y161: 4 | Z161: =(Inputs!$H$13*Z129) +(Inputs!$K$13*Inputs!$B$10) + (Inputs!$D$32*'Sensitivity Analysis - Acreage'!$Y129)+Inputs!$B$31+ (Inputs!$B$30*'Sensitivity Analysis - Acreage'!$Y129) +Inputs!$B$20+Inputs!$B$25+'Maintenance Costs'!$H$34 +(Z128*Inputs!$H$13)+(Inputs!$K$13*Inputs!$B$10 * 'Sensitivity Analysis - Acreage'!$Y128) +(Z126*Inputs!$H$13)+('Sensitivity Analysis - Acreage'!Z127*Inputs!$H$13) -> 28940.34848 | AA161: =(Inputs!$H$13*AA129) +(Inputs!$K$13*Inputs!$B$10) + (Inputs!$D$32*'Sensitivity Analysis - Acreage'!$Y129)+Inputs!$B$31+ (Inputs!$B$30*'Sensitivity Analysis - Acreage'!$Y129) +Inputs!$B$20+Inputs!$B$25+'Maintenance Costs'!$H$34 +(AA128*Inputs!$H$13)+(Inputs!$K$13*Inputs!$B$10 * 'Sensitivity Analysis - Acreage'!$Y128) +(AA126*Inputs!$H$13)+('Sensitivity Analysis - Acreage'!AA127*Inputs!$H$13) -> 28979.08473 | AB161: =(Inputs!$H$13*AB129) +(Inputs!$K$13*Inputs!$B$10) + (Inputs!$D$32*'Sensitivity Analysis - Acreage'!$Y129)+Inputs!$B$31+ (Inputs!$B$30*'Sensitivity Analysis - Acreage'!$Y129) +Inputs!$B$20+Inputs!$B$25+'Maintenance Costs'!$H$34 +(AB128*Inputs!$H$13)+(Inputs!$K$13*Inputs!$B$10 * 'Sensitivity Analysis - Acreage'!$Y128) +(AB126*Inputs!$H$13)+('Sensitivity Analysis - Acreage'!AB127*Inputs!$H$13) -> 29018.08237 | AC161: =(Inputs!$H$13*AC129) +(Inputs!$K$13*Inputs!$B$10) + (Inputs!$D$32*'Sensitivity Analysis - Acreage'!$Y129)+Inputs!$B$31+ (Inputs!$B$30*'Sensitivity Analysis - Acreage'!$Y129) +Inputs!$B$20+Inputs!$B$25+'Maintenance Costs'!$H$34 +(AC128*Inputs!$H$13)+(Inputs!$K$13*Inputs!$B$10 * 'Sensitivity Analysis - Acreage'!$Y128) +(AC126*Inputs!$H$13)+('Sensitivity Analysis - Acreage'!AC127*Inputs!$H$13) -> 29057.3424 | AD161: =(Inputs!$H$13*AD129) +(Inputs!$K$13*Inputs!$B$10) + (Inputs!$D$32*'Sensitivity Analysis - Acreage'!$Y129)+Inputs!$B$31+ (Inputs!$B$30*'Sensitivity Analysis - Acreage'!$Y129) +Inputs!$B$20+Inputs!$B$25+'Maintenance Costs'!$H$34 +(AD128*Inputs!$H$13)+(Inputs!$K$13*Inputs!$B$10 * 'Sensitivity Analysis - Acreage'!$Y128) +(AD126*Inputs!$H$13)+('Sensitivity Analysis - Acreage'!AD127*Inputs!$H$13) -> 29096.86581 | AE161: =(Inputs!$H$13*AE129) +(Inputs!$K$13*Inputs!$B$10) + (Inputs!$D$32*'Sensitivity Analysis - Acreage'!$Y129)+Inputs!$B$31+ (Inputs!$B$30*'Sensitivity Analysis - Acreage'!$Y129) +Inputs!$B$20+Inputs!$B$25+'Maintenance Costs'!$H$34 +(AE128*Inputs!$H$13)+(Inputs!$K$13*Inputs!$B$10 * 'Sensitivity Analysis - Acreage'!$Y128) +(AE126*Inputs!$H$13)+('Sensitivity Analysis - Acreage'!AE127*Inputs!$H$13) -> 29136.65358 | AF161: =(Inputs!$H$13*AF129) +(Inputs!$K$13*Inputs!$B$10) + (Inputs!$D$32*'Sensitivity Analysis - Acreage'!$Y129)+Inputs!$B$31+ (Inputs!$B$30*'Sensitivity Analysis - Acreage'!$Y129) +Inputs!$B$20+Inputs!$B$25+'Maintenance Costs'!$H$34 +(AF128*Inputs!$H$13)+(Inputs!$K$13*Inputs!$B$10 * 'Sensitivity Analysis - Acreage'!$Y128) +(AF126*Inputs!$H$13)+('Sensitivity Analysis - Acreage'!AF127*Inputs!$H$13) -> 29176.70672 | AG161: =(Inputs!$H$13*AG129) +(Inputs!$K$13*Inputs!$B$10) + (Inputs!$D$32*'Sensitivity Analysis - Acreage'!$Y129)+Inputs!$B$31+ (Inputs!$B$30*'Sensitivity Analysis - Acreage'!$Y129) +Inputs!$B$20+Inputs!$B$25+'Maintenance Costs'!$H$34 +(AG128*Inputs!$H$13)+(Inputs!$K$13*Inputs!$B$10 * 'Sensitivity Analysis - Acreage'!$Y128) +(AG126*Inputs!$H$13)+('Sensitivity Analysis - Acreage'!AG127*Inputs!$H$13) -> 29217.02621 | AH161: =(Inputs!$H$13*AH129) +(Inputs!$K$13*Inputs!$B$10) + (Inputs!$D$32*'Sensitivity Analysis - Acreage'!$Y129)+Inputs!$B$31+ (Inputs!$B$30*'Sensitivity Analysis - Acreage'!$Y129) +Inputs!$B$20+Inputs!$B$25+'Maintenance Costs'!$H$34 +(AH128*Inputs!$H$13)+(Inputs!$K$13*Inputs!$B$10 * 'Sensitivity Analysis - Acreage'!$Y128) +(AH126*Inputs!$H$13)+('Sensitivity Analysis - Acreage'!AH127*Inputs!$H$13) -> 29257.61304 | AI161: =(Inputs!$H$13*AI129) +(Inputs!$K$13*Inputs!$B$10) + (Inputs!$D$32*'Sensitivity Analysis - Acreage'!$Y129)+Inputs!$B$31+ (Inputs!$B$30*'Sensitivity Analysis - Acreage'!$Y129) +Inputs!$B$20+Inputs!$B$25+'Maintenance Costs'!$H$34 +(AI128*Inputs!$H$13)+(Inputs!$K$13*Inputs!$B$10 * 'Sensitivity Analysis - Acreage'!$Y128) +(AI126*Inputs!$H$13)+('Sensitivity Analysis - Acreage'!AI127*Inputs!$H$13) -> 29298.46821 | AJ161: =(Inputs!$H$13*AJ129) +(Inputs!$K$13*Inputs!$B$10) + (Inputs!$D$32*'Sensitivity Analysis - Acreage'!$Y129)+Inputs!$B$31+ (Inputs!$B$30*'Sensitivity Analysis - Acreage'!$Y129) +Inputs!$B$20+Inputs!$B$25+'Maintenance Costs'!$H$34 +(AJ128*Inputs!$H$13)+(Inputs!$K$13*Inputs!$B$10 * 'Sensitivity Analysis - Acreage'!$Y128) +(AJ126*Inputs!$H$13)+('Sensitivity Analysis - Acreage'!AJ127*Inputs!$H$13) -> 29339.59271 | AK161: =(Inputs!$H$13*AK129) +(Inputs!$K$13*Inputs!$B$10) + (Inputs!$D$32*'Sensitivity Analysis - Acreage'!$Y129)+Inputs!$B$31+ (Inputs!$B$30*'Sensitivity Analysis - Acreage'!$Y129) +Inputs!$B$20+Inputs!$B$25+'Maintenance Costs'!$H$34 +(AK128*Inputs!$H$13)+(Inputs!$K$13*Inputs!$B$10 * 'Sensitivity Analysis - Acreage'!$Y128) +(AK126*Inputs!$H$13)+('Sensitivity Analysis - Acreage'!AK127*Inputs!$H$13) -> 29422.65364 | AL161: =(Inputs!$H$13*AL129) +(Inputs!$K$13*Inputs!$B$10) + (Inputs!$D$32*'Sensitivity Analysis - Acreage'!$Y129)+Inputs!$B$31+ (Inputs!$B$30*'Sensitivity Analysis - Acreage'!$Y129) +Inputs!$B$20+Inputs!$B$25+'Maintenance Costs'!$H$34 +(AL128*Inputs!$H$13)+(Inputs!$K$13*Inputs!$B$10 * 'Sensitivity Analysis - Acreage'!$Y128) +(AL126*Inputs!$H$13)+('Sensitivity Analysis - Acreage'!AL127*Inputs!$H$13) -> 29506.80378 | AM161: =(Inputs!$H$13*'Sensitivity Analysis - Acreage'!AM129)+(Inputs!$K$13*Inputs!$B$10*$Y129)+(Inputs!$D$32*'Sensitivity Analysis - Acreage'!$Y129)+Inputs!$B$31+(Inputs!$B$30*'Sensitivity Analysis - Acreage'!$Y129)+Inputs!$B$20+Inputs!$B$25+'Maintenance Costs'!$H$34+(Inputs!$H$13*'Sensitivity Analysis - Acreage'!$AM$126)+(Inputs!$H$13*$AM$127)+(Inputs!$H$13*$AM$128) -> 29592.05105 | AN161: =(Inputs!$H$13*'Sensitivity Analysis - Acreage'!AN129)+(Inputs!$K$13*Inputs!$B$10*$Y129)+(Inputs!$D$32*'Sensitivity Analysis - Acreage'!$Y129)+Inputs!$B$31+(Inputs!$B$30*'Sensitivity Analysis - Acreage'!$Y129)+Inputs!$B$20+Inputs!$B$25+'Maintenance Costs'!$H$34+(Inputs!$H$13*$AN$126)+(Inputs!$H$13*$AN$127)+(Inputs!$H$13*$AN$128) -> 29678.40339 | AP161: 83.06093479 | AQ161: 84.15013717 | AR161: 85.24727064
I162: =(Inputs!$H$10*'Sensitivity Analysis - Acreage'!I130) + (Inputs!$B$16) +I161 -> 9457.14 | J162: =(Inputs!$H$10*'Sensitivity Analysis - Acreage'!J130) + (Inputs!$B$16) +J161 -> 9481.021667 | K162: =(Inputs!$H$10*'Sensitivity Analysis - Acreage'!K130) + (Inputs!$B$16) +K161 -> 9504.903333 | L162: =(Inputs!$H$10*'Sensitivity Analysis - Acreage'!L130) + (Inputs!$B$16) +L161 -> 9528.785 | M162: =(Inputs!$H$10*'Sensitivity Analysis - Acreage'!M130) + (Inputs!$B$16) +M161 -> 9552.666667 | N162: =(Inputs!$H$10*'Sensitivity Analysis - Acreage'!N130) + (Inputs!$B$16) +N161 -> 9576.548333 | O162: =(Inputs!$H$10*'Sensitivity Analysis - Acreage'!O130) + (Inputs!$B$16) +O161 -> 9600.43 | P162: =(Inputs!$H$10*'Sensitivity Analysis - Acreage'!P130) + (Inputs!$B$16) +P161 -> 24608.94426 | Q162: =(Inputs!$H$10*'Sensitivity Analysis - Acreage'!Q130) + (Inputs!$B$16) +Q161 -> 24856.23048 | R162: =(Inputs!$H$10*'Sensitivity Analysis - Acreage'!R130) + (Inputs!$B$16) +R161 -> 25105.9771 | S162: =(Inputs!$H$10*'Sensitivity Analysis - Acreage'!S130) + (Inputs!$B$16) +S161 -> 25358.20234 | T162: =(Inputs!$H$10*'Sensitivity Analysis - Acreage'!T130) + (Inputs!$B$16) +T161 -> 25870.16199 | U162: =(Inputs!$H$10*'Sensitivity Analysis - Acreage'!U130) + (Inputs!$B$16) +U161 -> 26392.25673 | V162: =(Inputs!$H$10*'Sensitivity Analysis - Acreage'!V130) + (Inputs!$B$16) +V161 -> 26924.63501 | W162: =(Inputs!$H$10*'Sensitivity Analysis - Acreage'!W130) + (Inputs!$B$16) +W161 -> 27467.44642 | Y162: 5 | Z162: =(Inputs!$H$13*Z130) +(Inputs!$K$13*Inputs!$B$10) + (Inputs!$D$32*'Sensitivity Analysis - Acreage'!$Y130)+Inputs!$B$31+ (Inputs!$B$30*'Sensitivity Analysis - Acreage'!$Y130) +Inputs!$B$20+Inputs!$B$25+'Maintenance Costs'!$I$34 +(Z129*Inputs!$H$13)+(Inputs!$K$13*Inputs!$B$10 * 'Sensitivity Analysis - Acreage'!$Y129) + (Z126*Inputs!$H$13) + (Z127*Inputs!$H$13) + (Z128*Inputs!$H$13) -> 31059.37748 | AA162: =(Inputs!$H$13*AA130) +(Inputs!$K$13*Inputs!$B$10) + (Inputs!$D$32*'Sensitivity Analysis - Acreage'!$Y130)+Inputs!$B$31+ (Inputs!$B$30*'Sensitivity Analysis - Acreage'!$Y130) +Inputs!$B$20+Inputs!$B$25+'Maintenance Costs'!$I$34 +(AA129*Inputs!$H$13)+(Inputs!$K$13*Inputs!$B$10 * 'Sensitivity Analysis - Acreage'!$Y129) + (AA126*Inputs!$H$13) + (AA127*Inputs!$H$13) + (AA128*Inputs!$H$13) -> 31123.18704 | AB162: =(Inputs!$H$13*AB130) +(Inputs!$K$13*Inputs!$B$10) + (Inputs!$D$32*'Sensitivity Analysis - Acreage'!$Y130)+Inputs!$B$31+ (Inputs!$B$30*'Sensitivity Analysis - Acreage'!$Y130) +Inputs!$B$20+Inputs!$B$25+'Maintenance Costs'!$I$34 +(AB129*Inputs!$H$13)+(Inputs!$K$13*Inputs!$B$10 * 'Sensitivity Analysis - Acreage'!$Y129) + (AB126*Inputs!$H$13) + (AB127*Inputs!$H$13) + (AB128*Inputs!$H$13) -> 31187.64276 | AC162: =(Inputs!$H$13*AC130) +(Inputs!$K$13*Inputs!$B$10) + (Inputs!$D$32*'Sensitivity Analysis - Acreage'!$Y130)+Inputs!$B$31+ (Inputs!$B$30*'Sensitivity Analysis - Acreage'!$Y130) +Inputs!$B$20+Inputs!$B$25+'Maintenance Costs'!$I$34 +(AC129*Inputs!$H$13)+(Inputs!$K$13*Inputs!$B$10 * 'Sensitivity Analysis - Acreage'!$Y129) + (AC126*Inputs!$H$13) + (AC127*Inputs!$H$13) + (AC128*Inputs!$H$13) -> 31252.74952 | AD162: =(Inputs!$H$13*AD130) +(Inputs!$K$13*Inputs!$B$10) + (Inputs!$D$32*'Sensitivity Analysis - Acreage'!$Y130)+Inputs!$B$31+ (Inputs!$B$30*'Sensitivity Analysis - Acreage'!$Y130) +Inputs!$B$20+Inputs!$B$25+'Maintenance Costs'!$I$34 +(AD129*Inputs!$H$13)+(Inputs!$K$13*Inputs!$B$10 * 'Sensitivity Analysis - Acreage'!$Y129) + (AD126*Inputs!$H$13) + (AD127*Inputs!$H$13) + (AD128*Inputs!$H$13) -> 31318.51226 | AE162: =(Inputs!$H$13*AE130) +(Inputs!$K$13*Inputs!$B$10) + (Inputs!$D$32*'Sensitivity Analysis - Acreage'!$Y130)+Inputs!$B$31+ (Inputs!$B$30*'Sensitivity Analysis - Acreage'!$Y130) +Inputs!$B$20+Inputs!$B$25+'Maintenance Costs'!$I$34 +(AE129*Inputs!$H$13)+(Inputs!$K$13*Inputs!$B$10 * 'Sensitivity Analysis - Acreage'!$Y129) + (AE126*Inputs!$H$13) + (AE127*Inputs!$H$13) + (AE128*Inputs!$H$13) -> 31384.93593 | AF162: =(Inputs!$H$13*AF130) +(Inputs!$K$13*Inputs!$B$10) + (Inputs!$D$32*'Sensitivity Analysis - Acreage'!$Y130)+Inputs!$B$31+ (Inputs!$B$30*'Sensitivity Analysis - Acreage'!$Y130) +Inputs!$B$20+Inputs!$B$25+'Maintenance Costs'!$I$34 +(AF129*Inputs!$H$13)+(Inputs!$K$13*Inputs!$B$10 * 'Sensitivity Analysis - Acreage'!$Y129) + (AF126*Inputs!$H$13) + (AF127*Inputs!$H$13) + (AF128*Inputs!$H$13) -> 31452.02548 | AG162: =(Inputs!$H$13*AG130) +(Inputs!$K$13*Inputs!$B$10) + (Inputs!$D$32*'Sensitivity Analysis - Acreage'!$Y130)+Inputs!$B$31+ (Inputs!$B$30*'Sensitivity Analysis - Acreage'!$Y130) +Inputs!$B$20+Inputs!$B$25+'Maintenance Costs'!$I$34 +(AG129*Inputs!$H$13)+(Inputs!$K$13*Inputs!$B$10 * 'Sensitivity Analysis - Acreage'!$Y129) + (AG126*Inputs!$H$13) + (AG127*Inputs!$H$13) + (AG128*Inputs!$H$13) -> 31519.78592 | AH162: =(Inputs!$H$13*AH130) +(Inputs!$K$13*Inputs!$B$10) + (Inputs!$D$32*'Sensitivity Analysis - Acreage'!$Y130)+Inputs!$B$31+ (Inputs!$B$30*'Sensitivity Analysis - Acreage'!$Y130) +Inputs!$B$20+Inputs!$B$25+'Maintenance Costs'!$I$34 +(AH129*Inputs!$H$13)+(Inputs!$K$13*Inputs!$B$10 * 'Sensitivity Analysis - Acreage'!$Y129) + (AH126*Inputs!$H$13) + (AH127*Inputs!$H$13) + (AH128*Inputs!$H$13) -> 31588.22225 | AI162: =(Inputs!$H$13*AI130) +(Inputs!$K$13*Inputs!$B$10) + (Inputs!$D$32*'Sensitivity Analysis - Acreage'!$Y130)+Inputs!$B$31+ (Inputs!$B$30*'Sensitivity Analysis - Acreage'!$Y130) +Inputs!$B$20+Inputs!$B$25+'Maintenance Costs'!$I$34 +(AI129*Inputs!$H$13)+(Inputs!$K$13*Inputs!$B$10 * 'Sensitivity Analysis - Acreage'!$Y129) + (AI126*Inputs!$H$13) + (AI127*Inputs!$H$13) + (AI128*Inputs!$H$13) -> 31657.33948 | AJ162: =(Inputs!$H$13*AJ130) +(Inputs!$K$13*Inputs!$B$10) + (Inputs!$D$32*'Sensitivity Analysis - Acreage'!$Y130)+Inputs!$B$31+ (Inputs!$B$30*'Sensitivity Analysis - Acreage'!$Y130) +Inputs!$B$20+Inputs!$B$25+'Maintenance Costs'!$I$34 +(AJ129*Inputs!$H$13)+(Inputs!$K$13*Inputs!$B$10 * 'Sensitivity Analysis - Acreage'!$Y129) + (AJ126*Inputs!$H$13) + (AJ127*Inputs!$H$13) + (AJ128*Inputs!$H$13) -> 31727.14267 | AK162: =(Inputs!$H$13*AK130) +(Inputs!$K$13*Inputs!$B$10) + (Inputs!$D$32*'Sensitivity Analysis - Acreage'!$Y130)+Inputs!$B$31+ (Inputs!$B$30*'Sensitivity Analysis - Acreage'!$Y130) +Inputs!$B$20+Inputs!$B$25+'Maintenance Costs'!$I$34 +(AK129*Inputs!$H$13)+(Inputs!$K$13*Inputs!$B$10 * 'Sensitivity Analysis - Acreage'!$Y129) + (AK126*Inputs!$H$13) + (AK127*Inputs!$H$13) + (AK128*Inputs!$H$13) -> 31868.82722 | AL162: =(Inputs!$H$13*AL130) +(Inputs!$K$13*Inputs!$B$10) + (Inputs!$D$32*'Sensitivity Analysis - Acreage'!$Y130)+Inputs!$B$31+ (Inputs!$B$30*'Sensitivity Analysis - Acreage'!$Y130) +Inputs!$B$20+Inputs!$B$25+'Maintenance Costs'!$I$34 +(AL129*Inputs!$H$13)+(Inputs!$K$13*Inputs!$B$10 * 'Sensitivity Analysis - Acreage'!$Y129) + (AL126*Inputs!$H$13) + (AL127*Inputs!$H$13) + (AL128*Inputs!$H$13) -> 32013.31664 | AM162: =(Inputs!$H$13*'Sensitivity Analysis - Acreage'!AM130)+(Inputs!$K$13*Inputs!$B$10*$Y130)+(Inputs!$D$32*'Sensitivity Analysis - Acreage'!$Y130)+Inputs!$B$31+(Inputs!$B$30*'Sensitivity Analysis - Acreage'!$Y130)+Inputs!$B$20+Inputs!$B$25+'Maintenance Costs'!$I$34+(Inputs!$H$13*'Sensitivity Analysis - Acreage'!$AM$126)+(Inputs!$H$13*$AM$127)+(Inputs!$H$13*$AM$128)+(Inputs!$H$13*$AM$129) -> 32160.65203 | AN162: =(Inputs!$H$13*'Sensitivity Analysis - Acreage'!AN130)+(Inputs!$K$13*Inputs!$B$10*$Y130)+(Inputs!$D$32*'Sensitivity Analysis - Acreage'!$Y130)+Inputs!$B$31+(Inputs!$B$30*'Sensitivity Analysis - Acreage'!$Y130)+Inputs!$B$20+Inputs!$B$25+'Maintenance Costs'!$I$34+(Inputs!$H$13*$AN$126)+(Inputs!$H$13*$AN$127)+(Inputs!$H$13*$AN$128)+(Inputs!$H$13*$AN$129) -> 32310.87478 | AP162: 141.6845434 | AQ162: 144.4894246 | AR162: 147.3353888
I163: =(Inputs!$H$10*'Sensitivity Analysis - Acreage'!I131) + (Inputs!$B$16) +I162 -> 14044.33053 | J163: =(Inputs!$H$10*'Sensitivity Analysis - Acreage'!J131) + (Inputs!$B$16) +J162 -> 14115.13968 | K163: =(Inputs!$H$10*'Sensitivity Analysis - Acreage'!K131) + (Inputs!$B$16) +K162 -> 14186.18763 | L163: =(Inputs!$H$10*'Sensitivity Analysis - Acreage'!L131) + (Inputs!$B$16) +L162 -> 14257.47441 | M163: =(Inputs!$H$10*'Sensitivity Analysis - Acreage'!M131) + (Inputs!$B$16) +M162 -> 14329 | N163: =(Inputs!$H$10*'Sensitivity Analysis - Acreage'!N131) + (Inputs!$B$16) +N162 -> 14400.76441 | O163: =(Inputs!$H$10*'Sensitivity Analysis - Acreage'!O131) + (Inputs!$B$16) +O162 -> 14472.76763 | P163: =(Inputs!$H$10*'Sensitivity Analysis - Acreage'!P131) + (Inputs!$B$16) +P162 -> 29754.41176 | Q163: =(Inputs!$H$10*'Sensitivity Analysis - Acreage'!Q131) + (Inputs!$B$16) +Q162 -> 30129.68843 | R163: =(Inputs!$H$10*'Sensitivity Analysis - Acreage'!R131) + (Inputs!$B$16) +R162 -> 30509.95986 | S163: =(Inputs!$H$10*'Sensitivity Analysis - Acreage'!S131) + (Inputs!$B$16) +S162 -> 30895.28174 | T163: =(Inputs!$H$10*'Sensitivity Analysis - Acreage'!T131) + (Inputs!$B$16) +T162 -> 31681.3018 | U163: =(Inputs!$H$10*'Sensitivity Analysis - Acreage'!U131) + (Inputs!$B$16) +U162 -> 32488.2029 | V163: =(Inputs!$H$10*'Sensitivity Analysis - Acreage'!V131) + (Inputs!$B$16) +V162 -> 33316.44644 | W163: =(Inputs!$H$10*'Sensitivity Analysis - Acreage'!W131) + (Inputs!$B$16) +W162 -> 34166.50101 | Y163: 6 | Z163: =(Inputs!$H$13*Z131) +(Inputs!$K$13*Inputs!$B$10) + (Inputs!$D$32*'Sensitivity Analysis - Acreage'!$Y131)+Inputs!$B$31+ (Inputs!$B$30*'Sensitivity Analysis - Acreage'!$Y131) +Inputs!$B$20+Inputs!$B$25+'Maintenance Costs'!$J$34 +(Z130*Inputs!$H$13)+(Inputs!$K$13*Inputs!$B$10 * 'Sensitivity Analysis - Acreage'!$Y130) + (Z126*Inputs!$H$13) +(Z127*Inputs!$H$13)+(Z128*Inputs!$H$13)+(Z129*Inputs!$H$13) -> 33154.02187 | AA163: =(Inputs!$H$13*AA131) +(Inputs!$K$13*Inputs!$B$10) + (Inputs!$D$32*'Sensitivity Analysis - Acreage'!$Y131)+Inputs!$B$31+ (Inputs!$B$30*'Sensitivity Analysis - Acreage'!$Y131) +Inputs!$B$20+Inputs!$B$25+'Maintenance Costs'!$J$34 +(AA130*Inputs!$H$13)+(Inputs!$K$13*Inputs!$B$10 * 'Sensitivity Analysis - Acreage'!$Y130) + (AA126*Inputs!$H$13) +(AA127*Inputs!$H$13)+(AA128*Inputs!$H$13)+(AA129*Inputs!$H$13) -> 33248.62481 | AB163: =(Inputs!$H$13*AB131) +(Inputs!$K$13*Inputs!$B$10) + (Inputs!$D$32*'Sensitivity Analysis - Acreage'!$Y131)+Inputs!$B$31+ (Inputs!$B$30*'Sensitivity Analysis - Acreage'!$Y131) +Inputs!$B$20+Inputs!$B$25+'Maintenance Costs'!$J$34 +(AB130*Inputs!$H$13)+(Inputs!$K$13*Inputs!$B$10 * 'Sensitivity Analysis - Acreage'!$Y130) + (AB126*Inputs!$H$13) +(AB127*Inputs!$H$13)+(AB128*Inputs!$H$13)+(AB129*Inputs!$H$13) -> 33344.50552 | AC163: =(Inputs!$H$13*AC131) +(Inputs!$K$13*Inputs!$B$10) + (Inputs!$D$32*'Sensitivity Analysis - Acreage'!$Y131)+Inputs!$B$31+ (Inputs!$B$30*'Sensitivity Analysis - Acreage'!$Y131) +Inputs!$B$20+Inputs!$B$25+'Maintenance Costs'!$J$34 +(AC130*Inputs!$H$13)+(Inputs!$K$13*Inputs!$B$10 * 'Sensitivity Analysis - Acreage'!$Y130) + (AC126*Inputs!$H$13) +(AC127*Inputs!$H$13)+(AC128*Inputs!$H$13)+(AC129*Inputs!$H$13) -> 33441.67859 | AD163: =(Inputs!$H$13*AD131) +(Inputs!$K$13*Inputs!$B$10) + (Inputs!$D$32*'Sensitivity Analysis - Acreage'!$Y131)+Inputs!$B$31+ (Inputs!$B$30*'Sensitivity Analysis - Acreage'!$Y131) +Inputs!$B$20+Inputs!$B$25+'Maintenance Costs'!$J$34 +(AD130*Inputs!$H$13)+(Inputs!$K$13*Inputs!$B$10 * 'Sensitivity Analysis - Acreage'!$Y130) + (AD126*Inputs!$H$13) +(AD127*Inputs!$H$13)+(AD128*Inputs!$H$13)+(AD129*Inputs!$H$13) -> 33540.15871 | AE163: =(Inputs!$H$13*AE131) +(Inputs!$K$13*Inputs!$B$10) + (Inputs!$D$32*'Sensitivity Analysis - Acreage'!$Y131)+Inputs!$B$31+ (Inputs!$B$30*'Sensitivity Analysis - Acreage'!$Y131) +Inputs!$B$20+Inputs!$B$25+'Maintenance Costs'!$J$34 +(AE130*Inputs!$H$13)+(Inputs!$K$13*Inputs!$B$10 * 'Sensitivity Analysis - Acreage'!$Y130) + (AE126*Inputs!$H$13) +(AE127*Inputs!$H$13)+(AE128*Inputs!$H$13)+(AE129*Inputs!$H$13) -> 33639.96068 | AF163: =(Inputs!$H$13*AF131) +(Inputs!$K$13*Inputs!$B$10) + (Inputs!$D$32*'Sensitivity Analysis - Acreage'!$Y131)+Inputs!$B$31+ (Inputs!$B$30*'Sensitivity Analysis - Acreage'!$Y131) +Inputs!$B$20+Inputs!$B$25+'Maintenance Costs'!$J$34 +(AF130*Inputs!$H$13)+(Inputs!$K$13*Inputs!$B$10 * 'Sensitivity Analysis - Acreage'!$Y130) + (AF126*Inputs!$H$13) +(AF127*Inputs!$H$13)+(AF128*Inputs!$H$13)+(AF129*Inputs!$H$13) -> 33741.09945 | AG163: =(Inputs!$H$13*AG131) +(Inputs!$K$13*Inputs!$B$10) + (Inputs!$D$32*'Sensitivity Analysis - Acreage'!$Y131)+Inputs!$B$31+ (Inputs!$B$30*'Sensitivity Analysis - Acreage'!$Y131) +Inputs!$B$20+Inputs!$B$25+'Maintenance Costs'!$J$34 +(AG130*Inputs!$H$13)+(Inputs!$K$13*Inputs!$B$10 * 'Sensitivity Analysis - Acreage'!$Y130) + (AG126*Inputs!$H$13) +(AG127*Inputs!$H$13)+(AG128*Inputs!$H$13)+(AG129*Inputs!$H$13) -> 33843.59005 | AH163: =(Inputs!$H$13*AH131) +(Inputs!$K$13*Inputs!$B$10) + (Inputs!$D$32*'Sensitivity Analysis - Acreage'!$Y131)+Inputs!$B$31+ (Inputs!$B$30*'Sensitivity Analysis - Acreage'!$Y131) +Inputs!$B$20+Inputs!$B$25+'Maintenance Costs'!$J$34 +(AH130*Inputs!$H$13)+(Inputs!$K$13*Inputs!$B$10 * 'Sensitivity Analysis - Acreage'!$Y130) + (AH126*Inputs!$H$13) +(AH127*Inputs!$H$13)+(AH128*Inputs!$H$13)+(AH129*Inputs!$H$13) -> 33947.44765 | AI163: =(Inputs!$H$13*AI131) +(Inputs!$K$13*Inputs!$B$10) + (Inputs!$D$32*'Sensitivity Analysis - Acreage'!$Y131)+Inputs!$B$31+ (Inputs!$B$30*'Sensitivity Analysis - Acreage'!$Y131) +Inputs!$B$20+Inputs!$B$25+'Maintenance Costs'!$J$34 +(AI130*Inputs!$H$13)+(Inputs!$K$13*Inputs!$B$10 * 'Sensitivity Analysis - Acreage'!$Y130) + (AI126*Inputs!$H$13) +(AI127*Inputs!$H$13)+(AI128*Inputs!$H$13)+(AI129*Inputs!$H$13) -> 34052.68756 | AJ163: =(Inputs!$H$13*AJ131) +(Inputs!$K$13*Inputs!$B$10) + (Inputs!$D$32*'Sensitivity Analysis - Acreage'!$Y131)+Inputs!$B$31+ (Inputs!$B$30*'Sensitivity Analysis - Acreage'!$Y131) +Inputs!$B$20+Inputs!$B$25+'Maintenance Costs'!$J$34 +(AJ130*Inputs!$H$13)+(Inputs!$K$13*Inputs!$B$10 * 'Sensitivity Analysis - Acreage'!$Y130) + (AJ126*Inputs!$H$13) +(AJ127*Inputs!$H$13)+(AJ128*Inputs!$H$13)+(AJ129*Inputs!$H$13) -> 34159.32517 | AK163: =(Inputs!$H$13*AK131) +(Inputs!$K$13*Inputs!$B$10) + (Inputs!$D$32*'Sensitivity Analysis - Acreage'!$Y131)+Inputs!$B$31+ (Inputs!$B$30*'Sensitivity Analysis - Acreage'!$Y131) +Inputs!$B$20+Inputs!$B$25+'Maintenance Costs'!$J$34 +(AK130*Inputs!$H$13)+(Inputs!$K$13*Inputs!$B$10 * 'Sensitivity Analysis - Acreage'!$Y130) + (AK126*Inputs!$H$13) +(AK127*Inputs!$H$13)+(AK128*Inputs!$H$13)+(AK129*Inputs!$H$13) -> 34376.85578 | AL163: =(Inputs!$H$13*AL131) +(Inputs!$K$13*Inputs!$B$10) + (Inputs!$D$32*'Sensitivity Analysis - Acreage'!$Y131)+Inputs!$B$31+ (Inputs!$B$30*'Sensitivity Analysis - Acreage'!$Y131) +Inputs!$B$20+Inputs!$B$25+'Maintenance Costs'!$J$34 +(AL130*Inputs!$H$13)+(Inputs!$K$13*Inputs!$B$10 * 'Sensitivity Analysis - Acreage'!$Y130) + (AL126*Inputs!$H$13) +(AL127*Inputs!$H$13)+(AL128*Inputs!$H$13)+(AL129*Inputs!$H$13) -> 34600.1652 | AM163: =(Inputs!$H$13*'Sensitivity Analysis - Acreage'!AM131)+(Inputs!$K$13*Inputs!$B$10*$Y131)+(Inputs!$D$32*'Sensitivity Analysis - Acreage'!$Y131)+Inputs!$B$31+(Inputs!$B$30*'Sensitivity Analysis - Acreage'!$Y131)+Inputs!$B$20+Inputs!$B$25+'Maintenance Costs'!$J$34+(Inputs!$H$13*'Sensitivity Analysis - Acreage'!$AM$126)+(Inputs!$H$13*$AM$127)+(Inputs!$H$13*$AM$128)+(Inputs!$H$13*$AM$129)+(Inputs!$H$13*$AM$130) -> 34829.38113 | AN163: =(Inputs!$H$13*'Sensitivity Analysis - Acreage'!AN131)+(Inputs!$K$13*Inputs!$B$10*$Y131)+(Inputs!$D$32*'Sensitivity Analysis - Acreage'!$Y131)+Inputs!$B$31+(Inputs!$B$30*'Sensitivity Analysis - Acreage'!$Y131)+Inputs!$B$20+Inputs!$B$25+'Maintenance Costs'!$J$34+(Inputs!$H$13*$AN$126)+(Inputs!$H$13*$AN$127)+(Inputs!$H$13*$AN$128)+(Inputs!$H$13*$AN$129)+(Inputs!$H$13*$AN$130) -> 35064.63326 | AP163: 217.530607 | AQ163: 223.3094231 | AR163: 229.2159337
I164: =(Inputs!$H$10*'Sensitivity Analysis - Acreage'!I132) + (Inputs!$B$16) +I163 -> 18539.77726 | J164: =(Inputs!$H$10*'Sensitivity Analysis - Acreage'!J132) + (Inputs!$B$16) +J163 -> 18679.74591 | K164: =(Inputs!$H$10*'Sensitivity Analysis - Acreage'!K132) + (Inputs!$B$16) +K163 -> 18820.65909 | L164: =(Inputs!$H$10*'Sensitivity Analysis - Acreage'!L132) + (Inputs!$B$16) +L163 -> 18962.52037 | M164: =(Inputs!$H$10*'Sensitivity Analysis - Acreage'!M132) + (Inputs!$B$16) +M163 -> 19105.33333 | N164: =(Inputs!$H$10*'Sensitivity Analysis - Acreage'!N132) + (Inputs!$B$16) +N163 -> 19249.10156 | O164: =(Inputs!$H$10*'Sensitivity Analysis - Acreage'!O132) + (Inputs!$B$16) +O163 -> 19393.82864 | P164: =(Inputs!$H$10*'Sensitivity Analysis - Acreage'!P132) + (Inputs!$B$16) +P163 -> 34977.06127 | Q164: =(Inputs!$H$10*'Sensitivity Analysis - Acreage'!Q132) + (Inputs!$B$16) +Q163 -> 35508.61553 | R164: =(Inputs!$H$10*'Sensitivity Analysis - Acreage'!R132) + (Inputs!$B$16) +R163 -> 36049.04219 | S164: =(Inputs!$H$10*'Sensitivity Analysis - Acreage'!S132) + (Inputs!$B$16) +S163 -> 36598.47353 | T164: =(Inputs!$H$10*'Sensitivity Analysis - Acreage'!T132) + (Inputs!$B$16) +T163 -> 37724.88721 | U164: =(Inputs!$H$10*'Sensitivity Analysis - Acreage'!U132) + (Inputs!$B$16) +U163 -> 38888.94637 | V164: =(Inputs!$H$10*'Sensitivity Analysis - Acreage'!V132) + (Inputs!$B$16) +V163 -> 40091.76656 | W164: =(Inputs!$H$10*'Sensitivity Analysis - Acreage'!W132) + (Inputs!$B$16) +W163 -> 41334.48941 | Y164: 7 | Z164: =(Inputs!$H$13*Z132)+(Inputs!$K$13*Inputs!$B$10)+(Inputs!$D$32*'Sensitivity Analysis - Acreage'!$Y132)+Inputs!$B$31+(Inputs!$B$30*'Sensitivity Analysis - Acreage'!$Y132)+Inputs!$B$20+Inputs!$B$25+'Maintenance Costs'!$K$34+(Z131*Inputs!$H$13)+(Inputs!$K$13*Inputs!$B$10*'Sensitivity Analysis - Acreage'!$Y131)+(Z126*Inputs!$H$13)+(Z127*Inputs!$H$13)+(Z128*Inputs!$H$13)+(Z129*Inputs!$H$13)+(Z130*Inputs!$H$13) -> 35819.18935 | AA164: =(Inputs!$H$13*AA132)+(Inputs!$K$13*Inputs!$B$10)+(Inputs!$D$32*'Sensitivity Analysis - Acreage'!$Y132)+Inputs!$B$31+(Inputs!$B$30*'Sensitivity Analysis - Acreage'!$Y132)+Inputs!$B$20+Inputs!$B$25+'Maintenance Costs'!$K$34+(AA131*Inputs!$H$13)+(Inputs!$K$13*Inputs!$B$10*'Sensitivity Analysis - Acreage'!$Y131)+(AA126*Inputs!$H$13)+(AA127*Inputs!$H$13)+(AA128*Inputs!$H$13)+(AA129*Inputs!$H$13)+(AA130*Inputs!$H$13) -> 35950.09799 | AB164: =(Inputs!$H$13*AB132)+(Inputs!$K$13*Inputs!$B$10)+(Inputs!$D$32*'Sensitivity Analysis - Acreage'!$Y132)+Inputs!$B$31+(Inputs!$B$30*'Sensitivity Analysis - Acreage'!$Y132)+Inputs!$B$20+Inputs!$B$25+'Maintenance Costs'!$K$34+(AB131*Inputs!$H$13)+(Inputs!$K$13*Inputs!$B$10*'Sensitivity Analysis - Acreage'!$Y131)+(AB126*Inputs!$H$13)+(AB127*Inputs!$H$13)+(AB128*Inputs!$H$13)+(AB129*Inputs!$H$13)+(AB130*Inputs!$H$13) -> 36083.21765 | AC164: =(Inputs!$H$13*AC132)+(Inputs!$K$13*Inputs!$B$10)+(Inputs!$D$32*'Sensitivity Analysis - Acreage'!$Y132)+Inputs!$B$31+(Inputs!$B$30*'Sensitivity Analysis - Acreage'!$Y132)+Inputs!$B$20+Inputs!$B$25+'Maintenance Costs'!$K$34+(AC131*Inputs!$H$13)+(Inputs!$K$13*Inputs!$B$10*'Sensitivity Analysis - Acreage'!$Y131)+(AC126*Inputs!$H$13)+(AC127*Inputs!$H$13)+(AC128*Inputs!$H$13)+(AC129*Inputs!$H$13)+(AC130*Inputs!$H$13) -> 36218.58202 | AD164: =(Inputs!$H$13*AD132)+(Inputs!$K$13*Inputs!$B$10)+(Inputs!$D$32*'Sensitivity Analysis - Acreage'!$Y132)+Inputs!$B$31+(Inputs!$B$30*'Sensitivity Analysis - Acreage'!$Y132)+Inputs!$B$20+Inputs!$B$25+'Maintenance Costs'!$K$34+(AD131*Inputs!$H$13)+(Inputs!$K$13*Inputs!$B$10*'Sensitivity Analysis - Acreage'!$Y131)+(AD126*Inputs!$H$13)+(AD127*Inputs!$H$13)+(AD128*Inputs!$H$13)+(AD129*Inputs!$H$13)+(AD130*Inputs!$H$13) -> 36356.22516 | AE164: =(Inputs!$H$13*AE132)+(Inputs!$K$13*Inputs!$B$10)+(Inputs!$D$32*'Sensitivity Analysis - Acreage'!$Y132)+Inputs!$B$31+(Inputs!$B$30*'Sensitivity Analysis - Acreage'!$Y132)+Inputs!$B$20+Inputs!$B$25+'Maintenance Costs'!$K$34+(AE131*Inputs!$H$13)+(Inputs!$K$13*Inputs!$B$10*'Sensitivity Analysis - Acreage'!$Y131)+(AE126*Inputs!$H$13)+(AE127*Inputs!$H$13)+(AE128*Inputs!$H$13)+(AE129*Inputs!$H$13)+(AE130*Inputs!$H$13) -> 36496.18157 | AF164: =(Inputs!$H$13*AF132)+(Inputs!$K$13*Inputs!$B$10)+(Inputs!$D$32*'Sensitivity Analysis - Acreage'!$Y132)+Inputs!$B$31+(Inputs!$B$30*'Sensitivity Analysis - Acreage'!$Y132)+Inputs!$B$20+Inputs!$B$25+'Maintenance Costs'!$K$34+(AF131*Inputs!$H$13)+(Inputs!$K$13*Inputs!$B$10*'Sensitivity Analysis - Acreage'!$Y131)+(AF126*Inputs!$H$13)+(AF127*Inputs!$H$13)+(AF128*Inputs!$H$13)+(AF129*Inputs!$H$13)+(AF130*Inputs!$H$13) -> 36638.48616 | AG164: =(Inputs!$H$13*AG132)+(Inputs!$K$13*Inputs!$B$10)+(Inputs!$D$32*'Sensitivity Analysis - Acreage'!$Y132)+Inputs!$B$31+(Inputs!$B$30*'Sensitivity Analysis - Acreage'!$Y132)+Inputs!$B$20+Inputs!$B$25+'Maintenance Costs'!$K$34+(AG131*Inputs!$H$13)+(Inputs!$K$13*Inputs!$B$10*'Sensitivity Analysis - Acreage'!$Y131)+(AG126*Inputs!$H$13)+(AG127*Inputs!$H$13)+(AG128*Inputs!$H$13)+(AG129*Inputs!$H$13)+(AG130*Inputs!$H$13) -> 36783.17425 | AH164: =(Inputs!$H$13*AH132)+(Inputs!$K$13*Inputs!$B$10)+(Inputs!$D$32*'Sensitivity Analysis - Acreage'!$Y132)+Inputs!$B$31+(Inputs!$B$30*'Sensitivity Analysis - Acreage'!$Y132)+Inputs!$B$20+Inputs!$B$25+'Maintenance Costs'!$K$34+(AH131*Inputs!$H$13)+(Inputs!$K$13*Inputs!$B$10*'Sensitivity Analysis - Acreage'!$Y131)+(AH126*Inputs!$H$13)+(AH127*Inputs!$H$13)+(AH128*Inputs!$H$13)+(AH129*Inputs!$H$13)+(AH130*Inputs!$H$13) -> 36930.28159 | AI164: =(Inputs!$H$13*AI132)+(Inputs!$K$13*Inputs!$B$10)+(Inputs!$D$32*'Sensitivity Analysis - Acreage'!$Y132)+Inputs!$B$31+(Inputs!$B$30*'Sensitivity Analysis - Acreage'!$Y132)+Inputs!$B$20+Inputs!$B$25+'Maintenance Costs'!$K$34+(AI131*Inputs!$H$13)+(Inputs!$K$13*Inputs!$B$10*'Sensitivity Analysis - Acreage'!$Y131)+(AI126*Inputs!$H$13)+(AI127*Inputs!$H$13)+(AI128*Inputs!$H$13)+(AI129*Inputs!$H$13)+(AI130*Inputs!$H$13) -> 37079.84436 | AJ164: =(Inputs!$H$13*AJ132)+(Inputs!$K$13*Inputs!$B$10)+(Inputs!$D$32*'Sensitivity Analysis - Acreage'!$Y132)+Inputs!$B$31+(Inputs!$B$30*'Sensitivity Analysis - Acreage'!$Y132)+Inputs!$B$20+Inputs!$B$25+'Maintenance Costs'!$K$34+(AJ131*Inputs!$H$13)+(Inputs!$K$13*Inputs!$B$10*'Sensitivity Analysis - Acreage'!$Y131)+(AJ126*Inputs!$H$13)+(AJ127*Inputs!$H$13)+(AJ128*Inputs!$H$13)+(AJ129*Inputs!$H$13)+(AJ130*Inputs!$H$13) -> 37231.89918 | AK164: =(Inputs!$H$13*AK132)+(Inputs!$K$13*Inputs!$B$10)+(Inputs!$D$32*'Sensitivity Analysis - Acreage'!$Y132)+Inputs!$B$31+(Inputs!$B$30*'Sensitivity Analysis - Acreage'!$Y132)+Inputs!$B$20+Inputs!$B$25+'Maintenance Costs'!$K$34+(AK131*Inputs!$H$13)+(Inputs!$K$13*Inputs!$B$10*'Sensitivity Analysis - Acreage'!$Y131)+(AK126*Inputs!$H$13)+(AK127*Inputs!$H$13)+(AK128*Inputs!$H$13)+(AK129*Inputs!$H$13)+(AK130*Inputs!$H$13) -> 37543.63353 | AL164: =(Inputs!$H$13*AL132)+(Inputs!$K$13*Inputs!$B$10)+(Inputs!$D$32*'Sensitivity Analysis - Acreage'!$Y132)+Inputs!$B$31+(Inputs!$B$30*'Sensitivity Analysis - Acreage'!$Y132)+Inputs!$B$20+Inputs!$B$25+'Maintenance Costs'!$K$34+(AL131*Inputs!$H$13)+(Inputs!$K$13*Inputs!$B$10*'Sensitivity Analysis - Acreage'!$Y131)+(AL126*Inputs!$H$13)+(AL127*Inputs!$H$13)+(AL128*Inputs!$H$13)+(AL129*Inputs!$H$13)+(AL130*Inputs!$H$13) -> 37865.78624 | AM164: =(Inputs!$H$13*'Sensitivity Analysis - Acreage'!AM132)+(Inputs!$K$13*Inputs!$B$10*$Y132)+(Inputs!$D$32*'Sensitivity Analysis - Acreage'!$Y132)+Inputs!$B$31+(Inputs!$B$30*'Sensitivity Analysis - Acreage'!$Y132)+Inputs!$B$20+Inputs!$B$25+'Maintenance Costs'!$K$34+(Inputs!$H$13*'Sensitivity Analysis - Acreage'!$AM$126)+(Inputs!$H$13*$AM$127)+(Inputs!$H$13*$AM$128)+(Inputs!$H$13*$AM$129)+(Inputs!$H$13*$AM$130)+(Inputs!$H$13*$AM$131) -> 38198.66605 | AN164: =(Inputs!$H$13*'Sensitivity Analysis - Acreage'!AN132)+(Inputs!$K$13*Inputs!$B$10*$Y132)+(Inputs!$D$32*'Sensitivity Analysis - Acreage'!$Y132)+Inputs!$B$31+(Inputs!$B$30*'Sensitivity Analysis - Acreage'!$Y132)+Inputs!$B$20+Inputs!$B$25+'Maintenance Costs'!$K$34+(Inputs!$H$13*$AN$126)+(Inputs!$H$13*$AN$127)+(Inputs!$H$13*$AN$128)+(Inputs!$H$13*$AN$129)+(Inputs!$H$13*$AN$130)+(Inputs!$H$13*$AN$131) -> 38542.5889 | AP164: 311.7343491 | AQ164: 322.1527182 | AR164: 332.8798079
I165: =(Inputs!$H$10*'Sensitivity Analysis - Acreage'!I133) + (Inputs!$B$16) +I164 -> 22945.31504 | J165: =(Inputs!$H$10*'Sensitivity Analysis - Acreage'!J133) + (Inputs!$B$16) +J164 -> 23175.88306 | K165: =(Inputs!$H$10*'Sensitivity Analysis - Acreage'!K133) + (Inputs!$B$16) +K164 -> 23408.78583 | L165: =(Inputs!$H$10*'Sensitivity Analysis - Acreage'!L133) + (Inputs!$B$16) +L164 -> 23644.0411 | M165: =(Inputs!$H$10*'Sensitivity Analysis - Acreage'!M133) + (Inputs!$B$16) +M164 -> 23881.66667 | N165: =(Inputs!$H$10*'Sensitivity Analysis - Acreage'!N133) + (Inputs!$B$16) +N164 -> 24121.6804 | O165: =(Inputs!$H$10*'Sensitivity Analysis - Acreage'!O133) + (Inputs!$B$16) +O164 -> 24364.10026 | P165: =(Inputs!$H$10*'Sensitivity Analysis - Acreage'!P133) + (Inputs!$B$16) +P164 -> 40278.05052 | Q165: =(Inputs!$H$10*'Sensitivity Analysis - Acreage'!Q133) + (Inputs!$B$16) +Q164 -> 40995.12117 | R165: =(Inputs!$H$10*'Sensitivity Analysis - Acreage'!R133) + (Inputs!$B$16) +R164 -> 41726.60158 | S165: =(Inputs!$H$10*'Sensitivity Analysis - Acreage'!S133) + (Inputs!$B$16) +S164 -> 42472.76107 | T165: =(Inputs!$H$10*'Sensitivity Analysis - Acreage'!T133) + (Inputs!$B$16) +T164 -> 44010.21603 | U165: =(Inputs!$H$10*'Sensitivity Analysis - Acreage'!U133) + (Inputs!$B$16) +U164 -> 45609.72703 | V165: =(Inputs!$H$10*'Sensitivity Analysis - Acreage'!V133) + (Inputs!$B$16) +V164 -> 47273.60589 | W165: =(Inputs!$H$10*'Sensitivity Analysis - Acreage'!W133) + (Inputs!$B$16) +W164 -> 49004.237 | Y165: 8 | Z165: =(Inputs!$H$13*Z133) +(Inputs!$K$13*Inputs!$B$10) + (Inputs!$D$32*'Sensitivity Analysis - Acreage'!$Y133)+Inputs!$B$31+ (Inputs!$B$30*'Sensitivity Analysis - Acreage'!$Y133) +Inputs!$B$20+Inputs!$B$25+'Maintenance Costs'!$L$34 +(Z132*Inputs!$H$13)+(Inputs!$K$13*Inputs!$B$10 * 'Sensitivity Analysis - Acreage'!$Y132) +(Z126*Inputs!$H$13)+(Z127*Inputs!$H$13)+(Z128*Inputs!$H$13)+(Z129*Inputs!$H$13)+(Z130*Inputs!$H$13)+(Z131*Inputs!$H$13) -> 37866.51786 | AA165: =(Inputs!$H$13*AA133) +(Inputs!$K$13*Inputs!$B$10) + (Inputs!$D$32*'Sensitivity Analysis - Acreage'!$Y133)+Inputs!$B$31+ (Inputs!$B$30*'Sensitivity Analysis - Acreage'!$Y133) +Inputs!$B$20+Inputs!$B$25+'Maintenance Costs'!$L$34 +(AA132*Inputs!$H$13)+(Inputs!$K$13*Inputs!$B$10 * 'Sensitivity Analysis - Acreage'!$Y132) +(AA126*Inputs!$H$13)+(AA127*Inputs!$H$13)+(AA128*Inputs!$H$13)+(AA129*Inputs!$H$13)+(AA130*Inputs!$H$13)+(AA131*Inputs!$H$13) -> 38039.04235 | AB165: =(Inputs!$H$13*AB133) +(Inputs!$K$13*Inputs!$B$10) + (Inputs!$D$32*'Sensitivity Analysis - Acreage'!$Y133)+Inputs!$B$31+ (Inputs!$B$30*'Sensitivity Analysis - Acreage'!$Y133) +Inputs!$B$20+Inputs!$B$25+'Maintenance Costs'!$L$34 +(AB132*Inputs!$H$13)+(Inputs!$K$13*Inputs!$B$10 * 'Sensitivity Analysis - Acreage'!$Y132) +(AB126*Inputs!$H$13)+(AB127*Inputs!$H$13)+(AB128*Inputs!$H$13)+(AB129*Inputs!$H$13)+(AB130*Inputs!$H$13)+(AB131*Inputs!$H$13) -> 38215.06485 | AC165: =(Inputs!$H$13*AC133) +(Inputs!$K$13*Inputs!$B$10) + (Inputs!$D$32*'Sensitivity Analysis - Acreage'!$Y133)+Inputs!$B$31+ (Inputs!$B$30*'Sensitivity Analysis - Acreage'!$Y133) +Inputs!$B$20+Inputs!$B$25+'Maintenance Costs'!$L$34 +(AC132*Inputs!$H$13)+(Inputs!$K$13*Inputs!$B$10 * 'Sensitivity Analysis - Acreage'!$Y132) +(AC126*Inputs!$H$13)+(AC127*Inputs!$H$13)+(AC128*Inputs!$H$13)+(AC129*Inputs!$H$13)+(AC130*Inputs!$H$13)+(AC131*Inputs!$H$13) -> 38394.65202 | AD165: =(Inputs!$H$13*AD133) +(Inputs!$K$13*Inputs!$B$10) + (Inputs!$D$32*'Sensitivity Analysis - Acreage'!$Y133)+Inputs!$B$31+ (Inputs!$B$30*'Sensitivity Analysis - Acreage'!$Y133) +Inputs!$B$20+Inputs!$B$25+'Maintenance Costs'!$L$34 +(AD132*Inputs!$H$13)+(Inputs!$K$13*Inputs!$B$10 * 'Sensitivity Analysis - Acreage'!$Y132) +(AD126*Inputs!$H$13)+(AD127*Inputs!$H$13)+(AD128*Inputs!$H$13)+(AD129*Inputs!$H$13)+(AD130*Inputs!$H$13)+(AD131*Inputs!$H$13) -> 38577.87161 | AE165: =(Inputs!$H$13*AE133) +(Inputs!$K$13*Inputs!$B$10) + (Inputs!$D$32*'Sensitivity Analysis - Acreage'!$Y133)+Inputs!$B$31+ (Inputs!$B$30*'Sensitivity Analysis - Acreage'!$Y133) +Inputs!$B$20+Inputs!$B$25+'Maintenance Costs'!$L$34 +(AE132*Inputs!$H$13)+(Inputs!$K$13*Inputs!$B$10 * 'Sensitivity Analysis - Acreage'!$Y132) +(AE126*Inputs!$H$13)+(AE127*Inputs!$H$13)+(AE128*Inputs!$H$13)+(AE129*Inputs!$H$13)+(AE130*Inputs!$H$13)+(AE131*Inputs!$H$13) -> 38764.79247 | AF165: =(Inputs!$H$13*AF133) +(Inputs!$K$13*Inputs!$B$10) + (Inputs!$D$32*'Sensitivity Analysis - Acreage'!$Y133)+Inputs!$B$31+ (Inputs!$B$30*'Sensitivity Analysis - Acreage'!$Y133) +Inputs!$B$20+Inputs!$B$25+'Maintenance Costs'!$L$34 +(AF132*Inputs!$H$13)+(Inputs!$K$13*Inputs!$B$10 * 'Sensitivity Analysis - Acreage'!$Y132) +(AF126*Inputs!$H$13)+(AF127*Inputs!$H$13)+(AF128*Inputs!$H$13)+(AF129*Inputs!$H$13)+(AF130*Inputs!$H$13)+(AF131*Inputs!$H$13) -> 38955.48455 | AG165: =(Inputs!$H$13*AG133) +(Inputs!$K$13*Inputs!$B$10) + (Inputs!$D$32*'Sensitivity Analysis - Acreage'!$Y133)+Inputs!$B$31+ (Inputs!$B$30*'Sensitivity Analysis - Acreage'!$Y133) +Inputs!$B$20+Inputs!$B$25+'Maintenance Costs'!$L$34 +(AG132*Inputs!$H$13)+(Inputs!$K$13*Inputs!$B$10 * 'Sensitivity Analysis - Acreage'!$Y132) +(AG126*Inputs!$H$13)+(AG127*Inputs!$H$13)+(AG128*Inputs!$H$13)+(AG129*Inputs!$H$13)+(AG130*Inputs!$H$13)+(AG131*Inputs!$H$13) -> 39150.01893 | AH165: =(Inputs!$H$13*AH133) +(Inputs!$K$13*Inputs!$B$10) + (Inputs!$D$32*'Sensitivity Analysis - Acreage'!$Y133)+Inputs!$B$31+ (Inputs!$B$30*'Sensitivity Analysis - Acreage'!$Y133) +Inputs!$B$20+Inputs!$B$25+'Maintenance Costs'!$L$34 +(AH132*Inputs!$H$13)+(Inputs!$K$13*Inputs!$B$10 * 'Sensitivity Analysis - Acreage'!$Y132) +(AH126*Inputs!$H$13)+(AH127*Inputs!$H$13)+(AH128*Inputs!$H$13)+(AH129*Inputs!$H$13)+(AH130*Inputs!$H$13)+(AH131*Inputs!$H$13) -> 39348.46783 | AI165: =(Inputs!$H$13*AI133) +(Inputs!$K$13*Inputs!$B$10) + (Inputs!$D$32*'Sensitivity Analysis - Acreage'!$Y133)+Inputs!$B$31+ (Inputs!$B$30*'Sensitivity Analysis - Acreage'!$Y133) +Inputs!$B$20+Inputs!$B$25+'Maintenance Costs'!$L$34 +(AI132*Inputs!$H$13)+(Inputs!$K$13*Inputs!$B$10 * 'Sensitivity Analysis - Acreage'!$Y132) +(AI126*Inputs!$H$13)+(AI127*Inputs!$H$13)+(AI128*Inputs!$H$13)+(AI129*Inputs!$H$13)+(AI130*Inputs!$H$13)+(AI131*Inputs!$H$13) -> 39550.90462 | AJ165: =(Inputs!$H$13*AJ133) +(Inputs!$K$13*Inputs!$B$10) + (Inputs!$D$32*'Sensitivity Analysis - Acreage'!$Y133)+Inputs!$B$31+ (Inputs!$B$30*'Sensitivity Analysis - Acreage'!$Y133) +Inputs!$B$20+Inputs!$B$25+'Maintenance Costs'!$L$34 +(AJ132*Inputs!$H$13)+(Inputs!$K$13*Inputs!$B$10 * 'Sensitivity Analysis - Acreage'!$Y132) +(AJ126*Inputs!$H$13)+(AJ127*Inputs!$H$13)+(AJ128*Inputs!$H$13)+(AJ129*Inputs!$H$13)+(AJ130*Inputs!$H$13)+(AJ131*Inputs!$H$13) -> 39757.40384 | AK165: =(Inputs!$H$13*AK133) +(Inputs!$K$13*Inputs!$B$10) + (Inputs!$D$32*'Sensitivity Analysis - Acreage'!$Y133)+Inputs!$B$31+ (Inputs!$B$30*'Sensitivity Analysis - Acreage'!$Y133) +Inputs!$B$20+Inputs!$B$25+'Maintenance Costs'!$L$34 +(AK132*Inputs!$H$13)+(Inputs!$K$13*Inputs!$B$10 * 'Sensitivity Analysis - Acreage'!$Y132) +(AK126*Inputs!$H$13)+(AK127*Inputs!$H$13)+(AK128*Inputs!$H$13)+(AK129*Inputs!$H$13)+(AK130*Inputs!$H$13)+(AK131*Inputs!$H$13) -> 40182.89363 | AL165: =(Inputs!$H$13*AL133) +(Inputs!$K$13*Inputs!$B$10) + (Inputs!$D$32*'Sensitivity Analysis - Acreage'!$Y133)+Inputs!$B$31+ (Inputs!$B$30*'Sensitivity Analysis - Acreage'!$Y133) +Inputs!$B$20+Inputs!$B$25+'Maintenance Costs'!$L$34 +(AL132*Inputs!$H$13)+(Inputs!$K$13*Inputs!$B$10 * 'Sensitivity Analysis - Acreage'!$Y132) +(AL126*Inputs!$H$13)+(AL127*Inputs!$H$13)+(AL128*Inputs!$H$13)+(AL129*Inputs!$H$13)+(AL130*Inputs!$H$13)+(AL131*Inputs!$H$13) -> 40625.55739 | AM165: =(Inputs!$H$13*'Sensitivity Analysis - Acreage'!AM133)+(Inputs!$K$13*Inputs!$B$10*$Y133)+(Inputs!$D$32*'Sensitivity Analysis - Acreage'!$Y133)+Inputs!$B$31+(Inputs!$B$30*'Sensitivity Analysis - Acreage'!$Y133)+Inputs!$B$20+Inputs!$B$25+'Maintenance Costs'!$L$34+(Inputs!$H$13*'Sensitivity Analysis - Acreage'!$AM$126)+(Inputs!$H$13*$AM$127)+(Inputs!$H$13*$AM$128)+(Inputs!$H$13*$AM$129)+(Inputs!$H$13*$AM$130)+(Inputs!$H$13*$AM$131)+(Inputs!$H$13*$AM$132) -> 41086.03493 | AN165: =(Inputs!$H$13*'Sensitivity Analysis - Acreage'!AN133)+(Inputs!$K$13*Inputs!$B$10*$Y133)+(Inputs!$D$32*'Sensitivity Analysis - Acreage'!$Y133)+Inputs!$B$31+(Inputs!$B$30*'Sensitivity Analysis - Acreage'!$Y133)+Inputs!$B$20+Inputs!$B$25+'Maintenance Costs'!$L$34+(Inputs!$H$13*$AN$126)+(Inputs!$H$13*$AN$127)+(Inputs!$H$13*$AN$128)+(Inputs!$H$13*$AN$129)+(Inputs!$H$13*$AN$130)+(Inputs!$H$13*$AN$131)+(Inputs!$H$13*$AN$132) -> 41564.98611 | AP165: 425.4897921 | AQ165: 442.6637666 | AR165: 460.477536
I166: =(Inputs!$H$10*'Sensitivity Analysis - Acreage'!I134) + (Inputs!$B$16) +I165 -> 27262.74208 | J166: =(Inputs!$H$10*'Sensitivity Analysis - Acreage'!J134) + (Inputs!$B$16) +J165 -> 27604.57815 | K166: =(Inputs!$H$10*'Sensitivity Analysis - Acreage'!K134) + (Inputs!$B$16) +K165 -> 27951.03131 | L166: =(Inputs!$H$10*'Sensitivity Analysis - Acreage'!L134) + (Inputs!$B$16) +L165 -> 28302.15423 | M166: =(Inputs!$H$10*'Sensitivity Analysis - Acreage'!M134) + (Inputs!$B$16) +M165 -> 28658 | N166: =(Inputs!$H$10*'Sensitivity Analysis - Acreage'!N134) + (Inputs!$B$16) +N165 -> 29018.62214 | O166: =(Inputs!$H$10*'Sensitivity Analysis - Acreage'!O134) + (Inputs!$B$16) +O165 -> 29384.0746 | P166: =(Inputs!$H$10*'Sensitivity Analysis - Acreage'!P134) + (Inputs!$B$16) +P165 -> 45658.55461 | Q166: =(Inputs!$H$10*'Sensitivity Analysis - Acreage'!Q134) + (Inputs!$B$16) +Q165 -> 46591.35693 | R166: =(Inputs!$H$10*'Sensitivity Analysis - Acreage'!R134) + (Inputs!$B$16) +R165 -> 47546.09995 | S166: =(Inputs!$H$10*'Sensitivity Analysis - Acreage'!S134) + (Inputs!$B$16) +S165 -> 48523.27723 | T166: =(Inputs!$H$10*'Sensitivity Analysis - Acreage'!T134) + (Inputs!$B$16) +T165 -> 50546.958 | U166: =(Inputs!$H$10*'Sensitivity Analysis - Acreage'!U134) + (Inputs!$B$16) +U165 -> 52666.54671 | V166: =(Inputs!$H$10*'Sensitivity Analysis - Acreage'!V134) + (Inputs!$B$16) +V165 -> 54886.35558 | W166: =(Inputs!$H$10*'Sensitivity Analysis - Acreage'!W134) + (Inputs!$B$16) +W165 -> 57210.86693 | Y166: 9 | Z166: =(Inputs!$H$13*Z134) +(Inputs!$K$13*Inputs!$B$10) + (Inputs!$D$32*'Sensitivity Analysis - Acreage'!$Y134)+Inputs!$B$31+ (Inputs!$B$30*'Sensitivity Analysis - Acreage'!$Y134) +Inputs!$B$20+Inputs!$B$25+'Maintenance Costs'!$M$34 +(Z133*Inputs!$H$13)+(Inputs!$K$13*Inputs!$B$10 * 'Sensitivity Analysis - Acreage'!$Y133) +(Z126*Inputs!$H$13)+(Z127*Inputs!$H$13)+(Z128*Inputs!$H$13)+(Z129*Inputs!$H$13)+(Z130*Inputs!$H$13)+(Z131*Inputs!$H$13)+(Z132*Inputs!$H$13) -> 39890.89578 | AA166: =(Inputs!$H$13*AA134) +(Inputs!$K$13*Inputs!$B$10) + (Inputs!$D$32*'Sensitivity Analysis - Acreage'!$Y134)+Inputs!$B$31+ (Inputs!$B$30*'Sensitivity Analysis - Acreage'!$Y134) +Inputs!$B$20+Inputs!$B$25+'Maintenance Costs'!$M$34 +(AA133*Inputs!$H$13)+(Inputs!$K$13*Inputs!$B$10 * 'Sensitivity Analysis - Acreage'!$Y133) +(AA126*Inputs!$H$13)+(AA127*Inputs!$H$13)+(AA128*Inputs!$H$13)+(AA129*Inputs!$H$13)+(AA130*Inputs!$H$13)+(AA131*Inputs!$H$13)+(AA132*Inputs!$H$13) -> 40110.14954 | AB166: =(Inputs!$H$13*AB134) +(Inputs!$K$13*Inputs!$B$10) + (Inputs!$D$32*'Sensitivity Analysis - Acreage'!$Y134)+Inputs!$B$31+ (Inputs!$B$30*'Sensitivity Analysis - Acreage'!$Y134) +Inputs!$B$20+Inputs!$B$25+'Maintenance Costs'!$M$34 +(AB133*Inputs!$H$13)+(Inputs!$K$13*Inputs!$B$10 * 'Sensitivity Analysis - Acreage'!$Y133) +(AB126*Inputs!$H$13)+(AB127*Inputs!$H$13)+(AB128*Inputs!$H$13)+(AB129*Inputs!$H$13)+(AB130*Inputs!$H$13)+(AB131*Inputs!$H$13)+(AB132*Inputs!$H$13) -> 40334.59157 | AC166: =(Inputs!$H$13*AC134) +(Inputs!$K$13*Inputs!$B$10) + (Inputs!$D$32*'Sensitivity Analysis - Acreage'!$Y134)+Inputs!$B$31+ (Inputs!$B$30*'Sensitivity Analysis - Acreage'!$Y134) +Inputs!$B$20+Inputs!$B$25+'Maintenance Costs'!$M$34 +(AC133*Inputs!$H$13)+(Inputs!$K$13*Inputs!$B$10 * 'Sensitivity Analysis - Acreage'!$Y133) +(AC126*Inputs!$H$13)+(AC127*Inputs!$H$13)+(AC128*Inputs!$H$13)+(AC129*Inputs!$H$13)+(AC130*Inputs!$H$13)+(AC131*Inputs!$H$13)+(AC132*Inputs!$H$13) -> 40564.34067 | AD166: =(Inputs!$H$13*AD134) +(Inputs!$K$13*Inputs!$B$10) + (Inputs!$D$32*'Sensitivity Analysis - Acreage'!$Y134)+Inputs!$B$31+ (Inputs!$B$30*'Sensitivity Analysis - Acreage'!$Y134) +Inputs!$B$20+Inputs!$B$25+'Maintenance Costs'!$M$34 +(AD133*Inputs!$H$13)+(Inputs!$K$13*Inputs!$B$10 * 'Sensitivity Analysis - Acreage'!$Y133) +(AD126*Inputs!$H$13)+(AD127*Inputs!$H$13)+(AD128*Inputs!$H$13)+(AD129*Inputs!$H$13)+(AD130*Inputs!$H$13)+(AD131*Inputs!$H$13)+(AD132*Inputs!$H$13) -> 40799.51807 | AE166: =(Inputs!$H$13*AE134) +(Inputs!$K$13*Inputs!$B$10) + (Inputs!$D$32*'Sensitivity Analysis - Acreage'!$Y134)+Inputs!$B$31+ (Inputs!$B$30*'Sensitivity Analysis - Acreage'!$Y134) +Inputs!$B$20+Inputs!$B$25+'Maintenance Costs'!$M$34 +(AE133*Inputs!$H$13)+(Inputs!$K$13*Inputs!$B$10 * 'Sensitivity Analysis - Acreage'!$Y133) +(AE126*Inputs!$H$13)+(AE127*Inputs!$H$13)+(AE128*Inputs!$H$13)+(AE129*Inputs!$H$13)+(AE130*Inputs!$H$13)+(AE131*Inputs!$H$13)+(AE132*Inputs!$H$13) -> 41040.24743 | AF166: =(Inputs!$H$13*AF134) +(Inputs!$K$13*Inputs!$B$10) + (Inputs!$D$32*'Sensitivity Analysis - Acreage'!$Y134)+Inputs!$B$31+ (Inputs!$B$30*'Sensitivity Analysis - Acreage'!$Y134) +Inputs!$B$20+Inputs!$B$25+'Maintenance Costs'!$M$34 +(AF133*Inputs!$H$13)+(Inputs!$K$13*Inputs!$B$10 * 'Sensitivity Analysis - Acreage'!$Y133) +(AF126*Inputs!$H$13)+(AF127*Inputs!$H$13)+(AF128*Inputs!$H$13)+(AF129*Inputs!$H$13)+(AF130*Inputs!$H$13)+(AF131*Inputs!$H$13)+(AF132*Inputs!$H$13) -> 41286.65494 | AG166: =(Inputs!$H$13*AG134) +(Inputs!$K$13*Inputs!$B$10) + (Inputs!$D$32*'Sensitivity Analysis - Acreage'!$Y134)+Inputs!$B$31+ (Inputs!$B$30*'Sensitivity Analysis - Acreage'!$Y134) +Inputs!$B$20+Inputs!$B$25+'Maintenance Costs'!$M$34 +(AG133*Inputs!$H$13)+(Inputs!$K$13*Inputs!$B$10 * 'Sensitivity Analysis - Acreage'!$Y133) +(AG126*Inputs!$H$13)+(AG127*Inputs!$H$13)+(AG128*Inputs!$H$13)+(AG129*Inputs!$H$13)+(AG130*Inputs!$H$13)+(AG131*Inputs!$H$13)+(AG132*Inputs!$H$13) -> 41538.8693 | AH166: =(Inputs!$H$13*AH134) +(Inputs!$K$13*Inputs!$B$10) + (Inputs!$D$32*'Sensitivity Analysis - Acreage'!$Y134)+Inputs!$B$31+ (Inputs!$B$30*'Sensitivity Analysis - Acreage'!$Y134) +Inputs!$B$20+Inputs!$B$25+'Maintenance Costs'!$M$34 +(AH133*Inputs!$H$13)+(Inputs!$K$13*Inputs!$B$10 * 'Sensitivity Analysis - Acreage'!$Y133) +(AH126*Inputs!$H$13)+(AH127*Inputs!$H$13)+(AH128*Inputs!$H$13)+(AH129*Inputs!$H$13)+(AH130*Inputs!$H$13)+(AH131*Inputs!$H$13)+(AH132*Inputs!$H$13) -> 41797.02181 | AI166: =(Inputs!$H$13*AI134) +(Inputs!$K$13*Inputs!$B$10) + (Inputs!$D$32*'Sensitivity Analysis - Acreage'!$Y134)+Inputs!$B$31+ (Inputs!$B$30*'Sensitivity Analysis - Acreage'!$Y134) +Inputs!$B$20+Inputs!$B$25+'Maintenance Costs'!$M$34 +(AI133*Inputs!$H$13)+(Inputs!$K$13*Inputs!$B$10 * 'Sensitivity Analysis - Acreage'!$Y133) +(AI126*Inputs!$H$13)+(AI127*Inputs!$H$13)+(AI128*Inputs!$H$13)+(AI129*Inputs!$H$13)+(AI130*Inputs!$H$13)+(AI131*Inputs!$H$13)+(AI132*Inputs!$H$13) -> 42061.24641 | AJ166: =(Inputs!$H$13*AJ134) +(Inputs!$K$13*Inputs!$B$10) + (Inputs!$D$32*'Sensitivity Analysis - Acreage'!$Y134)+Inputs!$B$31+ (Inputs!$B$30*'Sensitivity Analysis - Acreage'!$Y134) +Inputs!$B$20+Inputs!$B$25+'Maintenance Costs'!$M$34 +(AJ133*Inputs!$H$13)+(Inputs!$K$13*Inputs!$B$10 * 'Sensitivity Analysis - Acreage'!$Y133) +(AJ126*Inputs!$H$13)+(AJ127*Inputs!$H$13)+(AJ128*Inputs!$H$13)+(AJ129*Inputs!$H$13)+(AJ130*Inputs!$H$13)+(AJ131*Inputs!$H$13)+(AJ132*Inputs!$H$13) -> 42331.67967 | AK166: =(Inputs!$H$13*AK134) +(Inputs!$K$13*Inputs!$B$10) + (Inputs!$D$32*'Sensitivity Analysis - Acreage'!$Y134)+Inputs!$B$31+ (Inputs!$B$30*'Sensitivity Analysis - Acreage'!$Y134) +Inputs!$B$20+Inputs!$B$25+'Maintenance Costs'!$M$34 +(AK133*Inputs!$H$13)+(Inputs!$K$13*Inputs!$B$10 * 'Sensitivity Analysis - Acreage'!$Y133) +(AK126*Inputs!$H$13)+(AK127*Inputs!$H$13)+(AK128*Inputs!$H$13)+(AK129*Inputs!$H$13)+(AK130*Inputs!$H$13)+(AK131*Inputs!$H$13)+(AK132*Inputs!$H$13) -> 42891.73218 | AL166: =(Inputs!$H$13*AL134) +(Inputs!$K$13*Inputs!$B$10) + (Inputs!$D$32*'Sensitivity Analysis - Acreage'!$Y134)+Inputs!$B$31+ (Inputs!$B$30*'Sensitivity Analysis - Acreage'!$Y134) +Inputs!$B$20+Inputs!$B$25+'Maintenance Costs'!$M$34 +(AL133*Inputs!$H$13)+(Inputs!$K$13*Inputs!$B$10 * 'Sensitivity Analysis - Acreage'!$Y133) +(AL126*Inputs!$H$13)+(AL127*Inputs!$H$13)+(AL128*Inputs!$H$13)+(AL129*Inputs!$H$13)+(AL130*Inputs!$H$13)+(AL131*Inputs!$H$13)+(AL132*Inputs!$H$13) -> 43478.32716 | AM166: =(Inputs!$H$13*'Sensitivity Analysis - Acreage'!AM134)+(Inputs!$K$13*Inputs!$B$10*$Y134)+(Inputs!$D$32*'Sensitivity Analysis - Acreage'!$Y134)+Inputs!$B$31+(Inputs!$B$30*'Sensitivity Analysis - Acreage'!$Y134)+Inputs!$B$20+Inputs!$B$25+'Maintenance Costs'!$M$34+(Inputs!$H$13*'Sensitivity Analysis - Acreage'!$AM$126)+(Inputs!$H$13*$AM$127)+(Inputs!$H$13*$AM$128)+(Inputs!$H$13*$AM$129)+(Inputs!$H$13*$AM$130)+(Inputs!$H$13*$AM$131)+(Inputs!$H$13*$AM$132)+(Inputs!$H$13*$AM$133) -> 44092.65801 | AN166: =(Inputs!$H$13*'Sensitivity Analysis - Acreage'!AN134)+(Inputs!$K$13*Inputs!$B$10*$Y134)+(Inputs!$D$32*'Sensitivity Analysis - Acreage'!$Y134)+Inputs!$B$31+(Inputs!$B$30*'Sensitivity Analysis - Acreage'!$Y134)+Inputs!$B$20+Inputs!$B$25+'Maintenance Costs'!$M$34+(Inputs!$H$13*$AN$126)+(Inputs!$H$13*$AN$127)+(Inputs!$H$13*$AN$128)+(Inputs!$H$13*$AN$129)+(Inputs!$H$13*$AN$130)+(Inputs!$H$13*$AN$131)+(Inputs!$H$13*$AN$132)+(Inputs!$H$13*$AN$133) -> 44735.96521 | AP166: 560.0525103 | AQ166: 586.5949794 | AR166: 614.3308503
I167: =(Inputs!$H$10*'Sensitivity Analysis - Acreage'!I135) + (Inputs!$B$16) +I166 -> 31493.82057 | J167: =(Inputs!$H$10*'Sensitivity Analysis - Acreage'!J135) + (Inputs!$B$16) +J166 -> 31966.84281 | K167: =(Inputs!$H$10*'Sensitivity Analysis - Acreage'!K135) + (Inputs!$B$16) +K166 -> 32447.85433 | L167: =(Inputs!$H$10*'Sensitivity Analysis - Acreage'!L135) + (Inputs!$B$16) +L166 -> 32936.97679 | M167: =(Inputs!$H$10*'Sensitivity Analysis - Acreage'!M135) + (Inputs!$B$16) +M166 -> 33434.33333 | N167: =(Inputs!$H$10*'Sensitivity Analysis - Acreage'!N135) + (Inputs!$B$16) +N166 -> 33940.04858 | O167: =(Inputs!$H$10*'Sensitivity Analysis - Acreage'!O135) + (Inputs!$B$16) +O166 -> 34454.24868 | P167: =(Inputs!$H$10*'Sensitivity Analysis - Acreage'!P135) + (Inputs!$B$16) +P166 -> 51119.76626 | Q167: =(Inputs!$H$10*'Sensitivity Analysis - Acreage'!Q135) + (Inputs!$B$16) +Q166 -> 52299.5174 | R167: =(Inputs!$H$10*'Sensitivity Analysis - Acreage'!R135) + (Inputs!$B$16) +R166 -> 53511.08578 | S167: =(Inputs!$H$10*'Sensitivity Analysis - Acreage'!S135) + (Inputs!$B$16) +S166 -> 54755.30888 | T167: =(Inputs!$H$10*'Sensitivity Analysis - Acreage'!T135) + (Inputs!$B$16) +T166 -> 57345.16965 | U167: =(Inputs!$H$10*'Sensitivity Analysis - Acreage'!U135) + (Inputs!$B$16) +U166 -> 60076.20738 | V167: =(Inputs!$H$10*'Sensitivity Analysis - Acreage'!V135) + (Inputs!$B$16) +V166 -> 62955.87024 | W167: =(Inputs!$H$10*'Sensitivity Analysis - Acreage'!W135) + (Inputs!$B$16) +W166 -> 65991.96095 | Y167: 10 | Z167: =(Inputs!$H$13*Z135) +(Inputs!$K$13*Inputs!$B$10) + (Inputs!$D$32*'Sensitivity Analysis - Acreage'!$Y135)+Inputs!$B$31+ (Inputs!$B$30*'Sensitivity Analysis - Acreage'!$Y135) +Inputs!$B$20+Inputs!$B$25+'Maintenance Costs'!$N$34 +(Z134*Inputs!$H$13)+(Inputs!$K$13*Inputs!$B$10 * 'Sensitivity Analysis - Acreage'!$Y134) +(Z126*Inputs!$H$13)+(Z127*Inputs!$H$13)+(Z128*Inputs!$H$13)+(Z129*Inputs!$H$13)+(Z130*Inputs!$H$13)+(Z131*Inputs!$H$13)+(Z132*Inputs!$H$13)+(Z133*Inputs!$H$13) -> 42685.34212 | AA167: =(Inputs!$H$13*AA135) +(Inputs!$K$13*Inputs!$B$10) + (Inputs!$D$32*'Sensitivity Analysis - Acreage'!$Y135)+Inputs!$B$31+ (Inputs!$B$30*'Sensitivity Analysis - Acreage'!$Y135) +Inputs!$B$20+Inputs!$B$25+'Maintenance Costs'!$N$34 +(AA134*Inputs!$H$13)+(Inputs!$K$13*Inputs!$B$10 * 'Sensitivity Analysis - Acreage'!$Y134) +(AA126*Inputs!$H$13)+(AA127*Inputs!$H$13)+(AA128*Inputs!$H$13)+(AA129*Inputs!$H$13)+(AA130*Inputs!$H$13)+(AA131*Inputs!$H$13)+(AA132*Inputs!$H$13)+(AA133*Inputs!$H$13) -> 42956.2471 | AB167: =(Inputs!$H$13*AB135) +(Inputs!$K$13*Inputs!$B$10) + (Inputs!$D$32*'Sensitivity Analysis - Acreage'!$Y135)+Inputs!$B$31+ (Inputs!$B$30*'Sensitivity Analysis - Acreage'!$Y135) +Inputs!$B$20+Inputs!$B$25+'Maintenance Costs'!$N$34 +(AB134*Inputs!$H$13)+(Inputs!$K$13*Inputs!$B$10 * 'Sensitivity Analysis - Acreage'!$Y134) +(AB126*Inputs!$H$13)+(AB127*Inputs!$H$13)+(AB128*Inputs!$H$13)+(AB129*Inputs!$H$13)+(AB130*Inputs!$H$13)+(AB131*Inputs!$H$13)+(AB132*Inputs!$H$13)+(AB133*Inputs!$H$13) -> 43234.48101 | AC167: =(Inputs!$H$13*AC135) +(Inputs!$K$13*Inputs!$B$10) + (Inputs!$D$32*'Sensitivity Analysis - Acreage'!$Y135)+Inputs!$B$31+ (Inputs!$B$30*'Sensitivity Analysis - Acreage'!$Y135) +Inputs!$B$20+Inputs!$B$25+'Maintenance Costs'!$N$34 +(AC134*Inputs!$H$13)+(Inputs!$K$13*Inputs!$B$10 * 'Sensitivity Analysis - Acreage'!$Y134) +(AC126*Inputs!$H$13)+(AC127*Inputs!$H$13)+(AC128*Inputs!$H$13)+(AC129*Inputs!$H$13)+(AC130*Inputs!$H$13)+(AC131*Inputs!$H$13)+(AC132*Inputs!$H$13)+(AC133*Inputs!$H$13) -> 43520.23987 | AD167: =(Inputs!$H$13*AD135) +(Inputs!$K$13*Inputs!$B$10) + (Inputs!$D$32*'Sensitivity Analysis - Acreage'!$Y135)+Inputs!$B$31+ (Inputs!$B$30*'Sensitivity Analysis - Acreage'!$Y135) +Inputs!$B$20+Inputs!$B$25+'Maintenance Costs'!$N$34 +(AD134*Inputs!$H$13)+(Inputs!$K$13*Inputs!$B$10 * 'Sensitivity Analysis - Acreage'!$Y134) +(AD126*Inputs!$H$13)+(AD127*Inputs!$H$13)+(AD128*Inputs!$H$13)+(AD129*Inputs!$H$13)+(AD130*Inputs!$H$13)+(AD131*Inputs!$H$13)+(AD132*Inputs!$H$13)+(AD133*Inputs!$H$13) -> 43813.72452 | AE167: =(Inputs!$H$13*AE135) +(Inputs!$K$13*Inputs!$B$10) + (Inputs!$D$32*'Sensitivity Analysis - Acreage'!$Y135)+Inputs!$B$31+ (Inputs!$B$30*'Sensitivity Analysis - Acreage'!$Y135) +Inputs!$B$20+Inputs!$B$25+'Maintenance Costs'!$N$34 +(AE134*Inputs!$H$13)+(Inputs!$K$13*Inputs!$B$10 * 'Sensitivity Analysis - Acreage'!$Y134) +(AE126*Inputs!$H$13)+(AE127*Inputs!$H$13)+(AE128*Inputs!$H$13)+(AE129*Inputs!$H$13)+(AE130*Inputs!$H$13)+(AE131*Inputs!$H$13)+(AE132*Inputs!$H$13)+(AE133*Inputs!$H$13) -> 44115.14067 | AF167: =(Inputs!$H$13*AF135) +(Inputs!$K$13*Inputs!$B$10) + (Inputs!$D$32*'Sensitivity Analysis - Acreage'!$Y135)+Inputs!$B$31+ (Inputs!$B$30*'Sensitivity Analysis - Acreage'!$Y135) +Inputs!$B$20+Inputs!$B$25+'Maintenance Costs'!$N$34 +(AF134*Inputs!$H$13)+(Inputs!$K$13*Inputs!$B$10 * 'Sensitivity Analysis - Acreage'!$Y134) +(AF126*Inputs!$H$13)+(AF127*Inputs!$H$13)+(AF128*Inputs!$H$13)+(AF129*Inputs!$H$13)+(AF130*Inputs!$H$13)+(AF131*Inputs!$H$13)+(AF132*Inputs!$H$13)+(AF133*Inputs!$H$13) -> 44424.69904 | AG167: =(Inputs!$H$13*AG135) +(Inputs!$K$13*Inputs!$B$10) + (Inputs!$D$32*'Sensitivity Analysis - Acreage'!$Y135)+Inputs!$B$31+ (Inputs!$B$30*'Sensitivity Analysis - Acreage'!$Y135) +Inputs!$B$20+Inputs!$B$25+'Maintenance Costs'!$N$34 +(AG134*Inputs!$H$13)+(Inputs!$K$13*Inputs!$B$10 * 'Sensitivity Analysis - Acreage'!$Y134) +(AG126*Inputs!$H$13)+(AG127*Inputs!$H$13)+(AG128*Inputs!$H$13)+(AG129*Inputs!$H$13)+(AG130*Inputs!$H$13)+(AG131*Inputs!$H$13)+(AG132*Inputs!$H$13)+(AG133*Inputs!$H$13) -> 44742.61544 | AH167: =(Inputs!$H$13*AH135) +(Inputs!$K$13*Inputs!$B$10) + (Inputs!$D$32*'Sensitivity Analysis - Acreage'!$Y135)+Inputs!$B$31+ (Inputs!$B$30*'Sensitivity Analysis - Acreage'!$Y135) +Inputs!$B$20+Inputs!$B$25+'Maintenance Costs'!$N$34 +(AH134*Inputs!$H$13)+(Inputs!$K$13*Inputs!$B$10 * 'Sensitivity Analysis - Acreage'!$Y134) +(AH126*Inputs!$H$13)+(AH127*Inputs!$H$13)+(AH128*Inputs!$H$13)+(AH129*Inputs!$H$13)+(AH130*Inputs!$H$13)+(AH131*Inputs!$H$13)+(AH132*Inputs!$H$13)+(AH133*Inputs!$H$13) -> 45069.1109 | AI167: =(Inputs!$H$13*AI135) +(Inputs!$K$13*Inputs!$B$10) + (Inputs!$D$32*'Sensitivity Analysis - Acreage'!$Y135)+Inputs!$B$31+ (Inputs!$B$30*'Sensitivity Analysis - Acreage'!$Y135) +Inputs!$B$20+Inputs!$B$25+'Maintenance Costs'!$N$34 +(AI134*Inputs!$H$13)+(Inputs!$K$13*Inputs!$B$10 * 'Sensitivity Analysis - Acreage'!$Y134) +(AI126*Inputs!$H$13)+(AI127*Inputs!$H$13)+(AI128*Inputs!$H$13)+(AI129*Inputs!$H$13)+(AI130*Inputs!$H$13)+(AI131*Inputs!$H$13)+(AI132*Inputs!$H$13)+(AI133*Inputs!$H$13) -> 45404.41177 | AJ167: =(Inputs!$H$13*AJ135) +(Inputs!$K$13*Inputs!$B$10) + (Inputs!$D$32*'Sensitivity Analysis - Acreage'!$Y135)+Inputs!$B$31+ (Inputs!$B$30*'Sensitivity Analysis - Acreage'!$Y135) +Inputs!$B$20+Inputs!$B$25+'Maintenance Costs'!$N$34 +(AJ134*Inputs!$H$13)+(Inputs!$K$13*Inputs!$B$10 * 'Sensitivity Analysis - Acreage'!$Y134) +(AJ126*Inputs!$H$13)+(AJ127*Inputs!$H$13)+(AJ128*Inputs!$H$13)+(AJ129*Inputs!$H$13)+(AJ130*Inputs!$H$13)+(AJ131*Inputs!$H$13)+(AJ132*Inputs!$H$13)+(AJ133*Inputs!$H$13) -> 45748.74981 | AK167: =(Inputs!$H$13*AK135) +(Inputs!$K$13*Inputs!$B$10) + (Inputs!$D$32*'Sensitivity Analysis - Acreage'!$Y135)+Inputs!$B$31+ (Inputs!$B$30*'Sensitivity Analysis - Acreage'!$Y135) +Inputs!$B$20+Inputs!$B$25+'Maintenance Costs'!$N$34 +(AK134*Inputs!$H$13)+(Inputs!$K$13*Inputs!$B$10 * 'Sensitivity Analysis - Acreage'!$Y134) +(AK126*Inputs!$H$13)+(AK127*Inputs!$H$13)+(AK128*Inputs!$H$13)+(AK129*Inputs!$H$13)+(AK130*Inputs!$H$13)+(AK131*Inputs!$H$13)+(AK132*Inputs!$H$13)+(AK133*Inputs!$H$13) -> 46465.49231 | AL167: =(Inputs!$H$13*AL135) +(Inputs!$K$13*Inputs!$B$10) + (Inputs!$D$32*'Sensitivity Analysis - Acreage'!$Y135)+Inputs!$B$31+ (Inputs!$B$30*'Sensitivity Analysis - Acreage'!$Y135) +Inputs!$B$20+Inputs!$B$25+'Maintenance Costs'!$N$34 +(AL134*Inputs!$H$13)+(Inputs!$K$13*Inputs!$B$10 * 'Sensitivity Analysis - Acreage'!$Y134) +(AL126*Inputs!$H$13)+(AL127*Inputs!$H$13)+(AL128*Inputs!$H$13)+(AL129*Inputs!$H$13)+(AL130*Inputs!$H$13)+(AL131*Inputs!$H$13)+(AL132*Inputs!$H$13)+(AL133*Inputs!$H$13) -> 47221.30546 | AM167: =(Inputs!$H$13*'Sensitivity Analysis - Acreage'!AM135)+(Inputs!$K$13*Inputs!$B$10*$Y135)+(Inputs!$D$32*'Sensitivity Analysis - Acreage'!$Y135)+Inputs!$B$31+(Inputs!$B$30*'Sensitivity Analysis - Acreage'!$Y135)+Inputs!$B$20+Inputs!$B$25+'Maintenance Costs'!$N$34+(Inputs!$H$13*'Sensitivity Analysis - Acreage'!$AM$126)+(Inputs!$H$13*$AM$127)+(Inputs!$H$13*$AM$128)+(Inputs!$H$13*$AM$129)+(Inputs!$H$13*$AM$130)+(Inputs!$H$13*$AM$131)+(Inputs!$H$13*$AM$132)+(Inputs!$H$13*$AM$133)+(Inputs!$H$13*$AM$134) -> 48018.25053 | AN167: =(Inputs!$H$13*'Sensitivity Analysis - Acreage'!AN135)+(Inputs!$K$13*Inputs!$B$10*$Y135)+(Inputs!$D$32*'Sensitivity Analysis - Acreage'!$Y135)+Inputs!$B$31+(Inputs!$B$30*'Sensitivity Analysis - Acreage'!$Y135)+Inputs!$B$20+Inputs!$B$25+'Maintenance Costs'!$N$34+(Inputs!$H$13*$AN$126)+(Inputs!$H$13*$AN$127)+(Inputs!$H$13*$AN$128)+(Inputs!$H$13*$AN$129)+(Inputs!$H$13*$AN$130)+(Inputs!$H$13*$AN$131)+(Inputs!$H$13*$AN$132)+(Inputs!$H$13*$AN$133)+(Inputs!$H$13*$AN$134) -> 48858.48692 | AP167: 716.7425066 | AQ167: 755.8131494 | AR167: 796.9450721
I168: =(Inputs!$H$10*'Sensitivity Analysis - Acreage'!I136) + (Inputs!$B$16) +I167 -> 35640.27749 | J168: =(Inputs!$H$10*'Sensitivity Analysis - Acreage'!J136) + (Inputs!$B$16) +J167 -> 36263.6735 | K168: =(Inputs!$H$10*'Sensitivity Analysis - Acreage'!K136) + (Inputs!$B$16) +K167 -> 36899.70912 | L168: =(Inputs!$H$10*'Sensitivity Analysis - Acreage'!L136) + (Inputs!$B$16) +L167 -> 37548.62524 | M168: =(Inputs!$H$10*'Sensitivity Analysis - Acreage'!M136) + (Inputs!$B$16) +M167 -> 38210.66667 | N168: =(Inputs!$H$10*'Sensitivity Analysis - Acreage'!N136) + (Inputs!$B$16) +N167 -> 38886.08216 | O168: =(Inputs!$H$10*'Sensitivity Analysis - Acreage'!O136) + (Inputs!$B$16) +O167 -> 39575.1245 | P168: =(Inputs!$H$10*'Sensitivity Analysis - Acreage'!P136) + (Inputs!$B$16) +P167 -> 56662.89609 | Q168: =(Inputs!$H$10*'Sensitivity Analysis - Acreage'!Q136) + (Inputs!$B$16) +Q167 -> 58121.84108 | R168: =(Inputs!$H$10*'Sensitivity Analysis - Acreage'!R136) + (Inputs!$B$16) +R167 -> 59625.19626 | S168: =(Inputs!$H$10*'Sensitivity Analysis - Acreage'!S136) + (Inputs!$B$16) +S167 -> 61174.30148 | T168: =(Inputs!$H$10*'Sensitivity Analysis - Acreage'!T136) + (Inputs!$B$16) +T167 -> 64415.30977 | U168: =(Inputs!$H$10*'Sensitivity Analysis - Acreage'!U136) + (Inputs!$B$16) +U167 -> 67856.35108 | V168: =(Inputs!$H$10*'Sensitivity Analysis - Acreage'!V136) + (Inputs!$B$16) +V167 -> 71509.55579 | W168: =(Inputs!$H$10*'Sensitivity Analysis - Acreage'!W136) + (Inputs!$B$16) +W167 -> 75387.73155 | Y168: 11 | Z168: =(Inputs!$H$13*Z136) +(Inputs!$K$13*Inputs!$B$10) + (Inputs!$D$32*'Sensitivity Analysis - Acreage'!$Y136)+Inputs!$B$31+ (Inputs!$B$30*'Sensitivity Analysis - Acreage'!$Y136) +Inputs!$B$20+Inputs!$B$25+'Maintenance Costs'!$O$34 +(Z135*Inputs!$H$13)+(Inputs!$K$13*Inputs!$B$10 * 'Sensitivity Analysis - Acreage'!$Y135) +(Z126*Inputs!$H$13)+(Z127*Inputs!$H$13)+(Z128*Inputs!$H$13)+(Z129*Inputs!$H$13)+(Z130*Inputs!$H$13)+(Z131*Inputs!$H$13)+(Z132*Inputs!$H$13)+(Z133*Inputs!$H$13)+(Z134*Inputs!$H$13) -> 44665.18671 | AA168: =(Inputs!$H$13*AA136) +(Inputs!$K$13*Inputs!$B$10) + (Inputs!$D$32*'Sensitivity Analysis - Acreage'!$Y136)+Inputs!$B$31+ (Inputs!$B$30*'Sensitivity Analysis - Acreage'!$Y136) +Inputs!$B$20+Inputs!$B$25+'Maintenance Costs'!$O$34 +(AA135*Inputs!$H$13)+(Inputs!$K$13*Inputs!$B$10 * 'Sensitivity Analysis - Acreage'!$Y135) +(AA126*Inputs!$H$13)+(AA127*Inputs!$H$13)+(AA128*Inputs!$H$13)+(AA129*Inputs!$H$13)+(AA130*Inputs!$H$13)+(AA131*Inputs!$H$13)+(AA132*Inputs!$H$13)+(AA133*Inputs!$H$13)+(AA134*Inputs!$H$13) -> 44992.47858 | AB168: =(Inputs!$H$13*AB136) +(Inputs!$K$13*Inputs!$B$10) + (Inputs!$D$32*'Sensitivity Analysis - Acreage'!$Y136)+Inputs!$B$31+ (Inputs!$B$30*'Sensitivity Analysis - Acreage'!$Y136) +Inputs!$B$20+Inputs!$B$25+'Maintenance Costs'!$O$34 +(AB135*Inputs!$H$13)+(Inputs!$K$13*Inputs!$B$10 * 'Sensitivity Analysis - Acreage'!$Y135) +(AB126*Inputs!$H$13)+(AB127*Inputs!$H$13)+(AB128*Inputs!$H$13)+(AB129*Inputs!$H$13)+(AB130*Inputs!$H$13)+(AB131*Inputs!$H$13)+(AB132*Inputs!$H$13)+(AB133*Inputs!$H$13)+(AB134*Inputs!$H$13) -> 45329.73514 | AC168: =(Inputs!$H$13*AC136) +(Inputs!$K$13*Inputs!$B$10) + (Inputs!$D$32*'Sensitivity Analysis - Acreage'!$Y136)+Inputs!$B$31+ (Inputs!$B$30*'Sensitivity Analysis - Acreage'!$Y136) +Inputs!$B$20+Inputs!$B$25+'Maintenance Costs'!$O$34 +(AC135*Inputs!$H$13)+(Inputs!$K$13*Inputs!$B$10 * 'Sensitivity Analysis - Acreage'!$Y135) +(AC126*Inputs!$H$13)+(AC127*Inputs!$H$13)+(AC128*Inputs!$H$13)+(AC129*Inputs!$H$13)+(AC130*Inputs!$H$13)+(AC131*Inputs!$H$13)+(AC132*Inputs!$H$13)+(AC133*Inputs!$H$13)+(AC134*Inputs!$H$13) -> 45677.26137 | AD168: =(Inputs!$H$13*AD136) +(Inputs!$K$13*Inputs!$B$10) + (Inputs!$D$32*'Sensitivity Analysis - Acreage'!$Y136)+Inputs!$B$31+ (Inputs!$B$30*'Sensitivity Analysis - Acreage'!$Y136) +Inputs!$B$20+Inputs!$B$25+'Maintenance Costs'!$O$34 +(AD135*Inputs!$H$13)+(Inputs!$K$13*Inputs!$B$10 * 'Sensitivity Analysis - Acreage'!$Y135) +(AD126*Inputs!$H$13)+(AD127*Inputs!$H$13)+(AD128*Inputs!$H$13)+(AD129*Inputs!$H$13)+(AD130*Inputs!$H$13)+(AD131*Inputs!$H$13)+(AD132*Inputs!$H$13)+(AD133*Inputs!$H$13)+(AD134*Inputs!$H$13) -> 46035.37097 | AE168: =(Inputs!$H$13*AE136) +(Inputs!$K$13*Inputs!$B$10) + (Inputs!$D$32*'Sensitivity Analysis - Acreage'!$Y136)+Inputs!$B$31+ (Inputs!$B$30*'Sensitivity Analysis - Acreage'!$Y136) +Inputs!$B$20+Inputs!$B$25+'Maintenance Costs'!$O$34 +(AE135*Inputs!$H$13)+(Inputs!$K$13*Inputs!$B$10 * 'Sensitivity Analysis - Acreage'!$Y135) +(AE126*Inputs!$H$13)+(AE127*Inputs!$H$13)+(AE128*Inputs!$H$13)+(AE129*Inputs!$H$13)+(AE130*Inputs!$H$13)+(AE131*Inputs!$H$13)+(AE132*Inputs!$H$13)+(AE133*Inputs!$H$13)+(AE134*Inputs!$H$13) -> 46404.38658 | AF168: =(Inputs!$H$13*AF136) +(Inputs!$K$13*Inputs!$B$10) + (Inputs!$D$32*'Sensitivity Analysis - Acreage'!$Y136)+Inputs!$B$31+ (Inputs!$B$30*'Sensitivity Analysis - Acreage'!$Y136) +Inputs!$B$20+Inputs!$B$25+'Maintenance Costs'!$O$34 +(AF135*Inputs!$H$13)+(Inputs!$K$13*Inputs!$B$10 * 'Sensitivity Analysis - Acreage'!$Y135) +(AF126*Inputs!$H$13)+(AF127*Inputs!$H$13)+(AF128*Inputs!$H$13)+(AF129*Inputs!$H$13)+(AF130*Inputs!$H$13)+(AF131*Inputs!$H$13)+(AF132*Inputs!$H$13)+(AF133*Inputs!$H$13)+(AF134*Inputs!$H$13) -> 46784.63999 | AG168: =(Inputs!$H$13*AG136) +(Inputs!$K$13*Inputs!$B$10) + (Inputs!$D$32*'Sensitivity Analysis - Acreage'!$Y136)+Inputs!$B$31+ (Inputs!$B$30*'Sensitivity Analysis - Acreage'!$Y136) +Inputs!$B$20+Inputs!$B$25+'Maintenance Costs'!$O$34 +(AG135*Inputs!$H$13)+(Inputs!$K$13*Inputs!$B$10 * 'Sensitivity Analysis - Acreage'!$Y135) +(AG126*Inputs!$H$13)+(AG127*Inputs!$H$13)+(AG128*Inputs!$H$13)+(AG129*Inputs!$H$13)+(AG130*Inputs!$H$13)+(AG131*Inputs!$H$13)+(AG132*Inputs!$H$13)+(AG133*Inputs!$H$13)+(AG134*Inputs!$H$13) -> 47176.47239 | AH168: =(Inputs!$H$13*AH136) +(Inputs!$K$13*Inputs!$B$10) + (Inputs!$D$32*'Sensitivity Analysis - Acreage'!$Y136)+Inputs!$B$31+ (Inputs!$B$30*'Sensitivity Analysis - Acreage'!$Y136) +Inputs!$B$20+Inputs!$B$25+'Maintenance Costs'!$O$34 +(AH135*Inputs!$H$13)+(Inputs!$K$13*Inputs!$B$10 * 'Sensitivity Analysis - Acreage'!$Y135) +(AH126*Inputs!$H$13)+(AH127*Inputs!$H$13)+(AH128*Inputs!$H$13)+(AH129*Inputs!$H$13)+(AH130*Inputs!$H$13)+(AH131*Inputs!$H$13)+(AH132*Inputs!$H$13)+(AH133*Inputs!$H$13)+(AH134*Inputs!$H$13) -> 47580.23459 | AI168: =(Inputs!$H$13*AI136) +(Inputs!$K$13*Inputs!$B$10) + (Inputs!$D$32*'Sensitivity Analysis - Acreage'!$Y136)+Inputs!$B$31+ (Inputs!$B$30*'Sensitivity Analysis - Acreage'!$Y136) +Inputs!$B$20+Inputs!$B$25+'Maintenance Costs'!$O$34 +(AI135*Inputs!$H$13)+(Inputs!$K$13*Inputs!$B$10 * 'Sensitivity Analysis - Acreage'!$Y135) +(AI126*Inputs!$H$13)+(AI127*Inputs!$H$13)+(AI128*Inputs!$H$13)+(AI129*Inputs!$H$13)+(AI130*Inputs!$H$13)+(AI131*Inputs!$H$13)+(AI132*Inputs!$H$13)+(AI133*Inputs!$H$13)+(AI134*Inputs!$H$13) -> 47996.28729 | AJ168: =(Inputs!$H$13*AJ136) +(Inputs!$K$13*Inputs!$B$10) + (Inputs!$D$32*'Sensitivity Analysis - Acreage'!$Y136)+Inputs!$B$31+ (Inputs!$B$30*'Sensitivity Analysis - Acreage'!$Y136) +Inputs!$B$20+Inputs!$B$25+'Maintenance Costs'!$O$34 +(AJ135*Inputs!$H$13)+(Inputs!$K$13*Inputs!$B$10 * 'Sensitivity Analysis - Acreage'!$Y135) +(AJ126*Inputs!$H$13)+(AJ127*Inputs!$H$13)+(AJ128*Inputs!$H$13)+(AJ129*Inputs!$H$13)+(AJ130*Inputs!$H$13)+(AJ131*Inputs!$H$13)+(AJ132*Inputs!$H$13)+(AJ133*Inputs!$H$13)+(AJ134*Inputs!$H$13) -> 48425.00128 | AK168: =(Inputs!$H$13*AK136) +(Inputs!$K$13*Inputs!$B$10) + (Inputs!$D$32*'Sensitivity Analysis - Acreage'!$Y136)+Inputs!$B$31+ (Inputs!$B$30*'Sensitivity Analysis - Acreage'!$Y136) +Inputs!$B$20+Inputs!$B$25+'Maintenance Costs'!$O$34 +(AK135*Inputs!$H$13)+(Inputs!$K$13*Inputs!$B$10 * 'Sensitivity Analysis - Acreage'!$Y135) +(AK126*Inputs!$H$13)+(AK127*Inputs!$H$13)+(AK128*Inputs!$H$13)+(AK129*Inputs!$H$13)+(AK130*Inputs!$H$13)+(AK131*Inputs!$H$13)+(AK132*Inputs!$H$13)+(AK133*Inputs!$H$13)+(AK134*Inputs!$H$13) -> 49321.9485 | AL168: =(Inputs!$H$13*AL136) +(Inputs!$K$13*Inputs!$B$10) + (Inputs!$D$32*'Sensitivity Analysis - Acreage'!$Y136)+Inputs!$B$31+ (Inputs!$B$30*'Sensitivity Analysis - Acreage'!$Y136) +Inputs!$B$20+Inputs!$B$25+'Maintenance Costs'!$O$34 +(AL135*Inputs!$H$13)+(Inputs!$K$13*Inputs!$B$10 * 'Sensitivity Analysis - Acreage'!$Y135) +(AL126*Inputs!$H$13)+(AL127*Inputs!$H$13)+(AL128*Inputs!$H$13)+(AL129*Inputs!$H$13)+(AL130*Inputs!$H$13)+(AL131*Inputs!$H$13)+(AL132*Inputs!$H$13)+(AL133*Inputs!$H$13)+(AL134*Inputs!$H$13) -> 50274.25474 | AM168: =(Inputs!$H$13*'Sensitivity Analysis - Acreage'!AM136)+(Inputs!$K$13*Inputs!$B$10*$Y136)+(Inputs!$D$32*'Sensitivity Analysis - Acreage'!$Y136)+Inputs!$B$31+(Inputs!$B$30*'Sensitivity Analysis - Acreage'!$Y136)+Inputs!$B$20+Inputs!$B$25+'Maintenance Costs'!$O$34+(Inputs!$H$13*'Sensitivity Analysis - Acreage'!$AM$126)+(Inputs!$H$13*$AM$127)+(Inputs!$H$13*$AM$128)+(Inputs!$H$13*$AM$129)+(Inputs!$H$13*$AM$130)+(Inputs!$H$13*$AM$131)+(Inputs!$H$13*$AM$132)+(Inputs!$H$13*$AM$133)+(Inputs!$H$13*$AM$134)+(Inputs!$H$13*$AM$135) -> 51285.27708 | AN168: =(Inputs!$H$13*'Sensitivity Analysis - Acreage'!AN136)+(Inputs!$K$13*Inputs!$B$10*$Y136)+(Inputs!$D$32*'Sensitivity Analysis - Acreage'!$Y136)+Inputs!$B$31+(Inputs!$B$30*'Sensitivity Analysis - Acreage'!$Y136)+Inputs!$B$20+Inputs!$B$25+'Maintenance Costs'!$O$34+(Inputs!$H$13*$AN$126)+(Inputs!$H$13*$AN$127)+(Inputs!$H$13*$AN$128)+(Inputs!$H$13*$AN$129)+(Inputs!$H$13*$AN$130)+(Inputs!$H$13*$AN$131)+(Inputs!$H$13*$AN$132)+(Inputs!$H$13*$AN$133)+(Inputs!$H$13*$AN$134)+(Inputs!$H$13*$AN$135) -> 52358.56003 | AP168: 896.9472153 | AQ168: 952.3062403 | AR168: 1011.022341
